Workbook

Sheet Contents
A8: Greater Manchester Forecasting Model Dataset
I10: Contact:
A12: Select the required page: | I12: Kerry Houston | Head of Regional Model Development
A13: Guidance notes/definitions | I13: khouston@oxfordeconomics.com
A14: Area definitions
A15: Area profile sheet | I15: Jonathan Stewart | Senior Economist
A16: Comparison sheet | I16: jstewart@oxfordeconomics.com
A17: Area output sheet
A18: Key variables sheet | I18: Oxford Economics Ltd
I19: Lagan House
I20: Sackville Street
I21: Lisburn
I22: BT27 4AB
I23: Tel : 00 44 2892 635 400 (Switchboard)
I24: Registered Number: 1557776
A28: Copyright © Oxford Economics Ltd - All rights reserved | I28: August 2019
A31: All information in this file is copyright © Oxford Economics Ltd and may not be published or distributed without our prior written permission.
A32: Because of the uncertainty of future events and circumstances and because the contents are based on data and information provided by third parties upon which Oxford Economics
A33: has relied in producing its reports and forecasts in good faith, Oxford Economics does not warrant that its forecasts, projections, advice, recommendations or the contents of any report,
A34: presentation or other document will be accurate or achievable and Oxford Economics will not be liable for the contents any of the foregoing or for the reliance by the Customer
A35: on any of the foregoing.
A37: The forecasts set out in this file are produced within a fully integrated modelling system which brings together changes in employment and assumptions about migration,
A38: commuting and activity rates. If adjustments are made to these assumptions, the resulting outputs should not be sourced to Oxford Economics.

Sheet Guidance notes
A1: Back to Contents
A2: Guidance notes/definitions
A4: Data and forecasts are taken from the Oxford Economics Greater Manchester Forecating Model, August 2019
A6: Definitions/sources used
A7: Variable | B7: Units | C7: Source | D7: Definition/Notes
A8: Demography
A9: Total population | B9: Thousands | C9: ONS mid-year population estimates | D9: Total population, male and female, all ages
A10: Net Migration | B10: Thousands | C10: ONS mid-year population estimates | D10: Net migration, all ages
A11: Population aged 0-15 | B11: Thousands | C11: ONS mid-year population estimates | D11: Population aged between 0 and 15
A12: Population aged 16-64 | B12: Thousands | C12: ONS mid-year population estimates | D12: Population aged between 16 and 64
A13: Population aged 65+ | B13: Thousands | C13: ONS mid-year population estimates | D13: Population aged between 65 and over
A14: Population 15-74 | B14: Thousands | C14: ONS mid-year population estimates | D14: Population aged between 15 and 74
A16: Labour market
A17: Employees in employment | B17: Thousands | C17: BRES, ONS workforce jobs | D17: Workplace based Jobs; annual average
A18: Self employment | B18: Thousands | C18: Census of Population, ONS Workforce jobs | D18: Workplace based Jobs; annual average
A19: Total employment | B19: Thousands | C19: BRES, ONS workforce jobs | D19: Workplace based Jobs; annual average. Includes employees in employment, self employment, employees in Her Majesty's Forces & government supported trainees
A20: Total employees by key sector | B20: Thousands | C20: BRES, ONS workforce jobs | D20: Workplace based; key sector definitions provided by GMCA
A21: Total employment by broad sector | B21: Thousands | C21: BRES, ONS workforce jobs | D21: Workplace based Jobs; annual average, by broad SIC2007 sectors
A22: Total employment by detailed sector | B22: Thousands | C22: BRES, ONS workforce jobs | D22: Workplace based Jobs; annual average, by detailed sector
A23: Total employment by key sector | B23: Thousands | C23: BRES, ONS workforce jobs | D23: Workplace based; key sector definitions provided by GMCA
A24: People based employment | B24: Thousands | C24: Census of Population, Oxford Economics | D24: Workplace based people
A25: Unemployment | B25: Thousands | C25: Claimant Count | D25: Residence based
A26: Unemployment rate | B26: % of working age population | C26: Claimant Count | D26: Residence based
A27: Net commuting | B27: Thousands | C27: Census of Population | D27: People in employment less residence based employment
A28: Resident employment | B28: Thousands | C28: Annual Population Survey (APS), Census of Population | D28: Residence based people
A29: APS resident employment rate | B29: % of population aged 16-64 | C29: Annual Population Survey (APS) | D29: Residence based
A30: Occupations | B30: Thousands | C30: Census of Population, Labour Force Survey, Oxford Economics | D30: Workplace based people in employment by minor occupation group, consistent with Census results
A31: Employment by occupation and qualification | B31: Thousands | C31: Annual Population Survey (APS), Oxford Economics | D31: Workplace based people in employment by major occupation group and NVQ level
A33: Output
A34: GVA | B34: £ millions, 2016 prices | C34: ONS Regional Accounts, Oxford Economics | D34: Workplace based
A35: GVA by broad sector | B35: £ millions, 2016 prices | C35: ONS Regional Accounts, Oxford Economics | D35: Workplace based by broad SIC2007 sectors
A36: GVA by detailed sectors | B36: £ millions, 2016 prices | C36: ONS Regional Accounts, Oxford Economics | D36: Workplace based by detailed sector
A37: GVA by key sector | B37: £ millions, 2016 prices | C37: ONS Regional Accounts, Oxford Economics | D37: Workplace based; key sector definitions provided by GMCA
A39: Productivity
A40: Productivity | B40: £ millions, 2016 prices | C40: ONS Regional Accounts, Oxford Economics | D40: GVA per job
A41: Productivity by broad sector | B41: £ millions, 2016 prices | C41: ONS Regional Accounts, Oxford Economics | D41: GVA per job, broad SIC2007 sector
A42: Productivity by detailed sector | B42: £ millions, 2016 prices | C42: ONS Regional Accounts, Oxford Economics | D42: GVA per job, detailed sectors
A43: Productivity by key sector | B43: £ millions, 2016 prices | C43: ONS Regional Accounts, Oxford Economics | D43: GVA per job by GMCA defined key sectors
A45: Replacement demand (results are presented on both an occupation and key sector basis)
A46: Replacement demand by occupation
A47: Expansion demand by occupation | B47: Thousands | C47: 2011 Census, Oxford Economics | D47: Change in occupation employment by minor occupation group
A48: Replacement demand by occupation | B48: Thousands | C48: Labour Force Survey, Oxford Economics | D48: The number of people leaving an occupation due to unemployment, inactivity, retirement, migration, death or to move to another job in a different occupational group.
A49: Total requirement by occupation | B49: Thousands | C49: Oxford Economics | D49: Expansion demand plus replacement demand (all leavers)
A50: Total requirement from outside the labour market by occupation | B50: Thousands | C50: Labour Force Survey, Oxford Economics | D50: Expansion demand plus replacement demand less joiners from other occupation groups. This is the number of people required from education, inactivity, migration, retirement or commuting.
A52: Replacement demand by key sector
A53: Expansion demand by key sector | B53: Thousands | C53: 2011 Census, Oxford Economics | D53: Change in employment by key sector
A54: Replacement demand by key sector | B54: Thousands | C54: Labour Force Survey, Oxford Economics | D54: The number of people leaving each sector due to unemployment, inactivity, retirement, migration, death or to move to another job in a different sector.
A55: Total requirement by key sector | B55: Thousands | C55: Oxford Economics | D55: Expansion demand plus replacement demand (all leavers)
A56: Total requirement from outside the labour market by key sector | B56: Thousands | C56: Labour Force Survey, Oxford Economics | D56: Expansion demand plus replacement demand less joiners who move from other sectors. This is the number of people required from education, inactivity, migration, retirement or commuting.
A61: All information in this file is copyright © Oxford Economics Ltd and may not be published or distributed without our prior written permission.
A62: Because of the uncertainty of future events and circumstances and because the contents are based on data and information provided by third parties upon which Oxford Economics
A63: has relied in producing its reports and forecasts in good faith, Oxford Economics does not warrant that its forecasts, projections, advice, recommendations or the contents of any report,
A64: presentation or other document will be accurate or achievable and Oxford Economics will not be liable for the contents any of the foregoing or for the reliance by the Customer
A65: on any of the foregoing.
A67: The forecasts set out in this file are produced within a fully integrated modelling system which brings together changes in employment and assumptions about migration,
A68: commuting and activity rates. If adjustments are made to these assumptions, the resulting outputs should not be sourced to Oxford Economics.

Sheet Area definitions (hidden)
A1: Back to Contents
A2: Area definitions
A4: Northern Powerhouse | B4: Birmingham | C4: Bristol | D4: Cardiff | E4: Glasgow | F4: Leeds | G4: Sheffield | H4: Liverpool | I4: Newcastle | J4: Nottingham | K4: Newcastle | L4: Greater London
A6: North West region | B6: Birmingham | C6: Bath and North East Somerset | D6: Cardiff | E6: Glasgow | F6: Barnsley | G6: Barnsley | H6: Halton | I6: County Durham | J6: Broxtowe | K6: Newcastle upon Tyne | L6: Barking and Dagenham
A7: North East region | B7: Coventry | C7: City of Bristol | D7: Vale of Glamorgan | E7: East Dunbartonshire | F7: Bradford | G7: Bassetlaw | H7: Knowsley | I7: Gateshead | J7: Gedling | K7: North Tyneside | L7: Barnet
A8: Yorkshire & Humber region | B8: Dudley | C8: North Somerset | D8: Bridgend | E8: East Renfrewshire | F8: Calderdale | G8: Bolsover | H8: Liverpool | I8: Newcastle upon Tyne | J8: Rushcliffe | K8: Northumberland | L8: Bexley
B9: Sandwell | C9: South Gloucestershire | D9: Rhondda Cynon Taf | E9: Inverclyde | F9: Craven | G9: Chesterfield | H9: Sefton | I9: North Tyneside | J9: Nottingham | L9: Brent
B10: Solihull | D10: Caerphilly | E10: North Lanarkshire | F10: Harrogate | G10: Derbyshire Dales | H10: St. Helens | I10: Northumberland | L10: Bromley
B11: Walsall | D11: Merthyr Tydfil | E11: Renfrewshire | F11: Kirklees | G11: Doncaster | H11: Wirral | I11: South Tyneside | L11: Camden
B12: Wolverhampton | D12: Blaenau Gwent | E12: South Lanarkshire | F12: Leeds | G12: North East Derbyshire | I12: Sunderland | L12: City of London
B13: Warwick District Council | D13: Torfaen | E13: West Dunbartonshire | F13: Selby | G13: Rotherham | L13: Croydon
B14: Stratford-on-Avon District Council | D14: Monmouthshire | F14: Wakefield | G14: Sheffield | L14: Ealing
B15: Rugby Borough Council | D15: Newport | F15: York | L15: Enfield
B16: Hinckley & Bosworth Borough Council | L16: Greenwich
B17: Nuneaton & Bedworth Council | L17: Hackney
B18: North Warwickshire Borough Council | L18: Hammersmith and Fulham
B19: Cannock Chase | L19: Haringey
B20: Lichfield | L20: Harrow
B21: Tamworth | L21: Havering
B22: East Staffordshire | L22: Hillingdon
B23: Redditch | L23: Hounslow
B24: Bromsgrove | L24: Islington
B25: Wyre Forest | L25: Kensington and Chelsea
L26: Kingston upon Thames
L27: Lambeth
L28: Lewisham
L29: Merton
L30: Newham
L31: Redbridge
L32: Richmond upon Thames
L33: Southwark
L34: Sutton
L35: Tower Hamlets
L36: Waltham Forest
L37: Wandsworth
L38: Westminster

Sheet Area profile
B1: Back to Contents
C2: =city&" Profile" -> Bolton Profile
B5: =city&": Employment Outlook" -> Bolton: Employment Outlook | H5: =city&": Key Indicators" -> Bolton: Key Indicators
K6: =chart_data!$D$1 -> 2017 | L6: =chart_data!E1 -> 2037 | M6: Change | N6: GM
H7: Population (000s) | K7: =chart_data!D3 -> 284.7860907 | L7: =chart_data!E3 -> 290.7217943 | M7: =ROUND(((L7-K7)/K7)*100,1)&" (%)" -> 2.1 (%) | N7: =chart_data!J3 -> 6.6 (%)
H8: Employees total (000s) | K8: =chart_data!D4 -> 110.1680598 | L8: =chart_data!E4 -> 116.4255454 | M8: =ROUND(((L8-K8)/K8)*100,1)&" (%)" -> 5.7 (%) | N8: =chart_data!J4 -> 11.6 (%)
H9: Self-employed total (000s) | K9: =chart_data!D5 -> 14.80762415 | L9: =chart_data!E5 -> 17.48917277 | M9: 18.1 (%) | N9: =chart_data!J5 -> 22 (%)
H10: Employment total (000s) | K10: =chart_data!D6 -> 124.9784626 | L10: =chart_data!E6 -> 133.9174745 | M10: 7.2 (%) | N10: =chart_data!J6 -> 12.6 (%)
H11: ILO unemployment level (000s) | K11: =chart_data!D7 -> 6.800399801 | L11: =chart_data!E7 -> 5.999543935 | M11: =ROUND(L11-K11,1)&" (000s)" -> -0.8 (000s) | N11: =chart_data!J7 -> -9 (000s)
H12: Residence based employment (000s) | K12: =chart_data!D8 -> 132.7497466 | L12: =chart_data!E8 -> 139.0370174 | M12: =ROUND(L12-K12,1)&" (000s)" -> 6.3 (000s) | N12: =chart_data!J8 -> 127.3 (000s)
H13: APS residence based employment rate (%) | K13: =chart_data!D9 -> 70.8 | L13: =chart_data!E9 -> 73.52794273 | M13: =IFERROR(ROUND(L13-K13,1)&" (pp)","-") -> 2.7 (pp) | N13: =chart_data!J9 -> 4.8 (pp)
H14: Net commuting (000s) | K14: =chart_data!D10 -> -8.360632581 | L14: =chart_data!E10 -> -6.186178284 | M14: =IFERROR(ROUND(L14-K14,1)&" (000s)","-") -> 2.2 (000s) | N14: =chart_data!J10 -> 44.5 (000s)
H15: GVA total (£m, 2016) | K15: =chart_data!D11 -> 5636.379579 | L15: =chart_data!E11 -> 7419.863413 | M15: =ROUND((((L15/K15)^(1/($L$6-$K$6))-1)*100),1)&" (% pa)" -> 1.4 (% pa) | N15: =chart_data!J11 -> 1.6 (% pa)
H16: Source: GMFM
B21: =city&": GVA outlook (% pa)" -> Bolton: GVA outlook (% pa) | H21: =city&": ILO unemployment" -> Bolton: ILO unemployment
C22: =city -> Bolton | D22: GM | E22: pp diff
B23: =chart_data!A21 -> 2010 | C23: =chart_data!G21 -> 1.004688347 | D23: =chart_data!H21 -> 0.9013368881 | E23: =chart_data!I21 -> 0.1033514593
B24: =chart_data!A22 -> 2011 | C24: =chart_data!G22 -> -1.613904738 | D24: =chart_data!H22 -> -0.6961873614 | E24: =chart_data!I22 -> -0.9177173767
B25: =chart_data!A23 -> 2012 | C25: =chart_data!G23 -> -0.2413213899 | D25: =chart_data!H23 -> 2.095007263 | E25: =chart_data!I23 -> -2.336328653
B26: =chart_data!A24 -> 2013 | C26: =chart_data!G24 -> 1.022726359 | D26: =chart_data!H24 -> 1.205963785 | E26: =chart_data!I24 -> -0.1832374253
B27: =chart_data!A25 -> 2014 | C27: =chart_data!G25 -> 0.4601145984 | D27: =chart_data!H25 -> 0.8765889978 | E27: =chart_data!I25 -> -0.4164743994
B28: =chart_data!A26 -> 2015 | C28: =chart_data!G26 -> 2.005364621 | D28: =chart_data!H26 -> 3.417419948 | E28: =chart_data!I26 -> -1.412055327
B29: =chart_data!A27 -> 2016 | C29: =chart_data!G27 -> 3.296831985 | D29: =chart_data!H27 -> 1.9745145 | E29: =chart_data!I27 -> 1.322317485
B30: =chart_data!A28 -> 2017 | C30: =chart_data!G28 -> 5.951507967 | D30: =chart_data!H28 -> 2.167466226 | E30: =chart_data!I28 -> 3.784041741
B31: 2017-2037 | C31: =chart_data!G29 -> 1.384084516 | D31: =chart_data!H29 -> 1.564565751 | E31: =chart_data!I29 -> -0.1804812349
B32: Source: GMFM
H36: =city&": Change in employment (000s)" -> Bolton: Change in employment (000s)
K37: =chart_data!H45 -> 1997-2007 | L37: =chart_data!I45 -> 2007-2017 | M37: =chart_data!J45 -> 2017-2037
H38: Agriculture, forestry & fishing | K38: =chart_data!H47 -> -0.0376416835 | L38: =chart_data!I47 -> 0.009886275559 | M38: =chart_data!J47 -> -0.03470118174
H39: Mining & quarrying | K39: =chart_data!H48 -> 0.004102786918 | L39: =chart_data!I48 -> 0.1166610721 | M39: =chart_data!J48 -> -0.05087193464
H40: Manufacturing | K40: =chart_data!H49 -> -7.872013236 | L40: =chart_data!I49 -> -2.092978844 | M40: =chart_data!J49 -> -3.893036025
B41: =city&": Net migration and natural increase" -> Bolton: Net migration and natural increase | H41: Electricity, gas, steam & air conditioning supply | K41: =chart_data!H50 -> -0.1248596623 | L41: =chart_data!I50 -> 0.7626212966 | M41: =chart_data!J50 -> -0.1919853164
H42: Water supply; sewerage, waste management | K42: =chart_data!H51 -> -0.5917056477 | L42: =chart_data!I51 -> 0.2608071578 | M42: =chart_data!J51 -> -0.1645745377
H43: Construction | K43: =chart_data!H52 -> 3.674317854 | L43: =chart_data!I52 -> -2.609050489 | M43: =chart_data!J52 -> 2.60374521
H44: Wholesale & retail trade | K44: =chart_data!H53 -> -1.37374624 | L44: =chart_data!I53 -> -1.221815346 | M44: =chart_data!J53 -> 1.649997595
H45: Transportation & storage | K45: =chart_data!H54 -> -0.8214938778 | L45: =chart_data!I54 -> 3.221159689 | M45: =chart_data!J54 -> 0.7560263193
H46: Accommodation & food service activities | K46: =chart_data!H55 -> -1.075334675 | L46: =chart_data!I55 -> -1.603471287 | M46: =chart_data!J55 -> 0.1344410581
H47: Information & communication | K47: =chart_data!H56 -> 0.9797185229 | L47: =chart_data!I56 -> 0.1625665966 | M47: =chart_data!J56 -> 0.3359954285
H48: Financial & insurance activities | K48: =chart_data!H57 -> 1.461701899 | L48: =chart_data!I57 -> -0.2213938821 | M48: =chart_data!J57 -> -0.1843249623
H49: Real estate activities | K49: =chart_data!H58 -> 1.696380005 | L49: =chart_data!I58 -> 0.2864380487 | M49: =chart_data!J58 -> 0.5497410607
H50: Professional, scientific & technical activities | K50: =chart_data!H59 -> 0.1090431854 | L50: =chart_data!I59 -> 3.408736107 | M50: =chart_data!J59 -> 2.272074841
H51: Administrative & support service activities | K51: =chart_data!H60 -> 1.189019064 | L51: =chart_data!I60 -> -0.5577921685 | M51: =chart_data!J60 -> 2.737881733
H52: Public administration & defence | K52: =chart_data!H61 -> 0.6084069426 | L52: =chart_data!I61 -> -1.865615717 | M52: =chart_data!J61 -> -0.5299447424
H53: Education | K53: =chart_data!H62 -> 1.754690141 | L53: =chart_data!I62 -> 0.3075953385 | M53: =chart_data!J62 -> -0.5703952694
H54: Human health & social work activities | K54: =chart_data!H63 -> 3.387910775 | L54: =chart_data!I63 -> 3.601557654 | M54: =chart_data!J63 -> 1.933943753
H55: Arts, entertainment & recreation | K55: =chart_data!H64 -> 0.2734512787 | L55: =chart_data!I64 -> 1.241589825 | M55: =chart_data!J64 -> 1.018227417
H56: Other services activities | K56: =chart_data!H65 -> 0.7219959866 | L56: =chart_data!I65 -> -0.5078647893 | M56: =chart_data!J65 -> 0.5667714273
H57: Total | K57: =chart_data!H66 -> 3.96394342 | L57: =chart_data!I66 -> 2.699636537 | M57: =chart_data!J66 -> 8.939011872
H58: Source: GMFM
B62: =city&": Key indicators" -> Bolton: Key indicators
... 72 more rows

Sheet Comparison
B1: Back to Contents
C3: =Area1.&" versus "&Area2. -> Bolton versus Bolton
C6: Geography 1 | I6: FORECAST YEARS | K6: START YEAR | L6: 2017
K7: END YEAR | L7: 2037
C8: Geography 2
D14: Units | E14: =L6 -> 2017 | G14: Difference | H14: =L7 -> 2037 | J14: Difference | K14: ="Change "&L6&"-"&L7 -> Change 2017-2037 | M14: Difference | N14: ="Growth "&L6&"-"&L7 -> Growth 2017-2037 | P14: Difference (pp)
E15: =Area1. -> Bolton | F15: =Area2. -> Bolton | H15: =Area1. -> Bolton | I15: =Area2. -> Bolton | K15: =Area1. -> Bolton | L15: =Area2. -> Bolton | N15: =Area1. -> Bolton | O15: =Area2. -> Bolton
C16: Demography
C17: Total population | D17: (000s) | E17: =compare_data!C5 -> 284.7860907 | F17: =compare_data!H5 -> 284.7860907 | G17: =compare_data!K5 -> 0 | H17: =compare_data!D5 -> 290.7217943 | I17: =compare_data!I5 -> 290.7217943 | J17: =compare_data!L5 -> 0 | K17: =compare_data!N5 -> 5.935703626 | L17: =compare_data!O5 -> 5.935703626 | M17: =compare_data!P5 -> 0 | N17: =compare_data!R5 -> 0.1031953955 | O17: =compare_data!S5 -> 0.1031953955 | P17: =compare_data!T5 -> 0
C18: Population aged 0-15 | D18: (000s) | E18: =compare_data!C6 -> 60.48909071 | F18: =compare_data!H6 -> 60.48909071 | G18: =compare_data!K6 -> 0 | H18: =compare_data!D6 -> 57.88238271 | I18: =compare_data!I6 -> 57.88238271 | J18: =compare_data!L6 -> 0 | K18: =compare_data!N6 -> -2.606707994 | L18: =compare_data!O6 -> -2.606707994 | M18: =compare_data!P6 -> 0 | N18: =compare_data!R6 -> -0.2200074408 | O18: =compare_data!S6 -> -0.2200074408 | P18: =compare_data!T6 -> 0
C19: Population aged 16-64 | D19: (000s) | E19: =compare_data!C7 -> 175.795 | F19: =compare_data!H7 -> 175.795 | G19: =compare_data!K7 -> 0 | H19: =compare_data!D7 -> 167.4481978 | I19: =compare_data!I7 -> 167.4481978 | J19: =compare_data!L7 -> 0 | K19: =compare_data!N7 -> -8.346802181 | L19: =compare_data!O7 -> -8.346802181 | M19: =compare_data!P7 -> 0 | N19: =compare_data!R7 -> -0.2429269874 | O19: =compare_data!S7 -> -0.2429269874 | P19: =compare_data!T7 -> 0
C20: Population aged 65+ | D20: (000s) | E20: =compare_data!C8 -> 48.502 | F20: =compare_data!H8 -> 48.502 | G20: =compare_data!K8 -> 0 | H20: =compare_data!D8 -> 65.3912138 | I20: =compare_data!I8 -> 65.3912138 | J20: =compare_data!L8 -> 0 | K20: =compare_data!N8 -> 16.8892138 | L20: =compare_data!O8 -> 16.8892138 | M20: =compare_data!P8 -> 0 | N20: =compare_data!R8 -> 1.505129025 | O20: =compare_data!S8 -> 1.505129025 | P20: =compare_data!T8 -> 0
C21: Total migration (anuual average) | D21: (000s) | E21: =compare_data!C9 -> 0.091 | F21: =compare_data!H9 -> 0.091 | G21: =compare_data!K9 -> 0 | H21: =compare_data!D9 -> -0.7897695414 | I21: =compare_data!I9 -> -0.7897695414 | J21: =compare_data!L9 -> 0 | K21: =compare_data!N9 -> -0.8807695414 | L21: =compare_data!O9 -> -0.8807695414 | M21: =compare_data!P9 -> 0 | N21: =compare_data!R9 -> - | O21: =compare_data!S9 -> - | P21: =compare_data!T9 -> -
C22: Labour market
C23: Total employees | D23: (000s) | E23: =compare_data!C13 -> 110.1680598 | F23: =compare_data!H13 -> 110.1680598 | G23: =compare_data!K13 -> 0 | H23: =compare_data!D13 -> 116.4255454 | I23: =compare_data!I13 -> 116.4255454 | J23: =compare_data!L13 -> 0 | K23: =compare_data!N13 -> 6.257485578 | L23: =compare_data!O13 -> 6.257485578 | M23: =compare_data!P13 -> 0 | N23: =compare_data!R13 -> 0.2766066371 | O23: =compare_data!S13 -> 0.2766066371 | P23: =compare_data!T13 -> 0
C24: Self employed | D24: (000s) | E24: =compare_data!C14 -> 14.80762415 | F24: =compare_data!H14 -> 14.80762415 | G24: =compare_data!K14 -> 0 | H24: =compare_data!D14 -> 17.48917277 | I24: =compare_data!I14 -> 17.48917277 | J24: =compare_data!L14 -> 0 | K24: =compare_data!N14 -> 2.681548628 | L24: =compare_data!O14 -> 2.681548628 | M24: =compare_data!P14 -> 0 | N24: =compare_data!R14 -> 0.8356713901 | O24: =compare_data!S14 -> 0.8356713901 | P24: =compare_data!T14 -> 0
C25: Total employment (jobs) | D25: (000s) | E25: =compare_data!C15 -> 124.9784626 | F25: =compare_data!H15 -> 124.9784626 | G25: =compare_data!K15 -> 0 | H25: =compare_data!D15 -> 133.9174745 | I25: =compare_data!I15 -> 133.9174745 | J25: =compare_data!L15 -> 0 | K25: =compare_data!N15 -> 8.939011872 | L25: =compare_data!O15 -> 8.939011872 | M25: =compare_data!P15 -> 0 | N25: =compare_data!R15 -> 0.3460088575 | O25: =compare_data!S15 -> 0.3460088575 | P25: =compare_data!T15 -> 0
C26: Total employment (people) | D26: (000s) | E26: =compare_data!C16 -> 124.389114 | F26: =compare_data!H16 -> 124.389114 | G26: =compare_data!K16 -> 0 | H26: =compare_data!D16 -> 132.8508391 | I26: =compare_data!I16 -> 132.8508391 | J26: =compare_data!L16 -> 0 | K26: =compare_data!N16 -> 8.461725115 | L26: =compare_data!O16 -> 8.461725115 | M26: =compare_data!P16 -> 0 | N26: =compare_data!R16 -> 0.329603602 | O26: =compare_data!S16 -> 0.329603602 | P26: =compare_data!T16 -> 0
C27: Residence employment | D27: (000s) | E27: =compare_data!C17 -> 132.7497466 | F27: =compare_data!H17 -> 132.7497466 | G27: =compare_data!K17 -> 0 | H27: =compare_data!D17 -> 139.0370174 | I27: =compare_data!I17 -> 139.0370174 | J27: =compare_data!L17 -> 0 | K27: =compare_data!N17 -> 6.287270819 | L27: =compare_data!O17 -> 6.287270819 | M27: =compare_data!P17 -> 0 | N27: =compare_data!R17 -> 0.2316401661 | O27: =compare_data!S17 -> 0.2316401661 | P27: =compare_data!T17 -> 0
C28: APS residence employment rate (16-64) | D28: % of population aged 16-64 | E28: =compare_data!C18 -> 70.8 | F28: =compare_data!H18 -> 70.8 | G28: =IFERROR(ROUND(compare_data!K18,1)&compare_data!$Q$4,"-") -> 0 pp | H28: =compare_data!D18 -> 73.52794273 | I28: =compare_data!I18 -> 73.52794273 | J28: =IFERROR(ROUND(compare_data!L18,1)&compare_data!$Q$4,"-") -> 0 pp | K28: =IFERROR(ROUND(compare_data!N18,1)&compare_data!$Q$4,"-") -> 2.7 pp | L28: =IFERROR(ROUND(compare_data!O18,1)&compare_data!$Q$4,"-") -> 2.7 pp | M28: =IFERROR(ROUND(compare_data!P18,1)&compare_data!$Q$4,"-") -> 0 pp | N28: =compare_data!R18 -> 0.1892113117 | O28: =compare_data!S18 -> 0.1892113117 | P28: =compare_data!T18 -> 0
C29: Net commuting | D29: (000s) | E29: =compare_data!C20 -> -8.360632581 | F29: =compare_data!H20 -> -8.360632581 | G29: =compare_data!K20 -> 0 | H29: =compare_data!D20 -> -6.186178284 | I29: =compare_data!I20 -> -6.186178284 | J29: =compare_data!L20 -> 0 | K29: =compare_data!N20 -> 2.174454296 | L29: =compare_data!O20 -> 2.174454296 | M29: =compare_data!P20 -> 0 | N29: =compare_data!R20 -> -1.49479828 | O29: =compare_data!S20 -> -1.49479828 | P29: =compare_data!T20 -> 0
C30: ILO unemployment level | D30: (000s) | E30: =compare_data!C21 -> 6.800399801 | F30: =compare_data!H21 -> 6.800399801 | G30: =compare_data!K21 -> 0 | H30: =compare_data!D21 -> 5.999543935 | I30: =compare_data!I21 -> 5.999543935 | J30: =compare_data!L21 -> 0 | K30: =compare_data!N21 -> -0.8008558659 | L30: =compare_data!O21 -> -0.8008558659 | M30: =compare_data!P21 -> 0 | N30: =compare_data!R21 -> -0.6245313907 | O30: =compare_data!S21 -> -0.6245313907 | P30: =compare_data!T21 -> 0
C31: ILO unemployment rate | D31: % of labour force | E31: =compare_data!C22 -> 4.873086827 | F31: =compare_data!H22 -> 4.873086827 | G31: =IFERROR(ROUND(compare_data!K22,1)&compare_data!$Q$4,"-") -> 0 pp | H31: =compare_data!D22 -> 4.136573481 | I31: =compare_data!I22 -> 4.136573481 | J31: =IFERROR(ROUND(compare_data!L22,1)&compare_data!$Q$4,"-") -> 0 pp | K31: =IFERROR(ROUND(compare_data!N22,1)&compare_data!$Q$4,"-") -> -0.7 pp | L31: =IFERROR(ROUND(compare_data!O22,1)&compare_data!$Q$4,"-") -> -0.7 pp | M31: =IFERROR(ROUND(compare_data!P22,1)&compare_data!$Q$4,"-") -> 0 pp | N31: =compare_data!R22 -> -0.8159518831 | O31: =compare_data!S22 -> -0.8159518831 | P31: =compare_data!T22 -> 0
C32: Output
C33: Total GVA | D33: £2016m | E33: =compare_data!C25 -> 5636.379579 | F33: =compare_data!H25 -> 5636.379579 | G33: =compare_data!K25 -> 0 | H33: =compare_data!D25 -> 7419.863413 | I33: =compare_data!I25 -> 7419.863413 | J33: =compare_data!L25 -> 0 | K33: =compare_data!N25 -> 1783.483834 | L33: =compare_data!O25 -> 1783.483834 | M33: =compare_data!P25 -> 0 | N33: =compare_data!R25 -> 1.384084516 | O33: =compare_data!S25 -> 1.384084516 | P33: =compare_data!T25 -> 0
C34: Relative productivity (UK = 100) | D34: Index | E34: =compare_data!C26 -> 88.44236658 | F34: =compare_data!H26 -> 88.44236658 | G34: =compare_data!K26 -> 0 | H34: =compare_data!D26 -> 87.62738688 | I34: =compare_data!I26 -> 87.62738688 | J34: =compare_data!L26 -> 0 | K34: =compare_data!N26 -> -0.8149796948 | L34: =compare_data!O26 -> -0.8149796948 | M34: =compare_data!P26 -> 0 | N34: =compare_data!R26 -> -0.04627693908 | O34: =compare_data!S26 -> -0.04627693908 | P34: =compare_data!T26 -> 0
C35: Source: Oxford Economics

Sheet Area output
A1: Data by Area | B1: Back to contents
BD2: FORECAST YEARS
BD4: START YEAR | BE4: 2017
BD5: END YEAR | BE5: 2037
A7: =IF(ISNA(reg_out&" ["&reg&"]")=TRUE,"",reg_out) -> Greater Manchester | E7: 1991 | F7: 1992 | G7: 1993 | H7: 1994 | I7: 1995 | J7: 1996 | K7: 1997 | L7: 1998 | M7: 1999 | N7: 2000 | O7: 2001 | P7: 2002 | Q7: 2003 | R7: 2004 | S7: 2005 | T7: 2006 | U7: 2007 | V7: 2008 | W7: 2009 | X7: 2010 | Y7: 2011 | Z7: 2012 | AA7: 2013 | AB7: 2014 | AC7: 2015 | AD7: 2016 | AE7: 2017 | AF7: 2018 | AG7: 2019 | AH7: 2020 | AI7: 2021 | AJ7: 2022 | AK7: 2023 | AL7: 2024 | AM7: 2025 | AN7: 2026 | AO7: 2027 | AP7: 2028 | AQ7: 2029 | AR7: 2030 | AS7: 2031 | AT7: 2032 | AU7: 2033 | AV7: 2034 | AW7: 2035 | AX7: 2036 | AY7: 2037 | AZ7: 2038 | BA7: 2039 | BD7: =BE4 -> 2017 | BE7: =BE5 -> 2037 | BF7: Change | BG7: Growth (%/year)
C8: Column letter | E8: c | F8: d | G8: e | H8: f | I8: g | J8: h | K8: i | L8: j | M8: k | N8: l | O8: m | P8: n | Q8: o | R8: p | S8: q | T8: r | U8: s | V8: t | W8: u | X8: v | Y8: w | Z8: x | AA8: y | AB8: z | AC8: aa | AD8: ab | AE8: ac | AF8: ad | AG8: ae | AH8: af | AI8: ag | AJ8: ah | AK8: ai | AL8: aj | AM8: ak | AN8: al | AO8: am | AP8: an | AQ8: ao | AR8: ap | AS8: aq | AT8: ar | AU8: as | AV8: at | AW8: au | AX8: av | AY8: aw | AZ8: ax | BA8: ay
A9: Summary statistics | C9: Row number | D9: Row for changes/growth
A10: Total population | B10: Thousands | C10: 3 | D10: 4 | E10: =IF(E$8="","",IF(ISNA(INDIRECT("'"&reg&"'!"&E$8&$C10))=TRUE,"",INDIRECT("'"&reg&"'!"&E$8&$C10))) -> 2553.551869 | F10: 2551.166776 | G10: 2551.002935 | H10: 2545.643776 | I10: 2540.171825 | J10: 2531.342845 | K10: 2521.91082 | L10: 2521.902791 | M10: 2515.475933 | N10: 2516.3269 | O10: =IF(O$8="","",IF(ISNA(INDIRECT("'"&reg&"'!"&O$8&$C10))=TRUE,"",INDIRECT("'"&reg&"'!"&O$8&$C10))) -> 2516.083795 | P10: 2523.344796 | Q10: 2538.774613 | R10: 2550.052469 | S10: 2564.397242 | T10: 2582.683789 | U10: 2599.080756 | V10: 2620.40702 | W10: 2640.110368 | X10: 2662.072773 | Y10: =IF(Y$8="","",IF(ISNA(INDIRECT("'"&reg&"'!"&Y$8&$C10))=TRUE,"",INDIRECT("'"&reg&"'!"&Y$8&$C10))) -> 2685.587957 | Z10: 2701.579061 | AA10: 2713.7739 | AB10: 2730.324931 | AC10: 2754.219065 | AD10: 2781.045954 | AE10: 2799.000962 | AF10: 2812.770893 | AG10: 2829.238172 | AH10: 2843.151231 | AI10: =IF(AI$8="","",IF(ISNA(INDIRECT("'"&reg&"'!"&AI$8&$C10))=TRUE,"",INDIRECT("'"&reg&"'!"&AI$8&$C10))) -> 2854.809091 | AJ10: 2865.93765 | AK10: 2877.05215 | AL10: 2887.83342 | AM10: 2897.755063 | AN10: 2907.354149 | AO10: 2916.478892 | AP10: 2924.978032 | AQ10: 2932.956526 | AR10: 2940.528963 | AS10: =IF(AS$8="","",IF(ISNA(INDIRECT("'"&reg&"'!"&AS$8&$C10))=TRUE,"",INDIRECT("'"&reg&"'!"&AS$8&$C10))) -> 2947.789368 | AT10: 2954.789937 | AU10: 2961.222768 | AV10: 2967.17692 | AW10: 2972.992779 | AX10: 2978.507821 | AY10: 2983.857078 | AZ10: 2988.918868 | BA10: 2993.894743 | BD10: =IF($BE$4>$BE$5,"Invalid dates",IFERROR(HLOOKUP(BD$7,$E$7:$AZ$818,$D10,FALSE),"-")) -> 2799.000962 | BE10: =IF($BE$4>$BE$5,"Invalid dates",IFERROR(HLOOKUP(BE$7,$E$7:$BA$818,$D10,FALSE),"-")) -> 2983.857078 | BF10: =IFERROR(BE10-BD10,"-") -> 184.8561162 | BG10: =IFERROR(((BE10/BD10)^(1/($BE$7-$BD$7))-1)*100,"-") -> 0.320282968
A11: Net Migration | B11: Thousands | C11: 8 | D11: 5 | E11: - | F11: =IF(F$8="","",IF(ISNA(INDIRECT("'"&reg&"'!"&F$8&$C11))=TRUE,"",INDIRECT("'"&reg&"'!"&F$8&$C11))) -> -10.36064414 | G11: -6.58472599 | H11: -10.31490669 | I11: -9.343329978 | J11: -11.42105135 | K11: -13.51592675 | L11: -3.58390585 | M11: -8.526140595 | N11: -1.80132075 | O11: -2.562517118 | P11: 4.192172001 | Q11: 11.50813198 | R11: 5.878029768 | S11: 7.344873843 | T11: 9.334046272 | U11: 6.8390769 | V11: 9.137170019 | W11: 7.255996793 | X11: 7.910558712 | Y11: 9.075464665 | Z11: 1.509422991 | AA11: -0.9561693142 | AB11: 2.823435736 | AC11: 12.22871292 | AD11: 13.89041072 | AE11: 6.203 | AF11: 3.847 | AG11: 3.748488693 | AH11: 1.32584022 | AI11: -0.710944289 | AJ11: -1.076091488 | AK11: -1.033732251 | AL11: -1.458837302 | AM11: -2.088129683 | AN11: -2.060597392 | AO11: -1.92547226 | AP11: -2.150600912 | AQ11: -2.428640846 | AR11: -2.566436879 | AS11: -2.669201659 | AT11: -2.858040404 | AU11: -3.072275291 | AV11: -3.272008694 | AW11: -3.472914694 | AX11: -3.6885471 | AY11: -3.901326025 | AZ11: -4.097995089 | BA11: -4.286980579 | BD11: 6.203 | BE11: -3.901326025 | BF11: =IFERROR(BE11-BD11,"-") -> -10.10432602 | BG11: =IFERROR(((BE11/BD11)^(1/($BE$7-$BD$7))-1)*100,"-") -> -
A12: Employees in employment: total | B12: Thousands | C12: 14 | D12: 6 | E12: =IF(E$8="","",IF(ISNA(INDIRECT("'"&reg&"'!"&E$8&$C12))=TRUE,"",INDIRECT("'"&reg&"'!"&E$8&$C12))) -> 1118.129194 | F12: 1099.665977 | G12: 1089.279731 | H12: 1089.354328 | I12: 1093.557813 | J12: 1108.763553 | K12: 1123.923614 | L12: 1088.280513 | M12: 1135.104897 | N12: 1153.754819 | O12: 1153.138154 | P12: 1153.634835 | Q12: 1182.70755 | R12: 1201.271111 | S12: 1192.757092 | T12: 1185.269151 | U12: 1200.481652 | V12: 1194.019145 | W12: 1180.792971 | X12: 1161.152102 | Y12: 1157.455737 | Z12: 1166.527569 | AA12: 1183.705984 | AB12: 1198.050505 | AC12: 1226.965233 | AD12: 1266.265038 | AE12: 1298.16365 | AF12: 1325.848864 | AG12: 1349.519887 | AH12: 1362.238174 | AI12: 1376.216755 | AJ12: 1388.175137 | AK12: 1398.640492 | AL12: 1406.822143 | AM12: 1411.895243 | AN12: 1416.122141 | AO12: 1420.239654 | AP12: 1424.264579 | AQ12: 1428.250474 | AR12: 1432.217742 | AS12: 1435.044643 | AT12: 1437.212354 | AU12: 1439.39338 | AV12: 1441.576267 | AW12: 1443.78378 | AX12: 1445.997279 | AY12: 1448.201593 | AZ12: 1450.408138 | BA12: 1452.587303 | BD12: 1298.16365 | BE12: 1448.201593 | BF12: 150.0379434 | BG12: 0.5483570903
A13: Self-employment: total | B13: Thousands | C13: 15 | D13: 7 | E13: 119.9562161 | F13: =IF(F$8="","",IF(ISNA(INDIRECT("'"&reg&"'!"&F$8&$C13))=TRUE,"",INDIRECT("'"&reg&"'!"&F$8&$C13))) -> 120.2333728 | G13: 124.8549164 | H13: 115.9533252 | I13: 117.8782557 | J13: 124.2194537 | K13: 117.7727873 | L13: 110.1411666 | M13: 114.1979741 | N13: 105.7901273 | O13: 108.9866601 | P13: 112.15417 | Q13: 120.936437 | R13: 129.4944419 | S13: 124.1698859 | T13: 127.3597226 | U13: 130.163452 | V13: 134.7533771 | W13: 135.4708017 | X13: 142.0542176 | Y13: 136.3957488 | Z13: 146.2350793 | AA13: 152.4600663 | AB13: 165.1586907 | AC13: 154.9093002 | AD13: 153.7702136 | AE13: 150.1395534 | AF13: 162.7051624 | AG13: 170.2197834 | AH13: 171.943359 | AI13: 173.8092677 | AJ13: 175.4585705 | AK13: 176.8677811 | AL13: 177.9217452 | AM13: 178.5299844 | AN13: 179.0438719 | AO13: 179.5432938 | AP13: 180.0285063 | AQ13: 180.5001356 | AR13: 180.9723987 | AS13: 181.3303525 | AT13: 181.621165 | AU13: 181.9145337 | AV13: 182.2094349 | AW13: 182.5058718 | AX13: 182.8033977 | AY13: 183.099869 | AZ13: 183.3984183 | BA13: 183.6918224 | BD13: 150.1395534 | BE13: 183.099869 | BF13: 32.96031564 | BG13: 0.997272541
A14: Total employment | B14: Thousands | C14: 16 | D14: 8 | E14: 1238.433918 | F14: =IF(F$8="","",IF(ISNA(INDIRECT("'"&reg&"'!"&F$8&$C14))=TRUE,"",INDIRECT("'"&reg&"'!"&F$8&$C14))) -> 1220.249797 | G14: 1214.471613 | H14: 1205.634507 | I14: 1211.733953 | J14: 1233.280891 | K14: 1241.984404 | L14: 1198.706625 | M14: 1249.586178 | N14: 1259.826343 | O14: 1262.403536 | P14: 1266.068518 | Q14: 1303.932372 | R14: 1331.048014 | S14: 1317.012823 | T14: 1312.714043 | U14: 1330.755897 | V14: 1328.909978 | W14: 1316.380186 | X14: 1303.309258 | Y14: 1293.961729 | Z14: 1312.853795 | AA14: 1336.226741 | AB14: 1363.277405 | AC14: 1381.936312 | AD14: 1420.12121 | AE14: 1448.383785 | AF14: 1488.63396 | AG14: 1519.819604 | AH14: 1534.261466 | AI14: 1550.105957 | AJ14: 1563.713641 | AK14: 1575.588207 | AL14: 1584.823821 | AM14: 1590.505161 | AN14: 1595.245946 | AO14: 1599.862882 | AP14: 1604.373019 | AQ14: 1608.830544 | AR14: 1613.270074 | AS14: 1616.45493 | AT14: 1618.913453 | AU14: 1621.387848 | AV14: 1623.865636 | AW14: 1626.369585 | AX14: 1628.88061 | AY14: 1631.381396 | AZ14: 1633.88649 | BA14: 1636.359059 | BD14: 1448.383785 | BE14: 1631.381396 | BF14: 182.9976114 | BG14: 0.5966671826
A15: People based employment | B15: Thousands | C15: 218 | D15: 9 | E15: 1095.73586 | F15: 1083.603751 | G15: 1078.001703 | H15: 1069.636449 | I15: 1070.169649 | J15: 1083.816153 | K15: 1091.932159 | L15: 1061.770185 | M15: 1103.111147 | N15: 1114.441565 | O15: 1115.617184 | P15: 1127.946365 | Q15: 1166.113759 | R15: 1207.753493 | S15: 1200.804452 | T15: 1210.106805 | U15: 1242.366645 | V15: 1250.915818 | W15: 1250.30589 | X15: 1247.148767 | Y15: 1243.218 | Z15: 1259.528883 | AA15: 1283.764632 | AB15: 1305.744748 | AC15: 1331.320022 | AD15: 1370.387775 | AE15: 1394.209459 | AF15: 1432.11782 | AG15: 1458.945007 | AH15: 1472.936193 | AI15: 1487.545838 | AJ15: 1500.432096 | AK15: 1511.743121 | AL15: 1520.653443 | AM15: 1526.195721 | AN15: 1530.843485 | AO15: 1535.370901 | AP15: 1539.79195 | AQ15: 1544.112131 | AR15: 1548.407129 | AS15: 1551.495506 | AT15: 1553.886881 | AU15: 1556.293505 | AV15: 1558.705165 | AW15: 1561.143181 | AX15: 1563.587977 | AY15: 1566.021659 | AZ15: 1568.462846 | BA15: 1570.874838 | BD15: 1394.209459 | BE15: 1566.021659 | BF15: 171.8122 | BG15: 0.5827457435
A16: ILO unemployment | B16: Thousands | C16: 18 | D16: 10 | E16: 0 | F16: 132.2346179 | G16: 136.367873 | H16: 127.2531058 | I16: 108.9677724 | J16: 97.77002933 | K16: 83.04254493 | L16: 79.24025926 | M16: 74.33279784 | N16: 64.90671136 | O16: 62.78221169 | P16: 67.00816795 | Q16: 64.54104225 | R16: 59.26170726 | S16: 61.52128778 | T16: 67.96613063 | U16: 82.94985295 | V16: 99.52827969 | W16: 126.9794834 | X16: 117.0237606 | Y16: 127.6618901 | Z16: 130.8087545 | AA16: 120.4114794 | AB16: 99.07416937 | AC16: 88.30541185 | AD16: 81.18441681 | AE16: 63.34618993 | AF16: 63.56240105 | AG16: 57.20698935 | AH16: 56.29634772 | AI16: 55.00189684 | AJ16: 53.34654217 | AK16: 52.34861441 | AL16: 52.43606838 | AM16: 52.56519927 | AN16: 52.73556978 | AO16: 52.93185203 | AP16: 53.13233154 | AQ16: 53.3104905 | AR16: 53.52544891 | AS16: 53.68088071 | AT16: 53.86671298 | AU16: 53.99101883 | AV16: 54.11077367 | AW16: 54.20632436 | AX16: 54.28437095 | AY16: 54.30780013 | AZ16: 54.2485413 | BA16: 54.148476 | BD16: 63.34618993 | BE16: 54.30780013 | BF16: -9.038389793 | BG16: -0.7667796117
A17: ILO unemployment rate | B17: % of labour force | C17: 19 | D17: 11 | E17: =IF(E$8="","",IF(ISNA(INDIRECT("'"&reg&"'!"&E$8&$C17))=TRUE,"",INDIRECT("'"&reg&"'!"&E$8&$C17))) -> 0 | F17: 0 | G17: 0 | H17: 0 | I17: 9.800231276 | J17: 8.760229191 | K17: 7.41603517 | L17: 7.032075326 | M17: 6.482638978 | N17: 5.627742949 | O17: 5.461488352 | P17: 5.779758251 | Q17: 5.433152744 | R17: 4.913884354 | S17: 5.00624562 | T17: 5.417110518 | U17: 6.488226561 | V17: 7.686274387 | W17: 9.631357508 | X17: 8.80180727 | Y17: 9.480531673 | Z17: 9.603781816 | AA17: 8.871857166 | AB17: 7.238485635 | AC17: 6.324340598 | AD17: 5.768339058 | AE17: 4.463637482 | AF17: 4.4473621 | AG17: 3.951494177 | AH17: 3.857094709 | AI17: 3.737492821 | AJ17: 3.600254616 | AK17: 3.510854671 | AL17: 3.497685127 | AM17: 3.49475366 | AN17: 3.49645616 | AO17: 3.500061615 | AP17: 3.504107405 | AQ17: 3.507047531 | AR17: 3.512389399 | AS17: 3.516702867 | AT17: 3.524494134 | AU17: 3.528381102 | AV17: 3.531960209 | AW17: 3.533965132 | AX17: 3.534863187 | AY17: 3.532370895 | AZ17: 3.524694139 | BA17: 3.514554868 | BD17: 4.463637482 | BE17: 3.532370895 | BF17: -0.931266587 | BG17: -1.163156049
A18: Resident employment | B18: Thousands | C18: 20 | D18: 12 | E18: - | F18: - | G18: - | H18: - | I18: 1002.922032 | J18: 1018.296996 | K18: 1036.727562 | L18: 1047.600049 | M18: 1072.311309 | N18: 1088.427973 | O18: 1086.761789 | P18: 1092.351187 | Q18: 1123.370384 | R18: 1146.743624 | S18: 1167.369431 | T18: 1186.690395 | U18: 1195.517417 | V18: 1195.354972 | W18: 1191.417048 | X18: 1212.51865 | Y18: 1218.907 | Z18: 1231.245871 | AA18: 1236.81821 | AB18: 1269.639873 | AC18: 1307.973148 | AD18: 1326.229676 | AE18: 1355.814532 | AF18: 1365.653382 | AG18: 1390.523585 | AH18: 1403.256813 | AI18: 1416.623588 | AJ18: 1428.397052 | AK18: 1438.701837 | AL18: 1446.72885 | AM18: 1451.55224 | AN18: 1455.522145 | AO18: 1459.380154 | AP18: 1463.154854 | AQ18: 1466.785545 | AR18: 1470.378732 | AS18: 1472.773948 | AT18: 1474.486319 | AU18: 1476.201363 | AV18: 1477.921595 | AW18: 1479.660659 | AX18: 1481.400833 | AY18: 1483.124189 | AZ18: 1484.850716 | BA18: 1486.543817 | BD18: 1355.814532 | BE18: 1483.124189 | BF18: 127.3096572 | BG18: 0.4497503405
A19: Resident employment rate | B19: % of population aged 16-64 | C19: 221 | D19: 13 | E19: - | F19: - | G19: - | H19: - | I19: - | J19: - | K19: - | L19: - | M19: - | N19: - | O19: - | P19: - | Q19: - | R19: 70.30113494 | S19: 70.00177201 | T19: 70.68946711 | U19: 69.71170506 | V19: 68.43650154 | W19: 66.98642252 | X19: 66.95246128 | Y19: 66.2519532 | Z19: 66.92861622 | AA19: 67.51434441 | AB19: 68.95821372 | AC19: 70.15312991 | AD19: 70.41941894 | AE19: 71.98025318 | AF19: 72.83220482 | AG19: 73.92153509 | AH19: 74.32872877 | AI19: 74.83923728 | AJ19: 75.24606354 | AK19: 75.57901652 | AL19: 75.76176723 | AM19: 75.83219307 | AN19: 75.87195189 | AO19: =IF(AO$8="","",IF(ISNA(INDIRECT("'"&reg&"'!"&AO$8&$C19))=TRUE,"",INDIRECT("'"&reg&"'!"&AO$8&$C19))) -> 75.93293483 | AP19: 75.97340122 | AQ19: 76.09768706 | AR19: 76.25097138 | AS19: 76.33133653 | AT19: 76.38126701 | AU19: 76.47721824 | AV19: 76.57446317 | AW19: 76.62935673 | AX19: 76.73698204 | AY19: 76.80422086 | AZ19: =IF(AZ$8="","",IF(ISNA(INDIRECT("'"&reg&"'!"&AZ$8&$C19))=TRUE,"",INDIRECT("'"&reg&"'!"&AZ$8&$C19))) -> 76.79977101 | BA19: =IF(BA$8="","",IF(ISNA(INDIRECT("'"&reg&"'!"&BA$8&$C19))=TRUE,"",INDIRECT("'"&reg&"'!"&BA$8&$C19))) -> 76.74371133 | BD19: 71.98025318 | BE19: 76.80422086 | BF19: 4.823967683 | BG19: 0.3248654366
A20: Net commuting | B20: Thousands | C20: 22 | D20: 14 | E20: - | F20: - | G20: - | H20: - | I20: 67.24761703 | J20: 65.51915718 | K20: 55.20459734 | L20: 14.1701365 | M20: 30.79983707 | N20: 26.01359265 | O20: 28.85539542 | P20: 35.59517875 | Q20: 42.74337508 | R20: 61.00986971 | S20: 33.43502148 | T20: 23.41640968 | U20: 46.84922797 | V20: 55.56084673 | W20: 58.88884157 | X20: 34.63011686 | Y20: 24.311 | Z20: 28.2830113 | AA20: 46.94642208 | AB20: 36.10487421 | AC20: 23.3468735 | AD20: =IF(AD$8="","",IF(ISNA(INDIRECT("'"&reg&"'!"&AD$8&$C20))=TRUE,"",INDIRECT("'"&reg&"'!"&AD$8&$C20))) -> 44.15809967 | AE20: 38.39492701 | AF20: 66.46443835 | AG20: 68.42142221 | AH20: 69.67938038 | AI20: 70.92225008 | AJ20: 72.03504314 | AK20: 73.04128434 | AL20: 73.92459299 | AM20: 74.64348093 | AN20: =IF(AN$8="","",IF(ISNA(INDIRECT("'"&reg&"'!"&AN$8&$C20))=TRUE,"",INDIRECT("'"&reg&"'!"&AN$8&$C20))) -> 75.32133949 | AO20: 75.9907464 | AP20: 76.63709582 | AQ20: 77.32658569 | AR20: 78.02839667 | AS20: 78.72155839 | AT20: 79.40056142 | AU20: 80.09214143 | AV20: 80.78356917 | AW20: 81.48252248 | AX20: 82.18714378 | AY20: 82.89746979 | AZ20: 83.61213059 | BA20: 84.33102047 | BD20: 38.39492701 | BE20: 82.89746979 | BF20: 44.50254278 | BG20: 3.923405884
A21: GVA | B21: £ 2016m | C21: 90 | D21: 15 | E21: =IF(E$8="","",IF(ISNA(INDIRECT("'"&reg&"'!"&E$8&$C21))=TRUE,"",INDIRECT("'"&reg&"'!"&E$8&$C21))) -> 40538.91223 | F21: 40836.07649 | G21: 41638.54308 | H21: 42517.83801 | I21: 42411.32185 | J21: 42103.09467 | K21: 43877.61353 | L21: 45756.55045 | M21: 47640.53156 | N21: 48441.14097 | O21: 50318.78888 | P21: 52050.57482 | Q21: 53290.21509 | R21: 54564.22109 | S21: 56720.78585 | T21: 58861.56416 | U21: 60318.336 | V21: 59807.99017 | W21: 58268.13204 | X21: 58793.32421 | Y21: 58384.01251 | Z21: 59607.16182 | AA21: 60326.0026 | AB21: 60854.8137 | AC21: 62934.47825 | AD21: 64177.12865 | AE21: 65568.14623 | AF21: 66952.6825 | AG21: 68449.57952 | AH21: 69656.00698 | AI21: 71017.91673 | AJ21: 72408.20942 | AK21: 73793.57645 | AL21: 75107.06267 | AM21: 76277.51435 | AN21: 77399.42988 | AO21: 78523.03649 | AP21: 79644.57775 | AQ21: 80776.1971 | AR21: 81913.73901 | AS21: 83012.5668 | AT21: 84085.00436 | AU21: 85155.8136 | AV21: 86226.76295 | AW21: 87297.85752 | AX21: 88368.75024 | AY21: 89441.11921 | AZ21: 90516.34143 | BA21: 91596.89471 | BD21: 65568.14623 | BE21: 89441.11921 | BF21: 23872.97298 | BG21: 1.564565751
A25: Population by age band
A26: Total Population | B26: Thousands | C26: 3 | D26: 20 | E26: =IF(E$8="","",IF(ISNA(INDIRECT("'"&reg&"'!"&E$8&$C26))=TRUE,"",INDIRECT("'"&reg&"'!"&E$8&$C26))) -> 2553.551869 | F26: =IF(F$8="","",IF(ISNA(INDIRECT("'"&reg&"'!"&F$8&$C26))=TRUE,"",INDIRECT("'"&reg&"'!"&F$8&$C26))) -> 2551.166776 | G26: 2551.002935 | H26: 2545.643776 | I26: 2540.171825 | J26: 2531.342845 | K26: 2521.91082 | L26: 2521.902791 | M26: 2515.475933 | N26: 2516.3269 | O26: 2516.083795 | P26: 2523.344796 | Q26: 2538.774613 | R26: 2550.052469 | S26: 2564.397242 | T26: 2582.683789 | U26: =IF(U$8="","",IF(ISNA(INDIRECT("'"&reg&"'!"&U$8&$C26))=TRUE,"",INDIRECT("'"&reg&"'!"&U$8&$C26))) -> 2599.080756 | V26: 2620.40702 | W26: 2640.110368 | X26: 2662.072773 | Y26: 2685.587957 | Z26: 2701.579061 | AA26: 2713.7739 | AB26: 2730.324931 | AC26: 2754.219065 | AD26: 2781.045954 | AE26: 2799.000962 | AF26: 2812.770893 | AG26: 2829.238172 | AH26: 2843.151231 | AI26: 2854.809091 | AJ26: 2865.93765 | AK26: =IF(AK$8="","",IF(ISNA(INDIRECT("'"&reg&"'!"&AK$8&$C26))=TRUE,"",INDIRECT("'"&reg&"'!"&AK$8&$C26))) -> 2877.05215 | AL26: 2887.83342 | AM26: 2897.755063 | AN26: 2907.354149 | AO26: 2916.478892 | AP26: 2924.978032 | AQ26: 2932.956526 | AR26: 2940.528963 | AS26: 2947.789368 | AT26: 2954.789937 | AU26: 2961.222768 | AV26: 2967.17692 | AW26: 2972.992779 | AX26: 2978.507821 | AY26: 2983.857078 | AZ26: 2988.918868 | BA26: 2993.894743 | BD26: =IF($BE$4>$BE$5,"Invalid dates",IFERROR(HLOOKUP(BD$7,$E$7:$AZ$818,$D26,FALSE),"-")) -> 2799.000962 | BE26: =IF($BE$4>$BE$5,"Invalid dates",IFERROR(HLOOKUP(BE$7,$E$7:$BA$818,$D26,FALSE),"-")) -> 2983.857078 | BF26: =IFERROR(BE26-BD26,"-") -> 184.8561162 | BG26: =IFERROR(((BE26/BD26)^(1/($BE$7-$BD$7))-1)*100,"-") -> 0.320282968
A27: Population aged 0-15 | B27: Thousands | C27: 5 | D27: 21 | E27: 545.3268693 | F27: 550.415776 | G27: 555.7239345 | H27: 558.5117758 | I27: 557.0548253 | J27: 553.0508453 | K27: 550.5578204 | L27: 547.9087915 | M27: 542.7229333 | N27: 537.7338999 | O27: 530.2887954 | P27: 525.8017963 | Q27: 523.2906133 | R27: 519.9404694 | S27: 518.8392421 | T27: 518.4257894 | U27: 518.558756 | V27: 521.1530203 | W27: 524.848368 | X27: 529.3017732 | Y27: 534.566957 | Z27: 539.7570613 | AA27: 544.0918996 | AB27: 549.6729313 | AC27: 556.5840653 | AD27: 564.941954 | AE27: 571.8739617 | AF27: 576.9928927 | AG27: 582.526452 | AH27: 587.5858097 | AI27: 591.0461192 | AJ27: 592.4362814 | AK27: 593.3229419 | AL27: 592.7727585 | AM27: 592.3714093 | AN27: 590.9415387 | AO27: 588.6047195 | AP27: 585.4066301 | AQ27: 582.7998817 | AR27: 580.4110145 | AS27: 578.1629307 | AT27: 575.652946 | AU27: 574.4454572 | AV27: 572.7691844 | AW27: 571.1840404 | AX27: 569.8676409 | AY27: 568.8511615 | AZ27: 568.1788497 | BA27: 567.8517623 | BD27: =IF($BE$4>$BE$5,"Invalid dates",IFERROR(HLOOKUP(BD$7,$E$7:$AZ$818,$D27,FALSE),"-")) -> 571.8739617 | BE27: =IF($BE$4>$BE$5,"Invalid dates",IFERROR(HLOOKUP(BE$7,$E$7:$BA$818,$D27,FALSE),"-")) -> 568.8511615 | BF27: -3.022800195 | BG27: -0.02649548728
A28: Population aged 16-64 | B28: Thousands | C28: 4 | D28: 22 | E28: 1620.101473 | F28: 1613.994764 | G28: 1609.907699 | H28: 1603.920831 | I28: 1600.943179 | J28: 1598.050354 | K28: 1592.963847 | L28: 1597.124623 | M28: 1599.002373 | N28: 1605.569672 | O28: 1612.525 | P28: 1624.974 | Q28: 1642.376 | R28: 1656.824 | S28: 1671.659 | T28: 1690.856 | U28: 1706.399 | V28: 1721.511 | W28: 1733.076 | X28: 1745.413 | Y28: 1758.808 | Z28: 1755.861 | AA28: 1753.575 | AB28: 1755.904 | AC28: 1766.57 | AD28: 1779.546 | AE28: 1786.161 | AF28: 1790.44 | AG28: 1793.851003 | AH28: 1797.653902 | AI28: 1799.739643 | AJ28: 1802.169309 | AK28: 1804.445302 | AL28: 1807.301644 | AM28: 1808.7537 | AN28: 1809.847218 | AO28: 1810.296482 | AP28: 1811.120414 | AQ28: 1809.821825 | AR28: 1807.775719 | AS28: 1805.959096 | AT28: 1803.974966 | AU28: 1800.947635 | AV28: 1797.892099 | AW28: 1795.837458 | AX28: 1792.574652 | AY28: 1790.211164 | AZ28: 1789.474014 | BA28: 1789.861735 | BD28: =IF($BE$4>$BE$5,"Invalid dates",IFERROR(HLOOKUP(BD$7,$E$7:$AZ$818,$D28,FALSE),"-")) -> 1786.161 | BE28: =IF($BE$4>$BE$5,"Invalid dates",IFERROR(HLOOKUP(BE$7,$E$7:$BA$818,$D28,FALSE),"-")) -> 1790.211164 | BF28: 4.050164043 | BG28: 0.01132542961
A29: Population aged 65+ | B29: Thousands | C29: 6 | D29: 23 | E29: 388.1235272 | F29: 386.7562363 | G29: 385.3713011 | H29: 383.2111693 | I29: 382.1738205 | J29: 380.2416455 | K29: 378.3891529 | L29: 376.869377 | M29: 373.750627 | N29: 373.0233276 | O29: 373.27 | P29: 372.569 | Q29: 373.108 | R29: 373.288 | S29: 373.899 | T29: 373.402 | U29: 374.123 | V29: 377.743 | W29: 382.186 | X29: 387.358 | Y29: 392.213 | Z29: 405.961 | AA29: 416.107 | AB29: 424.748 | AC29: 431.065 | AD29: 436.558 | AE29: 440.966 | AF29: 445.338 | AG29: 452.8607175 | AH29: 457.9115196 | AI29: 464.0233292 | AJ29: 471.3320605 | AK29: 479.2839056 | AL29: 487.7590181 | AM29: 496.6299533 | AN29: 506.5653918 | AO29: 517.5776908 | AP29: 528.4509871 | AQ29: 540.3348191 | AR29: 552.3422297 | AS29: 563.6673416 | AT29: 575.1620248 | AU29: 585.8296754 | AV29: 596.5156363 | AW29: 605.97128 | AX29: 616.0655278 | AY29: 624.7947523 | AZ29: 631.2660036 | BA29: 636.1812459 | BD29: =IF($BE$4>$BE$5,"Invalid dates",IFERROR(HLOOKUP(BD$7,$E$7:$AZ$818,$D29,FALSE),"-")) -> 440.966 | BE29: =IF($BE$4>$BE$5,"Invalid dates",IFERROR(HLOOKUP(BE$7,$E$7:$BA$818,$D29,FALSE),"-")) -> 624.7947523 | BF29: 183.8287523 | BG29: 1.757543301
A30: Population 15-74 | B30: Thousands | C30: 7 | D30: 24 | E30: 1870.509911 | F30: 1865.689217 | G30: 1864.069738 | H30: 1859.312103 | I30: 1850.965835 | J30: 1842.628513 | K30: 1833.322528 | L30: 1834.862493 | M30: 1833.683712 | N30: 1839.162738 | O30: 1845.927518 | P30: 1857.853265 | Q30: 1876.315265 | R30: 1890.9825 | S30: 1905.564606 | T30: 1923.416346 | U30: 1938.83963 | V30: 1956.824484 | W30: 1972.119731 | X30: 1987.636454 | Y30: 2003.643357 | Z30: 2011.409921 | AA30: 2016.228643 | AB30: 2023.654277 | AC30: 2038.927657 | AD30: 2056.524162 | AE30: 2066.159415 | AF30: 2072.595148 | AG30: 2078.117699 | AH30: 2083.684377 | AI30: 2088.487461 | AJ30: 2087.50705 | AK30: 2089.633639 | AL30: 2094.479342 | AM30: 2099.030908 | AN30: 2105.440605 | AO30: 2112.233696 | AP30: 2118.735798 | AQ30: 2124.5966 | AR30: 2130.287402 | AS30: 2134.924643 | AT30: 2138.507283 | AU30: 2140.088833 | AV30: 2141.189954 | AW30: 2141.768504 | AX30: 2140.934291 | AY30: 2138.66223 | AZ30: 2136.000108 | BA30: 2132.195962 | BD30: =IF($BE$4>$BE$5,"Invalid dates",IFERROR(HLOOKUP(BD$7,$E$7:$AZ$818,$D30,FALSE),"-")) -> 2066.159415 | BE30: =IF($BE$4>$BE$5,"Invalid dates",IFERROR(HLOOKUP(BE$7,$E$7:$BA$818,$D30,FALSE),"-")) -> 2138.66223 | BF30: 72.50281509 | BG30: 0.1725936644
A32: Employees in employment by GMCA sectors
A33: Total primary industries and utilities | B33: Thousands | D33: 27 | E33: =SUM(E34:E36) -> 15.09471487 | F33: =SUM(F34:F36) -> 12.4959915 | G33: 9.7889467 | H33: 9.365687671 | I33: 9.046259675 | J33: 9.112302237 | K33: 9.350400938 | L33: 8.480935528 | M33: 9.371639931 | N33: 9.748423506 | O33: 11.71914152 | P33: 7.995676901 | Q33: 7.118369053 | R33: 7.237027706 | S33: 6.480034078 | T33: 7.458325315 | U33: =SUM(U34:U36) -> 7.387483905 | V33: =SUM(V34:V36) -> 7.818332624 | W33: 11.69932936 | X33: 13.68315691 | Y33: 13.28741229 | Z33: 13.32172247 | AA33: 16.18824642 | AB33: 12.48547833 | AC33: 14.35579852 | AD33: 17.45254767 | AE33: 16.22016774 | AF33: 15.92793128 | AG33: 15.82940265 | AH33: 15.66816627 | AI33: 15.55196572 | AJ33: 15.44015466 | AK33: 15.3141676 | AL33: 15.16518582 | AM33: 14.98790557 | AN33: 14.80519688 | AO33: 14.62365176 | AP33: 14.40538849 | AQ33: 14.22420967 | AR33: 14.0522496 | AS33: 13.87789525 | AT33: 13.700055 | AU33: 13.52481915 | AV33: 13.3514868 | AW33: 13.18011394 | AX33: 13.01056093 | AY33: =SUM(AY34:AY36) -> 12.84203637 | AZ33: 12.67558834 | BA33: =SUM(BA34:BA36) -> 12.51098542 | BD33: =IF($BE$4>$BE$5,"Invalid dates",IFERROR(HLOOKUP(BD$7,$E$7:$AZ$818,$D33,FALSE),"-")) -> 16.22016774 | BE33: =IF($BE$4>$BE$5,"Invalid dates",IFERROR(HLOOKUP(BE$7,$E$7:$BA$818,$D33,FALSE),"-")) -> 12.84203637 | BF33: =IFERROR(BE33-BD33,"-") -> -3.378131378 | BG33: =IFERROR(((BE33/BD33)^(1/($BE$7-$BD$7))-1)*100,"-") -> -1.160866882
A34: Agriculture, forestry and fishing | B34: Thousands | C34: 226 | D34: 28 | E34: =IF(E$8="","",IF(ISNA(INDIRECT("'"&reg&"'!"&E$8&$C34))=TRUE,"",INDIRECT("'"&reg&"'!"&E$8&$C34))) -> 1.411076916 | F34: 1.407483311 | G34: 1.434036958 | H34: 1.324400884 | I34: 1.254899277 | J34: 1.233647383 | K34: 1.378310061 | L34: 1.420844421 | M34: 1.336513276 | N34: 1.182460713 | O34: 1.05893177 | P34: 1.000787259 | Q34: 1.158238941 | R34: 1.115479379 | S34: 0.9802258978 | T34: 1.438272601 | U34: 1.639874244 | V34: 1.813332563 | W34: 1.083423251 | X34: 1.052792001 | Y34: 0.9747053208 | Z34: 0.8593708879 | AA34: 1.025311252 | AB34: 0.8557773228 | AC34: 1.126444316 | AD34: 1.36245082 | AE34: 1.142056239 | AF34: 1.013566998 | AG34: 0.9589550444 | AH34: 0.9661981806 | AI34: 0.9689645382 | AJ34: 0.9722442294 | AK34: 0.974272969 | AL34: 0.9746701591 | AM34: 0.973608808 | AN34: 0.9719976292 | AO34: 0.9707572203 | AP34: 0.9703481779 | AQ34: 0.9703199717 | AR34: 0.9677771604 | AS34: 0.9612475563 | AT34: 0.9529356622 | AU34: 0.9444504818 | AV34: 0.9358165774 | AW34: 0.9270237478 | AX34: 0.9180537259 | AY34: =IF(AY$8="","",IF(ISNA(INDIRECT("'"&reg&"'!"&AY$8&$C34))=TRUE,"",INDIRECT("'"&reg&"'!"&AY$8&$C34))) -> 0.9089691801 | AZ34: 0.8997774537 | BA34: 0.8904925028 | BD34: 1.142056239 | BE34: 0.9089691801 | BF34: =IFERROR(BE34-BD34,"-") -> -0.2330870591 | BG34: =IFERROR(((BE34/BD34)^(1/($BE$7-$BD$7))-1)*100,"-") -> -1.134883293
A35: Mining and quarrying | B35: Thousands | C35: 227 | D35: 29 | E35: 1.655785387 | F35: 1.075959777 | G35: 0.1976480555 | H35: 0.2157449578 | I35: 0.2566886858 | J35: 0.2334224545 | K35: 0.1216401271 | L35: 0.1188914832 | M35: 0.1232179656 | N35: 0.1778654699 | O35: 0.1659578904 | P35: 0.2067927428 | Q35: 0.1309424521 | R35: 0.172090144 | S35: 0.127492033 | T35: 0.1866097444 | U35: 0.2179060117 | V35: 0.1550130352 | W35: 0.1581383803 | X35: 0.1267863143 | Y35: 0.144838425 | Z35: 0.1251995284 | AA35: 0.1191111883 | AB35: 0.2266198057 | AC35: 0.2093055079 | AD35: 0.1475904207 | AE35: 0.2932950958 | AF35: 0.3009317737 | AG35: 0.289213143 | AH35: 0.2802797615 | AI35: 0.2700904091 | AJ35: 0.2603118861 | AK35: 0.2491769401 | AL35: 0.2382840064 | AM35: 0.2298591394 | AN35: 0.2216413662 | AO35: 0.2137098845 | AP35: 0.2060241804 | AQ35: 0.1986029018 | AR35: 0.1913990071 | AS35: 0.1842731104 | AT35: 0.177383748 | AU35: 0.1707692289 | AV35: 0.1644074052 | AW35: 0.1582736546 | AX35: 0.1523653738 | AY35: 0.1466768477 | AZ35: 0.1412031383 | BA35: 0.1359318258 | BD35: 0.2932950958 | BE35: 0.1466768477 | BF35: -0.1466182481 | BG35: -3.405402241
A36: Utilities | B36: Thousands | C36: 228 | D36: 30 | E36: 12.02785257 | F36: 10.01254841 | G36: 8.157261686 | H36: 7.82554183 | I36: 7.534671713 | J36: 7.645232399 | K36: 7.85045075 | L36: 6.941199624 | M36: 7.91190869 | N36: 8.388097323 | O36: 10.49425186 | P36: 6.788096899 | Q36: 5.82918766 | R36: 5.949458183 | S36: 5.372316147 | T36: 5.83344297 | U36: 5.52970365 | V36: 5.849987026 | W36: 10.45776773 | X36: 12.50357859 | Y36: 12.16786855 | Z36: 12.33715205 | AA36: 15.04382398 | AB36: 11.4030812 | AC36: 13.02004869 | AD36: 15.94250643 | AE36: 14.78481641 | AF36: 14.61343251 | AG36: 14.58123446 | AH36: 14.42168833 | AI36: 14.31291077 | AJ36: 14.20759855 | AK36: 14.0907177 | AL36: 13.95223166 | AM36: 13.78443763 | AN36: 13.61155788 | AO36: 13.43918466 | AP36: 13.22901613 | AQ36: 13.0552868 | AR36: 12.89307344 | AS36: 12.73237458 | AT36: 12.56973559 | AU36: 12.40959943 | AV36: 12.25126282 | AW36: 12.09481654 | AX36: 11.94014184 | AY36: 11.78639034 | AZ36: 11.63460775 | BA36: 11.4845611 | BD36: 14.78481641 | BE36: 11.78639034 | BF36: -2.998426071 | BG36: -1.126878771
A37: Construction | B37: Thousands | C37: 229 | D37: 31 | E37: 61.9564318 | F37: 57.90194813 | G37: 55.24723422 | H37: 51.40470041 | I37: 46.52936914 | J37: 45.37083724 | K37: 48.04486537 | L37: 57.73294544 | M37: 55.25236246 | N37: 50.46030878 | O37: 58.6197247 | P37: 58.22901406 | Q37: 59.97309494 | R37: 66.56787559 | S37: 68.56820603 | T37: 66.76337245 | U37: 71.45633325 | V37: 72.56721125 | W37: 65.57225046 | X37: 57.02355811 | Y37: 54.3767263 | Z37: 53.72236461 | AA37: 52.71795957 | AB37: 50.60172281 | AC37: 51.59578652 | AD37: 48.66493898 | AE37: 57.83518896 | AF37: 63.59025448 | AG37: 65.14202336 | AH37: 66.4531317 | AI37: 67.71626457 | AJ37: 68.85107599 | AK37: 69.85041742 | AL37: 70.677294 | AM37: 71.26791125 | AN37: 71.7944111 | AO37: 72.30324584 | AP37: 72.80028085 | AQ37: 73.29033465 | AR37: 73.75678441 | AS37: 74.11706641 | AT37: 74.41768501 | AU37: 74.72161605 | AV37: 75.02356797 | AW37: 75.32059717 | AX37: 75.61477479 | AY37: 75.90594886 | AZ37: 76.19572803 | BA37: 76.48289217 | BD37: 57.83518896 | BE37: 75.90594886 | BF37: 18.0707599 | BG37: 1.368771377
A38: Total manufacturing | B38: Thousands | D38: 32 | E38: =SUM(E39:E42) -> 225.722418 | F38: =SUM(F39:F42) -> 213.3641968 | G38: 206.7775475 | H38: 207.7083757 | I38: 207.6373641 | J38: 210.0073982 | K38: 206.4247904 | L38: 194.587598 | M38: 189.437879 | N38: 189.3776666 | O38: 172.0763145 | P38: 158.8724436 | Q38: 151.3965917 | R38: 147.3905641 | S38: 131.9612522 | T38: 132.2083266 | U38: 130.4469542 | V38: 121.0747683 | W38: 120.1121753 | X38: 110.2105933 | Y38: 117.5525897 | Z38: 105.8981619 | AA38: 113.6669508 | AB38: 113.9595818 | AC38: 110.2878197 | AD38: 116.7535954 | AE38: 118.4082205 | AF38: 118.9528787 | AG38: 119.6919531 | AH38: 118.5301377 | AI38: 117.8136263 | AJ38: 116.9088236 | AK38: 115.8878128 | AL38: 114.6595894 | AM38: 113.1770855 | AN38: 111.6324764 | AO38: 110.1019706 | AP38: 108.5934426 | AQ38: 107.1120579 | AR38: 105.766726 | AS38: 104.4551224 | AT38: 103.1359455 | AU38: 101.8429777 | AV38: 100.5753919 | AW38: 99.33200143 | AX38: 98.11231324 | AY38: =SUM(AY39:AY42) -> 96.91776004 | AZ38: 95.74817975 | BA38: =SUM(BA39:BA42) -> 94.60342998 | BD38: 118.4082205 | BE38: 96.91776004 | BF38: =IFERROR(BE38-BD38,"-") -> -21.49046047 | BG38: =IFERROR(((BE38/BD38)^(1/($BE$7-$BD$7))-1)*100,"-") -> -0.9963797447
A39: Advanced manufacturing | B39: Thousands | C39: 230 | D39: 33 | E39: 89.08888819 | F39: 84.76057344 | G39: 82.74707283 | H39: 82.3434732 | I39: 81.71073626 | J39: 84.49174995 | K39: 81.71754656 | L39: 77.10559901 | M39: 75.5513481 | N39: 76.16640627 | O39: 69.94925122 | P39: 65.04881675 | Q39: 61.60347232 | R39: 60.5532721 | S39: 54.66492984 | T39: 55.45819664 | U39: 56.04425317 | V39: 52.07782799 | W39: 51.1785261 | X39: 45.82866167 | Y39: 52.29225504 | Z39: 42.79685228 | AA39: 48.87042733 | AB39: 47.07371639 | AC39: 47.61554298 | AD39: 50.69864155 | AE39: 52.32940161 | AF39: 52.00704158 | AG39: 52.78536087 | AH39: 52.61836292 | AI39: 52.6593265 | AJ39: 52.59855802 | AK39: 52.45354676 | AL39: 52.21140773 | AM39: 51.84308359 | AN39: 51.45334198 | AO39: 51.06983096 | AP39: 50.6954012 | AQ39: 50.33208864 | AR39: 50.02998708 | AS39: 49.74317991 | AT39: 49.45326805 | AU39: 49.17215915 | AV39: 48.90159671 | AW39: 48.64069874 | AX39: 48.38819316 | AY39: 48.14468345 | AZ39: 47.90963993 | BA39: 47.6840726 | BD39: 52.32940161 | BE39: 48.14468345 | BF39: -4.184718156 | BG39: -0.4158711986
A40: Food and drink manufacturing | B40: Thousands | C40: 231 | D40: 34 | E40: 30.17157062 | F40: 28.34927648 | G40: 27.31994097 | H40: 27.67944475 | I40: 27.86875592 | J40: 27.78979111 | K40: 28.62119711 | L40: 27.8448031 | M40: 27.96187678 | N40: 28.73364459 | O40: 26.38652562 | P40: 24.80585848 | Q40: 24.37248299 | R40: 24.19115151 | S40: 22.43714666 | T40: 22.56590152 | U40: 21.87627874 | V40: 20.45043705 | W40: 19.31609559 | X40: 19.94354341 | Y40: 20.20684138 | Z40: 18.92021733 | AA40: 19.95033608 | AB40: 19.45812566 | AC40: 21.27674748 | AD40: =IF(AD$8="","",IF(ISNA(INDIRECT("'"&reg&"'!"&AD$8&$C40))=TRUE,"",INDIRECT("'"&reg&"'!"&AD$8&$C40))) -> 21.992082 | AE40: 20.5948611 | AF40: 20.99936559 | AG40: 21.14422707 | AH40: 20.96336218 | AI40: 20.84774442 | AJ40: 20.70025009 | AK40: 20.53824021 | AL40: 20.33586623 | AM40: 20.07942605 | AN40: 19.80988519 | AO40: 19.53869157 | AP40: 19.26703892 | AQ40: 18.99572366 | AR40: 18.74449117 | AS40: 18.49421751 | AT40: =IF(AT$8="","",IF(ISNA(INDIRECT("'"&reg&"'!"&AT$8&$C40))=TRUE,"",INDIRECT("'"&reg&"'!"&AT$8&$C40))) -> 18.23858985 | AU40: 17.98429689 | AV40: 17.73091644 | AW40: 17.47841747 | AX40: 17.22713682 | AY40: 16.97720744 | AZ40: 16.72943208 | BA40: 16.48342017 | BD40: 20.5948611 | BE40: 16.97720744 | BF40: -3.617653661 | BG40: -0.9612000451
A41: Textile manufacturing | B41: Thousands | C41: 232 | D41: 35 | E41: =IF(E$8="","",IF(ISNA(INDIRECT("'"&reg&"'!"&E$8&$C41))=TRUE,"",INDIRECT("'"&reg&"'!"&E$8&$C41))) -> 31.21726714 | F41: 29.32837566 | G41: 28.33565563 | H41: 28.79194004 | I41: 29.10217125 | J41: 28.73185639 | K41: 27.53602337 | L41: 25.26349368 | M41: 23.25779733 | N41: 21.43678022 | O41: 18.26294158 | P41: 15.50306709 | Q41: 13.97971989 | R41: 12.57708351 | S41: 10.51019206 | T41: 9.800873033 | U41: =IF(U$8="","",IF(ISNA(INDIRECT("'"&reg&"'!"&U$8&$C41))=TRUE,"",INDIRECT("'"&reg&"'!"&U$8&$C41))) -> 9.252393868 | V41: 8.479709761 | W41: 8.004491549 | X41: 7.862531069 | Y41: 7.955024863 | Z41: 7.426097168 | AA41: 11.06091976 | AB41: 8.544967527 | AC41: 7.911055813 | AD41: 7.274621903 | AE41: 7.665550982 | AF41: 7.497638543 | AG41: 7.428198452 | AH41: 7.279672658 | AI41: 7.158023854 | AJ41: 7.02698082 | AK41: 6.893332727 | AL41: 6.748893418 | AM41: 6.594000743 | AN41: 6.437827246 | AO41: 6.28365249 | AP41: 6.131877846 | AQ41: 5.983108858 | AR41: 5.843322209 | AS41: 5.706303623 | AT41: 5.569833636 | AU41: 5.43649512 | AV41: 5.306072865 | AW41: 5.178279377 | AX41: 5.053133861 | AY41: 4.93067361 | AZ41: 4.810925723 | BA41: 4.693781742 | BD41: 7.665550982 | BE41: 4.93067361 | BF41: -2.734877373 | BG41: -2.182143025
A42: Other manufacturing | B42: Thousands | C42: 233 | D42: 36 | E42: 75.24469204 | F42: 70.92597122 | G42: 68.37487808 | H42: 68.89351769 | I42: 68.95570066 | J42: 68.99400076 | K42: 68.55002331 | L42: 64.37370225 | M42: 62.66685678 | N42: 63.04083553 | O42: 57.47759613 | P42: 53.51470131 | Q42: 51.44091653 | R42: 50.06905697 | S42: 44.3489836 | T42: 44.38335543 | U42: 43.27402846 | V42: 40.06679351 | W42: 41.6130621 | X42: 36.57585713 | Y42: 37.09846843 | Z42: 36.75499516 | AA42: 33.78526758 | AB42: 38.88277222 | AC42: 33.48447342 | AD42: 36.78824997 | AE42: 37.81840682 | AF42: 38.44883303 | AG42: 38.33416667 | AH42: 37.66873996 | AI42: 37.14853155 | AJ42: 36.58303469 | AK42: 36.00269312 | AL42: 35.36342205 | AM42: 34.66057515 | AN42: 33.93142202 | AO42: 33.20979561 | AP42: 32.49912463 | AQ42: 31.80113678 | AR42: 31.1489255 | AS42: 30.51142132 | AT42: 29.87425395 | AU42: 29.25002652 | AV42: 28.63680585 | AW42: 28.03460584 | AX42: 27.4438494 | AY42: 26.86519555 | AZ42: 26.29818202 | BA42: 25.74215547 | BD42: 37.81840682 | BE42: 26.86519555 | BF42: -10.95321128 | BG42: -1.695287175
A43: Logistics (transport and storage) | B43: Thousands | C43: 234 | D43: 37 | E43: 54.4229384 | F43: 53.4304933 | G43: 52.77576903 | H43: 53.15703214 | I43: 53.13662611 | J43: 53.54583266 | K43: 50.45492581 | L43: 49.6505446 | M43: 54.99600454 | N43: 56.55856569 | O43: 57.14728094 | P43: 62.16995631 | Q43: 61.94284188 | R43: 61.33692652 | S43: 60.95502754 | T43: 59.73776211 | U43: 60.41297482 | V43: 63.74179857 | W43: 55.55250113 | X43: 56.41365545 | Y43: 53.70601179 | Z43: 56.90178462 | AA43: 60.903702 | AB43: 57.41935671 | AC43: 60.97427837 | AD43: 72.9925589 | AE43: 73.68041965 | AF43: 79.04215338 | AG43: 80.9067707 | AH43: 81.56804187 | AI43: 82.51863653 | AJ43: 83.30434488 | AK43: 83.91957839 | AL43: 84.34922642 | AM43: 84.56547369 | AN43: 84.72029254 | AO43: 84.85215941 | AP43: 84.96184576 | AQ43: 85.05518084 | AR43: 85.03491003 | AS43: 84.93364466 | AT43: 84.82238127 | AU43: 84.71136823 | AV43: 84.59261975 | AW43: 84.46583549 | AX43: 84.34106006 | AY43: 84.20985039 | AZ43: 84.0761245 | BA43: 83.93671069 | BD43: 73.68041965 | BE43: 84.20985039 | BF43: 10.52943074 | BG43: 0.6701093268
A44: Total wholesale and retail | B44: Thousands | D44: 38 | E44: =SUM(E45:E47) -> 190.5949975 | F44: =SUM(F45:F47) -> 192.9862941 | G44: 196.3749229 | H44: 195.044789 | I44: 190.7188506 | J44: 199.2826666 | K44: 202.2738643 | L44: 199.4222728 | M44: 202.8776579 | N44: 204.5071769 | O44: 199.0874638 | P44: 198.7653743 | Q44: 202.9609699 | R44: 206.3004321 | S44: 211.1050718 | T44: 203.1431067 | U44: 205.7840154 | V44: 199.7089852 | W44: 194.9078935 | X44: 192.937572 | Y44: 188.9082507 | Z44: 195.7053864 | AA44: 197.2612144 | AB44: 191.2070442 | AC44: 201.698954 | AD44: 199.2522844 | AE44: 214.6137167 | AF44: 221.7397584 | AG44: 224.6450773 | AH44: 225.9272281 | AI44: 227.8164986 | AJ44: 229.7415752 | AK44: 231.4157116 | AL44: 232.7044176 | AM44: 233.6157179 | AN44: 234.2171027 | AO44: 234.7393887 | AP44: 235.2810837 | AQ44: 235.7670063 | AR44: 235.8683924 | AS44: 235.4822636 | AT44: 235.0285125 | AU44: 234.5720567 | AV44: 234.1047393 | AW44: 233.6314931 | AX44: 233.164219 | AY44: =SUM(AY45:AY47) -> 232.6936212 | AZ44: 232.2562223 | BA44: =SUM(BA45:BA47) -> 231.7802173 | BD44: 214.6137167 | BE44: 232.6936212 | BF44: =IFERROR(BE44-BD44,"-") -> 18.07990451 | BG44: =IFERROR(((BE44/BD44)^(1/($BE$7-$BD$7))-1)*100,"-") -> 0.4052334201
A45: Motor trades | B45: Thousands | C45: 235 | D45: 39 | E45: 20.58902349 | F45: 20.95816046 | G45: 21.42128069 | H45: 21.17045651 | I45: 20.57006672 | J45: 21.6870939 | K45: 21.22455462 | L45: 20.29777559 | M45: 20.82748362 | N45: 20.35227676 | O45: 19.49204855 | P45: 19.36741647 | Q45: 19.36592631 | R45: 19.69683094 | S45: 20.39094136 | T45: 19.73999361 | U45: 19.91871106 | V45: 18.2177666 | W45: 18.12348724 | X45: 18.85912988 | Y45: 15.59843188 | Z45: 18.07350812 | AA45: 16.29861395 | AB45: 17.85593838 | AC45: 14.91981661 | AD45: 14.74895022 | AE45: 20.32109109 | AF45: 21.16867593 | AG45: 21.37555582 | AH45: 21.45290556 | AI45: 21.58567592 | AJ45: 21.71674182 | AK45: 21.82213285 | AL45: 21.89068418 | AM45: 21.97417497 | AN45: 22.02946889 | AO45: 22.07731553 | AP45: 22.12602359 | AQ45: 22.17222787 | AR45: 22.18226528 | AS45: 22.14702114 | AT45: 22.10575877 | AU45: 22.06493305 | AV45: 22.02290471 | AW45: 21.98043115 | AX45: 21.93876371 | AY45: 21.89701701 | AZ45: 21.88288952 | BA45: 21.84205494 | BD45: 20.32109109 | BE45: 21.89701701 | BF45: 1.575925924 | BG45: 0.3741537215
A46: Wholesale | B46: Thousands | C46: 236 | D46: 40 | E46: 60.16493696 | F46: 60.49727381 | G46: 61.12996832 | H46: 60.87699621 | I46: 59.65008032 | J46: 62.03820875 | K46: 64.89822894 | L46: 63.69498851 | M46: 65.08566513 | N46: 65.1961508 | O46: 61.43324857 | P46: 59.93392723 | Q46: 61.05912699 | R46: 61.30558915 | S46: 62.42768739 | T46: 60.3125367 | U46: 61.39857213 | V46: 57.87810703 | W46: 54.20074773 | X46: 52.75830503 | Y46: 57.37112144 | Z46: 58.33112038 | AA46: 58.66418054 | AB46: 51.98476981 | AC46: 56.86307334 | AD46: 50.29410293 | AE46: 60.77428471 | AF46: 63.80151125 | AG46: 64.73694105 | AH46: 65.13274441 | AI46: 65.70911525 | AJ46: 66.29865496 | AK46: 66.81779935 | AL46: 67.22774363 | AM46: 67.51375903 | AN46: 67.71416405 | AO46: 67.89300725 | AP46: 68.07825804 | AQ46: 68.23117927 | AR46: 68.27312075 | AS46: 68.17380648 | AT46: 68.05511134 | AU46: 67.93548068 | AV46: 67.81218181 | AW46: 67.68724386 | AX46: 67.56341897 | AY46: 67.43869849 | AZ46: 67.31516614 | BA46: 67.1877458 | BD46: 60.77428471 | BE46: 67.43869849 | BF46: 6.664413781 | BG46: 0.5216170296
A47: Retail | B47: Thousands | C47: 237 | D47: 41 | E47: 109.8410371 | F47: 111.5308598 | G47: 113.8236739 | H47: 112.9973362 | I47: 110.4987035 | J47: 115.5573639 | K47: 116.1510807 | L47: 115.4295087 | M47: 116.9645092 | N47: 118.9587494 | O47: 118.1621667 | P47: 119.4640306 | Q47: 122.5359166 | R47: 125.298012 | S47: 128.286443 | T47: 123.0905763 | U47: 124.4667322 | V47: 123.6131116 | W47: 122.5836585 | X47: 121.3201371 | Y47: 115.9386974 | Z47: 119.3007579 | AA47: 122.2984199 | AB47: 121.366336 | AC47: 129.9160641 | AD47: 134.2092313 | AE47: 133.5183409 | AF47: 136.7695712 | AG47: 138.5325804 | AH47: 139.3415781 | AI47: 140.5217074 | AJ47: 141.7261784 | AK47: 142.7757794 | AL47: 143.5859898 | AM47: 144.1277839 | AN47: 144.4734698 | AO47: 144.7690659 | AP47: 145.0768021 | AQ47: 145.3635991 | AR47: 145.4130063 | AS47: 145.1614359 | AT47: 144.8676424 | AU47: 144.571643 | AV47: 144.2696528 | AW47: 143.9638181 | AX47: 143.6620363 | AY47: 143.3579057 | AZ47: 143.0581667 | BA47: 142.7504166 | BD47: 133.5183409 | BE47: 143.3579057 | BF47: 9.839564807 | BG47: 0.3561601837
A48: Personal services | B48: Thousands | C48: 238 | D48: 42 | E48: 13.92835512 | F48: 14.09196836 | G48: 14.50771214 | H48: 14.93233304 | I48: 15.35703467 | J48: 13.80299755 | K48: 15.62240374 | L48: 14.82558359 | M48: 18.29746759 | N48: 20.81791427 | O48: 20.33154095 | P48: 21.38334345 | Q48: 23.36376046 | R48: 23.81202725 | S48: 21.27439023 | T48: 18.41043166 | U48: 19.19891207 | V48: 22.65923181 | W48: 20.51978388 | X48: 19.39818938 | Y48: 16.05179767 | Z48: 14.49535059 | AA48: 14.88126218 | AB48: 16.5073416 | AC48: 17.50707702 | AD48: 12.49691202 | AE48: 14.79128834 | AF48: 15.91048181 | AG48: 16.18158366 | AH48: 16.31716172 | AI48: 16.5359844 | AJ48: 16.72706213 | AK48: 16.89344308 | AL48: 17.03402038 | AM48: 17.13779645 | AN48: 17.22897049 | AO48: 17.31675584 | AP48: 17.40011538 | AQ48: 17.47965615 | AR48: 17.54828496 | AS48: 17.59796619 | AT48: 17.63969776 | AU48: 17.68173357 | AV48: 17.72238902 | AW48: 17.76144617 | AX48: 17.79895329 | AY48: 17.83477486 | AZ48: 17.87004724 | BA48: 17.90383043 | BD48: 14.79128834 | BE48: 17.83477486 | BF48: 3.043486518 | BG48: 0.9399491003
A49: Total business, financial and professional services | B49: Thousands | D49: 43 | E49: =SUM(E50:E53) -> 155.7964626 | F49: =SUM(F50:F53) -> 156.64018 | G49: 158.641381 | H49: 161.7358626 | I49: 166.9011193 | J49: 172.9065802 | K49: 177.3064626 | L49: 173.2607387 | M49: 184.0295971 | N49: 187.4413872 | O49: 185.8772858 | P49: 194.5460523 | Q49: 214.3519241 | R49: 220.5809906 | S49: 216.3886706 | T49: 218.6597724 | U49: 227.0397155 | V49: 237.2957307 | W49: 229.8650697 | X49: 238.4799142 | Y49: 237.9042929 | Z49: 242.7348143 | AA49: 257.106967 | AB49: 257.2916006 | AC49: 262.8609166 | AD49: 278.8513219 | AE49: 279.003299 | AF49: 279.165954 | AG49: 286.1714391 | AH49: 292.9775395 | AI49: 298.7238797 | AJ49: 303.8833285 | AK49: 308.6191182 | AL49: 312.6875281 | AM49: 315.8242498 | AN49: 318.5908382 | AO49: 321.3648825 | AP49: 324.2286985 | AQ49: 327.1122116 | AR49: 330.3700048 | AS49: 333.3943584 | AT49: 336.1043361 | AU49: 338.7871905 | AV49: 341.45414 | AW49: 344.0938212 | AX49: 346.694572 | AY49: =SUM(AY50:AY53) -> 349.265503 | AZ49: 351.790856 | BA49: =SUM(BA50:BA53) -> 354.283238 | BD49: 279.003299 | BE49: 349.265503 | BF49: =IFERROR(BE49-BD49,"-") -> 70.26220397 | BG49: =IFERROR(((BE49/BD49)^(1/($BE$7-$BD$7))-1)*100,"-") -> 1.129373713
A50: Business services | B50: Thousands | C50: 239 | D50: 44 | E50: 56.78059645 | F50: 57.58774383 | G50: 59.06462675 | H50: 60.75716386 | I50: 63.94543023 | J50: 65.76164076 | K50: 68.28038784 | L50: 64.5596648 | M50: 67.47554955 | N50: 65.20115404 | O50: 61.28487274 | P50: 63.2525042 | Q50: 72.86903784 | R50: 71.37673281 | S50: 69.79579688 | T50: 67.84133881 | U50: 69.56575577 | V50: 73.89727344 | W50: 75.44712678 | X50: 78.07316896 | Y50: 77.28389911 | Z50: 74.12807723 | AA50: 72.76229577 | AB50: 80.99787184 | AC50: 87.32363966 | AD50: 85.80877381 | AE50: 87.63156287 | AF50: 89.81159015 | AG50: 91.54700141 | AH50: 94.48193801 | AI50: 96.68547489 | AJ50: 98.67649293 | AK50: 100.5788057 | AL50: 102.2287884 | AM50: 103.4974576 | AN50: 104.5892342 | AO50: 105.6968935 | AP50: 106.872945 | AQ50: 108.0635978 | AR50: 109.4444481 | AS50: 110.6981298 | AT50: 111.7948372 | AU50: 112.8816414 | AV50: 113.962409 | AW50: 115.0328847 | AX50: 116.0884943 | AY50: 117.1328266 | AZ50: 118.1609942 | BA50: 119.177608 | BD50: 87.63156287 | BE50: 117.1328266 | BF50: 29.50126376 | BG50: 1.461412325
A51: Employment activities | B51: Thousands | C51: 240 | D51: 45 | E51: 20.33667365 | F51: 20.8947804 | G51: 21.62506325 | H51: 21.7713674 | I51: 22.62402074 | J51: 24.25296132 | K51: 27.15788369 | L51: 28.48231592 | M51: 31.09528041 | N51: 32.23081397 | O51: 33.59114579 | P51: 35.12661741 | Q51: 39.17855113 | R51: 40.02194845 | S51: 37.38414068 | T51: 37.00032194 | U51: 39.73015194 | V51: 40.76420058 | W51: 33.24612523 | X51: 35.42562609 | Y51: 31.96499103 | Z51: 40.3612407 | AA51: 41.48131817 | AB51: 38.38948722 | AC51: 42.00427672 | AD51: 41.58855578 | AE51: 43.39555489 | AF51: 45.93915035 | AG51: 47.11276158 | AH51: 48.77376603 | AI51: 49.95568497 | AJ51: 51.01230561 | AK51: 52.02233044 | AL51: 52.89365699 | AM51: 53.55693633 | AN51: 54.12140675 | AO51: 54.69451194 | AP51: 55.30676769 | AQ51: 55.92815464 | AR51: 56.66202318 | AS51: 57.32927394 | AT51: 57.90961727 | AU51: 58.48284101 | AV51: 59.05259265 | AW51: 59.61581041 | AX51: 60.1702398 | AY51: 60.71996623 | AZ51: 61.25969792 | BA51: 61.79129547 | BD51: 43.39555489 | BE51: 60.71996623 | BF51: 17.32441134 | BG51: 1.693762023
A52: Financial services | B52: Thousands | C52: 241 | D52: 46 | E52: 43.65828614 | F52: 41.61747003 | G52: 39.51111304 | H52: 40.59221703 | I52: 40.36066728 | J52: 40.30672432 | K52: 37.54154776 | L52: 39.39773923 | M52: 42.96833089 | N52: 43.98311982 | O52: 42.97761588 | P52: 46.37597553 | Q52: 44.74660103 | R52: 47.00782038 | S52: 47.54635211 | T52: 47.94358476 | U52: 47.08710471 | V52: 50.65798513 | W52: 48.35644442 | X52: 47.41716468 | Y52: 49.29935939 | Z52: 48.04520502 | AA52: 48.76632435 | AB52: 43.03203758 | AC52: 40.69537655 | AD52: 46.8243458 | AE52: 44.4725007 | AF52: 42.96833357 | AG52: 42.92792795 | AH52: 42.65327313 | AI52: 42.44616373 | AJ52: 42.47523382 | AK52: 42.55455777 | AL52: 42.57462736 | AM52: 42.53155142 | AN52: 42.45969748 | AO52: 42.38744029 | AP52: 42.31422532 | AQ52: 42.24050375 | AR52: 42.16686249 | AS52: 42.05831356 | AT52: 41.92941665 | AU52: 41.80691748 | AV52: 41.68584448 | AW52: 41.56611154 | AX52: 41.4478183 | AY52: 41.33008668 | AZ52: 41.21392471 | BA52: 41.09806542 | BD52: 44.4725007 | BE52: 41.33008668 | BF52: -3.142414019 | BG52: -0.3657311213
A53: Professional services | B53: Thousands | C53: 242 | D53: 47 | E53: 35.02090642 | F53: 36.54018575 | G53: 38.44057791 | H53: 38.61511435 | I53: 39.97100109 | J53: 42.58525381 | K53: 44.32664328 | L53: 40.82101877 | M53: 42.49043623 | N53: 46.02629934 | O53: 48.02365141 | P53: 49.79095511 | Q53: 57.55773413 | R53: 62.17448898 | S53: 61.66238089 | T53: 65.87452685 | U53: 70.65670309 | V53: 71.97627159 | W53: 72.81537329 | X53: 77.56395443 | Y53: 79.35604333 | Z53: 80.20029131 | AA53: 94.09702874 | AB53: 94.87220398 | AC53: 92.83762363 | AD53: 104.6296465 | AE53: 103.5036806 | AF53: 100.44688 | AG53: 104.5837482 | AH53: 107.0685623 | AI53: 109.6365561 | AJ53: 111.7192961 | AK53: 113.4634243 | AL53: 114.9904554 | AM53: 116.2383045 | AN53: 117.4204997 | AO53: 118.5860368 | AP53: 119.7347605 | AQ53: 120.8799555 | AR53: 122.0966711 | AS53: 123.3086411 | AT53: 124.470465 | AU53: 125.6157907 | AV53: 126.7532939 | AW53: 127.8790145 | AX53: 128.9880196 | AY53: 130.0826235 | AZ53: 131.1562392 | BA53: 132.2162692 | BD53: 103.5036806 | BE53: 130.0826235 | BF53: 26.57894289 | BG53: 1.14936826
A54: Total creative and digital industries | B54: Thousands | D54: 48 | E54: =SUM(E55:E56) -> 46.21881788 | F54: =SUM(F55:F56) -> 46.13329819 | G54: 46.94714953 | H54: 47.78173019 | I54: 48.71412288 | J54: 47.78149932 | K54: 49.72045619 | L54: 48.32153706 | M54: 51.51195557 | N54: 56.39418727 | O54: 58.23329893 | P54: 58.64598951 | Q54: 63.18123784 | R54: 63.07692734 | S54: 59.91044655 | T54: 63.66121448 | U54: 61.23863145 | V54: 55.71725037 | W54: 57.33749561 | X54: 47.52621997 | Y54: 57.67680482 | Z54: 55.1826827 | AA54: 53.57077906 | AB54: 57.16344089 | AC54: 67.76513022 | AD54: 62.92773546 | AE54: 71.94902911 | AF54: 75.1458456 | AG54: 77.87388377 | AH54: 78.79803308 | AI54: 79.95586017 | AJ54: 80.73298709 | AK54: 81.19824973 | AL54: 81.48706001 | AM54: 81.5608087 | AN54: 81.57654786 | AO54: 81.57674734 | AP54: 81.52497987 | AQ54: 81.46864694 | AR54: 81.45873137 | AS54: 81.49853067 | AT54: 81.54498561 | AU54: 81.59186948 | AV54: 81.65951075 | AW54: 81.73998126 | AX54: 81.81756591 | AY54: =SUM(AY55:AY56) -> 81.89154855 | AZ54: 81.96272759 | BA54: =SUM(BA55:BA56) -> 82.04894889 | BD54: 71.94902911 | BE54: 81.89154855 | BF54: =IFERROR(BE54-BD54,"-") -> 9.942519433 | BG54: =IFERROR(((BE54/BD54)^(1/($BE$7-$BD$7))-1)*100,"-") -> 0.6492880643
A55: Creative industries | B55: Thousands | C55: 243 | D55: 49 | E55: 26.50820089 | F55: 26.32855755 | G55: 26.71371722 | H55: 26.81570149 | I55: 27.07247276 | J55: 27.74452619 | K55: 28.21962846 | L55: 26.13228508 | M55: 26.89499599 | N55: 27.99504107 | O55: 27.97670405 | P55: 27.84557335 | Q55: 29.62209709 | R55: 30.18473398 | S55: 28.945018 | T55: 30.28208019 | U55: 30.08531487 | V55: 27.25006364 | W55: 28.35819335 | X55: 23.42856369 | Y55: 26.71481653 | Z55: 26.63723218 | AA55: 25.7593186 | AB55: 27.63804439 | AC55: 28.44016163 | AD55: 31.86127168 | AE55: 32.40815705 | AF55: 32.0911748 | AG55: 33.0663723 | AH55: 33.42384663 | AI55: 33.89458181 | AJ55: 34.22733125 | AK55: 34.45546171 | AL55: 34.61366177 | AM55: 34.68383066 | AN55: 34.73108504 | AO55: 34.773644 | AP55: 34.80910816 | AQ55: 34.84389359 | AR55: 34.9042458 | AS55: 34.97199447 | AT55: 35.03122128 | AU55: 35.09138107 | AV55: 35.14988965 | AW55: 35.20767769 | AX55: 35.26525856 | AY55: 35.3217034 | AZ55: 35.37643239 | BA55: 35.42982235 | BD55: 32.40815705 | BE55: 35.3217034 | BF55: 2.913546352 | BG55: 0.4313649635
A56: Digital industries | B56: Thousands | C56: 244 | D56: 50 | E56: 19.71061699 | F56: 19.80474064 | G56: 20.23343231 | H56: 20.96602869 | I56: 21.64165011 | J56: 20.03697313 | K56: 21.50082773 | L56: 22.18925198 | M56: 24.61695958 | N56: 28.39914621 | O56: 30.25659488 | P56: 30.80041616 | Q56: 33.55914075 | R56: 32.89219336 | S56: 30.96542854 | T56: 33.37913429 | U56: 31.15331658 | V56: 28.46718673 | W56: 28.97930226 | X56: 24.09765628 | Y56: 30.96198828 | Z56: 28.54545052 | AA56: 27.81146046 | AB56: 29.5253965 | AC56: 39.32496859 | AD56: 31.06646379 | AE56: 39.54087207 | AF56: 43.05467079 | AG56: 44.80751147 | AH56: 45.37418645 | AI56: 46.06127836 | AJ56: 46.50565585 | AK56: 46.74278802 | AL56: 46.87339825 | AM56: 46.87697804 | AN56: 46.84546282 | AO56: 46.80310334 | AP56: 46.71587171 | AQ56: 46.62475335 | AR56: 46.55448558 | AS56: 46.5265362 | AT56: 46.51376432 | AU56: 46.50048841 | AV56: 46.5096211 | AW56: 46.53230357 | AX56: 46.55230735 | AY56: 46.56984515 | AZ56: 46.5862952 | BA56: 46.61912654 | BD56: 39.54087207 | BE56: 46.56984515 | BF56: 7.028973081 | BG56: 0.8214473103
A57: Total hospitality, tourism and sport | B57: Thousands | D57: 51 | E57: =SUM(E58:E59) -> 80.66793389 | F57: =SUM(F58:F59) -> 78.99654988 | G57: 77.47765201 | H57: 74.81921477 | I57: 78.15608754 | J57: 78.53352472 | K57: 85.56217021 | L57: 81.9767567 | M57: 87.44570514 | N57: 87.775473 | O57: 91.14007971 | P57: 96.83992847 | Q57: 102.0885907 | R57: 93.84886281 | S57: 101.7560846 | T57: 97.05050383 | U57: 97.22337127 | V57: 94.22556102 | W57: 100.1696248 | X57: 97.14472624 | Y57: 97.23996508 | Z57: 99.98296455 | AA57: 92.52787334 | AB57: 106.2582989 | AC57: 110.3308169 | AD57: 114.1032141 | AE57: 106.3400369 | AF57: 107.6206278 | AG57: 110.7377223 | AH57: 112.5410998 | AI57: 114.5514772 | AJ57: 116.2435922 | AK57: 117.7018893 | AL57: 118.9354419 | AM57: 119.8976696 | AN57: 120.7759897 | AO57: 121.6370124 | AP57: 122.4771859 | AQ57: 123.2965221 | AR57: 124.1084733 | AS57: 124.7871811 | AT57: 125.2978556 | AU57: 125.8158898 | AV57: 126.3027372 | AW57: 126.7879798 | AX57: 127.2774233 | AY57: =SUM(AY58:AY59) -> 127.7656711 | AZ57: 128.254533 | BA57: =SUM(BA58:BA59) -> 128.7401973 | BD57: 106.3400369 | BE57: 127.7656711 | BF57: =IFERROR(BE57-BD57,"-") -> 21.4256342 | BG57: =IFERROR(((BE57/BD57)^(1/($BE$7-$BD$7))-1)*100,"-") -> 0.9220046992
A58: Sport | B58: Thousands | C58: 245 | D58: 52 | E58: 9.412795743 | F58: 9.584065315 | G58: 9.899769872 | H58: 9.182908887 | I58: 8.711626354 | J58: 9.104930387 | K58: 8.942573297 | L58: 8.337975995 | M58: 9.402588825 | N58: 9.475274154 | O58: 9.693728144 | P58: 9.704916902 | Q58: 11.20927519 | R58: 11.43656018 | S58: 11.60480234 | T58: 10.98088632 | U58: 11.30121126 | V58: 11.85212448 | W58: 19.03918852 | X58: 17.81527088 | Y58: 13.96162816 | Z58: 14.22051746 | AA58: 14.30842952 | AB58: 18.91676715 | AC58: 18.28161548 | AD58: 16.3560128 | AE58: 21.29989101 | AF58: 21.53655975 | AG58: 22.38164475 | AH58: 22.71546263 | AI58: 23.19696158 | AJ58: 23.65823779 | AK58: 24.09374431 | AL58: 24.49629321 | AM58: 24.84901073 | AN58: 25.18902417 | AO58: 25.52843427 | AP58: 25.86457307 | AQ58: 26.19852924 | AR58: 26.54061748 | AS58: 26.87359096 | AT58: 27.1990996 | AU58: 27.54147867 | AV58: 27.87379108 | AW58: 28.2076525 | AX58: 28.54427602 | AY58: 28.88260958 | AZ58: 29.22449503 | BA58: 29.56759515 | BD58: 21.29989101 | BE58: 28.88260958 | BF58: 7.582718572 | BG58: 1.534340536
A59: Hospitality and tourism | B59: Thousands | C59: 246 | D59: 53 | E59: 71.25513815 | F59: 69.41248457 | G59: 67.57788214 | H59: 65.63630588 | I59: 69.44446119 | J59: 69.42859433 | K59: 76.61959691 | L59: 73.6387807 | M59: 78.04311631 | N59: 78.30019885 | O59: 81.44635156 | P59: 87.13501157 | Q59: 90.8793155 | R59: 82.41230264 | S59: 90.15128228 | T59: 86.0696175 | U59: 85.92216 | V59: 82.37343654 | W59: 81.13043627 | X59: 79.32945536 | Y59: 83.27833692 | Z59: 85.76244709 | AA59: 78.21944382 | AB59: 87.3415318 | AC59: 92.04920143 | AD59: 97.74720131 | AE59: 85.04014589 | AF59: 86.08406804 | AG59: 88.35607755 | AH59: 89.8256372 | AI59: 91.35451562 | AJ59: 92.58535441 | AK59: 93.60814503 | AL59: 94.43914865 | AM59: 95.04865886 | AN59: 95.58696553 | AO59: 96.10857813 | AP59: 96.61261278 | AQ59: 97.09799285 | AR59: 97.56785581 | AS59: 97.91359014 | AT59: 98.09875597 | AU59: 98.27441111 | AV59: 98.42894613 | AW59: 98.5803273 | AX59: 98.73314724 | AY59: 98.88306152 | AZ59: 99.03003797 | BA59: 99.17260214 | BD59: 85.04014589 | BE59: 98.88306152 | BF59: 13.84291563 | BG59: 0.7569228149
A60: Science and R&D | B60: Thousands | C60: 247 | D60: 54 | E60: 4.984662418 | F60: 5.224894576 | G60: 5.54264527 | H60: 5.348575033 | I60: 5.369156434 | J60: 6.262549877 | K60: 6.7235076 | L60: 5.395338733 | M60: 5.638473201 | N60: 6.189573281 | O60: 6.409367874 | P60: 6.443665575 | Q60: 7.340463429 | R60: 7.930435568 | S60: 7.852118408 | T60: =IF(T$8="","",IF(ISNA(INDIRECT("'"&reg&"'!"&T$8&$C60))=TRUE,"",INDIRECT("'"&reg&"'!"&T$8&$C60))) -> 8.280733557 | U60: 8.304495389 | V60: 8.632626053 | W60: 7.12054683 | X60: 8.456953668 | Y60: 6.494240608 | Z60: 10.21723145 | AA60: 10.40485466 | AB60: 11.1344832 | AC60: 8.823393063 | AD60: 11.71119531 | AE60: 10.44339931 | AF60: 10.04362445 | AG60: 10.44324988 | AH60: 10.66670412 | AI60: 10.93287484 | AJ60: 11.15231371 | AK60: 11.33316932 | AL60: 11.48962914 | AM60: 11.61598595 | AN60: 11.73423108 | AO60: 11.85022798 | AP60: 11.96489157 | AQ60: 12.07908262 | AR60: 12.20344177 | AS60: 12.32980694 | AT60: 12.45193065 | AU60: 12.57323733 | AV60: 12.69414649 | AW60: 12.81404526 | AX60: 12.93243981 | AY60: 13.04977363 | AZ60: 13.16535176 | BA60: 13.27992683 | BD60: 10.44339931 | BE60: 13.04977363 | BF60: 2.606374317 | BG60: 1.120231388
A61: Total public administration, health and social care, and education | B61: Thousands | D61: 55 | E61: =SUM(E62:E64) -> 268.3557302 | F61: =SUM(F62:F64) -> 268.1426497 | G61: 265.1254386 | H61: 267.9870826 | I61: 271.9237764 | J61: 272.0875429 | K61: 272.3936087 | L61: 254.5884352 | M61: 276.1995955 | N61: 284.4251393 | O61: 292.4500087 | P61: 289.7150653 | Q61: 288.9623562 | R61: 303.1336216 | S61: 306.4799575 | T61: 309.8578223 | U61: 311.9936382 | V61: 310.5770057 | W61: 317.9323079 | X61: 319.8758925 | Y61: 314.2504221 | Z61: 318.3572842 | AA61: 314.4683064 | AB61: 324.0174313 | AC61: 320.7600297 | AD61: 331.0570309 | AE61: 334.8733337 | AF61: 338.6967899 | AG61: 341.8836069 | AH61: 342.7780007 | AI61: 344.0871727 | AJ61: 345.1779065 | AK61: 346.495655 | AL61: 347.621886 | AM61: 348.2344848 | AN61: 349.0367516 | AO61: 349.8649481 | AP61: 350.6186315 | AQ61: 351.35807 | AR61: 352.0429202 | AS61: 352.5645312 | AT61: 353.0633267 | AU61: 353.5655527 | AV61: 354.0910049 | AW61: 354.6525665 | AX61: 355.2300264 | AY61: =SUM(AY62:AY64) -> 355.8223127 | AZ61: 356.4105102 | BA61: =SUM(BA62:BA64) -> 357.0152179 | BD61: 334.8733337 | BE61: 355.8223127 | BF61: =IFERROR(BE61-BD61,"-") -> 20.94897894 | BG61: =IFERROR(((BE61/BD61)^(1/($BE$7-$BD$7))-1)*100,"-") -> 0.3038563729
A62: Education | B62: Thousands | C62: 248 | D62: 56 | E62: =IF(E$8="","",IF(ISNA(INDIRECT("'"&reg&"'!"&E$8&$C62))=TRUE,"",INDIRECT("'"&reg&"'!"&E$8&$C62))) -> 95.89224819 | F62: 95.12773938 | G62: 94.74152807 | H62: 92.41632498 | I62: 90.09933994 | J62: 92.51942418 | K62: 89.19137954 | L62: 88.88949293 | M62: 94.8744329 | N62: 104.3372619 | O62: 104.295132 | P62: 100.1849556 | Q62: 100.5277962 | R62: 108.3989815 | S62: 105.4580336 | T62: 105.4478213 | U62: 105.0839601 | V62: 103.802666 | W62: 105.403507 | X62: 101.6654726 | Y62: 104.818341 | Z62: 105.6204525 | AA62: 106.3113081 | AB62: 109.6566209 | AC62: 107.3056715 | AD62: 114.5753384 | AE62: 115.2654954 | AF62: 115.6286164 | AG62: 116.1373394 | AH62: 116.1490223 | AI62: 116.1942588 | AJ62: 116.1897464 | AK62: 116.1509017 | AL62: 115.9399806 | AM62: 115.6479122 | AN62: 115.6052659 | AO62: 115.5888825 | AP62: 115.548281 | AQ62: 115.5013643 | AR62: 115.4531179 | AS62: 115.3691002 | AT62: 115.2673746 | AU62: 115.1675892 | AV62: 115.0934954 | AW62: 115.0265013 | AX62: 114.9584139 | AY62: 114.8903357 | AZ62: 114.8167435 | BA62: 114.7437135 | BD62: 115.2654954 | BE62: 114.8903357 | BF62: -0.3751597347 | BG62: -0.01629893498
... 72 more rows

Sheet Key variables
A1: Data by variable | B1: Back to contents
BD3: FORECAST YEARS
BD5: START YEAR | BE5: 2017
BD6: END YEAR | BE6: 2037
A8: =IF(ISNA(Var_out&" ["&var&"]")=TRUE,"",Cat_out & ": "&Var_out) -> GVA by sector: Agriculture | E8: 1991 | F8: 1992 | G8: 1993 | H8: 1994 | I8: 1995 | J8: 1996 | K8: 1997 | L8: 1998 | M8: 1999 | N8: 2000 | O8: 2001 | P8: 2002 | Q8: 2003 | R8: 2004 | S8: 2005 | T8: 2006 | U8: 2007 | V8: 2008 | W8: 2009 | X8: 2010 | Y8: 2011 | Z8: 2012 | AA8: 2013 | AB8: 2014 | AC8: 2015 | AD8: 2016 | AE8: 2017 | AF8: 2018 | AG8: 2019 | AH8: 2020 | AI8: 2021 | AJ8: 2022 | AK8: 2023 | AL8: 2024 | AM8: 2025 | AN8: 2026 | AO8: 2027 | AP8: 2028 | AQ8: 2029 | AR8: 2030 | AS8: 2031 | AT8: 2032 | AU8: 2033 | AV8: 2034 | AW8: 2035 | AX8: 2036 | AY8: 2037 | AZ8: 2038 | BA8: 2039 | BD8: =BE5 -> 2017 | BE8: =BE6 -> 2037 | BF8: Change | BG8: Growth (%/year)
E9: =IF(E8="","",VLOOKUP(E8,col,Measure_var,FALSE)) -> c | F9: d | G9: e | H9: f | I9: g | J9: h | K9: i | L9: j | M9: k | N9: l | O9: =IF(O8="","",VLOOKUP(O8,col,Measure_var,FALSE)) -> m | P9: n | Q9: o | R9: p | S9: q | T9: r | U9: s | V9: t | W9: u | X9: v | Y9: w | Z9: x | AA9: y | AB9: z | AC9: aa | AD9: ab | AE9: ac | AF9: ad | AG9: ae | AH9: af | AI9: ag | AJ9: ah | AK9: ai | AL9: aj | AM9: ak | AN9: al | AO9: am | AP9: an | AQ9: ao | AR9: ap | AS9: aq | AT9: =IF(AT8="","",VLOOKUP(AT8,col,Measure_var,FALSE)) -> ar | AU9: as | AV9: at | AW9: au | AX9: av | AY9: =IF(AY8="","",VLOOKUP(AY8,col,Measure_var,FALSE)) -> aw | AZ9: ax | BA9: ay
D10: Row number
A11: Bolton | B11: =IFERROR(Codes!$AH$2,"Loading") -> £2016m | C11: Bolton | D11: 4 | E11: =IF(E$9="","",IF(ISNA(INDIRECT("'"&$C11&"'!"&E$9&Var_row))=TRUE,"",INDIRECT("'"&$C11&"'!"&E$9&Var_row))) -> 0.6579780713 | F11: 0.6800130407 | G11: 0.5927235347 | H11: 0.5511135146 | I11: 0.5329153986 | J11: 0.5007346091 | K11: 0.4801130816 | L11: 0.4801574862 | M11: 0.5103837645 | N11: 0.3122891785 | O11: =IF(O$9="","",IF(ISNA(INDIRECT("'"&$C11&"'!"&O$9&Var_row))=TRUE,"",INDIRECT("'"&$C11&"'!"&O$9&Var_row))) -> 0.841648687 | P11: 1.42274889 | Q11: 2.144689328 | R11: 1.482053481 | S11: 4.383772005 | T11: 4.023529082 | U11: 3.91983879 | V11: 5.647987895 | W11: 5.912709757 | X11: 11.35188548 | Y11: =IF(Y$9="","",IF(ISNA(INDIRECT("'"&$C11&"'!"&Y$9&Var_row))=TRUE,"",INDIRECT("'"&$C11&"'!"&Y$9&Var_row))) -> 7.61423203 | Z11: 7.57155337 | AA11: 6.118420182 | AB11: 5.513621331 | AC11: 6.769100881 | AD11: 7.078779915 | AE11: 4.94561595 | AF11: 4.917482621 | AG11: 4.839205168 | AH11: 4.818177429 | AI11: =IF(AI$9="","",IF(ISNA(INDIRECT("'"&$C11&"'!"&AI$9&Var_row))=TRUE,"",INDIRECT("'"&$C11&"'!"&AI$9&Var_row))) -> 4.812480894 | AJ11: 4.818903869 | AK11: 4.823926829 | AL11: 4.822702111 | AM11: 4.814420661 | AN11: 4.802862511 | AO11: 4.793166452 | AP11: 4.787448039 | AQ11: 4.783248397 | AR11: 4.779883774 | AS11: =IF(AS$9="","",IF(ISNA(INDIRECT("'"&$C11&"'!"&AS$9&Var_row))=TRUE,"",INDIRECT("'"&$C11&"'!"&AS$9&Var_row))) -> 4.765748056 | AT11: 4.742772387 | AU11: 4.717918358 | AV11: 4.691408439 | AW11: 4.663212854 | AX11: 4.633345587 | AY11: 4.602244446 | AZ11: 4.570009611 | BA11: 4.536879145 | BD11: =IF($BE$5>$BE$6,"Invalid dates",IFERROR(HLOOKUP(BD$8,$E$8:$AZ$128,$D11,FALSE),"-")) -> 4.94561595 | BE11: =IF($BE$5>$BE$6,"Invalid dates",IFERROR(HLOOKUP(BE$8,$E$8:$BA$128,$D11,FALSE),"-")) -> 4.602244446 | BF11: =IF(Var_out=Codes!$W$6,IFERROR(ROUND(BE11-BD11,1),"-")&" pp",IFERROR(ROUND(BE11-BD11,1),"-")) -> -0.3 | BG11: =IFERROR(((BE11/BD11)^(1/($BE$8-$BD$8))-1)*100,"-") -> -0.3591405914
A12: Bury | B12: =IFERROR(Codes!$AH$2,"Loading") -> £2016m | C12: Bury | D12: 5 | E12: 2.344773665 | F12: 2.422580268 | G12: 2.111607063 | H12: 1.963369297 | I12: 1.895417453 | J12: 1.795406405 | K12: 1.678711618 | L12: 1.692731689 | M12: 2.00381371 | N12: 1.81153062 | O12: 2.438617237 | P12: 2.996660428 | Q12: 2.744860757 | R12: 1.990843419 | S12: 2.277647797 | T12: 0.7071934561 | U12: 3.556860541 | V12: 4.696138371 | W12: 3.834001628 | X12: 2.871774713 | Y12: 2.935631594 | Z12: 2.868820799 | AA12: 0.4445471554 | AB12: 2.961785262 | AC12: 5.186875584 | AD12: 4.033725506 | AE12: 2.968280579 | AF12: 2.959158377 | AG12: 2.923325997 | AH12: 2.909988571 | AI12: 2.905872389 | AJ12: 2.909212133 | AK12: 2.911747201 | AL12: 2.910486002 | AM12: 2.904962367 | AN12: 2.897507049 | AO12: 2.891191571 | AP12: 2.887283468 | AQ12: 2.884294648 | AR12: 2.881824832 | AS12: 2.872912828 | AT12: 2.858706693 | AU12: 2.843375172 | AV12: 2.827056163 | AW12: 2.809733818 | AX12: 2.791417477 | AY12: 2.772369419 | AZ12: 2.752648523 | BA12: 2.732400627 | BD12: 2.968280579 | BE12: 2.772369419 | BF12: =IF(Var_out=Codes!$W$6,IFERROR(ROUND(BE12-BD12,1),"-")&" pp",IFERROR(ROUND(BE12-BD12,1),"-")) -> -0.2 | BG12: =IFERROR(((BE12/BD12)^(1/($BE$8-$BD$8))-1)*100,"-") -> -0.3408204592
A13: Manchester | B13: =IFERROR(Codes!$AH$2,"Loading") -> £2016m | C13: Manchester | D13: 6 | E13: 4.976340748 | F13: 5.146420743 | G13: 4.485803229 | H13: 4.170893577 | I13: 3.977825248 | J13: 3.829624134 | K13: 3.723854186 | L13: 3.754954644 | M13: 4.454034237 | N13: 4.326617236 | O13: 4.720332656 | P13: 5.188909233 | Q13: 4.850657078 | R13: 4.151129841 | S13: 1.519684892 | T13: 1.586141435 | U13: 0.645098491 | V13: 3.445689716 | W13: 2.926001029 | X13: 2.252347003 | Y13: 0.7808884121 | Z13: 0.9463559708 | AA13: 1.081155749 | AB13: 3.163005045 | AC13: 2.646680841 | AD13: 3.002597954 | AE13: 1.685585501 | AF13: 1.644265453 | AG13: 1.615797419 | AH13: 1.609558212 | AI13: 1.608487596 | AJ13: 1.611297812 | AK13: 1.613589985 | AL13: 1.613823291 | AM13: 1.611699781 | AN13: 1.608423374 | AO13: 1.605750278 | AP13: 1.604399752 | AQ13: 1.603554116 | AR13: 1.602969336 | AS13: 1.598708605 | AT13: 1.591439555 | AU13: 1.583531848 | AV13: 1.57505545 | AW13: 1.565997782 | AX13: 1.556362414 | AY13: 1.546298236 | AZ13: 1.535840717 | BA13: 1.525066848 | BD13: 1.685585501 | BE13: 1.546298236 | BF13: =IF(Var_out=Codes!$W$6,IFERROR(ROUND(BE13-BD13,1),"-")&" pp",IFERROR(ROUND(BE13-BD13,1),"-")) -> -0.1 | BG13: -0.4303171801
A14: Oldham | B14: =IFERROR(Codes!$AH$2,"Loading") -> £2016m | C14: Oldham | D14: 7 | E14: 4.14656033 | F14: 4.278668654 | G14: 3.729439667 | H14: 3.467627793 | I14: 3.329189302 | J14: 3.128053885 | K14: 2.988924368 | L14: 2.726850074 | M14: 4.169894729 | N14: 3.413705551 | O14: 1.841498898 | P14: 4.988993424 | Q14: 4.863779493 | R14: 4.044950776 | S14: 4.288572212 | T14: 3.203107763 | U14: 3.82180051 | V14: 4.052501437 | W14: 3.114990403 | X14: 4.112947947 | Y14: 4.285048276 | Z14: 2.913075489 | AA14: 5.278015008 | AB14: 3.956813959 | AC14: 4.687072163 | AD14: 4.536708407 | AE14: 8.370573394 | AF14: 8.364803576 | AG14: 8.275349137 | AH14: 8.239088532 | AI14: 8.229026139 | AJ14: 8.239752898 | AK14: 8.248105068 | AL14: 8.245762805 | AM14: 8.231353308 | AN14: 8.21136315 | AO14: 8.194564402 | AP14: 8.184569828 | AQ14: 8.177173307 | AR14: 8.171211655 | AS14: 8.146861435 | AT14: 8.107416217 | AU14: 8.064763314 | AV14: 8.019284831 | AW14: 7.970930867 | AX14: 7.919725758 | AY14: 7.866417142 | AZ14: 7.811175549 | BA14: 7.75440905 | BD14: 8.370573394 | BE14: 7.866417142 | BF14: =IF(Var_out=Codes!$W$6,IFERROR(ROUND(BE14-BD14,1),"-")&" pp",IFERROR(ROUND(BE14-BD14,1),"-")) -> -0.5 | BG14: -0.3101165642
A15: Rochdale | B15: =IFERROR(Codes!$AH$2,"Loading") -> £2016m | C15: Rochdale | D15: 8 | E15: 2.479899146 | F15: 2.61685858 | G15: 2.280946944 | H15: 2.120821283 | I15: 2.037250741 | J15: 2.113375945 | K15: 1.968288226 | L15: 1.795705154 | M15: 1.140381288 | N15: 1.07709977 | O15: 1.748732891 | P15: 2.054186312 | Q15: 1.75613365 | R15: 1.036529147 | S15: 2.793113011 | T15: 3.752397232 | U15: 3.975751633 | V15: 4.76612546 | W15: 8.398242905 | X15: 3.470084548 | Y15: 4.214552172 | Z15: 4.971017603 | AA15: 3.116705552 | AB15: 5.92032061 | AC15: 5.615829413 | AD15: 5.736581147 | AE15: 3.982654961 | AF15: 3.951264464 | AG15: 3.882259872 | AH15: 3.865234069 | AI15: 3.860497848 | AJ15: 3.865517667 | AK15: 3.86942443 | AL15: 3.868313545 | AM15: 3.861541504 | AN15: 3.852152479 | AO15: 3.844261004 | AP15: 3.839561713 | AQ15: 3.836081302 | AR15: 3.833274376 | AS15: 3.821842212 | AT15: 3.803329512 | AU15: 3.783312188 | AV15: 3.76196958 | AW15: 3.739278329 | AX15: 3.71524987 | AY15: 3.690234897 | AZ15: 3.664313374 | BA15: 3.637676787 | BD15: 3.982654961 | BE15: 3.690234897 | BF15: =IF(Var_out=Codes!$W$6,IFERROR(ROUND(BE15-BD15,1),"-")&" pp",IFERROR(ROUND(BE15-BD15,1),"-")) -> -0.3 | BG15: -0.3805667966
A16: Salford | B16: =IFERROR(Codes!$AH$2,"Loading") -> £2016m | C16: Salford | D16: 9 | E16: 12.11044668 | F16: 12.55619629 | G16: 10.94442694 | H16: 10.17611288 | I16: 9.679266199 | J16: 9.084667059 | K16: 8.77032263 | L16: 8.843569605 | M16: 9.259215569 | N16: 12.8252795 | O16: 11.98247435 | P16: 12.14402463 | Q16: 7.834403717 | R16: 8.594953348 | S16: 6.719144049 | T16: 4.320225091 | U16: 0.8829568987 | V16: 1.806097911 | W16: 3.258756266 | X16: 3.300951289 | Y16: 3.140089599 | Z16: 2.80963804 | AA16: 2.358750275 | AB16: 1.382094147 | AC16: 1.416336211 | AD16: 1.81425387 | AE16: 2.697749278 | AF16: 2.619107539 | AG16: 2.565026326 | AH16: 2.554909206 | AI16: 2.552983587 | AJ16: 2.557263752 | AK16: 2.560735293 | AL16: 2.560931049 | AM16: 2.557385596 | AN16: 2.552025947 | AO16: 2.547629048 | AP16: 2.545333196 | AQ16: 2.543839446 | AR16: 2.542764677 | AS16: 2.535876071 | AT16: 2.524227268 | AU16: 2.511567738 | AV16: 2.498009722 | AW16: 2.483533972 | AX16: 2.468146449 | AY16: 2.45208278 | AZ16: 2.435398717 | BA16: 2.418217164 | BD16: 2.697749278 | BE16: 2.45208278 | BF16: =IF(Var_out=Codes!$W$6,IFERROR(ROUND(BE16-BD16,1),"-")&" pp",IFERROR(ROUND(BE16-BD16,1),"-")) -> -0.2 | BG16: -0.4762624908
A17: Stockport | B17: =IFERROR(Codes!$AH$2,"Loading") -> £2016m | C17: Stockport | D17: 10 | E17: 2.67926754 | F17: 2.64608495 | G17: 2.306421687 | H17: 2.144507663 | I17: 2.08327947 | J17: 1.993015224 | K17: 1.856190523 | L17: 1.720583734 | M17: 1.823374601 | N17: 0.4055002871 | O17: 0.4342792441 | P17: 1.00492018 | Q17: 0.8945076903 | R17: 1.237425831 | S17: 2.623004258 | T17: 2.570255613 | U17: 3.729797845 | V17: 6.292880236 | W17: 3.060299257 | X17: 1.729576629 | Y17: 3.213848293 | Z17: 4.399840577 | AA17: 3.142527382 | AB17: 2.417600726 | AC17: 5.103189496 | AD17: 7.099336437 | AE17: 6.373303518 | AF17: 6.413656156 | AG17: 6.332956169 | AH17: 6.305500019 | AI17: 6.298111415 | AJ17: 6.306570107 | AK17: 6.313192596 | AL17: 6.311641064 | AM17: 6.300854501 | AN17: 6.285775106 | AO17: 6.273131116 | AP17: 6.265692136 | AQ17: 6.260240559 | AR17: 6.255880322 | AS17: 6.237417857 | AT17: 6.207382232 | AU17: 6.174887525 | AV17: 6.140224532 | AW17: 6.103354078 | AX17: 6.064294373 | AY17: 6.023618586 | AZ17: 5.981457976 | BA17: 5.938123896 | BD17: 6.373303518 | BE17: 6.023618586 | BF17: =IF(Var_out=Codes!$W$6,IFERROR(ROUND(BE17-BD17,1),"-")&" pp",IFERROR(ROUND(BE17-BD17,1),"-")) -> -0.3 | BG17: -0.2817511746
A18: Tameside | B18: =IFERROR(Codes!$AH$2,"Loading") -> £2016m | C18: Tameside | D18: 11 | E18: 0.5415866958 | F18: 0.5617132643 | G18: 0.4896092451 | H18: 0.5031577808 | I18: 0.5256886406 | J18: 0.4933954887 | K18: 0.4679904171 | L18: 0.426956171 | M18: 0.1686695173 | N18: 0.2258656476 | O18: 0.2479552422 | P18: 0.1414678936 | Q18: 0.290735631 | R18: 0.302653508 | S18: 0.1015775947 | T18: 0.2234052687 | U18: 0.2612310626 | V18: 1.433533519 | W18: 1.814108022 | X18: 1.31126008 | Y18: 1.974468697 | Z18: 1.761921754 | AA18: 1.558067422 | AB18: 5.562590822 | AC18: 6.601843992 | AD18: 2.431772097 | AE18: 2.824348377 | AF18: 2.877692583 | AG18: 2.863663135 | AH18: 2.850554577 | AI18: 2.846476318 | AJ18: 2.849711007 | AK18: 2.852160246 | AL18: 2.85088919 | AM18: 2.845442723 | AN18: 2.838107257 | AO18: 2.83188939 | AP18: 2.828030074 | AQ18: 2.825071401 | AR18: 2.822622136 | AS18: 2.813866569 | AT18: 2.799928062 | AU18: 2.784887775 | AV18: 2.768881028 | AW18: 2.751892444 | AX18: 2.733931234 | AY18: 2.715254173 | AZ18: 2.695918826 | BA18: 2.676068194 | BD18: 2.824348377 | BE18: 2.715254173 | BF18: =IF(Var_out=Codes!$W$6,IFERROR(ROUND(BE18-BD18,1),"-")&" pp",IFERROR(ROUND(BE18-BD18,1),"-")) -> -0.1 | BG18: -0.1967667003
A19: Trafford | B19: =IFERROR(Codes!$AH$2,"Loading") -> £2016m | C19: Trafford | D19: 12 | E19: 7.418978811 | F19: 7.828712867 | G19: 6.823784376 | H19: 6.344745181 | I19: 6.075805569 | J19: 5.702567692 | K19: 5.396861883 | L19: 5.441934775 | M19: 6.688465755 | N19: 2.078843698 | O19: 4.117768067 | P19: 3.400538104 | Q19: 5.076504195 | R19: 6.902807238 | S19: 10.67395883 | T19: 12.97902703 | U19: 2.488595644 | V19: 5.759256337 | W19: 0.9607637083 | X19: 1.179656978 | Y19: 1.57298188 | Z19: 3.311391256 | AA19: 4.672323648 | AB19: 2.192600124 | AC19: 1.983050582 | AD19: 3.523257828 | AE19: 4.015347203 | AF19: 3.96252632 | AG19: 3.889021671 | AH19: 3.873640891 | AI19: 3.870677208 | AJ19: 3.87713136 | AK19: 3.882362183 | AL19: 3.882624909 | AM19: 3.877215348 | AN19: 3.869058276 | AO19: 3.862361875 | AP19: 3.858851319 | AQ19: 3.856557004 | AR19: 3.854898891 | AS19: 3.844430218 | AT19: 3.826747273 | AU19: 3.807532502 | AV19: 3.786956308 | AW19: 3.764989649 | AX19: 3.741641622 | AY19: 3.717269334 | AZ19: 3.691957208 | BA19: 3.665891718 | BD19: 4.015347203 | BE19: 3.717269334 | BF19: =IF(Var_out=Codes!$W$6,IFERROR(ROUND(BE19-BD19,1),"-")&" pp",IFERROR(ROUND(BE19-BD19,1),"-")) -> -0.3 | BG19: -0.3849295965
A20: Wigan | B20: =IFERROR(Codes!$AH$2,"Loading") -> £2016m | C20: Wigan | D20: 13 | E20: 0.19571398 | F20: 0.2025189397 | G20: 0.1765227056 | H20: 0.1641305651 | I20: 0.1573871928 | J20: 0.1478622623 | K20: 0.1422458913 | L20: 0.1434338842 | M20: 0.1098495678 | N20: 0.115109972 | O20: 0.2185819567 | P20: 0.452844537 | Q20: 0.5359242633 | R20: 0.172637901 | S20: 0.7427139805 | T20: 0.6946778078 | U20: 1.864266772 | V20: 3.323743644 | W20: 0.7335600373 | X20: 1.65867884 | Y20: 2.223884801 | Z20: 1.542024572 | AA20: 4.308613682 | AB20: 1.804464913 | AC20: 2.267427142 | AD20: 1.801124375 | AE20: 1.898153115 | AF20: 1.894172239 | AG20: 1.870404174 | AH20: 1.862148382 | AI20: 1.859810131 | AJ20: 1.862183422 | AK20: 1.864023895 | AL20: 1.863445106 | AM20: 1.860138913 | AN20: 1.855575895 | AO20: 1.851735622 | AP20: 1.849433662 | AQ20: 1.847719089 | AR20: 1.846330207 | AS20: 1.840791234 | AT20: 1.83184483 | AU20: 1.822174304 | AV20: 1.811866352 | AW20: 1.800909898 | AX20: 1.789310526 | AY20: 1.77723701 | AZ20: 1.76472774 | BA20: 1.751875139 | BD20: 1.898153115 | BE20: 1.77723701 | BF20: =IF(Var_out=Codes!$W$6,IFERROR(ROUND(BE20-BD20,1),"-")&" pp",IFERROR(ROUND(BE20-BD20,1),"-")) -> -0.1 | BG20: -0.3285662937
A21: Greater Manchester | B21: =IFERROR(Codes!$AH$2,"Loading") -> £2016m | C21: Greater Manchester | D21: 14 | E21: =IF(E$9="","",IF(ISNA(INDIRECT("'"&$C21&"'!"&E$9&Var_row))=TRUE,"",INDIRECT("'"&$C21&"'!"&E$9&Var_row))) -> 37.55154567 | F21: 38.93976759 | G21: 33.9412854 | H21: 31.60647954 | I21: 30.29402521 | J21: 28.7887027 | K21: 27.47350282 | L21: 27.02687722 | M21: 30.32808274 | N21: 26.59184146 | O21: =IF(O$9="","",IF(ISNA(INDIRECT("'"&$C21&"'!"&O$9&Var_row))=TRUE,"",INDIRECT("'"&$C21&"'!"&O$9&Var_row))) -> 28.59188922 | P21: 33.79529363 | Q21: 30.9921958 | R21: 29.91598449 | S21: 36.12318863 | T21: 34.05995978 | U21: 25.14619819 | V21: 41.22395453 | W21: 34.01343301 | X21: 33.23916351 | Y21: =IF(Y$9="","",IF(ISNA(INDIRECT("'"&$C21&"'!"&Y$9&Var_row))=TRUE,"",INDIRECT("'"&$C21&"'!"&Y$9&Var_row))) -> 31.95562575 | Z21: 33.09563943 | AA21: 32.07912606 | AB21: 34.87489694 | AC21: 42.2774063 | AD21: 41.05813754 | AE21: 39.76161187 | AF21: 39.60412933 | AG21: 39.05700907 | AH21: 38.88879989 | AI21: =IF(AI$9="","",IF(ISNA(INDIRECT("'"&$C21&"'!"&AI$9&Var_row))=TRUE,"",INDIRECT("'"&$C21&"'!"&AI$9&Var_row))) -> 38.84442353 | AJ21: 38.89754403 | AK21: 38.93926773 | AL21: 38.93061907 | AM21: 38.8650147 | AN21: 38.77285104 | AO21: 38.69568076 | AP21: 38.65060319 | AQ21: 38.61777927 | AR21: 38.59166021 | AS21: =IF(AS$9="","",IF(ISNA(INDIRECT("'"&$C21&"'!"&AS$9&Var_row))=TRUE,"",INDIRECT("'"&$C21&"'!"&AS$9&Var_row))) -> 38.47845508 | AT21: 38.29379403 | AU21: 38.09395072 | AV21: 37.88071241 | AW21: 37.65383369 | AX21: 37.41342531 | AY21: 37.16302602 | AZ21: 36.90344824 | BA21: 36.63660857 | BD21: 39.76161187 | BE21: 37.16302602 | BF21: =IF(Var_out=Codes!$W$6,IFERROR(ROUND(BE21-BD21,1),"-")&" pp",IFERROR(ROUND(BE21-BD21,1),"-")) -> -2.6 | BG21: -0.3373675236
A22: Liverpool LEP | B22: =IFERROR(Codes!$AH$2,"Loading") -> £2016m | C22: Liverpool LEP | D22: 15 | E22: 31.26174554 | F22: 32.86311451 | G22: 28.81628552 | H22: 26.79334203 | I22: 25.35167398 | J22: 23.96015456 | K22: 22.81460331 | L22: 21.248309 | M22: 25.42327151 | N22: 21.66711299 | O22: 21.6618129 | P22: 24.82131571 | Q22: 21.93192837 | R22: 21.94043802 | S22: 25.06657949 | T22: 23.9605501 | U22: 19.03858036 | V22: 21.03899516 | W22: 24.00930921 | X22: 21.07546831 | Y22: 24.01685361 | Z22: 23.01206379 | AA22: 23.01126017 | AB22: 24.95198755 | AC22: 27.09730793 | AD22: 26.03580139 | AE22: 26.96166032 | AF22: 26.77089745 | AG22: 26.39424789 | AH22: 26.2813155 | AI22: 26.25211478 | AJ22: 26.28864402 | AK22: 26.31742348 | AL22: 26.31218772 | AM22: 26.26846143 | AN22: 26.20673094 | AO22: 26.1551153 | AP22: 26.12518226 | AQ22: 26.10352798 | AR22: 26.08638773 | AS22: 26.01032041 | AT22: 25.88591031 | AU22: 25.75122935 | AV22: 25.60748122 | AW22: 25.45449761 | AX22: 25.2923523 | AY22: 25.12343931 | AZ22: 24.94830957 | BA22: 24.76825593 | BD22: 26.96166032 | BE22: 25.12343931 | BF22: =IF(Var_out=Codes!$W$6,IFERROR(ROUND(BE22-BD22,1),"-")&" pp",IFERROR(ROUND(BE22-BD22,1),"-")) -> -1.8 | BG22: -0.3524505356
A23: Cheshire and Warrington LEP | B23: =IFERROR(Codes!$AH$2,"Loading") -> £2016m | C23: Cheshire and Warrington LEP | D23: 16 | E23: 182.1418317 | F23: 188.0443149 | G23: 165.4035394 | H23: 155.2575689 | I23: 153.5321006 | J23: 145.8378449 | K23: 137.2704259 | L23: 126.590749 | M23: 146.980843 | N23: 120.1582979 | O23: 151.4116266 | P23: 156.7318623 | Q23: 154.4625003 | R23: 155.5795145 | S23: 181.2264529 | T23: 157.6890999 | U23: 142.2501636 | V23: 181.2301162 | W23: 192.0742599 | X23: 192.5979817 | Y23: 196.3248059 | Z23: 188.958138 | AA23: 195.9175829 | AB23: 227.9830377 | AC23: 255.1123735 | AD23: 260.348955 | AE23: 284.5755301 | AF23: 283.4168226 | AG23: 279.1731147 | AH23: 277.9871215 | AI23: 277.6873003 | AJ23: 278.0809054 | AK23: 278.391991 | AL23: 278.343592 | AM23: 277.8880704 | AN23: 277.2414784 | AO23: 276.7016713 | AP23: 276.3911417 | AQ23: 276.1681526 | AR23: 275.9927136 | AS23: 275.1931362 | AT23: 273.8816191 | AU23: 272.4613418 | AV23: 270.9449892 | AW23: 269.3307521 | AX23: 267.6193991 | AY23: 265.8362811 | AZ23: 263.9872475 | BA23: 262.0859455 | BD23: 284.5755301 | BE23: 265.8362811 | BF23: =IF(Var_out=Codes!$W$6,IFERROR(ROUND(BE23-BD23,1),"-")&" pp",IFERROR(ROUND(BE23-BD23,1),"-")) -> -18.7 | BG23: -0.3400109851
A24: Lancashire LEP | B24: =IFERROR(Codes!$AH$2,"Loading") -> £2016m | C24: Lancashire LEP | D24: 17 | E24: 264.8393177 | F24: 273.8748407 | G24: 238.719045 | H24: 222.0217653 | I24: 213.6984243 | J24: 202.472736 | K24: 191.5414547 | L24: 179.7002292 | M24: 187.2002951 | N24: 181.2232387 | O24: 207.5580234 | P24: 217.3892393 | Q24: 186.5044709 | R24: 179.5112774 | S24: 207.3669075 | T24: 186.7316842 | U24: 148.3059741 | V24: 189.2923858 | W24: 214.0829046 | X24: 216.725479 | Y24: 217.3545931 | Z24: 205.9200564 | AA24: 206.9041018 | AB24: 237.9472939 | AC24: 256.2252108 | AD24: 245.3309514 | AE24: 243.2528565 | AF24: 240.2751696 | AG24: 236.1789154 | AH24: 235.1699186 | AI24: 234.9102603 | AJ24: 235.2384357 | AK24: 235.4971659 | AL24: 235.4515772 | AM24: 235.0615695 | AN24: 234.5103424 | AO24: 234.0495881 | AP24: 233.7828414 | AQ24: 233.5901696 | AR24: 233.4378547 | AS24: 232.758097 | AT24: 231.645651 | AU24: 230.4412775 | AV24: 229.1557389 | AW24: 227.7875238 | AX24: 226.3372905 | AY24: 224.826466 | AZ24: 223.2599842 | BA24: 221.6494088 | BD24: 243.2528565 | BE24: 224.826466 | BF24: =IF(Var_out=Codes!$W$6,IFERROR(ROUND(BE24-BD24,1),"-")&" pp",IFERROR(ROUND(BE24-BD24,1),"-")) -> -18.4 | BG24: -0.3930884845
A25: Cumbria LEP | B25: =IFERROR(Codes!$AH$2,"Loading") -> £2016m | C25: Cumbria LEP | D25: 18 | E25: 282.235969 | F25: 289.892111 | G25: 252.6802671 | H25: 235.7406682 | I25: 233.0039466 | J25: 224.1767109 | K25: 208.9699838 | L25: 190.7153356 | M25: 186.8733077 | N25: 179.217809 | O25: 148.6437479 | P25: 229.002489 | Q25: 220.5906046 | R25: 233.3504856 | S25: 319.6417715 | T25: 292.576306 | U25: 237.5725837 | V25: 248.5539484 | W25: 266.1034933 | X25: 224.1208075 | Y25: 242.1131217 | Z25: 223.1854025 | AA25: 220.1840291 | AB25: 253.6254839 | AC25: 271.7078014 | AD25: 231.3158547 | AE25: 179.7045412 | AF25: 180.5419732 | AG25: 178.5729418 | AH25: 177.7748418 | AI25: 177.5410797 | AJ25: 177.7592411 | AK25: 177.9271729 | AL25: 177.8637864 | AM25: 177.540014 | AN25: 177.0969933 | AO25: 176.7232084 | AP25: 176.4963612 | AQ25: 176.3256215 | AR25: 176.1862039 | AS25: 175.6515711 | AT25: 174.7923384 | AU25: 173.8641169 | AV25: 172.8752384 | AW25: 171.8246786 | AX25: 170.7129849 | AY25: 169.5562362 | AZ25: 168.358072 | BA25: 167.127348 | BD25: 179.7045412 | BE25: 169.5562362 | BF25: =IF(Var_out=Codes!$W$6,IFERROR(ROUND(BE25-BD25,1),"-")&" pp",IFERROR(ROUND(BE25-BD25,1),"-")) -> -10.1 | BG25: -0.2902251095
A26: North West | B26: =IFERROR(Codes!$AH$2,"Loading") -> £2016m | C26: North West | D26: 19 | E26: 789.2822 | F26: 812.8058 | G26: 712.5524 | H26: 666.1348 | I26: 650.137 | J26: 620.6677 | K26: 585.9337 | L26: 545.2815 | M26: 576.8058 | N26: 528.8583 | O26: 557.8671 | P26: 661.7402 | Q26: 614.4817 | R26: 620.2977 | S26: 769.4249 | T26: 695.0176 | U26: 572.3135 | V26: 681.3394 | W26: 730.2834 | X26: 687.7589 | Y26: 711.765 | Z26: 674.1713 | AA26: 678.0961 | AB26: 779.3827 | AC26: 852.4201 | AD26: 804.0897 | AE26: 774.2562 | AF26: 771.0848 | AG26: 760.7205 | AH26: 757.1979 | AI26: 756.1256 | AJ26: 756.981 | AK26: 757.6345 | AL26: 757.3167 | AM26: 755.8995 | AN26: 753.9705 | AO26: 752.3307 | AP26: 751.3259 | AQ26: 750.5628 | AR26: 749.9315 | AS26: 747.6086 | AT26: 743.8954 | AU26: 739.8878 | AV26: 735.62 | AW26: 731.0896 | AX26: 726.2982 | AY26: 721.3168 | AZ26: 716.1603 | BA26: 710.866 | BD26: 774.2562 | BE26: 721.3168 | BF26: =IF(Var_out=Codes!$W$6,IFERROR(ROUND(BE26-BD26,1),"-")&" pp",IFERROR(ROUND(BE26-BD26,1),"-")) -> -52.9 | BG26: -0.3534957079
A27: UK | B27: =IFERROR(Codes!$AH$2,"Loading") -> £2016m | C27: UK | D27: 20 | E27: 10936 | F27: 11207 | G27: 10183 | H27: 9946 | I27: 9620 | J27: 9218 | K27: 9502 | L27: 9837 | M27: 10460 | N27: 10599 | O27: 9998 | P27: 11283 | Q27: 10809 | R27: 10559 | S27: 11394 | T27: 10709 | U27: 10322 | V27: 11032 | W27: 10375 | X27: 10323 | Y27: 11450 | Z27: 10659 | AA27: 10703 | AB27: 12005 | AC27: 12131 | AD27: 11447 | AE27: 11785 | AF27: 11514 | AG27: 11339.15 | AH27: 11300.63 | AI27: 11298.85 | AJ27: 11325.35 | AK27: 11348.52 | AL27: 11357.33 | AM27: 11349.66 | AN27: 11334.01 | AO27: 11322.59 | AP27: 11320.66 | AQ27: 11322.35 | AR27: 11325.93 | AS27: 11303.63 | AT27: 11260.03 | AU27: 11211.87 | AV27: 11159.6 | AW27: 11103.17 | AX27: 11042.58 | AY27: 10978.92 | AZ27: 10912.41 | BA27: 10843.86 | BD27: 11785 | BE27: 10978.92 | BF27: =IF(Var_out=Codes!$W$6,IFERROR(ROUND(BE27-BD27,1),"-")&" pp",IFERROR(ROUND(BE27-BD27,1),"-")) -> -806.1 | BG27: -0.3536255957
A28: Birmingham | B28: =IFERROR(Codes!$AH$2,"Loading") -> £2016m | C28: West Midlands CA | D28: 21 | E28: 229.7441379 | F28: =IF(F$9="","",IF(ISNA(INDIRECT("'"&$C28&"'!"&F$9&Var_row))=TRUE,"",INDIRECT("'"&$C28&"'!"&F$9&Var_row))) -> 242.0000569 | G28: 210.8493371 | H28: 195.9657405 | I28: 184.7421138 | J28: 166.7339855 | K28: 165.8888026 | L28: 178.1643977 | M28: 212.8502038 | N28: 202.1927908 | O28: 199.1938585 | P28: 256.0979571 | Q28: 248.7735771 | R28: 239.9599853 | S28: 229.9784964 | T28: 230.5772786 | U28: 213.3197884 | V28: 240.7318426 | W28: 226.8903358 | X28: 231.1068131 | Y28: 267.5188049 | Z28: 265.9372877 | AA28: 210.5580176 | AB28: 254.4735912 | AC28: 263.6320259 | AD28: 249.9202763 | AE28: 261.5850703 | AF28: 257.6404451 | AG28: 252.5589066 | AH28: 251.6699612 | AI28: 251.5957265 | AJ28: 252.1391608 | AK28: 252.6082357 | AL28: 252.7573837 | AM28: 252.5396495 | AN28: 252.1424594 | AO28: 251.8364644 | AP28: 251.7406589 | AQ28: 251.724838 | AR28: 251.7479237 | AS28: 251.1922755 | AT28: 250.1609845 | AU28: 249.0266779 | AV28: 247.8003096 | AW28: 246.4810401 | AX28: 245.067484 | AY28: 243.5853562 | AZ28: 242.0401199 | BA28: 240.448184 | BD28: 261.5850703 | BE28: 243.5853562 | BF28: =IF(Var_out=Codes!$W$6,IFERROR(ROUND(BE28-BD28,1),"-")&" pp",IFERROR(ROUND(BE28-BD28,1),"-")) -> -18 | BG28: -0.3558260701
A29: Bristol | B29: =IFERROR(Codes!$AH$2,"Loading") -> £2016m | C29: West of England CA | D29: 22 | E29: 103.83497 | F29: 100.8121543 | G29: 92.98489888 | H29: 91.35388576 | I29: 88.55401792 | J29: 83.84247597 | K29: 73.66758183 | L29: 66.09622581 | M29: 66.55277561 | N29: 76.0712869 | O29: 62.07475371 | P29: 72.40636921 | Q29: 61.5337179 | R29: 65.74207536 | S29: 88.99089668 | T29: 77.46361985 | U29: 76.91018676 | V29: 82.20216314 | W29: 77.47208887 | X29: 72.77675519 | Y29: 82.12622638 | Z29: 79.14421043 | AA29: 76.3502462 | AB29: 87.9427198 | AC29: 86.8167786 | AD29: 67.73715969 | AE29: 64.52245073 | AF29: 64.33170847 | AG29: 63.21483655 | AH29: 62.94005393 | AI29: 62.88390804 | AJ29: 62.95613721 | AK29: 63.01092276 | AL29: 62.98451258 | AM29: 62.8664722 | AN29: 62.70575822 | AO29: 62.56947837 | AP29: 62.48605739 | AQ29: 62.4226411 | AR29: 62.37020819 | AS29: 62.17714927 | AT29: 61.86879689 | AU29: 61.53714625 | AV29: 61.18371076 | AW29: 60.8087679 | AX29: 60.4120308 | AY29: 59.99946579 | AZ29: 59.57261711 | BA29: 59.13468102 | BD29: 64.52245073 | BE29: 59.99946579 | BF29: =IF(Var_out=Codes!$W$6,IFERROR(ROUND(BE29-BD29,1),"-")&" pp",IFERROR(ROUND(BE29-BD29,1),"-")) -> -4.5 | BG29: -0.3627284344
A30: Cardiff | B30: =IFERROR(Codes!$AH$2,"Loading") -> £2016m | C30: Cardiff Capital Region | D30: 23 | E30: 126.5914278 | F30: 130.0173595 | G30: 127.1514202 | H30: 121.3665424 | I30: 109.3125752 | J30: 101.5027791 | K30: 100.063497 | L30: 67.18526354 | M30: 59.5124359 | N30: 75.93067056 | O30: 99.91907742 | P30: 108.0458562 | Q30: 105.3208654 | R30: 108.9378472 | S30: 81.76180936 | T30: 48.79029402 | U30: 41.83314235 | V30: 44.5349634 | W30: 49.06048833 | X30: 54.43809703 | Y30: 44.30255334 | Z30: 41.60884899 | AA30: =IF(AA$9="","",IF(ISNA(INDIRECT("'"&$C30&"'!"&AA$9&Var_row))=TRUE,"",INDIRECT("'"&$C30&"'!"&AA$9&Var_row))) -> 47.42966085 | AB30: 57.06223125 | AC30: 64.84555735 | AD30: 62.46588786 | AE30: 51.6051828 | AF30: 50.35715533 | AG30: 49.91138602 | AH30: 49.75679795 | AI30: 49.74895444 | AJ30: 49.8751511 | AK30: 49.99011407 | AL30: 50.03950368 | AM30: 50.01538761 | AN30: 49.95932092 | AO30: 49.92294481 | AP30: 49.92864587 | AQ30: 49.95037963 | AR30: 49.98163134 | AS30: 49.90267118 | AT30: 49.73217221 | AU30: 49.54157929 | AV30: 49.33313377 | AW30: 49.10675959 | AX30: 48.86246025 | AY30: 48.60480722 | AZ30: 48.33463055 | BA30: 48.05457117 | BD30: 51.6051828 | BE30: 48.60480722 | BF30: =IF(Var_out=Codes!$W$6,IFERROR(ROUND(BE30-BD30,1),"-")&" pp",IFERROR(ROUND(BE30-BD30,1),"-")) -> -3 | BG30: -0.2990502967
A31: Glasgow | B31: =IFERROR(Codes!$AH$2,"Loading") -> £2016m | C31: Glasgow City Region | D31: 24 | E31: =IF(E$9="","",IF(ISNA(INDIRECT("'"&$C31&"'!"&E$9&Var_row))=TRUE,"",INDIRECT("'"&$C31&"'!"&E$9&Var_row))) -> 72.51759971 | F31: 83.12251598 | G31: 87.25484311 | H31: 92.16963914 | I31: 83.85218498 | J31: 72.95595388 | K31: 80.75680368 | L31: 86.04140755 | M31: 81.12222038 | N31: 90.44323947 | O31: =IF(O$9="","",IF(ISNA(INDIRECT("'"&$C31&"'!"&O$9&Var_row))=TRUE,"",INDIRECT("'"&$C31&"'!"&O$9&Var_row))) -> 112.2769403 | P31: 116.5904294 | Q31: 118.4824679 | R31: 128.3005595 | S31: 155.5177174 | T31: 159.4727979 | U31: 136.5977382 | V31: 128.6729771 | W31: 87.15570937 | X31: 90.62624478 | Y31: =IF(Y$9="","",IF(ISNA(INDIRECT("'"&$C31&"'!"&Y$9&Var_row))=TRUE,"",INDIRECT("'"&$C31&"'!"&Y$9&Var_row))) -> 88.07403295 | Z31: 82.25180081 | AA31: 69.31911329 | AB31: 100.830465 | AC31: 104.2985083 | AD31: 108.7050354 | AE31: 113.4869791 | AF31: 110.3486657 | AG31: 108.1978387 | AH31: 108.1382752 | AI31: =IF(AI$9="","",IF(ISNA(INDIRECT("'"&$C31&"'!"&AI$9&Var_row))=TRUE,"",INDIRECT("'"&$C31&"'!"&AI$9&Var_row))) -> 108.4131676 | AJ31: 108.9536075 | AK31: 109.4415423 | AL31: 109.7960699 | AM31: 109.9911371 | AN31: 110.1039477 | AO31: 110.2568448 | AP31: 110.4988993 | AQ31: 110.776415 | AR31: 111.0718995 | AS31: =IF(AS$9="","",IF(ISNA(INDIRECT("'"&$C31&"'!"&AS$9&Var_row))=TRUE,"",INDIRECT("'"&$C31&"'!"&AS$9&Var_row))) -> 111.1089965 | AT31: 110.9328798 | AU31: 110.7098986 | AV31: 110.4442448 | AW31: 110.1344566 | AX31: 109.7799839 | AY31: 109.3909903 | AZ31: 108.9702406 | BA31: 108.5217904 | BD31: 113.4869791 | BE31: 109.3909903 | BF31: =IF(Var_out=Codes!$W$6,IFERROR(ROUND(BE31-BD31,1),"-")&" pp",IFERROR(ROUND(BE31-BD31,1),"-")) -> -4.1 | BG31: -0.1836290839
A32: Leeds | B32: =IFERROR(Codes!$AH$2,"Loading") -> £2016m | C32: West Yorkshire CA | D32: 25 | E32: 302.5071317 | F32: 304.7172192 | G32: 268.459642 | H32: 253.7521643 | I32: 249.8077762 | J32: 247.201644 | K32: 279.3828942 | L32: 290.3468582 | M32: 289.1324889 | N32: 290.142659 | O32: 248.938595 | P32: 322.7317269 | Q32: 306.3964586 | R32: 294.8821717 | S32: 356.4559211 | T32: 347.0061625 | U32: 310.7704298 | V32: 359.1131987 | W32: 360.9892944 | X32: 281.686145 | Y32: 386.6806403 | Z32: 393.2938832 | AA32: 344.3688821 | AB32: 360.9300033 | AC32: 304.5542947 | AD32: 228.2490185 | AE32: 189.9666374 | AF32: 190.1291723 | AG32: 187.097185 | AH32: 185.9627389 | AI32: 185.4356603 | AJ32: 185.3769214 | AK32: 185.264127 | AL32: 184.9139691 | AM32: 184.2968854 | AN32: 183.5500183 | AO32: 182.8741783 | AP32: 182.3535708 | AQ32: 181.8920797 | AR32: 181.4621152 | AS32: 180.6204234 | AT32: 179.4443859 | AU32: 178.2007211 | AV32: 176.8968163 | AW32: 175.5329916 | AX32: 174.1103985 | AY32: 172.6448484 | AZ32: 171.1408899 | BA32: 169.6082836 | BD32: 189.9666374 | BE32: 172.6448484 | BF32: =IF(Var_out=Codes!$W$6,IFERROR(ROUND(BE32-BD32,1),"-")&" pp",IFERROR(ROUND(BE32-BD32,1),"-")) -> -17.3 | BG32: -0.4769185111
A33: Sheffield | B33: =IFERROR(Codes!$AH$2,"Loading") -> £2016m | C33: Sheffield City Region | D33: 26 | E33: 106.9049916 | F33: 109.1136043 | G33: 95.16601344 | H33: 88.55673364 | I33: 86.08869765 | J33: 86.68890476 | K33: 105.3281814 | L33: 114.5052014 | M33: 111.47316 | N33: 103.7501129 | O33: 111.1020611 | P33: 141.3744769 | Q33: 124.0086172 | R33: 117.2496631 | S33: 117.4334443 | T33: 140.4452252 | U33: 125.7238737 | V33: 147.0802844 | W33: 138.8686998 | X33: 128.2987389 | Y33: 152.668379 | Z33: 124.9732583 | AA33: 144.7806766 | AB33: 148.2348057 | AC33: 130.5033836 | AD33: 123.43117 | AE33: 123.9300895 | AF33: 120.8394425 | AG33: 118.0875218 | AH33: 117.8368993 | AI33: 117.9945603 | AJ33: 118.4398276 | AK33: 118.8466849 | AL33: 119.1069025 | AM33: 119.1952265 | AN33: 119.1954084 | AO33: 119.2388379 | AP33: 119.3828309 | AQ33: 119.5650585 | AR33: 119.7665142 | AS33: 119.6902129 | AT33: 119.3849236 | AU33: 119.0295516 | AV33: 118.6281931 | AW33: 118.180818 | AX33: 117.6873907 | AY33: 117.1587586 | AZ33: 116.5976072 | BA33: 116.0352915 | BD33: 123.9300895 | BE33: 117.1587586 | BF33: =IF(Var_out=Codes!$W$6,IFERROR(ROUND(BE33-BD33,1),"-")&" pp",IFERROR(ROUND(BE33-BD33,1),"-")) -> -6.8 | BG33: -0.2805441706
A34: Liverpool | B34: =IFERROR(Codes!$AH$2,"Loading") -> £2016m | C34: Liverpool City Region | D34: 27 | E34: 31.26174554 | F34: 32.86311451 | G34: 28.81628552 | H34: 26.79334203 | I34: 25.35167398 | J34: 23.96015456 | K34: 22.81460331 | L34: 21.248309 | M34: 25.42327151 | N34: 21.66711299 | O34: 21.6618129 | P34: 24.82131571 | Q34: 21.93192837 | R34: 21.94043802 | S34: 25.06657949 | T34: 23.9605501 | U34: 19.03858036 | V34: 21.03899516 | W34: 24.00930921 | X34: 21.07546831 | Y34: 24.01685361 | Z34: 23.01206379 | AA34: 23.01126017 | AB34: 24.95198755 | AC34: 27.09730793 | AD34: 26.03580139 | AE34: 26.96166032 | AF34: 26.77089745 | AG34: 26.39424789 | AH34: 26.2813155 | AI34: 26.25211478 | AJ34: 26.28864402 | AK34: 26.31742348 | AL34: 26.31218772 | AM34: 26.26846143 | AN34: 26.20673094 | AO34: 26.1551153 | AP34: 26.12518226 | AQ34: 26.10352798 | AR34: 26.08638773 | AS34: 26.01032041 | AT34: 25.88591031 | AU34: 25.75122935 | AV34: 25.60748122 | AW34: 25.45449761 | AX34: 25.2923523 | AY34: 25.12343931 | AZ34: 24.94830957 | BA34: 24.76825593 | BD34: 26.96166032 | BE34: 25.12343931 | BF34: =IF(Var_out=Codes!$W$6,IFERROR(ROUND(BE34-BD34,1),"-")&" pp",IFERROR(ROUND(BE34-BD34,1),"-")) -> -1.8 | BG34: -0.3524505356
A35: Newcastle | B35: =IFERROR(Codes!$AH$2,"Loading") -> £2016m | C35: North East CA | D35: 28 | E35: 266.8915933 | F35: 279.0798025 | G35: 249.319617 | H35: 247.1306829 | I35: 240.5702065 | J35: 228.1818548 | K35: 246.7536949 | L35: 224.4693088 | M35: 204.6440936 | N35: 173.7016613 | O35: 128.6257014 | P35: 231.7871948 | Q35: 220.3483098 | R35: 222.5436529 | S35: 266.0207783 | T35: 284.882338 | U35: 241.888761 | V35: 291.4372501 | W35: 300.0883666 | X35: 261.5000911 | Y35: 297.8067423 | Z35: 297.4330516 | AA35: 278.4644739 | AB35: 312.4246273 | AC35: 300.4072152 | AD35: 271.4741694 | AE35: 262.9038892 | AF35: 262.3846628 | AG35: 256.781572 | AH35: 255.4472922 | AI35: 254.9525791 | AJ35: 255.0784566 | AK35: 255.1250857 | AL35: 254.8468779 | AM35: 254.1993398 | AN35: 253.3701781 | AO35: 252.6362586 | AP35: 252.1172388 | AQ35: 251.6777773 | AR35: 251.2793249 | AS35: 250.3029204 | AT35: 248.8571079 | AU35: 247.3153225 | AV35: 245.687445 | AW35: 243.9714645 | AX35: 242.1692708 | AY35: 240.3047066 | AZ35: 238.3835185 | BA35: 236.4185254 | BD35: 262.9038892 | BE35: 240.3047066 | BF35: =IF(Var_out=Codes!$W$6,IFERROR(ROUND(BE35-BD35,1),"-")&" pp",IFERROR(ROUND(BE35-BD35,1),"-")) -> -22.6 | BG35: -0.4483956727
A36: Nottingham | B36: =IFERROR(Codes!$AH$2,"Loading") -> £2016m | C36: Core City Region | D36: 29 | E36: 22.59868877 | F36: 23.26066551 | G36: 20.15040822 | H36: 18.49182815 | I36: 18.10288042 | J36: 18.35598354 | K36: 24.04232065 | L36: 27.02833062 | M36: 31.58480341 | N36: 50.74422618 | O36: 34.13615749 | P36: 47.01379471 | Q36: 42.0765446 | R36: 44.32333548 | S36: 36.31920018 | T36: 49.47677693 | U36: 42.30406088 | V36: 41.88484839 | W36: 61.56170468 | X36: 36.18138171 | Y36: 44.16154865 | Z36: 47.38974567 | AA36: 41.0773147 | AB36: 45.23303669 | AC36: 44.16509555 | AD36: 28.54623162 | AE36: 28.19653561 | AF36: 27.75070783 | AG36: 27.25907687 | AH36: 27.23579278 | AI36: 27.3085203 | AJ36: 27.44773377 | AK36: 27.57797162 | AL36: 27.67449849 | AM36: 27.73107884 | AN36: 27.76708286 | AO36: 27.8130175 | AP36: 27.8823877 | AQ36: 27.96066008 | AR36: 28.04339398 | AS36: 28.06094741 | AT36: 28.02445806 | AU36: 27.97585545 | AV36: 27.91605985 | AW36: 27.84505738 | AX36: 27.76278281 | AY36: 27.6717976 | AZ36: 27.5726978 | BA36: 27.4747604 | BD36: 28.19653561 | BE36: 27.6717976 | BF36: =IF(Var_out=Codes!$W$6,IFERROR(ROUND(BE36-BD36,1),"-")&" pp",IFERROR(ROUND(BE36-BD36,1),"-")) -> -0.5 | BG36: -0.09388271567
A37: Newcastle | B37: =IFERROR(Codes!$AH$2,"Loading") -> £2016m | C37: North Tyne | D37: 30 | E37: 144.3400701 | F37: 152.8391887 | G37: 136.5248331 | H37: 137.3451671 | I37: 136.5028996 | J37: 128.2955635 | K37: 139.9460666 | L37: 126.2833799 | M37: 113.5011929 | N37: 84.31625801 | O37: 52.87160122 | P37: 129.1061467 | Q37: 123.8681986 | R37: 119.7605468 | S37: 156.6387451 | T37: 190.1111816 | U37: 148.5449831 | V37: 185.356304 | W37: 204.7462038 | X37: 171.3639802 | Y37: 208.2779731 | Z37: 196.408014 | AA37: 191.5904281 | AB37: 206.4521895 | AC37: 192.7188204 | AD37: 171.4456077 | AE37: 155.9217087 | AF37: 155.4562542 | AG37: 152.0687962 | AH37: 151.2646106 | AI37: 150.9567715 | AJ37: 151.0194914 | AK37: 151.0362302 | AL37: 150.8601374 | AM37: 150.4653653 | AN37: 149.9641206 | AO37: 149.5196375 | AP37: 149.2025469 | AQ37: 148.932638 | AR37: 148.6873618 | AS37: 148.1012576 | AT37: 147.2381891 | AU37: 146.3185063 | AV37: 145.3481372 | AW37: 144.3259348 | AX37: 143.2530343 | AY37: 142.143506 | AZ37: 141.0007196 | BA37: 139.832294 | BD37: 155.9217087 | BE37: 142.143506 | BF37: =IF(Var_out=Codes!$W$6,IFERROR(ROUND(BE37-BD37,1),"-")&" pp",IFERROR(ROUND(BE37-BD37,1),"-")) -> -13.8 | BG37: -0.461516031
A38: Greater London | B38: =IFERROR(Codes!$AH$2,"Loading") -> £2016m | C38: Greater London | D38: 31 | E38: 44.34478 | F38: 51.63232 | G38: 46.79756 | H38: 40.54625 | I38: 36.71447 | J38: 33.50957 | K38: 32.34298 | L38: 34.79276 | M38: 37.27657 | N38: 41.33897 | O38: 39.34151 | P38: 33.74278 | Q38: 29.81313 | R38: 27.87855 | S38: 33.91229 | T38: 31.95495 | U38: 34.99419 | V38: 36.04527 | W38: 36.99292 | X38: 36.06898 | Y38: 42.13377 | Z38: 48.87599 | AA38: 51.89043 | AB38: 56.98626 | AC38: 61.91899 | AD38: 60.08464 | AE38: 63.13778 | AF38: 62.87916 | AG38: 61.34874 | AH38: 60.55284 | AI38: 59.95705 | AJ38: 59.78808 | AK38: 59.53079 | AL38: 59.20354 | AM38: 58.79087 | AN38: 58.33813 | AO38: 57.91203 | AP38: 57.53543 | AQ38: 57.18583 | AR38: 56.83859 | AS38: 56.36265 | AT38: 55.78316 | AU38: 55.18362 | AV38: 54.56758 | AW38: 53.93518 | AX38: 53.28678 | AY38: 52.6279 | AZ38: 51.96001 | BA38: 51.27874 | BD38: 63.13778 | BE38: 52.6279 | BF38: =IF(Var_out=Codes!$W$6,IFERROR(ROUND(BE38-BD38,1),"-")&" pp",IFERROR(ROUND(BE38-BD38,1),"-")) -> -10.5 | BG38: -0.9062333532
A39: Northern Powerhouse region | B39: =IFERROR(Codes!$AH$2,"Loading") -> £2016m | C39: Northern Powerhouse region | D39: 32 | E39: 2194.3786 | F39: 2239.1926 | G39: 1976.2169 | H39: 1873.8882 | I39: 1841.1377 | J39: 1783.4587 | K39: 1883.7471 | L39: 1868.7303 | M39: 1929.553 | N39: 1935.1468 | O39: 1726.7246 | P39: 2075.5195 | Q39: 1889.2001 | R39: 1845.9581 | S39: 2176.552 | T39: 2078.0799 | U39: 1814.999 | V39: 2121.0077 | W39: 2122.8678 | X39: 1962.1323 | Y39: 2168.3443 | Z39: 2057.5142 | AA39: 2050.2815 | AB39: 2258.1747 | AC39: 2144.5193 | AD39: 1862.1809 | AE39: 1706.9448 | AF39: 1699.9529 | AG39: 1672.8478 | AH39: 1664.0303 | AI39: 1660.6094 | AJ39: 1661.3497 | AK39: 1661.622 | AL39: 1659.775 | AM39: 1655.5229 | AN39: 1650.1202 | AO39: 1645.3481 | AP39: 1641.9652 | AQ39: 1639.1117 | AR39: 1636.5398 | AS39: 1630.2542 | AT39: 1620.9305 | AU39: 1610.9768 | AV39: 1600.4664 | AW39: 1589.3943 | AX39: 1577.7654 | AY39: 1565.7357 | AZ39: 1553.3394 | BA39: 1540.6631 | BD39: 1706.9448 | BE39: 1565.7357 | BF39: =IF(Var_out=Codes!$W$6,IFERROR(ROUND(BE39-BD39,1),"-")&" pp",IFERROR(ROUND(BE39-BD39,1),"-")) -> -141.2 | BG39: =IFERROR(((BE39/BD39)^(1/($BE$8-$BD$8))-1)*100,"-") -> -0.4308157971

Sheet compare_data (hidden)
C1: =C3-2001 -> 16 | D1: =D3-2001 -> 36 | H1: =H3-2001 -> 16 | I1: =I3-2001 -> 36 | Y1: Area1 | Z1: Bolton | AA1: NW5 | AB1: Bolton | AC1: =VLOOKUP(Area1.,Z1:AA29,2,FALSE) -> NW5 | AF1: Area2 | AG1: Bolton | AH1: NW5 | AI1: Bolton | AJ1: =VLOOKUP(Area2.,AG1:AH29,2,FALSE) -> NW5
A2: Key indicators | B2: Area1 | G2: Area2 | K2: Difference | N2: Change | R2: Growth | Z2: Bury | AA2: NW7 | AG2: Bury | AH2: NW7
C3: =Comparison!L6 -> 2017 | D3: =Comparison!$L$7 -> 2037 | H3: =Comparison!$L$6 -> 2017 | I3: =Comparison!$L$7 -> 2037 | K3: =Comparison!$L$6 -> 2017 | L3: =Comparison!$L$7 -> 2037 | N3: Geo1 | O3: Geo2 | P3: Difference | R3: Geo1 | S3: Geo2 | T3: Difference | Z3: Manchester | AA3: NW23 | AG3: Manchester | AH3: NW23
C4: =C3-1989 -> 28 | D4: =D3-1989 -> 48 | H4: =H3-1989 -> 28 | I4: =I3-1989 -> 48 | Q4: pp | Z4: Oldham | AA4: NW24 | AG4: Oldham | AH4: NW24
A5: POPL | B5: =$A5&Area1.code -> POPLNW5 | C5: =IFERROR(VLOOKUP($B5,RAWDATA!$B:$AY,C$4,FALSE),"-") -> 284.7860907 | D5: =IFERROR(VLOOKUP($B5,RAWDATA!$B:$AY,D$4,FALSE),"-") -> 290.7217943 | G5: =$A5&Area2.code -> POPLNW5 | H5: =IFERROR(VLOOKUP($G5,RAWDATA!$B:$AY,H$4,FALSE),"-") -> 284.7860907 | I5: =IFERROR(VLOOKUP($G5,RAWDATA!$B:$AY,I$4,FALSE),"-") -> 290.7217943 | K5: =IFERROR(C5-H5,"-") -> 0 | L5: =IFERROR(D5-I5,"-") -> 0 | N5: =IFERROR(D5-C5,"-") -> 5.935703626 | O5: =IFERROR(I5-H5,"-") -> 5.935703626 | P5: =IFERROR(N5-O5,"-") -> 0 | R5: =IFERROR(((($D5/$C5)^(1/($D$3-$C$3)))-1)*100,"-") -> 0.1031953955 | S5: =IFERROR(((($I5/$H5)^(1/($I$3-$H$3)))-1)*100,"-") -> 0.1031953955 | T5: =IFERROR(R5-S5,"-") -> 0 | Z5: Rochdale | AA5: NW28 | AG5: Rochdale | AH5: NW28
A6: POPC | B6: POPCNW5 | C6: =IFERROR(VLOOKUP($B6,RAWDATA!$B:$AY,C$4,FALSE),"-") -> 60.48909071 | D6: =IFERROR(VLOOKUP($B6,RAWDATA!$B:$AY,D$4,FALSE),"-") -> 57.88238271 | G6: POPCNW5 | H6: =IFERROR(VLOOKUP($G6,RAWDATA!$B:$AY,H$4,FALSE),"-") -> 60.48909071 | I6: =IFERROR(VLOOKUP($G6,RAWDATA!$B:$AY,I$4,FALSE),"-") -> 57.88238271 | K6: =IFERROR(C6-H6,"-") -> 0 | L6: =IFERROR(D6-I6,"-") -> 0 | N6: =IFERROR(D6-C6,"-") -> -2.606707994 | O6: =IFERROR(I6-H6,"-") -> -2.606707994 | P6: =IFERROR(N6-O6,"-") -> 0 | R6: =IFERROR(((($D6/$C6)^(1/($D$3-$C$3)))-1)*100,"-") -> -0.2200074408 | S6: =IFERROR(((($I6/$H6)^(1/($I$3-$H$3)))-1)*100,"-") -> -0.2200074408 | T6: =IFERROR(R6-S6,"-") -> 0 | Z6: Salford | AA6: NW30 | AG6: Salford | AH6: NW30
A7: POPW | B7: POPWNW5 | C7: =IFERROR(VLOOKUP($B7,RAWDATA!$B:$AY,C$4,FALSE),"-") -> 175.795 | D7: =IFERROR(VLOOKUP($B7,RAWDATA!$B:$AY,D$4,FALSE),"-") -> 167.4481978 | G7: POPWNW5 | H7: =IFERROR(VLOOKUP($G7,RAWDATA!$B:$AY,H$4,FALSE),"-") -> 175.795 | I7: =IFERROR(VLOOKUP($G7,RAWDATA!$B:$AY,I$4,FALSE),"-") -> 167.4481978 | K7: =IFERROR(C7-H7,"-") -> 0 | L7: 0 | N7: =IFERROR(D7-C7,"-") -> -8.346802181 | O7: =IFERROR(I7-H7,"-") -> -8.346802181 | P7: =IFERROR(N7-O7,"-") -> 0 | R7: -0.2429269874 | S7: -0.2429269874 | T7: =IFERROR(R7-S7,"-") -> 0 | Z7: Stockport | AA7: NW35 | AG7: Stockport | AH7: NW35
A8: POPO | B8: POPONW5 | C8: =IFERROR(VLOOKUP($B8,RAWDATA!$B:$AY,C$4,FALSE),"-") -> 48.502 | D8: =IFERROR(VLOOKUP($B8,RAWDATA!$B:$AY,D$4,FALSE),"-") -> 65.3912138 | G8: POPONW5 | H8: =IFERROR(VLOOKUP($G8,RAWDATA!$B:$AY,H$4,FALSE),"-") -> 48.502 | I8: =IFERROR(VLOOKUP($G8,RAWDATA!$B:$AY,I$4,FALSE),"-") -> 65.3912138 | K8: 0 | L8: 0 | N8: 16.8892138 | O8: 16.8892138 | P8: 0 | R8: 1.505129025 | S8: 1.505129025 | T8: 0 | Z8: Tameside | AA8: NW36 | AG8: Tameside | AH8: NW36
A9: Tmig | B9: TmigNW5 | C9: =IFERROR(VLOOKUP($B9,RAWDATA!$B:$AY,C$4,FALSE),"-") -> 0.091 | D9: =IFERROR(VLOOKUP($B9,RAWDATA!$B:$AY,D$4,FALSE),"-") -> -0.7897695414 | G9: TmigNW5 | H9: =IFERROR(VLOOKUP($G9,RAWDATA!$B:$AY,H$4,FALSE),"-") -> 0.091 | I9: =IFERROR(VLOOKUP($G9,RAWDATA!$B:$AY,I$4,FALSE),"-") -> -0.7897695414 | K9: 0 | L9: 0 | N9: -0.8807695414 | O9: -0.8807695414 | P9: 0 | R9: =IFERROR(((($D9/$C9)^(1/($D$3-$C$3)))-1)*100,"-") -> - | S9: - | T9: - | Z9: Trafford | AA9: NW37 | AG9: Trafford | AH9: NW37
A10: MIGDOMN | B10: MIGDOMNNW5 | C10: =IFERROR(VLOOKUP($B10,RAWDATA!$B:$AY,C$4,FALSE),"-") -> -0.64 | D10: =IFERROR(VLOOKUP($B10,RAWDATA!$B:$AY,D$4,FALSE),"-") -> -0.8250524789 | G10: MIGDOMNNW5 | H10: =IFERROR(VLOOKUP($G10,RAWDATA!$B:$AY,H$4,FALSE),"-") -> -0.64 | I10: =IFERROR(VLOOKUP($G10,RAWDATA!$B:$AY,I$4,FALSE),"-") -> -0.8250524789 | K10: 0 | L10: 0 | N10: -0.1850524789 | O10: -0.1850524789 | P10: 0 | R10: 1.277991489 | S10: 1.277991489 | T10: 0 | Z10: Wigan | AA10: NW41 | AG10: Wigan | AH10: NW41
A11: MIGINTN | B11: MIGINTNNW5 | C11: =IFERROR(VLOOKUP($B11,RAWDATA!$B:$AY,C$4,FALSE),"-") -> 0.736 | D11: =IFERROR(VLOOKUP($B11,RAWDATA!$B:$AY,D$4,FALSE),"-") -> 0.03528299749 | G11: MIGINTNNW5 | H11: =IFERROR(VLOOKUP($G11,RAWDATA!$B:$AY,H$4,FALSE),"-") -> 0.736 | I11: =IFERROR(VLOOKUP($G11,RAWDATA!$B:$AY,I$4,FALSE),"-") -> 0.03528299749 | K11: 0 | L11: 0 | N11: -0.7007170025 | O11: -0.7007170025 | P11: 0 | R11: -14.09184679 | S11: -14.09184679 | T11: 0 | Z11: Greater Manchester | AA11: LEP15 | AG11: Greater Manchester | AH11: LEP15
Z12: Liverpool LEP | AA12: LEP22 | AG12: Liverpool LEP | AH12: LEP22
A13: EETT | B13: =$A13&Area1.code -> EETTNW5 | C13: =IFERROR(VLOOKUP($B13,RAWDATA!$B:$AY,C$4,FALSE),"-") -> 110.1680598 | D13: =IFERROR(VLOOKUP($B13,RAWDATA!$B:$AY,D$4,FALSE),"-") -> 116.4255454 | G13: =$A13&Area2.code -> EETTNW5 | H13: =IFERROR(VLOOKUP($G13,RAWDATA!$B:$AY,H$4,FALSE),"-") -> 110.1680598 | I13: =IFERROR(VLOOKUP($G13,RAWDATA!$B:$AY,I$4,FALSE),"-") -> 116.4255454 | K13: =IFERROR(C13-H13,"-") -> 0 | L13: =IFERROR(D13-I13,"-") -> 0 | N13: =IFERROR(D13-C13,"-") -> 6.257485578 | O13: =IFERROR(I13-H13,"-") -> 6.257485578 | P13: 0 | R13: =IFERROR(((($D13/$C13)^(1/($D$3-$C$3)))-1)*100,"-") -> 0.2766066371 | S13: =IFERROR(((($I13/$H13)^(1/($I$3-$H$3)))-1)*100,"-") -> 0.2766066371 | T13: 0 | Z13: Cheshire and Warrington LEP | AA13: LEP03 | AG13: Cheshire and Warrington LEP | AH13: LEP03
A14: SET | B14: SETNW5 | C14: =IFERROR(VLOOKUP($B14,RAWDATA!$B:$AY,C$4,FALSE),"-") -> 14.80762415 | D14: =IFERROR(VLOOKUP($B14,RAWDATA!$B:$AY,D$4,FALSE),"-") -> 17.48917277 | G14: SETNW5 | H14: =IFERROR(VLOOKUP($G14,RAWDATA!$B:$AY,H$4,FALSE),"-") -> 14.80762415 | I14: =IFERROR(VLOOKUP($G14,RAWDATA!$B:$AY,I$4,FALSE),"-") -> 17.48917277 | K14: =IFERROR(C14-H14,"-") -> 0 | L14: 0 | N14: =IFERROR(D14-C14,"-") -> 2.681548628 | O14: =IFERROR(I14-H14,"-") -> 2.681548628 | P14: 0 | R14: =IFERROR(((($D14/$C14)^(1/($D$3-$C$3)))-1)*100,"-") -> 0.8356713901 | S14: =IFERROR(((($I14/$H14)^(1/($I$3-$H$3)))-1)*100,"-") -> 0.8356713901 | T14: 0 | Z14: Lancashire LEP | AA14: LEP19 | AG14: Lancashire LEP | AH14: LEP19
A15: ETTT | B15: ETTTNW5 | C15: =IFERROR(VLOOKUP($B15,RAWDATA!$B:$AY,C$4,FALSE),"-") -> 124.9784626 | D15: =IFERROR(VLOOKUP($B15,RAWDATA!$B:$AY,D$4,FALSE),"-") -> 133.9174745 | G15: ETTTNW5 | H15: =IFERROR(VLOOKUP($G15,RAWDATA!$B:$AY,H$4,FALSE),"-") -> 124.9784626 | I15: =IFERROR(VLOOKUP($G15,RAWDATA!$B:$AY,I$4,FALSE),"-") -> 133.9174745 | K15: 0 | L15: 0 | N15: 8.939011872 | O15: 8.939011872 | P15: 0 | R15: 0.3460088575 | S15: 0.3460088575 | T15: 0 | Z15: Cumbria LEP | AA15: LEP07 | AG15: Cumbria LEP | AH15: LEP07
A16: PET | B16: PETNW5 | C16: =IFERROR(VLOOKUP($B16,RAWDATA!$B:$AY,C$4,FALSE),"-") -> 124.389114 | D16: =IFERROR(VLOOKUP($B16,RAWDATA!$B:$AY,D$4,FALSE),"-") -> 132.8508391 | G16: PETNW5 | H16: =IFERROR(VLOOKUP($G16,RAWDATA!$B:$AY,H$4,FALSE),"-") -> 124.389114 | I16: =IFERROR(VLOOKUP($G16,RAWDATA!$B:$AY,I$4,FALSE),"-") -> 132.8508391 | K16: 0 | L16: 0 | N16: 8.461725115 | O16: 8.461725115 | P16: 0 | R16: 0.329603602 | S16: 0.329603602 | T16: 0 | Z16: North West | AA16: NW | AG16: North West | AH16: NW
A17: RET | B17: RETNW5 | C17: =IFERROR(VLOOKUP($B17,RAWDATA!$B:$AY,C$4,FALSE),"-") -> 132.7497466 | D17: =IFERROR(VLOOKUP($B17,RAWDATA!$B:$AY,D$4,FALSE),"-") -> 139.0370174 | G17: RETNW5 | H17: =IFERROR(VLOOKUP($G17,RAWDATA!$B:$AY,H$4,FALSE),"-") -> 132.7497466 | I17: =IFERROR(VLOOKUP($G17,RAWDATA!$B:$AY,I$4,FALSE),"-") -> 139.0370174 | K17: 0 | L17: 0 | N17: 6.287270819 | O17: 6.287270819 | P17: 0 | R17: 0.2316401661 | S17: 0.2316401661 | T17: 0 | Z17: UK | AA17: UK | AG17: UK | AH17: UK
A18: RER_APS | B18: RER_APSNW5 | C18: =IFERROR(VLOOKUP($B18,RAWDATA!$B:$AY,C$4,FALSE),"-") -> 70.8 | D18: =IFERROR(VLOOKUP($B18,RAWDATA!$B:$AY,D$4,FALSE),"-") -> 73.52794273 | G18: RER_APSNW5 | H18: =IFERROR(VLOOKUP($G18,RAWDATA!$B:$AY,H$4,FALSE),"-") -> 70.8 | I18: =IFERROR(VLOOKUP($G18,RAWDATA!$B:$AY,I$4,FALSE),"-") -> 73.52794273 | K18: 0 | L18: 0 | N18: 2.727942733 | O18: 2.727942733 | P18: 0 | R18: 0.1892113117 | S18: 0.1892113117 | T18: 0 | Z18: Birmingham | AA18: CA01 | AG18: Birmingham | AH18: CA01
A19: RER (15-74) | C19: =IFERROR((C17/C8)*100,"-") -> 273.6995312 | D19: =IFERROR((D17/D8)*100,"-") -> 212.6233929 | G19: RER (15-74)NW5 | H19: =IFERROR((H17/H8)*100,"-") -> 273.6995312 | I19: =IFERROR((I17/I8)*100,"-") -> 212.6233929 | K19: =IFERROR(C19-H19,"-") -> 0 | L19: 0 | N19: =IFERROR(D19-C19,"-") -> -61.07613829 | O19: =IFERROR(I19-H19,"-") -> -61.07613829 | P19: 0 | R19: =IFERROR(((($D19/$C19)^(1/($D$3-$C$3)))-1)*100,"-") -> -1.254605429 | S19: =IFERROR(((($I19/$H19)^(1/($I$3-$H$3)))-1)*100,"-") -> -1.254605429 | T19: 0 | Z19: Bristol | AA19: CA02 | AG19: Bristol | AH19: CA02
A20: NCOM | B20: =$A20&Area1.code -> NCOMNW5 | C20: =IFERROR(VLOOKUP($B20,RAWDATA!$B:$AY,C$4,FALSE),"-") -> -8.360632581 | D20: =IFERROR(VLOOKUP($B20,RAWDATA!$B:$AY,D$4,FALSE),"-") -> -6.186178284 | G20: NCOMNW5 | H20: =IFERROR(VLOOKUP($G20,RAWDATA!$B:$AY,H$4,FALSE),"-") -> -8.360632581 | I20: =IFERROR(VLOOKUP($G20,RAWDATA!$B:$AY,I$4,FALSE),"-") -> -6.186178284 | K20: 0 | L20: 0 | N20: =IFERROR(D20-C20,"-") -> 2.174454296 | O20: =IFERROR(I20-H20,"-") -> 2.174454296 | P20: 0 | R20: -1.49479828 | S20: -1.49479828 | T20: 0 | Z20: Cardiff | AA20: CA11 | AG20: Cardiff | AH20: CA11
A21: UNMPILO | B21: =$A21&Area1.code -> UNMPILONW5 | C21: =IFERROR(VLOOKUP($B21,RAWDATA!$B:$AY,C$4,FALSE),"-") -> 6.800399801 | D21: =IFERROR(VLOOKUP($B21,RAWDATA!$B:$AY,D$4,FALSE),"-") -> 5.999543935 | G21: UNMPILONW5 | H21: =IFERROR(VLOOKUP($G21,RAWDATA!$B:$AY,H$4,FALSE),"-") -> 6.800399801 | I21: =IFERROR(VLOOKUP($G21,RAWDATA!$B:$AY,I$4,FALSE),"-") -> 5.999543935 | K21: 0 | L21: 0 | N21: -0.8008558659 | O21: -0.8008558659 | P21: 0 | R21: -0.6245313907 | S21: -0.6245313907 | T21: 0 | Z21: Glasgow | AA21: CA10 | AG21: Glasgow | AH21: CA10
A22: UPILO | B22: =$A22&Area1.code -> UPILONW5 | C22: =IFERROR(VLOOKUP($B22,RAWDATA!$B:$AY,C$4,FALSE),"-") -> 4.873086827 | D22: =IFERROR(VLOOKUP($B22,RAWDATA!$B:$AY,D$4,FALSE),"-") -> 4.136573481 | G22: UPILONW5 | H22: =IFERROR(VLOOKUP($G22,RAWDATA!$B:$AY,H$4,FALSE),"-") -> 4.873086827 | I22: =IFERROR(VLOOKUP($G22,RAWDATA!$B:$AY,I$4,FALSE),"-") -> 4.136573481 | K22: 0 | L22: 0 | N22: -0.7365133455 | O22: -0.7365133455 | P22: 0 | R22: -0.8159518831 | S22: -0.8159518831 | T22: 0 | Z22: Leeds | AA22: CA03 | AG22: Leeds | AH22: CA03
A23: UP (15-74) | C23: =IFERROR((C21/C8)*100,"-") -> 14.02086471 | D23: =IFERROR((D21/D8)*100,"-") -> 9.17484718 | G23: UP (15-74)NW5 | H23: =IFERROR((H21/H8)*100,"-") -> 14.02086471 | I23: =IFERROR((I21/I8)*100,"-") -> 9.17484718 | K23: 0 | L23: 0 | N23: -4.846017529 | O23: -4.846017529 | P23: 0 | R23: -2.098081581 | S23: -2.098081581 | T23: 0 | Z23: Sheffield | AA23: CA09 | AG23: Sheffield | AH23: CA09
Z24: Liverpool | AA24: CA04 | AG24: Liverpool | AH24: CA04
A25: QQTT | B25: =$A25&Area1.code -> QQTTNW5 | C25: =IFERROR(VLOOKUP($B25,RAWDATA!$B:$AY,C$4,FALSE),"-") -> 5636.379579 | D25: =IFERROR(VLOOKUP($B25,RAWDATA!$B:$AY,D$4,FALSE),"-") -> 7419.863413 | G25: =$A25&Area2.code -> QQTTNW5 | H25: =IFERROR(VLOOKUP($G25,RAWDATA!$B:$AY,H$4,FALSE),"-") -> 5636.379579 | I25: =IFERROR(VLOOKUP($G25,RAWDATA!$B:$AY,I$4,FALSE),"-") -> 7419.863413 | K25: 0 | L25: 0 | N25: =IFERROR(D25-C25,"-") -> 1783.483834 | O25: =IFERROR(I25-H25,"-") -> 1783.483834 | P25: 0 | R25: 1.384084516 | S25: 1.384084516 | T25: 0 | Z25: Newcastle | AA25: CA06 | AG25: Newcastle | AH25: CA06
A26: Productivity | C26: =IFERROR(C38,"-") -> 88.44236658 | D26: =IFERROR(D38,"-") -> 87.62738688 | G26: =$A26&Area2.code -> ProductivityNW5 | H26: =IFERROR(H38,"-") -> 88.44236658 | I26: =IFERROR(I38,"-") -> 87.62738688 | K26: 0 | L26: 0 | N26: -0.8149796948 | O26: -0.8149796948 | P26: 0 | R26: -0.04627693908 | S26: -0.04627693908 | T26: 0 | Z26: Nottingham | AA26: CA08 | AG26: Nottingham | AH26: CA08
Z27: Newcastle | AA27: CA07 | AG27: Newcastle | AH27: CA07
A28: HHLDS | B28: =$A28&Area1.code -> HHLDSNW5 | C28: =IFERROR(VLOOKUP($B28,RAWDATA!$B:$AY,C$4,FALSE),"-") -> 119.1385144 | D28: =IFERROR(VLOOKUP($B28,RAWDATA!$B:$AY,D$4,FALSE),"-") -> 125.1544521 | G28: =$A28&Area2.code -> HHLDSNW5 | H28: =IFERROR(VLOOKUP($G28,RAWDATA!$B:$AY,H$4,FALSE),"-") -> 119.1385144 | I28: =IFERROR(VLOOKUP($G28,RAWDATA!$B:$AY,I$4,FALSE),"-") -> 125.1544521 | K28: 0 | L28: 0 | N28: =IFERROR(D28-C28,"-") -> 6.015937764 | O28: =IFERROR(I28-H28,"-") -> 6.015937764 | P28: 0 | R28: 0.2466125353 | S28: 0.2466125353 | T28: 0 | Z28: Greater London | AA28: GLONDON | AG28: Greater London | AH28: GLONDON
A29: Dwellall | B29: =$A29&Area1.code -> DwellallNW5 | C29: =IFERROR(VLOOKUP($B29,RAWDATA!$B:$AY,C$4,FALSE),"-") -> 123.4165517 | D29: =IFERROR(VLOOKUP($B29,RAWDATA!$B:$AY,D$4,FALSE),"-") -> 129.766462 | G29: =$A29&Area2.code -> DwellallNW5 | H29: =IFERROR(VLOOKUP($G29,RAWDATA!$B:$AY,H$4,FALSE),"-") -> 123.4165517 | I29: =IFERROR(VLOOKUP($G29,RAWDATA!$B:$AY,I$4,FALSE),"-") -> 129.766462 | K29: 0 | L29: 0 | N29: 6.349910354 | O29: 6.349910354 | P29: 0 | R29: 0.2511706876 | S29: 0.2511706876 | T29: 0 | Z29: Northern Powerhouse region | AA29: NPH | AG29: Northern Powerhouse region | AH29: NPH
G30: RER_APSCA01 | H30: =IFERROR(VLOOKUP($G30,RAWDATA!B6130:AY6134,H$4,FALSE),"-") -> -
C32: =Comparison!$L$6 -> 2017 | D32: =Comparison!$L$7 -> 2037 | H32: =Comparison!$L$6 -> 2017 | I32: =Comparison!$L$7 -> 2037
A33: Relative Productivity | B33: uk
A34: ETTT | B34: =$A34&B$33 -> ETTTuk | C34: =VLOOKUP($B34,RAWDATA!$B:$AY,C$4,FALSE) -> 34873.12 | D34: =VLOOKUP($B34,RAWDATA!$B:$AY,D$4,FALSE) -> 37579.25 | H34: =VLOOKUP($B34,RAWDATA!$B:$AY,H$4,FALSE) -> 34873.12 | I34: =VLOOKUP($B34,RAWDATA!$B:$AY,I$4,FALSE) -> 37579.25
A35: QQTT | B35: =$A35&B$33 -> QQTTuk | C35: =VLOOKUP($B35,RAWDATA!$B:$AY,C$4,FALSE) -> 1778261 | D35: =VLOOKUP($B35,RAWDATA!$B:$AY,D$4,FALSE) -> 2376112 | H35: =VLOOKUP($B35,RAWDATA!$B:$AY,H$4,FALSE) -> 1778261 | I35: =VLOOKUP($B35,RAWDATA!$B:$AY,I$4,FALSE) -> 2376112
A36: UK Productivity | C36: =C35/C34 -> 50.99231156 | D36: =D35/D34 -> 63.22936195 | H36: =H35/H34 -> 50.99231156 | I36: =I35/I34 -> 63.22936195
A37: City productivity | C37: =C25/C15 -> 45.09880711 | D37: =D25/D15 -> 55.40623762 | H37: =H25/H15 -> 45.09880711 | I37: =I25/I15 -> 55.40623762
A38: Relative productivity | C38: =(C37/C36)*100 -> 88.44236658 | D38: =(D37/D36)*100 -> 87.62738688 | H38: =(H37/H36)*100 -> 88.44236658 | I38: =(I37/I36)*100 -> 87.62738688
A43: Net migration average
D44: 2 | E44: 3 | F44: 4 | G44: 5 | H44: 6 | I44: 7 | J44: 8 | K44: 9 | L44: 10 | M44: 11 | N44: 12 | O44: 13 | P44: 14 | Q44: 15 | R44: 16 | S44: 17 | T44: 18 | U44: 19 | V44: 20 | W44: 21 | X44: 22 | Y44: 23 | Z44: 24 | AA44: 25 | AB44: 26 | AC44: 27 | AD44: 28 | AE44: 29 | AF44: 30 | AG44: 31 | AH44: 32 | AI44: 33 | AJ44: 34 | AK44: 35 | AL44: 36 | AM44: 37 | AN44: 38 | AO44: 39 | AP44: 40 | AQ44: 41 | AR44: 42 | AS44: 43 | AT44: 44 | AU44: 45 | AV44: 46 | AW44: 47
D45: 1991 | E45: 1992 | F45: 1993 | G45: 1994 | H45: 1995 | I45: 1996 | J45: 1997 | K45: 1998 | L45: 1999 | M45: 2000 | N45: 2001 | O45: 2002 | P45: 2003 | Q45: 2004 | R45: 2005 | S45: 2006 | T45: 2007 | U45: 2008 | V45: 2009 | W45: 2010 | X45: 2011 | Y45: 2012 | Z45: 2013 | AA45: 2014 | AB45: 2015 | AC45: 2016 | AD45: 2017 | AE45: 2018 | AF45: 2019 | AG45: 2020 | AH45: 2021 | AI45: 2022 | AJ45: 2023 | AK45: 2024 | AL45: 2025 | AM45: 2026 | AN45: 2027 | AO45: 2028 | AP45: 2029 | AQ45: 2030 | AR45: 2031 | AS45: 2032 | AT45: 2033 | AU45: 2034 | AV45: 2035 | AW45: 2036 | AY45: =Codes!AO2&"-"&RIGHT(Codes!AO3,2) -> 
A46: TMIG | B46: =$A46&Area1.code -> TMIGNW5 | D46: =IFERROR(VLOOKUP($B46,RAWDATA!$B:$AX,D$44,FALSE),"-") -> 0 | E46: =IFERROR(VLOOKUP($B46,RAWDATA!$B:$AX,E$44,FALSE),"-") -> -0.4426464902 | F46: =IFERROR(VLOOKUP($B46,RAWDATA!$B:$AX,F$44,FALSE),"-") -> -0.3424937526 | G46: =IFERROR(VLOOKUP($B46,RAWDATA!$B:$AX,G$44,FALSE),"-") -> -0.9164151874 | H46: =IFERROR(VLOOKUP($B46,RAWDATA!$B:$AX,H$44,FALSE),"-") -> -1.084767514 | I46: =IFERROR(VLOOKUP($B46,RAWDATA!$B:$AX,I$44,FALSE),"-") -> -1.098512856 | J46: =IFERROR(VLOOKUP($B46,RAWDATA!$B:$AX,J$44,FALSE),"-") -> -0.8407703873 | K46: =IFERROR(VLOOKUP($B46,RAWDATA!$B:$AX,K$44,FALSE),"-") -> 0.7770002392 | L46: =IFERROR(VLOOKUP($B46,RAWDATA!$B:$AX,L$44,FALSE),"-") -> -0.823515685 | M46: =IFERROR(VLOOKUP($B46,RAWDATA!$B:$AX,M$44,FALSE),"-") -> -0.6534215898 | N46: =IFERROR(VLOOKUP($B46,RAWDATA!$B:$AX,N$44,FALSE),"-") -> 0.7308160982 | O46: =IFERROR(VLOOKUP($B46,RAWDATA!$B:$AX,O$44,FALSE),"-") -> 0.6991871774 | P46: =IFERROR(VLOOKUP($B46,RAWDATA!$B:$AX,P$44,FALSE),"-") -> 1.011242572 | Q46: =IFERROR(VLOOKUP($B46,RAWDATA!$B:$AX,Q$44,FALSE),"-") -> 0.1081097107 | R46: =IFERROR(VLOOKUP($B46,RAWDATA!$B:$AX,R$44,FALSE),"-") -> -0.174594579 | S46: =IFERROR(VLOOKUP($B46,RAWDATA!$B:$AX,S$44,FALSE),"-") -> 0.9138552116 | T46: =IFERROR(VLOOKUP($B46,RAWDATA!$B:$AX,T$44,FALSE),"-") -> 0.524702854 | U46: =IFERROR(VLOOKUP($B46,RAWDATA!$B:$AX,U$44,FALSE),"-") -> 1.014162959 | V46: =IFERROR(VLOOKUP($B46,RAWDATA!$B:$AX,V$44,FALSE),"-") -> 1.154156043 | W46: =IFERROR(VLOOKUP($B46,RAWDATA!$B:$AX,W$44,FALSE),"-") -> 0.6907492756 | X46: =IFERROR(VLOOKUP($B46,RAWDATA!$B:$AX,X$44,FALSE),"-") -> 0.6974638833 | Y46: =IFERROR(VLOOKUP($B46,RAWDATA!$B:$AX,Y$44,FALSE),"-") -> 0.3669404277 | Z46: =IFERROR(VLOOKUP($B46,RAWDATA!$B:$AX,Z$44,FALSE),"-") -> -0.05401748915 | AA46: =IFERROR(VLOOKUP($B46,RAWDATA!$B:$AX,AA$44,FALSE),"-") -> -0.87505827 | AB46: =IFERROR(VLOOKUP($B46,RAWDATA!$B:$AX,AB$44,FALSE),"-") -> -0.08902952055 | AC46: =IFERROR(VLOOKUP($B46,RAWDATA!$B:$AX,AC$44,FALSE),"-") -> 0.4410420237 | AD46: =IFERROR(VLOOKUP($B46,RAWDATA!$B:$AX,AD$44,FALSE),"-") -> 0.091 | AE46: =IFERROR(VLOOKUP($B46,RAWDATA!$B:$AX,AE$44,FALSE),"-") -> -0.425 | AF46: =IFERROR(VLOOKUP($B46,RAWDATA!$B:$AX,AF$44,FALSE),"-") -> -0.08564909954 | AG46: =IFERROR(VLOOKUP($B46,RAWDATA!$B:$AX,AG$44,FALSE),"-") -> -0.3278172538 | AH46: =IFERROR(VLOOKUP($B46,RAWDATA!$B:$AX,AH$44,FALSE),"-") -> -0.5299949322 | AI46: =IFERROR(VLOOKUP($B46,RAWDATA!$B:$AX,AI$44,FALSE),"-") -> -0.5628556981 | AJ46: =IFERROR(VLOOKUP($B46,RAWDATA!$B:$AX,AJ$44,FALSE),"-") -> -0.5539834008 | AK46: =IFERROR(VLOOKUP($B46,RAWDATA!$B:$AX,AK$44,FALSE),"-") -> -0.5920967429 | AL46: =IFERROR(VLOOKUP($B46,RAWDATA!$B:$AX,AL$44,FALSE),"-") -> -0.6504381195 | AM46: =IFERROR(VLOOKUP($B46,RAWDATA!$B:$AX,AM$44,FALSE),"-") -> -0.6429064802 | AN46: =IFERROR(VLOOKUP($B46,RAWDATA!$B:$AX,AN$44,FALSE),"-") -> -0.6247065779 | AO46: =IFERROR(VLOOKUP($B46,RAWDATA!$B:$AX,AO$44,FALSE),"-") -> -0.6421760118 | AP46: =IFERROR(VLOOKUP($B46,RAWDATA!$B:$AX,AP$44,FALSE),"-") -> -0.6648889554 | AQ46: =IFERROR(VLOOKUP($B46,RAWDATA!$B:$AX,AQ$44,FALSE),"-") -> -0.6759753331 | AR46: =IFERROR(VLOOKUP($B46,RAWDATA!$B:$AX,AR$44,FALSE),"-") -> -0.6836380815 | AS46: =IFERROR(VLOOKUP($B46,RAWDATA!$B:$AX,AS$44,FALSE),"-") -> -0.6998471778 | AT46: =IFERROR(VLOOKUP($B46,RAWDATA!$B:$AX,AT$44,FALSE),"-") -> -0.7184975039 | AU46: =IFERROR(VLOOKUP($B46,RAWDATA!$B:$AX,AU$44,FALSE),"-") -> -0.7353952508 | AV46: =IFERROR(VLOOKUP($B46,RAWDATA!$B:$AX,AV$44,FALSE),"-") -> -0.7524632402 | AW46: =IFERROR(VLOOKUP($B46,RAWDATA!$B:$AX,AW$44,FALSE),"-") -> -0.7712855607 | AY46: =AVERAGE(INDIRECT(startyear&"46:"&endyear&"46")) -> 
A47: TMIG | B47: =$A47&Area1.code -> TMIGNW5 | D47: =IFERROR(VLOOKUP($B47,RAWDATA!$B:$AX,D$44,FALSE),"-") -> 0 | E47: =IFERROR(VLOOKUP($B47,RAWDATA!$B:$AX,E$44,FALSE),"-") -> -0.4426464902 | F47: =IFERROR(VLOOKUP($B47,RAWDATA!$B:$AX,F$44,FALSE),"-") -> -0.3424937526 | G47: =IFERROR(VLOOKUP($B47,RAWDATA!$B:$AX,G$44,FALSE),"-") -> -0.9164151874 | H47: =IFERROR(VLOOKUP($B47,RAWDATA!$B:$AX,H$44,FALSE),"-") -> -1.084767514 | I47: =IFERROR(VLOOKUP($B47,RAWDATA!$B:$AX,I$44,FALSE),"-") -> -1.098512856 | J47: =IFERROR(VLOOKUP($B47,RAWDATA!$B:$AX,J$44,FALSE),"-") -> -0.8407703873 | K47: =IFERROR(VLOOKUP($B47,RAWDATA!$B:$AX,K$44,FALSE),"-") -> 0.7770002392 | L47: =IFERROR(VLOOKUP($B47,RAWDATA!$B:$AX,L$44,FALSE),"-") -> -0.823515685 | M47: =IFERROR(VLOOKUP($B47,RAWDATA!$B:$AX,M$44,FALSE),"-") -> -0.6534215898 | N47: =IFERROR(VLOOKUP($B47,RAWDATA!$B:$AX,N$44,FALSE),"-") -> 0.7308160982 | O47: =IFERROR(VLOOKUP($B47,RAWDATA!$B:$AX,O$44,FALSE),"-") -> 0.6991871774 | P47: =IFERROR(VLOOKUP($B47,RAWDATA!$B:$AX,P$44,FALSE),"-") -> 1.011242572 | Q47: =IFERROR(VLOOKUP($B47,RAWDATA!$B:$AX,Q$44,FALSE),"-") -> 0.1081097107 | R47: =IFERROR(VLOOKUP($B47,RAWDATA!$B:$AX,R$44,FALSE),"-") -> -0.174594579 | S47: =IFERROR(VLOOKUP($B47,RAWDATA!$B:$AX,S$44,FALSE),"-") -> 0.9138552116 | T47: =IFERROR(VLOOKUP($B47,RAWDATA!$B:$AX,T$44,FALSE),"-") -> 0.524702854 | U47: =IFERROR(VLOOKUP($B47,RAWDATA!$B:$AX,U$44,FALSE),"-") -> 1.014162959 | V47: =IFERROR(VLOOKUP($B47,RAWDATA!$B:$AX,V$44,FALSE),"-") -> 1.154156043 | W47: =IFERROR(VLOOKUP($B47,RAWDATA!$B:$AX,W$44,FALSE),"-") -> 0.6907492756 | X47: =IFERROR(VLOOKUP($B47,RAWDATA!$B:$AX,X$44,FALSE),"-") -> 0.6974638833 | Y47: =IFERROR(VLOOKUP($B47,RAWDATA!$B:$AX,Y$44,FALSE),"-") -> 0.3669404277 | Z47: =IFERROR(VLOOKUP($B47,RAWDATA!$B:$AX,Z$44,FALSE),"-") -> -0.05401748915 | AA47: =IFERROR(VLOOKUP($B47,RAWDATA!$B:$AX,AA$44,FALSE),"-") -> -0.87505827 | AB47: =IFERROR(VLOOKUP($B47,RAWDATA!$B:$AX,AB$44,FALSE),"-") -> -0.08902952055 | AC47: =IFERROR(VLOOKUP($B47,RAWDATA!$B:$AX,AC$44,FALSE),"-") -> 0.4410420237 | AD47: =IFERROR(VLOOKUP($B47,RAWDATA!$B:$AX,AD$44,FALSE),"-") -> 0.091 | AE47: =IFERROR(VLOOKUP($B47,RAWDATA!$B:$AX,AE$44,FALSE),"-") -> -0.425 | AF47: =IFERROR(VLOOKUP($B47,RAWDATA!$B:$AX,AF$44,FALSE),"-") -> -0.08564909954 | AG47: =IFERROR(VLOOKUP($B47,RAWDATA!$B:$AX,AG$44,FALSE),"-") -> -0.3278172538 | AH47: =IFERROR(VLOOKUP($B47,RAWDATA!$B:$AX,AH$44,FALSE),"-") -> -0.5299949322 | AI47: =IFERROR(VLOOKUP($B47,RAWDATA!$B:$AX,AI$44,FALSE),"-") -> -0.5628556981 | AJ47: =IFERROR(VLOOKUP($B47,RAWDATA!$B:$AX,AJ$44,FALSE),"-") -> -0.5539834008 | AK47: =IFERROR(VLOOKUP($B47,RAWDATA!$B:$AX,AK$44,FALSE),"-") -> -0.5920967429 | AL47: =IFERROR(VLOOKUP($B47,RAWDATA!$B:$AX,AL$44,FALSE),"-") -> -0.6504381195 | AM47: =IFERROR(VLOOKUP($B47,RAWDATA!$B:$AX,AM$44,FALSE),"-") -> -0.6429064802 | AN47: =IFERROR(VLOOKUP($B47,RAWDATA!$B:$AX,AN$44,FALSE),"-") -> -0.6247065779 | AO47: =IFERROR(VLOOKUP($B47,RAWDATA!$B:$AX,AO$44,FALSE),"-") -> -0.6421760118 | AP47: =IFERROR(VLOOKUP($B47,RAWDATA!$B:$AX,AP$44,FALSE),"-") -> -0.6648889554 | AQ47: =IFERROR(VLOOKUP($B47,RAWDATA!$B:$AX,AQ$44,FALSE),"-") -> -0.6759753331 | AR47: =IFERROR(VLOOKUP($B47,RAWDATA!$B:$AX,AR$44,FALSE),"-") -> -0.6836380815 | AS47: =IFERROR(VLOOKUP($B47,RAWDATA!$B:$AX,AS$44,FALSE),"-") -> -0.6998471778 | AT47: =IFERROR(VLOOKUP($B47,RAWDATA!$B:$AX,AT$44,FALSE),"-") -> -0.7184975039 | AU47: =IFERROR(VLOOKUP($B47,RAWDATA!$B:$AX,AU$44,FALSE),"-") -> -0.7353952508 | AV47: =IFERROR(VLOOKUP($B47,RAWDATA!$B:$AX,AV$44,FALSE),"-") -> -0.7524632402 | AW47: =IFERROR(VLOOKUP($B47,RAWDATA!$B:$AX,AW$44,FALSE),"-") -> -0.7712855607 | AY47: =AVERAGE(INDIRECT(startyear&"47:"&endyear&"47")) -> 

Sheet chart_data (hidden)
D1: 2017 | E1: 2037 | H1: 2017 | I1: 2037 | J1: GM change | M1: Bolton | N1: NW5 | O1: Bolton | P1: =VLOOKUP(city,M1:N20,2,FALSE) -> NW5
A2: Key Indicators | D2: =D1-1989 -> 28 | E2: =E1-1989 -> 48 | H2: =H1-1989 -> 28 | I2: =I1-1989 -> 48 | M2: Bury | N2: NW7
A3: Population (000s) | B3: POPL | C3: =B3&city_code -> POPLNW5 | D3: =IFERROR(VLOOKUP($C3,RAWDATA!$B$3:$AX$11384,chart_data!D$2,FALSE),"-") -> 284.7860907 | E3: =IFERROR(VLOOKUP($C3,RAWDATA!$B$3:$AX$11384,chart_data!E$2,FALSE),"-") -> 290.7217943 | G3: POPLLEP15 | H3: =IFERROR(VLOOKUP($G3,RAWDATA!$B$3:$AX$11384,chart_data!H$2,FALSE),"-") -> 2799.000962 | I3: =IFERROR(VLOOKUP($G3,RAWDATA!$B$3:$AX$11384,chart_data!I$2,FALSE),"-") -> 2983.857078 | J3: =ROUND(((I3-H3)/H3)*100,1)&" (%)" -> 6.6 (%) | M3: Manchester | N3: NW23
A4: Employees total (000s) | B4: EETT | C4: EETTNW5 | D4: =IFERROR(VLOOKUP($C4,RAWDATA!$B$3:$AX$11384,chart_data!D$2,FALSE),"-") -> 110.1680598 | E4: =IFERROR(VLOOKUP($C4,RAWDATA!$B$3:$AX$11384,chart_data!E$2,FALSE),"-") -> 116.4255454 | G4: EETTLEP15 | H4: =IFERROR(VLOOKUP($G4,RAWDATA!$B$3:$AX$11384,chart_data!H$2,FALSE),"-") -> 1298.16365 | I4: =IFERROR(VLOOKUP($G4,RAWDATA!$B$3:$AX$11384,chart_data!I$2,FALSE),"-") -> 1448.201593 | J4: =ROUND(((I4-H4)/H4)*100,1)&" (%)" -> 11.6 (%) | M4: Oldham | N4: NW24
A5: Self-employed total (000s) | B5: SET | C5: SETNW5 | D5: =IFERROR(VLOOKUP($C5,RAWDATA!$B$3:$AX$11384,chart_data!D$2,FALSE),"-") -> 14.80762415 | E5: =IFERROR(VLOOKUP($C5,RAWDATA!$B$3:$AX$11384,chart_data!E$2,FALSE),"-") -> 17.48917277 | G5: SETLEP15 | H5: =IFERROR(VLOOKUP($G5,RAWDATA!$B$3:$AX$11384,chart_data!H$2,FALSE),"-") -> 150.1395534 | I5: =IFERROR(VLOOKUP($G5,RAWDATA!$B$3:$AX$11384,chart_data!I$2,FALSE),"-") -> 183.099869 | J5: 22 (%) | M5: Rochdale | N5: NW28
A6: Employment total (000s) | B6: ETTT | C6: ETTTNW5 | D6: =IFERROR(VLOOKUP($C6,RAWDATA!$B$3:$AX$11384,chart_data!D$2,FALSE),"-") -> 124.9784626 | E6: =IFERROR(VLOOKUP($C6,RAWDATA!$B$3:$AX$11384,chart_data!E$2,FALSE),"-") -> 133.9174745 | G6: ETTTLEP15 | H6: =IFERROR(VLOOKUP($G6,RAWDATA!$B$3:$AX$11384,chart_data!H$2,FALSE),"-") -> 1448.383785 | I6: =IFERROR(VLOOKUP($G6,RAWDATA!$B$3:$AX$11384,chart_data!I$2,FALSE),"-") -> 1631.381396 | J6: 12.6 (%) | M6: Salford | N6: NW30
A7: Unemployment level (000s) | B7: UNMPILO | C7: UNMPILONW5 | D7: =IFERROR(VLOOKUP($C7,RAWDATA!$B$3:$AX$11384,chart_data!D$2,FALSE),"-") -> 6.800399801 | E7: =IFERROR(VLOOKUP($C7,RAWDATA!$B$3:$AX$11384,chart_data!E$2,FALSE),"-") -> 5.999543935 | G7: UNMPILOLEP15 | H7: =IFERROR(VLOOKUP($G7,RAWDATA!$B$3:$AX$11384,chart_data!H$2,FALSE),"-") -> 63.34618993 | I7: =IFERROR(VLOOKUP($G7,RAWDATA!$B$3:$AX$11384,chart_data!I$2,FALSE),"-") -> 54.30780013 | J7: =ROUND(I7-H7,1)&" (000s)" -> -9 (000s) | M7: Stockport | N7: NW35
A8: Residence based employment (000s) | B8: RET | C8: RETNW5 | D8: =IFERROR(VLOOKUP($C8,RAWDATA!$B$3:$AX$11384,chart_data!D$2,FALSE),"-") -> 132.7497466 | E8: =IFERROR(VLOOKUP($C8,RAWDATA!$B$3:$AX$11384,chart_data!E$2,FALSE),"-") -> 139.0370174 | G8: RETLEP15 | H8: =IFERROR(VLOOKUP($G8,RAWDATA!$B$3:$AX$11384,chart_data!H$2,FALSE),"-") -> 1355.814532 | I8: =IFERROR(VLOOKUP($G8,RAWDATA!$B$3:$AX$11384,chart_data!I$2,FALSE),"-") -> 1483.124189 | J8: =ROUND(I8-H8,1)&" (000s)" -> 127.3 (000s) | M8: Tameside | N8: NW36
A9: APS residence based employment rate (%) | B9: RER_APS | C9: RER_APSNW5 | D9: =IFERROR(VLOOKUP($C9,RAWDATA!$B$3:$AX$11384,chart_data!D$2,FALSE),"-") -> 70.8 | E9: =IFERROR(VLOOKUP($C9,RAWDATA!$B$3:$AX$11384,chart_data!E$2,FALSE),"-") -> 73.52794273 | G9: RER_APSLEP15 | H9: =IFERROR(VLOOKUP($G9,RAWDATA!$B$3:$AX$11384,chart_data!H$2,FALSE),"-") -> 71.98025318 | I9: =IFERROR(VLOOKUP($G9,RAWDATA!$B$3:$AX$11384,chart_data!I$2,FALSE),"-") -> 76.80422086 | J9: =ROUND(I9-H9,1)&" (pp)" -> 4.8 (pp) | M9: Trafford | N9: NW37
A10: Net commuting (000s) | B10: NCOM | C10: NCOMNW5 | D10: =IFERROR(VLOOKUP($C10,RAWDATA!$B$3:$AX$11384,chart_data!D$2,FALSE),"-") -> -8.360632581 | E10: =IFERROR(VLOOKUP($C10,RAWDATA!$B$3:$AX$11384,chart_data!E$2,FALSE),"-") -> -6.186178284 | G10: NCOMLEP15 | H10: =IFERROR(VLOOKUP($G10,RAWDATA!$B$3:$AX$11384,chart_data!H$2,FALSE),"-") -> 38.39492701 | I10: =IFERROR(VLOOKUP($G10,RAWDATA!$B$3:$AX$11384,chart_data!I$2,FALSE),"-") -> 82.89746979 | J10: =ROUND(I10-H10,1)&" (000s)" -> 44.5 (000s) | M10: Wigan | N10: NW41
A11: GVA total (£m, 2013) | B11: QQTT | C11: QQTTNW5 | D11: =IFERROR(VLOOKUP($C11,RAWDATA!$B$3:$AX$11384,chart_data!D$2,FALSE),"-") -> 5636.379579 | E11: =IFERROR(VLOOKUP($C11,RAWDATA!$B$3:$AX$11384,chart_data!E$2,FALSE),"-") -> 7419.863413 | G11: QQTTLEP15 | H11: =IFERROR(VLOOKUP($G11,RAWDATA!$B$3:$AX$11384,chart_data!H$2,FALSE),"-") -> 65568.14623 | I11: =IFERROR(VLOOKUP($G11,RAWDATA!$B$3:$AX$11384,chart_data!I$2,FALSE),"-") -> 89441.11921 | J11: =ROUND((((I11/H11)^(1/($I$1-$H$1))-1)*100),1)&" (% pa)" -> 1.6 (% pa) | M11: Greater Manchester | N11: LEP15
A12: Households (000s) | B12: Dwellall | C12: DwellallNW5 | D12: =IFERROR(VLOOKUP($C12,RAWDATA!$B$3:$AX$11384,chart_data!D$2,FALSE),"-") -> 123.4165517 | E12: =IFERROR(VLOOKUP($C12,RAWDATA!$B$3:$AX$11384,chart_data!E$2,FALSE),"-") -> 129.766462 | G12: dwellalllep15 | H12: =IFERROR(VLOOKUP($G12,RAWDATA!$B$3:$AX$11384,chart_data!H$2,FALSE),"-") -> 1203.316413 | I12: =IFERROR(VLOOKUP($G12,RAWDATA!$B$3:$AX$11384,chart_data!I$2,FALSE),"-") -> 1322.537047 | J12: =ROUND(I12-H12,1)&" (000s)" -> 119.2 (000s) | M12: Liverpool LEP | N12: LEP22
M13: Cheshire and Warrington LEP | N13: LEP03
M14: Lancashire LEP | N14: LEP19
M15: Cumbria LEP | N15: LEP07
M16: North West | N16: NW
M17: UK | N17: UK
A19: GVA outllook | C19: QQTT | D19: LEP15 | G19: =city -> Bolton | H19: GM | I19: pp diff
A20: 2009 | B20: =A20-1989 -> 20 | C20: =C$19&city_code -> QQTTNW5 | D20: =$C$19&$D$19 -> QQTTLEP15 | E20: =VLOOKUP($C20,RAWDATA!$B$3:$AX$11384,$B20,FALSE) -> 5018.158517 | F20: =VLOOKUP($D20,RAWDATA!$B$3:$AX$11384,$B20,FALSE) -> 58268.13204
A21: 2010 | B21: 21 | C21: QQTTNW5 | D21: =$C$19&$D$19 -> QQTTLEP15 | E21: =VLOOKUP($C21,RAWDATA!$B$3:$AX$11384,$B21,FALSE) -> 5068.575371 | F21: =VLOOKUP($D21,RAWDATA!$B$3:$AX$11384,$B21,FALSE) -> 58793.32421 | G21: =((E21-E20)/E20)*100 -> 1.004688347 | H21: =((F21-F20)/F20)*100 -> 0.9013368881 | I21: =G21-H21 -> 0.1033514593
A22: 2011 | B22: 22 | C22: QQTTNW5 | D22: QQTTLEP15 | E22: =VLOOKUP($C22,RAWDATA!$B$3:$AX$11384,$B22,FALSE) -> 4986.773393 | F22: =VLOOKUP($D22,RAWDATA!$B$3:$AX$11384,$B22,FALSE) -> 58384.01251 | G22: =((E22-E21)/E21)*100 -> -1.613904738 | H22: -0.6961873614 | I22: =G22-H22 -> -0.9177173767
A23: 2012 | B23: 23 | C23: QQTTNW5 | D23: QQTTLEP15 | E23: =VLOOKUP($C23,RAWDATA!$B$3:$AX$11384,$B23,FALSE) -> 4974.739242 | F23: =VLOOKUP($D23,RAWDATA!$B$3:$AX$11384,$B23,FALSE) -> 59607.16182 | G23: -0.2413213899 | H23: 2.095007263 | I23: -2.336328653
A24: 2013 | B24: 24 | C24: QQTTNW5 | D24: QQTTLEP15 | E24: =VLOOKUP($C24,RAWDATA!$B$3:$AX$11384,$B24,FALSE) -> 5025.617211 | F24: =VLOOKUP($D24,RAWDATA!$B$3:$AX$11384,$B24,FALSE) -> 60326.0026 | G24: 1.022726359 | H24: 1.205963785 | I24: -0.1832374253
A25: 2014 | B25: 25 | C25: QQTTNW5 | D25: QQTTLEP15 | E25: =VLOOKUP($C25,RAWDATA!$B$3:$AX$11384,$B25,FALSE) -> 5048.74081 | F25: =VLOOKUP($D25,RAWDATA!$B$3:$AX$11384,$B25,FALSE) -> 60854.8137 | G25: 0.4601145984 | H25: 0.8765889978 | I25: -0.4164743994
A26: 2015 | B26: 26 | C26: QQTTNW5 | D26: QQTTLEP15 | E26: =VLOOKUP($C26,RAWDATA!$B$3:$AX$11384,$B26,FALSE) -> 5149.986472 | F26: =VLOOKUP($D26,RAWDATA!$B$3:$AX$11384,$B26,FALSE) -> 62934.47825 | G26: 2.005364621 | H26: 3.417419948 | I26: -1.412055327
A27: 2016 | B27: =A27-1989 -> 27 | C27: QQTTNW5 | D27: QQTTLEP15 | E27: =VLOOKUP($C27,RAWDATA!$B$3:$AX$11384,$B27,FALSE) -> 5319.772873 | F27: =VLOOKUP($D27,RAWDATA!$B$3:$AX$11384,$B27,FALSE) -> 64177.12865 | G27: 3.296831985 | H27: 1.9745145 | I27: 1.322317485
A28: 2017 | B28: =A28-1989 -> 28 | C28: QQTTNW5 | D28: QQTTLEP15 | E28: =VLOOKUP($C28,RAWDATA!$B$3:$AX$11384,$B28,FALSE) -> 5636.379579 | F28: =VLOOKUP($D28,RAWDATA!$B$3:$AX$11384,$B28,FALSE) -> 65568.14623 | G28: =((E28-E27)/E27)*100 -> 5.951507967 | H28: =((F28-F27)/F27)*100 -> 2.167466226 | I28: =G28-H28 -> 3.784041741
A29: 2037 | B29: =A29-1989 -> 48 | C29: QQTTNW5 | D29: QQTTLEP15 | E29: =VLOOKUP($C29,RAWDATA!$B$3:$AX$11384,$B29,FALSE) -> 7419.863413 | F29: =VLOOKUP($D29,RAWDATA!$B$3:$AX$11384,$B29,FALSE) -> 89441.11921 | G29: =(((E29/E28)^(1/($A$29-$A$28))-1)*100) -> 1.384084516 | H29: =(((F29/F28)^(1/($A$29-$A$28))-1)*100) -> 1.564565751 | I29: =G29-H29 -> -0.1804812349
A33: Employment Outlook | C33: 1991 | D33: 1992 | E33: 1993 | F33: 1994 | G33: 1995 | H33: 1996 | I33: 1997 | J33: 1998 | K33: 1999 | L33: 2000 | M33: 2001 | N33: 2002 | O33: 2003 | P33: 2004 | Q33: 2005 | R33: 2006 | S33: 2007 | T33: 2008 | U33: 2009 | V33: 2010 | W33: 2011 | X33: 2012 | Y33: 2013 | Z33: 2014 | AA33: 2015 | AB33: 2016 | AC33: 2017 | AD33: 2018 | AE33: 2019 | AF33: 2020 | AG33: 2021 | AH33: 2022 | AI33: 2023 | AJ33: 2024 | AK33: 2025 | AL33: 2026 | AM33: 2027 | AN33: 2028 | AO33: 2029 | AP33: 2030 | AQ33: 2031 | AR33: 2032 | AS33: 2033 | AT33: 2034 | AU33: 2035 | AV33: 2036 | AW33: 2037 | AX33: 2038
A34: ETTT | B34: =A34&city_code -> ETTTNW5 | C34: =VLOOKUP($B34,RAWDATA!$B:$AX,RAWDATA!C$1,FALSE) -> 116.7730824 | D34: =VLOOKUP($B34,RAWDATA!$B:$AX,RAWDATA!D$1,FALSE) -> 114.46505 | E34: =VLOOKUP($B34,RAWDATA!$B:$AX,RAWDATA!E$1,FALSE) -> 113.6446007 | F34: =VLOOKUP($B34,RAWDATA!$B:$AX,RAWDATA!F$1,FALSE) -> 113.9000325 | G34: =VLOOKUP($B34,RAWDATA!$B:$AX,RAWDATA!G$1,FALSE) -> 115.4666137 | H34: =VLOOKUP($B34,RAWDATA!$B:$AX,RAWDATA!H$1,FALSE) -> 119.5825045 | I34: =VLOOKUP($B34,RAWDATA!$B:$AX,RAWDATA!I$1,FALSE) -> 118.3148827 | J34: =VLOOKUP($B34,RAWDATA!$B:$AX,RAWDATA!J$1,FALSE) -> 119.6263578 | K34: =VLOOKUP($B34,RAWDATA!$B:$AX,RAWDATA!K$1,FALSE) -> 123.7122264 | L34: =VLOOKUP($B34,RAWDATA!$B:$AX,RAWDATA!L$1,FALSE) -> 121.1275587 | M34: =VLOOKUP($B34,RAWDATA!$B:$AX,RAWDATA!M$1,FALSE) -> 120.5923125 | N34: =VLOOKUP($B34,RAWDATA!$B:$AX,RAWDATA!N$1,FALSE) -> 116.4292003 | O34: =VLOOKUP($B34,RAWDATA!$B:$AX,RAWDATA!O$1,FALSE) -> 124.3271386 | P34: =VLOOKUP($B34,RAWDATA!$B:$AX,RAWDATA!P$1,FALSE) -> 121.7242882 | Q34: =VLOOKUP($B34,RAWDATA!$B:$AX,RAWDATA!Q$1,FALSE) -> 126.7019072 | R34: =VLOOKUP($B34,RAWDATA!$B:$AX,RAWDATA!R$1,FALSE) -> 120.5107779 | S34: =VLOOKUP($B34,RAWDATA!$B:$AX,RAWDATA!S$1,FALSE) -> 122.2788261 | T34: =VLOOKUP($B34,RAWDATA!$B:$AX,RAWDATA!T$1,FALSE) -> 124.2588693 | U34: =VLOOKUP($B34,RAWDATA!$B:$AX,RAWDATA!U$1,FALSE) -> 118.6930141 | V34: =VLOOKUP($B34,RAWDATA!$B:$AX,RAWDATA!V$1,FALSE) -> 116.3297193 | W34: =VLOOKUP($B34,RAWDATA!$B:$AX,RAWDATA!W$1,FALSE) -> 116.1986466 | X34: =VLOOKUP($B34,RAWDATA!$B:$AX,RAWDATA!X$1,FALSE) -> 114.433764 | Y34: =VLOOKUP($B34,RAWDATA!$B:$AX,RAWDATA!Y$1,FALSE) -> 118.9858673 | Z34: =VLOOKUP($B34,RAWDATA!$B:$AX,RAWDATA!Z$1,FALSE) -> 120.1956443 | AA34: =VLOOKUP($B34,RAWDATA!$B:$AX,RAWDATA!AA$1,FALSE) -> 118.5713112 | AB34: =VLOOKUP($B34,RAWDATA!$B:$AX,RAWDATA!AB$1,FALSE) -> 122.2498606 | AC34: =VLOOKUP($B34,RAWDATA!$B:$AX,RAWDATA!AC$1,FALSE) -> 124.9784626 | AD34: =VLOOKUP($B34,RAWDATA!$B:$AX,RAWDATA!AD$1,FALSE) -> 128.7544677 | AE34: =VLOOKUP($B34,RAWDATA!$B:$AX,RAWDATA!AE$1,FALSE) -> 130.9905088 | AF34: =VLOOKUP($B34,RAWDATA!$B:$AX,RAWDATA!AF$1,FALSE) -> 131.8468017 | AG34: =VLOOKUP($B34,RAWDATA!$B:$AX,RAWDATA!AG$1,FALSE) -> 132.891016 | AH34: =VLOOKUP($B34,RAWDATA!$B:$AX,RAWDATA!AH$1,FALSE) -> 133.6673242 | AI34: =VLOOKUP($B34,RAWDATA!$B:$AX,RAWDATA!AI$1,FALSE) -> 134.2798733 | AJ34: =VLOOKUP($B34,RAWDATA!$B:$AX,RAWDATA!AJ$1,FALSE) -> 134.6705087 | AK34: =VLOOKUP($B34,RAWDATA!$B:$AX,RAWDATA!AK$1,FALSE) -> 134.7715241 | AL34: =VLOOKUP($B34,RAWDATA!$B:$AX,RAWDATA!AL$1,FALSE) -> 134.8024093 | AM34: =VLOOKUP($B34,RAWDATA!$B:$AX,RAWDATA!AM$1,FALSE) -> 134.8206682 | AN34: =VLOOKUP($B34,RAWDATA!$B:$AX,RAWDATA!AN$1,FALSE) -> 134.841207 | AO34: =VLOOKUP($B34,RAWDATA!$B:$AX,RAWDATA!AO$1,FALSE) -> 134.860464 | AP34: =VLOOKUP($B34,RAWDATA!$B:$AX,RAWDATA!AP$1,FALSE) -> 134.8667799 | AQ34: =VLOOKUP($B34,RAWDATA!$B:$AX,RAWDATA!AQ$1,FALSE) -> 134.7644137 | AR34: =VLOOKUP($B34,RAWDATA!$B:$AX,RAWDATA!AR$1,FALSE) -> 134.6099577 | AS34: =VLOOKUP($B34,RAWDATA!$B:$AX,RAWDATA!AS$1,FALSE) -> 134.4552564 | AT34: =VLOOKUP($B34,RAWDATA!$B:$AX,RAWDATA!AT$1,FALSE) -> 134.3011172 | AU34: =VLOOKUP($B34,RAWDATA!$B:$AX,RAWDATA!AU$1,FALSE) -> 134.162425 | AV34: =VLOOKUP($B34,RAWDATA!$B:$AX,RAWDATA!AV$1,FALSE) -> 134.0361863 | AW34: =VLOOKUP($B34,RAWDATA!$B:$AX,RAWDATA!AW$1,FALSE) -> 133.9174745 | AX34: =VLOOKUP($B34,RAWDATA!$B:$AX,RAWDATA!AX$1,FALSE) -> 133.7961526
C35: Year end
A36: Unemployment | C36: 2004-12-01 | D36: 2005-03-01 | E36: 2005-06-01 | F36: 2005-09-01 | G36: 2005-12-01 | H36: 2006-03-01 | I36: 2006-06-01 | J36: 2006-09-01 | K36: 2006-12-01 | L36: 2007-03-01 | M36: 2007-06-01 | N36: 2007-09-01 | O36: 2007-12-01 | P36: 2008-03-01 | Q36: 2008-06-01 | R36: 2008-09-01 | S36: 2008-12-01 | T36: 2009-03-01 | U36: 2009-06-01 | V36: 2009-09-01 | W36: 2009-12-01 | X36: 2010-03-01 | Y36: 2010-06-01 | Z36: 2010-09-01 | AA36: 2010-12-01 | AB36: 2011-03-01 | AC36: 2011-06-01 | AD36: 2011-09-01 | AE36: 2011-12-01 | AF36: 2012-03-01 | AG36: 2012-06-01 | AH36: 2012-09-01 | AI36: 2012-12-01 | AJ36: 2013-03-01 | AK36: 2013-06-01 | AL36: 2013-09-01 | AM36: 2013-12-01 | AN36: 2014-03-01 | AO36: 2014-06-01 | AP36: 2014-09-01 | AQ36: 2014-12-01 | AR36: 2015-03-01 | AS36: 2015-06-01 | AT36: 2015-09-01 | AU36: 2015-12-01 | AV36: 2016-03-01 | AW36: 2016-06-01 | AX36: 2016-09-01 | AY36: 2016-12-01 | AZ36: 2017-03-01 | BA36: 2017-06-01 | BB36: 2017-09-01 | BC36: 2017-12-01 | BD36: 2018-03-01 | BE36: 2018-06-01 | BF36: 2018-09-01 | BG36: 2018-12-01 | BH36: 2019-03-01 | BI36: 2019-06-01 | BJ36: 2019-09-01 | BK36: 2019-12-01
B37: =city_code -> NW5 | C37: =VLOOKUP($B37,NOMIS!$A$3:$CC$50,NOMIS!C$1,FALSE)/1000 -> 5.1 | D37: =VLOOKUP($B37,NOMIS!$A$3:$CC$50,NOMIS!D$1,FALSE)/1000 -> 4.7 | E37: =VLOOKUP($B37,NOMIS!$A$3:$CC$50,NOMIS!E$1,FALSE)/1000 -> 5.3 | F37: =VLOOKUP($B37,NOMIS!$A$3:$CC$50,NOMIS!F$1,FALSE)/1000 -> 5.8 | G37: =VLOOKUP($B37,NOMIS!$A$3:$CC$50,NOMIS!G$1,FALSE)/1000 -> 7.2 | H37: =VLOOKUP($B37,NOMIS!$A$3:$CC$50,NOMIS!H$1,FALSE)/1000 -> 7.2 | I37: =VLOOKUP($B37,NOMIS!$A$3:$CC$50,NOMIS!I$1,FALSE)/1000 -> 6.8 | J37: =VLOOKUP($B37,NOMIS!$A$3:$CC$50,NOMIS!J$1,FALSE)/1000 -> 6.5 | K37: =VLOOKUP($B37,NOMIS!$A$3:$CC$50,NOMIS!K$1,FALSE)/1000 -> 6 | L37: =VLOOKUP($B37,NOMIS!$A$3:$CC$50,NOMIS!L$1,FALSE)/1000 -> 6.8 | M37: =VLOOKUP($B37,NOMIS!$A$3:$CC$50,NOMIS!M$1,FALSE)/1000 -> 7.2 | N37: =VLOOKUP($B37,NOMIS!$A$3:$CC$50,NOMIS!N$1,FALSE)/1000 -> 7.3 | O37: =VLOOKUP($B37,NOMIS!$A$3:$CC$50,NOMIS!O$1,FALSE)/1000 -> 7.1 | P37: =VLOOKUP($B37,NOMIS!$A$3:$CC$50,NOMIS!P$1,FALSE)/1000 -> 7.6 | Q37: =VLOOKUP($B37,NOMIS!$A$3:$CC$50,NOMIS!Q$1,FALSE)/1000 -> 7.1 | R37: =VLOOKUP($B37,NOMIS!$A$3:$CC$50,NOMIS!R$1,FALSE)/1000 -> 8.6 | S37: =VLOOKUP($B37,NOMIS!$A$3:$CC$50,NOMIS!S$1,FALSE)/1000 -> 10.3 | T37: =VLOOKUP($B37,NOMIS!$A$3:$CC$50,NOMIS!T$1,FALSE)/1000 -> 9.9 | U37: =VLOOKUP($B37,NOMIS!$A$3:$CC$50,NOMIS!U$1,FALSE)/1000 -> 9.8 | V37: =VLOOKUP($B37,NOMIS!$A$3:$CC$50,NOMIS!V$1,FALSE)/1000 -> 10.6 | W37: =VLOOKUP($B37,NOMIS!$A$3:$CC$50,NOMIS!W$1,FALSE)/1000 -> 11 | X37: =VLOOKUP($B37,NOMIS!$A$3:$CC$50,NOMIS!X$1,FALSE)/1000 -> 13.3 | Y37: =VLOOKUP($B37,NOMIS!$A$3:$CC$50,NOMIS!Y$1,FALSE)/1000 -> 13.6 | Z37: =VLOOKUP($B37,NOMIS!$A$3:$CC$50,NOMIS!Z$1,FALSE)/1000 -> 13.1 | AA37: =VLOOKUP($B37,NOMIS!$A$3:$CC$50,NOMIS!AA$1,FALSE)/1000 -> 11.7 | AB37: =VLOOKUP($B37,NOMIS!$A$3:$CC$50,NOMIS!AB$1,FALSE)/1000 -> 9.1 | AC37: =VLOOKUP($B37,NOMIS!$A$3:$CC$50,NOMIS!AC$1,FALSE)/1000 -> 9.4 | AD37: =VLOOKUP($B37,NOMIS!$A$3:$CC$50,NOMIS!AD$1,FALSE)/1000 -> 9.9 | AE37: =VLOOKUP($B37,NOMIS!$A$3:$CC$50,NOMIS!AE$1,FALSE)/1000 -> 12.1 | AF37: =VLOOKUP($B37,NOMIS!$A$3:$CC$50,NOMIS!AF$1,FALSE)/1000 -> 12.9 | AG37: =VLOOKUP($B37,NOMIS!$A$3:$CC$50,NOMIS!AG$1,FALSE)/1000 -> 13.4 | AH37: =VLOOKUP($B37,NOMIS!$A$3:$CC$50,NOMIS!AH$1,FALSE)/1000 -> 12.9 | AI37: =VLOOKUP($B37,NOMIS!$A$3:$CC$50,NOMIS!AI$1,FALSE)/1000 -> 11.4 | AJ37: =VLOOKUP($B37,NOMIS!$A$3:$CC$50,NOMIS!AJ$1,FALSE)/1000 -> 12.3 | AK37: =VLOOKUP($B37,NOMIS!$A$3:$CC$50,NOMIS!AK$1,FALSE)/1000 -> 11.7 | AL37: =VLOOKUP($B37,NOMIS!$A$3:$CC$50,NOMIS!AL$1,FALSE)/1000 -> 13.3 | AM37: =VLOOKUP($B37,NOMIS!$A$3:$CC$50,NOMIS!AM$1,FALSE)/1000 -> 13.8 | AN37: =VLOOKUP($B37,NOMIS!$A$3:$CC$50,NOMIS!AN$1,FALSE)/1000 -> 12.4 | AO37: =VLOOKUP($B37,NOMIS!$A$3:$CC$50,NOMIS!AO$1,FALSE)/1000 -> 12.3 | AP37: =VLOOKUP($B37,NOMIS!$A$3:$CC$50,NOMIS!AP$1,FALSE)/1000 -> 9.9 | AQ37: =VLOOKUP($B37,NOMIS!$A$3:$CC$50,NOMIS!AQ$1,FALSE)/1000 -> 8.1 | AR37: =VLOOKUP($B37,NOMIS!$A$3:$CC$50,NOMIS!AR$1,FALSE)/1000 -> 8.3 | AS37: =VLOOKUP($B37,NOMIS!$A$3:$CC$50,NOMIS!AS$1,FALSE)/1000 -> 8.1 | AT37: =VLOOKUP($B37,NOMIS!$A$3:$CC$50,NOMIS!AT$1,FALSE)/1000 -> 8.8 | AU37: =VLOOKUP($B37,NOMIS!$A$3:$CC$50,NOMIS!AU$1,FALSE)/1000 -> 9.2 | AV37: =VLOOKUP($B37,NOMIS!$A$3:$CC$50,NOMIS!AV$1,FALSE)/1000 -> 8.6 | AW37: =VLOOKUP($B37,NOMIS!$A$3:$CC$50,NOMIS!AW$1,FALSE)/1000 -> 8.6 | AX37: =VLOOKUP($B37,NOMIS!$A$3:$CC$50,NOMIS!AX$1,FALSE)/1000 -> 7.7 | AY37: =VLOOKUP($B37,NOMIS!$A$3:$CC$50,NOMIS!AY$1,FALSE)/1000 -> 8 | AZ37: =VLOOKUP($B37,NOMIS!$A$3:$CC$50,NOMIS!AZ$1,FALSE)/1000 -> 6.6 | BA37: =VLOOKUP($B37,NOMIS!$A$3:$CC$50,NOMIS!BA$1,FALSE)/1000 -> 7.1 | BB37: =VLOOKUP($B37,NOMIS!$A$3:$CC$50,NOMIS!BB$1,FALSE)/1000 -> 7.1 | BC37: =VLOOKUP($B37,NOMIS!$A$3:$CC$50,NOMIS!BC$1,FALSE)/1000 -> 7.3 | BD37: =VLOOKUP($B37,NOMIS!$A$3:$CC$50,NOMIS!BD$1,FALSE)/1000 -> 8.9 | BE37: =VLOOKUP($B37,NOMIS!$A$3:$CC$50,NOMIS!BE$1,FALSE)/1000 -> 8.2 | BF37: =VLOOKUP($B37,NOMIS!$A$3:$CC$50,NOMIS!BF$1,FALSE)/1000 -> 7.8 | BG37: =VLOOKUP($B37,NOMIS!$A$3:$CC$50,NOMIS!BG$1,FALSE)/1000 -> 6.7 | BH37: =VLOOKUP($B37,NOMIS!$A$3:$CC$50,NOMIS!BH$1,FALSE)/1000 -> 5.9
A40: Migration | B40: Natural increase | C40: 1991 | D40: 1992 | E40: 1993 | F40: 1994 | G40: 1995 | H40: 1996 | I40: 1997 | J40: 1998 | K40: 1999 | L40: 2000 | M40: 2001 | N40: 2002 | O40: 2003 | P40: 2004 | Q40: 2005 | R40: 2006 | S40: 2007 | T40: 2008 | U40: 2009 | V40: 2010 | W40: 2011 | X40: 2012 | Y40: 2013 | Z40: 2014 | AA40: 2015 | AB40: 2016 | AC40: 2017 | AD40: 2018 | AE40: 2019 | AF40: 2020 | AG40: 2021 | AH40: 2022 | AI40: 2023 | AJ40: 2024 | AK40: 2025 | AL40: 2026 | AM40: 2027 | AN40: 2028 | AO40: 2029 | AP40: 2030 | AQ40: 2031 | AR40: 2032 | AS40: 2033 | AT40: 2034 | AU40: 2035 | AV40: 2036 | AW40: 2037 | AX40: 2038
A41: TMIG | B41: =A41&city_code -> TMIGNW5 | C41: =VLOOKUP($B41,RAWDATA!$B:$AX,RAWDATA!C$1,FALSE) -> 0 | D41: =VLOOKUP($B41,RAWDATA!$B:$AX,RAWDATA!D$1,FALSE) -> -0.4426464902 | E41: =VLOOKUP($B41,RAWDATA!$B:$AX,RAWDATA!E$1,FALSE) -> -0.3424937526 | F41: =VLOOKUP($B41,RAWDATA!$B:$AX,RAWDATA!F$1,FALSE) -> -0.9164151874 | G41: =VLOOKUP($B41,RAWDATA!$B:$AX,RAWDATA!G$1,FALSE) -> -1.084767514 | H41: =VLOOKUP($B41,RAWDATA!$B:$AX,RAWDATA!H$1,FALSE) -> -1.098512856 | I41: =VLOOKUP($B41,RAWDATA!$B:$AX,RAWDATA!I$1,FALSE) -> -0.8407703873 | J41: =VLOOKUP($B41,RAWDATA!$B:$AX,RAWDATA!J$1,FALSE) -> 0.7770002392 | K41: =VLOOKUP($B41,RAWDATA!$B:$AX,RAWDATA!K$1,FALSE) -> -0.823515685 | L41: =VLOOKUP($B41,RAWDATA!$B:$AX,RAWDATA!L$1,FALSE) -> -0.6534215898 | M41: =VLOOKUP($B41,RAWDATA!$B:$AX,RAWDATA!M$1,FALSE) -> 0.7308160982 | N41: =VLOOKUP($B41,RAWDATA!$B:$AX,RAWDATA!N$1,FALSE) -> 0.6991871774 | O41: =VLOOKUP($B41,RAWDATA!$B:$AX,RAWDATA!O$1,FALSE) -> 1.011242572 | P41: =VLOOKUP($B41,RAWDATA!$B:$AX,RAWDATA!P$1,FALSE) -> 0.1081097107 | Q41: =VLOOKUP($B41,RAWDATA!$B:$AX,RAWDATA!Q$1,FALSE) -> -0.174594579 | R41: =VLOOKUP($B41,RAWDATA!$B:$AX,RAWDATA!R$1,FALSE) -> 0.9138552116 | S41: =VLOOKUP($B41,RAWDATA!$B:$AX,RAWDATA!S$1,FALSE) -> 0.524702854 | T41: =VLOOKUP($B41,RAWDATA!$B:$AX,RAWDATA!T$1,FALSE) -> 1.014162959 | U41: =VLOOKUP($B41,RAWDATA!$B:$AX,RAWDATA!U$1,FALSE) -> 1.154156043 | V41: =VLOOKUP($B41,RAWDATA!$B:$AX,RAWDATA!V$1,FALSE) -> 0.6907492756 | W41: =VLOOKUP($B41,RAWDATA!$B:$AX,RAWDATA!W$1,FALSE) -> 0.6974638833 | X41: =VLOOKUP($B41,RAWDATA!$B:$AX,RAWDATA!X$1,FALSE) -> 0.3669404277 | Y41: =VLOOKUP($B41,RAWDATA!$B:$AX,RAWDATA!Y$1,FALSE) -> -0.05401748915 | Z41: =VLOOKUP($B41,RAWDATA!$B:$AX,RAWDATA!Z$1,FALSE) -> -0.87505827 | AA41: =VLOOKUP($B41,RAWDATA!$B:$AX,RAWDATA!AA$1,FALSE) -> -0.08902952055 | AB41: =VLOOKUP($B41,RAWDATA!$B:$AX,RAWDATA!AB$1,FALSE) -> 0.4410420237 | AC41: =VLOOKUP($B41,RAWDATA!$B:$AX,RAWDATA!AC$1,FALSE) -> 0.091 | AD41: =VLOOKUP($B41,RAWDATA!$B:$AX,RAWDATA!AD$1,FALSE) -> -0.425 | AE41: =VLOOKUP($B41,RAWDATA!$B:$AX,RAWDATA!AE$1,FALSE) -> -0.08564909954 | AF41: =VLOOKUP($B41,RAWDATA!$B:$AX,RAWDATA!AF$1,FALSE) -> -0.3278172538 | AG41: =VLOOKUP($B41,RAWDATA!$B:$AX,RAWDATA!AG$1,FALSE) -> -0.5299949322 | AH41: =VLOOKUP($B41,RAWDATA!$B:$AX,RAWDATA!AH$1,FALSE) -> -0.5628556981 | AI41: =VLOOKUP($B41,RAWDATA!$B:$AX,RAWDATA!AI$1,FALSE) -> -0.5539834008 | AJ41: =VLOOKUP($B41,RAWDATA!$B:$AX,RAWDATA!AJ$1,FALSE) -> -0.5920967429 | AK41: =VLOOKUP($B41,RAWDATA!$B:$AX,RAWDATA!AK$1,FALSE) -> -0.6504381195 | AL41: =VLOOKUP($B41,RAWDATA!$B:$AX,RAWDATA!AL$1,FALSE) -> -0.6429064802 | AM41: =VLOOKUP($B41,RAWDATA!$B:$AX,RAWDATA!AM$1,FALSE) -> -0.6247065779 | AN41: =VLOOKUP($B41,RAWDATA!$B:$AX,RAWDATA!AN$1,FALSE) -> -0.6421760118 | AO41: =VLOOKUP($B41,RAWDATA!$B:$AX,RAWDATA!AO$1,FALSE) -> -0.6648889554 | AP41: =VLOOKUP($B41,RAWDATA!$B:$AX,RAWDATA!AP$1,FALSE) -> -0.6759753331 | AQ41: =VLOOKUP($B41,RAWDATA!$B:$AX,RAWDATA!AQ$1,FALSE) -> -0.6836380815 | AR41: =VLOOKUP($B41,RAWDATA!$B:$AX,RAWDATA!AR$1,FALSE) -> -0.6998471778 | AS41: =VLOOKUP($B41,RAWDATA!$B:$AX,RAWDATA!AS$1,FALSE) -> -0.7184975039 | AT41: =VLOOKUP($B41,RAWDATA!$B:$AX,RAWDATA!AT$1,FALSE) -> -0.7353952508 | AU41: =VLOOKUP($B41,RAWDATA!$B:$AX,RAWDATA!AU$1,FALSE) -> -0.7524632402 | AV41: =VLOOKUP($B41,RAWDATA!$B:$AX,RAWDATA!AV$1,FALSE) -> -0.7712855607 | AW41: =VLOOKUP($B41,RAWDATA!$B:$AX,RAWDATA!AW$1,FALSE) -> -0.7897695414 | AX41: =VLOOKUP($B41,RAWDATA!$B:$AX,RAWDATA!AX$1,FALSE) -> -0.8066715421
A42: NATINC | B42: =A42&city_code -> NATINCNW5 | D42: =D43-C43-D41 -> 0.6796369438 | E42: =E43-D43-E41 -> 0.641510001 | F42: 0.5243988958 | G42: 0.4637725988 | H42: 0.2825149115 | I42: 0.4937678291 | J42: 0.3959967798 | K42: 0.3375303548 | L42: 0.4404181379 | M42: 0.3881730985 | N42: 0.3967633407 | O42: 0.4918575166 | P42: 0.5999819569 | Q42: 0.6688648029 | R42: 0.8847542902 | S42: 0.9749837175 | T42: 1.188548863 | U42: 1.346189616 | V42: 1.415705156 | W42: 1.404105608 | X42: 1.421070339 | Y42: 1.241000788 | Z42: 1.392061545 | AA42: 1.129043297 | AB42: 1.266946587 | AC42: 1.186000785 | AD42: 0.9839929771 | AE42: 1.185256525 | AF42: 1.171535881 | AG42: 1.179409648 | AH42: 0.9888191517 | AI42: 1.004265734 | AJ42: 1.013150145 | AK42: 1.010288907 | AL42: 0.9949557282 | AM42: 0.8750702651 | AN42: 0.8651295571 | AO42: 0.7873748443 | AP42: 0.7807203236 | AQ42: 0.7802366687 | AR42: 0.7731133702 | AS42: 0.6744934868 | AT42: 0.677026115 | AU42: 0.7736338858 | AV42: 0.7655837229 | AW42: 0.7810316516 | AX42: 0.6779115353
A43: POPL | B43: =A43&city_code -> POPLNW5 | C43: =VLOOKUP($B43,RAWDATA!$B:$AX,RAWDATA!C$1,FALSE) -> 261.3053078 | D43: =VLOOKUP($B43,RAWDATA!$B:$AX,RAWDATA!D$1,FALSE) -> 261.5422982 | E43: =VLOOKUP($B43,RAWDATA!$B:$AX,RAWDATA!E$1,FALSE) -> 261.8413145 | F43: =VLOOKUP($B43,RAWDATA!$B:$AX,RAWDATA!F$1,FALSE) -> 261.4492982 | G43: =VLOOKUP($B43,RAWDATA!$B:$AX,RAWDATA!G$1,FALSE) -> 260.8283033 | H43: =VLOOKUP($B43,RAWDATA!$B:$AX,RAWDATA!H$1,FALSE) -> 260.0123053 | I43: =VLOOKUP($B43,RAWDATA!$B:$AX,RAWDATA!I$1,FALSE) -> 259.6653028 | J43: =VLOOKUP($B43,RAWDATA!$B:$AX,RAWDATA!J$1,FALSE) -> 260.8382998 | K43: =VLOOKUP($B43,RAWDATA!$B:$AX,RAWDATA!K$1,FALSE) -> 260.3523145 | L43: =VLOOKUP($B43,RAWDATA!$B:$AX,RAWDATA!L$1,FALSE) -> 260.139311 | M43: =VLOOKUP($B43,RAWDATA!$B:$AX,RAWDATA!M$1,FALSE) -> 261.2583002 | N43: =VLOOKUP($B43,RAWDATA!$B:$AX,RAWDATA!N$1,FALSE) -> 262.3542507 | O43: =VLOOKUP($B43,RAWDATA!$B:$AX,RAWDATA!O$1,FALSE) -> 263.8573508 | P43: =VLOOKUP($B43,RAWDATA!$B:$AX,RAWDATA!P$1,FALSE) -> 264.5654425 | Q43: =VLOOKUP($B43,RAWDATA!$B:$AX,RAWDATA!Q$1,FALSE) -> 265.0597127 | R43: =VLOOKUP($B43,RAWDATA!$B:$AX,RAWDATA!R$1,FALSE) -> 266.8583222 | S43: =VLOOKUP($B43,RAWDATA!$B:$AX,RAWDATA!S$1,FALSE) -> 268.3580088 | T43: =VLOOKUP($B43,RAWDATA!$B:$AX,RAWDATA!T$1,FALSE) -> 270.5607206 | U43: =VLOOKUP($B43,RAWDATA!$B:$AX,RAWDATA!U$1,FALSE) -> 273.0610663 | V43: =VLOOKUP($B43,RAWDATA!$B:$AX,RAWDATA!V$1,FALSE) -> 275.1675207 | W43: =VLOOKUP($B43,RAWDATA!$B:$AX,RAWDATA!W$1,FALSE) -> 277.2690902 | X43: =VLOOKUP($B43,RAWDATA!$B:$AX,RAWDATA!X$1,FALSE) -> 279.057101 | Y43: =VLOOKUP($B43,RAWDATA!$B:$AX,RAWDATA!Y$1,FALSE) -> 280.2440843 | Z43: =VLOOKUP($B43,RAWDATA!$B:$AX,RAWDATA!Z$1,FALSE) -> 280.7610875 | AA43: =VLOOKUP($B43,RAWDATA!$B:$AX,RAWDATA!AA$1,FALSE) -> 281.8011013 | AB43: =VLOOKUP($B43,RAWDATA!$B:$AX,RAWDATA!AB$1,FALSE) -> 283.5090899 | AC43: =VLOOKUP($B43,RAWDATA!$B:$AX,RAWDATA!AC$1,FALSE) -> 284.7860907 | AD43: =VLOOKUP($B43,RAWDATA!$B:$AX,RAWDATA!AD$1,FALSE) -> 285.3450837 | AE43: =VLOOKUP($B43,RAWDATA!$B:$AX,RAWDATA!AE$1,FALSE) -> 286.4446911 | AF43: =VLOOKUP($B43,RAWDATA!$B:$AX,RAWDATA!AF$1,FALSE) -> 287.2884097 | AG43: =VLOOKUP($B43,RAWDATA!$B:$AX,RAWDATA!AG$1,FALSE) -> 287.9378245 | AH43: =VLOOKUP($B43,RAWDATA!$B:$AX,RAWDATA!AH$1,FALSE) -> 288.3637879 | AI43: =VLOOKUP($B43,RAWDATA!$B:$AX,RAWDATA!AI$1,FALSE) -> 288.8140702 | AJ43: =VLOOKUP($B43,RAWDATA!$B:$AX,RAWDATA!AJ$1,FALSE) -> 289.2351236 | AK43: =VLOOKUP($B43,RAWDATA!$B:$AX,RAWDATA!AK$1,FALSE) -> 289.5949744 | AL43: =VLOOKUP($B43,RAWDATA!$B:$AX,RAWDATA!AL$1,FALSE) -> 289.9470237 | AM43: =VLOOKUP($B43,RAWDATA!$B:$AX,RAWDATA!AM$1,FALSE) -> 290.1973874 | AN43: =VLOOKUP($B43,RAWDATA!$B:$AX,RAWDATA!AN$1,FALSE) -> 290.4203409 | AO43: =VLOOKUP($B43,RAWDATA!$B:$AX,RAWDATA!AO$1,FALSE) -> 290.5428268 | AP43: =VLOOKUP($B43,RAWDATA!$B:$AX,RAWDATA!AP$1,FALSE) -> 290.6475718 | AQ43: =VLOOKUP($B43,RAWDATA!$B:$AX,RAWDATA!AQ$1,FALSE) -> 290.7441704 | AR43: =VLOOKUP($B43,RAWDATA!$B:$AX,RAWDATA!AR$1,FALSE) -> 290.8174366 | AS43: =VLOOKUP($B43,RAWDATA!$B:$AX,RAWDATA!AS$1,FALSE) -> 290.7734326 | AT43: =VLOOKUP($B43,RAWDATA!$B:$AX,RAWDATA!AT$1,FALSE) -> 290.7150634 | AU43: =VLOOKUP($B43,RAWDATA!$B:$AX,RAWDATA!AU$1,FALSE) -> 290.7362341 | AV43: =VLOOKUP($B43,RAWDATA!$B:$AX,RAWDATA!AV$1,FALSE) -> 290.7305322 | AW43: =VLOOKUP($B43,RAWDATA!$B:$AX,RAWDATA!AW$1,FALSE) -> 290.7217943 | AX43: =VLOOKUP($B43,RAWDATA!$B:$AX,RAWDATA!AX$1,FALSE) -> 290.5930343
A45: Change in employment | C45: 1997 | D45: 2007 | E45: 2017 | F45: 2037 | H45: 1997-2007 | I45: 2007-2017 | J45: 2017-2037
C46: =C45-1989 -> 8 | D46: =D45-1989 -> 18 | E46: =E45-1989 -> 28 | F46: =F45-1989 -> 48
A47: ETAA | B47: =A47&city_code -> ETAANW5 | C47: =VLOOKUP($B47,RAWDATA!$B:$AX,C$46,FALSE) -> 0.2729594962 | D47: =VLOOKUP($B47,RAWDATA!$B:$AX,D$46,FALSE) -> 0.2353178127 | E47: =VLOOKUP($B47,RAWDATA!$B:$AX,E$46,FALSE) -> 0.2452040883 | F47: =VLOOKUP($B47,RAWDATA!$B:$AX,F$46,FALSE) -> 0.2105029066 | H47: =D47-C47 -> -0.0376416835 | I47: =E47-D47 -> 0.009886275559 | J47: =F47-E47 -> -0.03470118174
A48: ETBB | B48: ETBBNW5 | C48: =VLOOKUP($B48,RAWDATA!$B:$AX,C$46,FALSE) -> 0.005939584811 | D48: =VLOOKUP($B48,RAWDATA!$B:$AX,D$46,FALSE) -> 0.01004237173 | E48: =VLOOKUP($B48,RAWDATA!$B:$AX,E$46,FALSE) -> 0.1267034438 | F48: =VLOOKUP($B48,RAWDATA!$B:$AX,F$46,FALSE) -> 0.0758315092 | H48: =D48-C48 -> 0.004102786918 | I48: =E48-D48 -> 0.1166610721 | J48: =F48-E48 -> -0.05087193464
A49: ETCC | B49: ETCCNW5 | C49: =VLOOKUP($B49,RAWDATA!$B:$AX,C$46,FALSE) -> 24.07043345 | D49: =VLOOKUP($B49,RAWDATA!$B:$AX,D$46,FALSE) -> 16.19842022 | E49: =VLOOKUP($B49,RAWDATA!$B:$AX,E$46,FALSE) -> 14.10544137 | F49: =VLOOKUP($B49,RAWDATA!$B:$AX,F$46,FALSE) -> 10.21240535 | H49: -7.872013236 | I49: =E49-D49 -> -2.092978844 | J49: -3.893036025
A50: ETDD | B50: ETDDNW5 | C50: =VLOOKUP($B50,RAWDATA!$B:$AX,C$46,FALSE) -> 0.33195782 | D50: =VLOOKUP($B50,RAWDATA!$B:$AX,D$46,FALSE) -> 0.2070981577 | E50: =VLOOKUP($B50,RAWDATA!$B:$AX,E$46,FALSE) -> 0.9697194543 | F50: =VLOOKUP($B50,RAWDATA!$B:$AX,F$46,FALSE) -> 0.7777341379 | H50: -0.1248596623 | I50: 0.7626212966 | J50: -0.1919853164
A51: ETEE | B51: ETEENW5 | C51: =VLOOKUP($B51,RAWDATA!$B:$AX,C$46,FALSE) -> 1.166634527 | D51: =VLOOKUP($B51,RAWDATA!$B:$AX,D$46,FALSE) -> 0.5749288794 | E51: =VLOOKUP($B51,RAWDATA!$B:$AX,E$46,FALSE) -> 0.8357360372 | F51: =VLOOKUP($B51,RAWDATA!$B:$AX,F$46,FALSE) -> 0.6711614995 | H51: -0.5917056477 | I51: 0.2608071578 | J51: -0.1645745377
A52: ETFF | B52: ETFFNW5 | C52: =VLOOKUP($B52,RAWDATA!$B:$AX,C$46,FALSE) -> 8.192902716 | D52: =VLOOKUP($B52,RAWDATA!$B:$AX,D$46,FALSE) -> 11.86722057 | E52: =VLOOKUP($B52,RAWDATA!$B:$AX,E$46,FALSE) -> 9.258170081 | F52: =VLOOKUP($B52,RAWDATA!$B:$AX,F$46,FALSE) -> 11.86191529 | H52: 3.674317854 | I52: -2.609050489 | J52: 2.60374521
A53: ETGG | B53: ETGGNW5 | C53: =VLOOKUP($B53,RAWDATA!$B:$AX,C$46,FALSE) -> 24.4715276 | D53: =VLOOKUP($B53,RAWDATA!$B:$AX,D$46,FALSE) -> 23.09778136 | E53: =VLOOKUP($B53,RAWDATA!$B:$AX,E$46,FALSE) -> 21.87596602 | F53: =VLOOKUP($B53,RAWDATA!$B:$AX,F$46,FALSE) -> 23.52596361 | H53: -1.37374624 | I53: -1.221815346 | J53: 1.649997595
A54: ETHH | B54: ETHHNW5 | C54: =VLOOKUP($B54,RAWDATA!$B:$AX,C$46,FALSE) -> 4.99617647 | D54: =VLOOKUP($B54,RAWDATA!$B:$AX,D$46,FALSE) -> 4.174682592 | E54: =VLOOKUP($B54,RAWDATA!$B:$AX,E$46,FALSE) -> 7.39584228 | F54: =VLOOKUP($B54,RAWDATA!$B:$AX,F$46,FALSE) -> 8.1518686 | H54: -0.8214938778 | I54: 3.221159689 | J54: 0.7560263193
A55: ETII | B55: ETIINW5 | C55: =VLOOKUP($B55,RAWDATA!$B:$AX,C$46,FALSE) -> 7.739928839 | D55: =VLOOKUP($B55,RAWDATA!$B:$AX,D$46,FALSE) -> 6.664594164 | E55: =VLOOKUP($B55,RAWDATA!$B:$AX,E$46,FALSE) -> 5.061122876 | F55: =VLOOKUP($B55,RAWDATA!$B:$AX,F$46,FALSE) -> 5.195563934 | H55: -1.075334675 | I55: -1.603471287 | J55: 0.1344410581
A56: ETJJ | B56: ETJJNW5 | C56: =VLOOKUP($B56,RAWDATA!$B:$AX,C$46,FALSE) -> 1.517358178 | D56: =VLOOKUP($B56,RAWDATA!$B:$AX,D$46,FALSE) -> 2.4970767 | E56: =VLOOKUP($B56,RAWDATA!$B:$AX,E$46,FALSE) -> 2.659643297 | F56: =VLOOKUP($B56,RAWDATA!$B:$AX,F$46,FALSE) -> 2.995638726 | H56: 0.9797185229 | I56: 0.1625665966 | J56: 0.3359954285
A57: ETKK | B57: ETKKNW5 | C57: =VLOOKUP($B57,RAWDATA!$B:$AX,C$46,FALSE) -> 2.217690197 | D57: =VLOOKUP($B57,RAWDATA!$B:$AX,D$46,FALSE) -> 3.679392096 | E57: =VLOOKUP($B57,RAWDATA!$B:$AX,E$46,FALSE) -> 3.457998214 | F57: =VLOOKUP($B57,RAWDATA!$B:$AX,F$46,FALSE) -> 3.273673252 | H57: 1.461701899 | I57: -0.2213938821 | J57: -0.1843249623
A58: ETLL | B58: ETLLNW5 | C58: =VLOOKUP($B58,RAWDATA!$B:$AX,C$46,FALSE) -> 1.239674798 | D58: =VLOOKUP($B58,RAWDATA!$B:$AX,D$46,FALSE) -> 2.936054803 | E58: =VLOOKUP($B58,RAWDATA!$B:$AX,E$46,FALSE) -> 3.222492852 | F58: =VLOOKUP($B58,RAWDATA!$B:$AX,F$46,FALSE) -> 3.772233913 | H58: 1.696380005 | I58: 0.2864380487 | J58: 0.5497410607
A59: ETMM | B59: ETMMNW5 | C59: =VLOOKUP($B59,RAWDATA!$B:$AX,C$46,FALSE) -> 6.084809886 | D59: =VLOOKUP($B59,RAWDATA!$B:$AX,D$46,FALSE) -> 6.193853071 | E59: =VLOOKUP($B59,RAWDATA!$B:$AX,E$46,FALSE) -> 9.602589178 | F59: =VLOOKUP($B59,RAWDATA!$B:$AX,F$46,FALSE) -> 11.87466402 | H59: 0.1090431854 | I59: 3.408736107 | J59: 2.272074841
A60: ETNN | B60: ETNNNW5 | C60: =VLOOKUP($B60,RAWDATA!$B:$AX,C$46,FALSE) -> 7.567733254 | D60: =VLOOKUP($B60,RAWDATA!$B:$AX,D$46,FALSE) -> 8.756752318 | E60: =VLOOKUP($B60,RAWDATA!$B:$AX,E$46,FALSE) -> 8.19896015 | F60: =VLOOKUP($B60,RAWDATA!$B:$AX,F$46,FALSE) -> 10.93684188 | H60: 1.189019064 | I60: -0.5577921685 | J60: 2.737881733
A61: ETOO | B61: ETOONW5 | C61: =VLOOKUP($B61,RAWDATA!$B:$AX,C$46,FALSE) -> 5.344201141 | D61: =VLOOKUP($B61,RAWDATA!$B:$AX,D$46,FALSE) -> 5.952608084 | E61: =VLOOKUP($B61,RAWDATA!$B:$AX,E$46,FALSE) -> 4.086992367 | F61: =VLOOKUP($B61,RAWDATA!$B:$AX,F$46,FALSE) -> 3.557047624 | H61: 0.6084069426 | I61: -1.865615717 | J61: -0.5299447424
A62: ETPP | B62: ETPPNW5 | C62: =VLOOKUP($B62,RAWDATA!$B:$AX,C$46,FALSE) -> 7.508516933 | D62: =VLOOKUP($B62,RAWDATA!$B:$AX,D$46,FALSE) -> 9.263207074 | E62: =VLOOKUP($B62,RAWDATA!$B:$AX,E$46,FALSE) -> 9.570802412 | F62: =VLOOKUP($B62,RAWDATA!$B:$AX,F$46,FALSE) -> 9.000407143 | H62: 1.754690141 | I62: 0.3075953385 | J62: -0.5703952694
... 70 more rows

Sheet NOMIS (hidden)
A1: APS ILO unemployment data for chart | B1: 2 | C1: 3 | D1: 4 | E1: 5 | F1: 6 | G1: 7 | H1: 8 | I1: 9 | J1: 10 | K1: 11 | L1: 12 | M1: 13 | N1: 14 | O1: 15 | P1: 16 | Q1: 17 | R1: 18 | S1: 19 | T1: 20 | U1: 21 | V1: 22 | W1: 23 | X1: 24 | Y1: 25 | Z1: 26 | AA1: 27 | AB1: 28 | AC1: 29 | AD1: 30 | AE1: 31 | AF1: 32 | AG1: 33 | AH1: 34 | AI1: 35 | AJ1: 36 | AK1: 37 | AL1: 38 | AM1: 39 | AN1: 40 | AO1: 41 | AP1: 42 | AQ1: 43 | AR1: 44 | AS1: 45 | AT1: 46 | AU1: 47 | AV1: 48 | AW1: 49 | AX1: 50 | AY1: 51 | AZ1: 52 | BA1: 53 | BB1: 54 | BC1: 55 | BD1: 56 | BE1: 57 | BF1: 58 | BG1: 59 | BH1: 60 | BI1: 61 | BJ1: 62 | BK1: 63 | BL1: 64 | BM1: 65 | BN1: 66 | BO1: 67 | BP1: 68 | BQ1: 69 | BR1: 70 | BS1: 71 | BT1: 72 | BU1: 73 | BV1: 74 | BW1: 75 | BX1: 76 | BY1: 77 | BZ1: 78 | CA1: 79 | CB1: 80 | CC1: 81 | CD1: 82 | CE1: 83 | CF1: 84
C2: Jan 2004-Dec 2004 | D2: Apr 2004-Mar 2005 | E2: Jul 2004-Jun 2005 | F2: Oct 2004-Sep 2005 | G2: Jan 2005-Dec 2005 | H2: Apr 2005-Mar 2006 | I2: Jul 2005-Jun 2006 | J2: Oct 2005-Sep 2006 | K2: Jan 2006-Dec 2006 | L2: Apr 2006-Mar 2007 | M2: Jul 2006-Jun 2007 | N2: Oct 2006-Sep 2007 | O2: Jan 2007-Dec 2007 | P2: Apr 2007-Mar 2008 | Q2: Jul 2007-Jun 2008 | R2: Oct 2007-Sep 2008 | S2: Jan 2008-Dec 2008 | T2: Apr 2008-Mar 2009 | U2: Jul 2008-Jun 2009 | V2: Oct 2008-Sep 2009 | W2: Jan 2009-Dec 2009 | X2: Apr 2009-Mar 2010 | Y2: Jul 2009-Jun 2010 | Z2: Oct 2009-Sep 2010 | AA2: Jan 2010-Dec 2010 | AB2: Apr 2010-Mar 2011 | AC2: Jul 2010-Jun 2011 | AD2: Oct 2010-Sep 2011 | AE2: Jan 2011-Dec 2011 | AF2: Apr 2011-Mar 2012 | AG2: Jul 2011-Jun 2012 | AH2: Oct 2011-Sep 2012 | AI2: Jan 2012-Dec 2012 | AJ2: Apr 2012-Mar 2013 | AK2: Jul 2012-Jun 2013 | AL2: Oct 2012-Sep 2013 | AM2: Jan 2013-Dec 2013 | AN2: Apr 2013-Mar 2014 | AO2: Jul 2013-Jun 2014 | AP2: Oct 2013-Sep 2014 | AQ2: Jan 2014-Dec 2014 | AR2: Apr 2014-Mar 2015 | AS2: Jul 2014-Jun 2015 | AT2: Oct 2014-Sep 2015 | AU2: Jan 2015-Dec 2015 | AV2: Apr 2015-Mar 2016 | AW2: Jul 2015-Jun 2016 | AX2: Oct 2015-Sep 2016 | AY2: Jan 2016-Dec 2016 | AZ2: Apr 2016-Mar 2017 | BA2: Jul 2016-Jun 2017 | BB2: Oct 2016-Sep 2017 | BC2: Jan 2017-Dec 2017 | BD2: Apr 2017-Mar 2018 | BE2: Jul 2017-Jun 2018 | BF2: Oct 2017-Sep 2018 | BG2: Jan 2018-Dec 2018 | BH2: Apr 2018-Mar 2019
B3: ualad09:Allerdale | C3: 1900 | D3: 2100 | E3: 2300 | F3: 1300 | G3: 1900 | H3: 1600 | I3: 1500 | J3: 2100 | K3: 2000 | L3: 2000 | M3: 2000 | N3: 1600 | O3: 1200 | P3: 1500 | Q3: 900 | R3: ! | S3: ! | T3: ! | U3: ! | V3: 1700 | W3: 1900 | X3: 3100 | Y3: 2700 | Z3: 2500 | AA3: 3400 | AB3: 3300 | AC3: 4500 | AD3: 3800 | AE3: 4600 | AF3: 4000 | AG3: 4000 | AH3: 4900 | AI3: 3900 | AJ3: 4300 | AK3: 3200 | AL3: 3200 | AM3: 3500 | AN3: 3000 | AO3: 3400 | AP3: 3000 | AQ3: 2800 | AR3: 2700 | AS3: 2400 | AT3: 1500 | AU3: 1400 | AV3: 1400 | AW3: 1300 | AX3: 1500 | AY3: 1300 | AZ3: 1200 | BA3: ! | BB3: ! | BC3: 1700 | BD3: 1500 | BE3: # | BF3: 1300 | BG3: ! | BH3: 900
B4: ualad09:Barrow-in-Furness | C4: 1300 | D4: 1300 | E4: 1600 | F4: 1800 | G4: 1900 | H4: ! | I4: 900 | J4: ! | K4: 1700 | L4: 1300 | M4: 1300 | N4: 2000 | O4: 1700 | P4: 1900 | Q4: 1800 | R4: 1300 | S4: ! | T4: 1000 | U4: 1700 | V4: 2100 | W4: 2300 | X4: 1900 | Y4: 2000 | Z4: 3400 | AA4: 3000 | AB4: 2900 | AC4: 2800 | AD4: 1800 | AE4: 2900 | AF4: 2900 | AG4: 3100 | AH4: 2800 | AI4: 2300 | AJ4: 2200 | AK4: 1900 | AL4: 1800 | AM4: 1000 | AN4: 2400 | AO4: 2000 | AP4: 2300 | AQ4: 3000 | AR4: 2800 | AS4: 2800 | AT4: 2600 | AU4: 2400 | AV4: 1300 | AW4: 1600 | AX4: 1800 | AY4: 900 | AZ4: 1000 | BA4: 1400 | BB4: ! | BC4: 1200 | BD4: 1100 | BE4: 1000 | BF4: ! | BG4: 1000 | BH4: 1000
B5: ualad09:Blackburn with Darwen | C5: 3100 | D5: 3800 | E5: 3700 | F5: 3700 | G5: 4100 | H5: 4100 | I5: 4500 | J5: 4300 | K5: 4200 | L5: 4300 | M5: 4100 | N5: 4400 | O5: 4300 | P5: 3600 | Q5: 4100 | R5: 3800 | S5: 4400 | T5: 4900 | U5: 5400 | V5: 6300 | W5: 6500 | X5: 6600 | Y5: 5900 | Z5: 5100 | AA5: 5400 | AB5: 6000 | AC5: 6100 | AD5: 6600 | AE5: 5500 | AF5: 5900 | AG5: 6300 | AH5: 6800 | AI5: 6500 | AJ5: 6100 | AK5: 5700 | AL5: 4800 | AM5: 5300 | AN5: 4700 | AO5: 4900 | AP5: 5100 | AQ5: 5200 | AR5: 5300 | AS5: 5000 | AT5: 5000 | AU5: 4900 | AV5: 4500 | AW5: 4400 | AX5: 4100 | AY5: 3600 | AZ5: 3700 | BA5: 3700 | BB5: 4000 | BC5: 4000 | BD5: 4000 | BE5: 4300 | BF5: 3600 | BG5: 3500 | BH5: 3300
B6: ualad09:Blackpool | C6: 3600 | D6: 3100 | E6: 3600 | F6: 3700 | G6: 4100 | H6: 4600 | I6: 4100 | J6: 4500 | K6: 3900 | L6: 3600 | M6: 3700 | N6: 3300 | O6: 3700 | P6: 3200 | Q6: 3500 | R6: 3300 | S6: 3400 | T6: 4400 | U6: 4600 | V6: 5700 | W6: 5700 | X6: 5800 | Y6: 5500 | Z6: 5300 | AA6: 6100 | AB6: 5700 | AC6: 6100 | AD6: 6000 | AE6: 5900 | AF6: 5900 | AG6: 6100 | AH6: 5800 | AI6: 5700 | AJ6: 5200 | AK6: 5100 | AL6: 5800 | AM6: 5300 | AN6: 6100 | AO6: 5500 | AP6: 4500 | AQ6: 4400 | AR6: 4200 | AS6: 4600 | AT6: 4400 | AU6: 4500 | AV6: 4200 | AW6: 3800 | AX6: 3900 | AY6: 3800 | AZ6: 4100 | BA6: 3700 | BB6: 3900 | BC6: 4400 | BD6: 4200 | BE6: 4300 | BF6: 5100 | BG6: 4800 | BH6: 4700
A7: NW5 | B7: ualad09:Bolton | C7: 5100 | D7: 4700 | E7: 5300 | F7: 5800 | G7: 7200 | H7: 7200 | I7: 6800 | J7: 6500 | K7: 6000 | L7: 6800 | M7: 7200 | N7: 7300 | O7: 7100 | P7: 7600 | Q7: 7100 | R7: 8600 | S7: 10300 | T7: 9900 | U7: 9800 | V7: 10600 | W7: 11000 | X7: 13300 | Y7: 13600 | Z7: 13100 | AA7: 11700 | AB7: 9100 | AC7: 9400 | AD7: 9900 | AE7: 12100 | AF7: 12900 | AG7: 13400 | AH7: 12900 | AI7: 11400 | AJ7: 12300 | AK7: 11700 | AL7: 13300 | AM7: 13800 | AN7: 12400 | AO7: 12300 | AP7: 9900 | AQ7: 8100 | AR7: 8300 | AS7: 8100 | AT7: 8800 | AU7: 9200 | AV7: 8600 | AW7: 8600 | AX7: 7700 | AY7: 8000 | AZ7: 6600 | BA7: 7100 | BB7: 7100 | BC7: 7300 | BD7: 8900 | BE7: 8200 | BF7: 7800 | BG7: 6700 | BH7: 5900
B8: ualad09:Burnley | C8: 1900 | D8: 1800 | E8: 1500 | F8: 1600 | G8: 1800 | H8: 1800 | I8: 2400 | J8: 3200 | K8: 3200 | L8: 3800 | M8: 3800 | N8: 3800 | O8: 3800 | P8: 3900 | Q8: 3500 | R8: 2800 | S8: 4300 | T8: 3700 | U8: 4500 | V8: 4200 | W8: 3100 | X8: 4400 | Y8: 3700 | Z8: 3800 | AA8: 2800 | AB8: ! | AC8: 1100 | AD8: ! | AE8: 1600 | AF8: 3000 | AG8: 3300 | AH8: 3400 | AI8: 3700 | AJ8: 2500 | AK8: 2400 | AL8: 3400 | AM8: 5100 | AN8: 6400 | AO8: 6800 | AP8: 7000 | AQ8: 5600 | AR8: 4900 | AS8: 3800 | AT8: 3000 | AU8: 2400 | AV8: 2200 | AW8: 2300 | AX8: 1700 | AY8: 2100 | AZ8: 2100 | BA8: 2900 | BB8: 3500 | BC8: 2900 | BD8: 2000 | BE8: 2400 | BF8: 2500 | BG8: 2700 | BH8: 3700
A9: NW7 | B9: ualad09:Bury | C9: 3800 | D9: 4000 | E9: 3700 | F9: 3600 | G9: 4200 | H9: 4600 | I9: 5200 | J9: 5800 | K9: 5700 | L9: 5500 | M9: 5300 | N9: 5100 | O9: 5000 | P9: 5000 | Q9: 5300 | R9: 5100 | S9: 4500 | T9: 5100 | U9: 6200 | V9: 7800 | W9: 9400 | X9: 9000 | Y9: 7900 | Z9: 7700 | AA9: 7000 | AB9: 6900 | AC9: 7200 | AD9: 6900 | AE9: 7300 | AF9: 8400 | AG9: 8400 | AH9: 9500 | AI9: 9500 | AJ9: 8100 | AK9: 8400 | AL9: 6600 | AM9: 6200 | AN9: 6500 | AO9: 6200 | AP9: 5800 | AQ9: 6600 | AR9: 5800 | AS9: 6200 | AT9: 6600 | AU9: 5100 | AV9: 5500 | AW9: 5000 | AX9: 4700 | AY9: 4500 | AZ9: 4600 | BA9: 4000 | BB9: 3800 | BC9: 3700 | BD9: 3300 | BE9: 3100 | BF9: 3100 | BG9: 3700 | BH9: 4100
B10: ualad09:Carlisle | C10: 1500 | D10: 1200 | E10: 1300 | F10: 1400 | G10: 1900 | H10: 2500 | I10: 2900 | J10: 2400 | K10: 2400 | L10: 2500 | M10: 2000 | N10: 2200 | O10: 1400 | P10: 1400 | Q10: 1200 | R10: 1700 | S10: 2500 | T10: 3100 | U10: 4400 | V10: 4900 | W10: 4700 | X10: 4300 | Y10: 4400 | Z10: 4800 | AA10: 5100 | AB10: 5000 | AC10: 4100 | AD10: 3300 | AE10: 2900 | AF10: 3500 | AG10: 4100 | AH10: 3700 | AI10: 3500 | AJ10: 3600 | AK10: 2900 | AL10: 4000 | AM10: 5000 | AN10: 4500 | AO10: 4900 | AP10: 4100 | AQ10: 2600 | AR10: 1700 | AS10: 1200 | AT10: ! | AU10: ! | AV10: 1200 | AW10: 2100 | AX10: 2900 | AY10: 3800 | AZ10: 3400 | BA10: 3200 | BB10: 2600 | BC10: 2400 | BD10: 2600 | BE10: 1900 | BF10: 1400 | BG10: ! | BH10: !
B11: ualad09:Cheshire East | C11: 3600 | D11: 5000 | E11: 5200 | F11: 6500 | G11: 6700 | H11: 5400 | I11: 6100 | J11: 7300 | K11: 8000 | L11: 8200 | M11: 7000 | N11: 6800 | O11: 6300 | P11: 5900 | Q11: 6700 | R11: 5900 | S11: 7600 | T11: 8100 | U11: 9300 | V11: 12100 | W11: 9600 | X11: 10300 | Y11: 8700 | Z11: 8200 | AA11: 8800 | AB11: 10900 | AC11: 12600 | AD11: 11300 | AE11: 12700 | AF11: 11800 | AG11: 12000 | AH11: 12400 | AI11: 10700 | AJ11: 12900 | AK11: 13300 | AL11: 12500 | AM11: 12300 | AN11: 8600 | AO11: 8000 | AP11: 6400 | AQ11: 6600 | AR11: 6100 | AS11: 5100 | AT11: 6300 | AU11: 6400 | AV11: 5100 | AW11: 5800 | AX11: 7100 | AY11: 8300 | AZ11: 8300 | BA11: 7700 | BB11: 4600 | BC11: 2200 | BD11: 4700 | BE11: 4300 | BF11: 4300 | BG11: 5100 | BH11: 5000
B12: ualad09:Cheshire West and Chester | C12: 4400 | D12: 5300 | E12: 5900 | F12: 5000 | G12: 5000 | H12: 3800 | I12: 4700 | J12: 4600 | K12: 4100 | L12: 5000 | M12: 3400 | N12: 4000 | O12: 4600 | P12: 6300 | Q12: 5200 | R12: 7600 | S12: 10200 | T12: 11900 | U12: 12800 | V12: 12200 | W12: 11900 | X12: 12600 | Y12: 13100 | Z12: 14000 | AA12: 13700 | AB12: 11700 | AC12: 11500 | AD12: 9200 | AE12: 9800 | AF12: 11000 | AG12: 11500 | AH12: 12300 | AI12: 11400 | AJ12: 12100 | AK12: 11400 | AL12: 11400 | AM12: 10000 | AN12: 8700 | AO12: 6200 | AP12: 5500 | AQ12: 5500 | AR12: 5200 | AS12: 5400 | AT12: 5600 | AU12: 6900 | AV12: 7300 | AW12: 6600 | AX12: 6300 | AY12: 5000 | AZ12: 5800 | BA12: 8100 | BB12: 8700 | BC12: 9700 | BD12: 8400 | BE12: 6900 | BF12: 7300 | BG12: 6100 | BH12: 5700
B13: ualad09:Chorley | C13: 1300 | D13: 1600 | E13: 1600 | F13: 1800 | G13: 2300 | H13: 1600 | I13: 1600 | J13: 2100 | K13: 1500 | L13: 1800 | M13: 2100 | N13: 1600 | O13: 2000 | P13: 2300 | Q13: 2000 | R13: 1700 | S13: 1500 | T13: 1600 | U13: 2500 | V13: 2800 | W13: 3100 | X13: 2400 | Y13: 1900 | Z13: 1600 | AA13: 1300 | AB13: 1900 | AC13: 2200 | AD13: 2200 | AE13: 2800 | AF13: 3100 | AG13: 2400 | AH13: 2100 | AI13: 2100 | AJ13: 1000 | AK13: 1600 | AL13: 2400 | AM13: 2400 | AN13: 2300 | AO13: 2100 | AP13: 2100 | AQ13: 1900 | AR13: 2200 | AS13: 1900 | AT13: ! | AU13: ! | AV13: ! | AW13: 1200 | AX13: 2100 | AY13: 1900 | AZ13: 1600 | BA13: 1600 | BB13: 2000 | BC13: 2000 | BD13: 2000 | BE13: 1400 | BF13: ! | BG13: ! | BH13: !
B14: ualad09:Copeland | C14: 1800 | D14: 2200 | E14: 2100 | F14: 2100 | G14: 2300 | H14: ! | I14: ! | J14: ! | K14: 1400 | L14: 1500 | M14: 2100 | N14: 2700 | O14: 2000 | P14: 1400 | Q14: 1600 | R14: ! | S14: 900 | T14: 2000 | U14: 2900 | V14: 2900 | W14: 3200 | X14: 3100 | Y14: 1800 | Z14: 2500 | AA14: 2500 | AB14: 2400 | AC14: 2200 | AD14: 3000 | AE14: 2700 | AF14: 2100 | AG14: 2200 | AH14: 1500 | AI14: 1600 | AJ14: 1700 | AK14: 2200 | AL14: 2100 | AM14: 1600 | AN14: 1300 | AO14: 1200 | AP14: 1200 | AQ14: 1300 | AR14: 2100 | AS14: 2200 | AT14: 2800 | AU14: 3000 | AV14: 2700 | AW14: 2800 | AX14: 2400 | AY14: 2600 | AZ14: 3000 | BA14: 2200 | BB14: 2200 | BC14: 1700 | BD14: 1200 | BE14: 1300 | BF14: 1300 | BG14: 1200 | BH14: 1700
B15: ualad09:Eden | C15: 500 | D15: ~ | E15: ~ | F15: ~ | G15: ~ | H15: ! | I15: ! | J15: ! | K15: ! | L15: ! | M15: ! | N15: ! | O15: ! | P15: ! | Q15: ! | R15: ! | S15: ! | T15: 1100 | U15: 1400 | V15: 1400 | W15: 1000 | X15: 800 | Y15: ! | Z15: 800 | AA15: 700 | AB15: 1000 | AC15: 1300 | AD15: ! | AE15: 1300 | AF15: 900 | AG15: 800 | AH15: 1100 | AI15: ! | AJ15: ! | AK15: ! | AL15: ! | AM15: 800 | AN15: 800 | AO15: 1100 | AP15: 1000 | AQ15: 900 | AR15: 1100 | AS15: ! | AT15: ! | AU15: ! | AV15: ! | AW15: ! | AX15: ! | AY15: ! | AZ15: ! | BA15: ! | BB15: ! | BC15: ! | BD15: ! | BE15: ! | BF15: ! | BG15: ! | BH15: !
B16: ualad09:Fylde | C16: 1100 | D16: 1100 | E16: 1200 | F16: 1300 | G16: 1400 | H16: 1300 | I16: 1500 | J16: 1200 | K16: ! | L16: 1300 | M16: 1100 | N16: 2000 | O16: 2000 | P16: 1000 | Q16: 1500 | R16: ! | S16: ! | T16: ! | U16: ! | V16: ! | W16: ! | X16: ! | Y16: 1400 | Z16: 1600 | AA16: 2100 | AB16: 2700 | AC16: 2400 | AD16: 1700 | AE16: 1600 | AF16: 1700 | AG16: 2000 | AH16: 2400 | AI16: 1900 | AJ16: 2300 | AK16: ! | AL16: 2100 | AM16: 2000 | AN16: ! | AO16: 1600 | AP16: ! | AQ16: ! | AR16: 1000 | AS16: 1300 | AT16: 1100 | AU16: 1200 | AV16: ! | AW16: ! | AX16: ! | AY16: ! | AZ16: 1400 | BA16: 1200 | BB16: 1600 | BC16: 1600 | BD16: 1700 | BE16: 1500 | BF16: ! | BG16: ! | BH16: !
B17: ualad09:Halton | C17: 4300 | D17: 4000 | E17: 4000 | F17: 3500 | G17: 3200 | H17: 3100 | I17: 2700 | J17: 2900 | K17: 3100 | L17: 3800 | M17: 4500 | N17: 4800 | O17: 4500 | P17: 4200 | Q17: 4100 | R17: 3800 | S17: 4000 | T17: 4400 | U17: 5100 | V17: 5900 | W17: 7000 | X17: 6700 | Y17: 6400 | Z17: 6400 | AA17: 5900 | AB17: 6000 | AC17: 5600 | AD17: 5100 | AE17: 5400 | AF17: 5900 | AG17: 6500 | AH17: 7000 | AI17: 6600 | AJ17: 6900 | AK17: 6700 | AL17: 6600 | AM17: 6200 | AN17: 5100 | AO17: 4400 | AP17: 3700 | AQ17: 3700 | AR17: 3900 | AS17: 3500 | AT17: 3200 | AU17: 3100 | AV17: 2500 | AW17: 2900 | AX17: 2800 | AY17: 2700 | AZ17: 2500 | BA17: 2700 | BB17: 2900 | BC17: 2800 | BD17: 3300 | BE17: 2900 | BF17: 2900 | BG17: 2600 | BH17: 2400
B18: ualad09:Hyndburn | C18: 2100 | D18: 1900 | E18: 1600 | F18: 1600 | G18: 1900 | H18: ! | I18: 1100 | J18: 1100 | K18: ! | L18: 1000 | M18: ! | N18: 1900 | O18: 3400 | P18: 2900 | Q18: 3700 | R18: 4500 | S18: 3800 | T18: 3900 | U18: 3900 | V18: 2500 | W18: 2800 | X18: 3600 | Y18: 2600 | Z18: 2400 | AA18: 2300 | AB18: 1000 | AC18: 1100 | AD18: 1200 | AE18: ! | AF18: ! | AG18: 2200 | AH18: 2300 | AI18: 2100 | AJ18: 2200 | AK18: 1500 | AL18: ! | AM18: 1900 | AN18: 2900 | AO18: 3800 | AP18: 3700 | AQ18: 3400 | AR18: 2600 | AS18: # | AT18: 2700 | AU18: 2000 | AV18: 3000 | AW18: 4600 | AX18: 3400 | AY18: 3400 | AZ18: 2900 | BA18: ! | BB18: ! | BC18: ! | BD18: ! | BE18: 1500 | BF18: 2500 | BG18: 2300 | BH18: 1600
B19: ualad09:Knowsley | C19: 4300 | D19: 4400 | E19: 4600 | F19: 4800 | G19: 4600 | H19: 4900 | I19: 5100 | J19: 5700 | K19: 5600 | L19: 5700 | M19: 6000 | N19: 5300 | O19: 5400 | P19: 5800 | Q19: 5900 | R19: 5500 | S19: 5500 | T19: 5200 | U19: 5200 | V19: 5600 | W19: 6000 | X19: 6300 | Y19: 6800 | Z19: 7500 | AA19: 8000 | AB19: 8000 | AC19: 8200 | AD19: 8100 | AE19: 8600 | AF19: 9900 | AG19: 9700 | AH19: 9800 | AI19: 9600 | AJ19: 7600 | AK19: 8100 | AL19: 7000 | AM19: 6500 | AN19: 6700 | AO19: 6100 | AP19: 6200 | AQ19: 5900 | AR19: 5000 | AS19: 5100 | AT19: 5100 | AU19: 4600 | AV19: 5400 | AW19: 5100 | AX19: 4300 | AY19: 4400 | AZ19: 3200 | BA19: 2800 | BB19: 2800 | BC19: 2800 | BD19: 2700 | BE19: 1900 | BF19: 2000 | BG19: 2600 | BH19: 3200
B20: ualad09:Lancaster | C20: 4500 | D20: 4500 | E20: 3700 | F20: 3600 | G20: 4200 | H20: 5200 | I20: 4600 | J20: 3900 | K20: 4300 | L20: 2100 | M20: 2600 | N20: 3400 | O20: 2300 | P20: 2600 | Q20: 2900 | R20: 3100 | S20: 4100 | T20: 4100 | U20: 4300 | V20: 4900 | W20: 3600 | X20: 4300 | Y20: 3700 | Z20: 3200 | AA20: 3100 | AB20: 2200 | AC20: 3500 | AD20: 3700 | AE20: 3100 | AF20: 4900 | AG20: 3300 | AH20: 5200 | AI20: 5500 | AJ20: 5000 | AK20: 4700 | AL20: 3300 | AM20: 2400 | AN20: 2800 | AO20: 3000 | AP20: 2600 | AQ20: 2700 | AR20: 1400 | AS20: 2300 | AT20: 1900 | AU20: 2100 | AV20: 2300 | AW20: ! | AX20: 2500 | AY20: 3500 | AZ20: 3300 | BA20: 3300 | BB20: 3400 | BC20: 2900 | BD20: 3500 | BE20: 3100 | BF20: 3600 | BG20: 3100 | BH20: 3300
B21: ualad09:Liverpool | C21: 14700 | D21: 15400 | E21: 15000 | F21: 18400 | G21: 18400 | H21: 18000 | I21: 19100 | J21: 19200 | K21: 18800 | L21: 20900 | M21: 21100 | N21: 18700 | O21: 17800 | P21: 15500 | Q21: 13500 | R21: 11400 | S21: 13700 | T21: 17000 | U21: 20200 | V21: 24300 | W21: 26600 | X21: 27400 | Y21: 27200 | Z21: 29600 | AA21: 27600 | AB21: 26100 | AC21: 27500 | AD21: 24100 | AE21: 24100 | AF21: 25300 | AG21: 24000 | AH21: 25500 | AI21: 25800 | AJ21: 26100 | AK21: 25600 | AL21: 24900 | AM21: 27100 | AN21: 27800 | AO21: 27600 | AP21: 27700 | AQ21: 27300 | AR21: 23300 | AS21: 23300 | AT21: 22000 | AU21: 16600 | AV21: 17500 | AW21: 17900 | AX21: 14900 | AY21: 16600 | AZ21: 17000 | BA21: 14600 | BB21: 13400 | BC21: 14200 | BD21: 13000 | BE21: 11600 | BF21: 11500 | BG21: 9900 | BH21: 9700
A22: NW23 | B22: ualad09:Manchester | C22: 16800 | D22: 15200 | E22: 13200 | F22: 13500 | G22: 16800 | H22: 18400 | I22: 17900 | J22: 17500 | K22: 15300 | L22: 14000 | M22: 17000 | N22: 18500 | O22: 19100 | P22: 22900 | Q22: 22500 | R22: 22700 | S22: 23000 | T22: 22900 | U22: 24600 | V22: 28100 | W22: 30800 | X22: 30400 | Y22: 29500 | Z22: 28800 | AA22: 26900 | AB22: 25800 | AC22: 27000 | AD22: 27800 | AE22: 27700 | AF22: 30000 | AG22: 32600 | AH22: 33200 | AI22: 32600 | AJ22: 32500 | AK22: 30500 | AL22: 25300 | AM22: 25800 | AN22: 23800 | AO22: 23400 | AP22: 22700 | AQ22: 23000 | AR22: 23100 | AS22: 20400 | AT22: 22700 | AU22: 20600 | AV22: 18800 | AW22: 21200 | AX22: 20100 | AY22: 21600 | AZ22: 22800 | BA22: 20200 | BB22: 21700 | BC22: 17400 | BD22: 17300 | BE22: 14700 | BF22: 11600 | BG22: 13800 | BH22: 11200
A23: NW24 | B23: ualad09:Oldham | C23: 5200 | D23: 5000 | E23: 4100 | F23: 4200 | G23: 4200 | H23: 4200 | I23: 5300 | J23: 5500 | K23: 5900 | L23: 5900 | M23: 6400 | N23: 8000 | O23: 9700 | P23: 10800 | Q23: 10100 | R23: 10200 | S23: 9800 | T23: 9900 | U23: 9800 | V23: 9100 | W23: 9600 | X23: 9500 | Y23: 9800 | Z23: 10700 | AA23: 10900 | AB23: 10900 | AC23: 10500 | AD23: 10900 | AE23: 11000 | AF23: 10500 | AG23: 11300 | AH23: 11000 | AI23: 10300 | AJ23: 10300 | AK23: 9800 | AL23: 8900 | AM23: 9400 | AN23: 9400 | AO23: 9800 | AP23: 10100 | AQ23: 10200 | AR23: 9900 | AS23: 9600 | AT23: 9900 | AU23: 8300 | AV23: 8500 | AW23: 7800 | AX23: 7600 | AY23: 7700 | AZ23: 8000 | BA23: 7800 | BB23: 6500 | BC23: 6200 | BD23: 5200 | BE23: 4800 | BF23: 5200 | BG23: 5300 | BH23: 5000
B24: ualad09:Pendle | C24: 1600 | D24: 1800 | E24: 1700 | F24: 1800 | G24: 2000 | H24: 1500 | I24: 1400 | J24: 1400 | K24: 3100 | L24: 3800 | M24: 4400 | N24: 4800 | O24: 3700 | P24: 3500 | Q24: 4100 | R24: 3800 | S24: 2500 | T24: 3400 | U24: 3100 | V24: 3100 | W24: 3700 | X24: 2800 | Y24: 2200 | Z24: 2000 | AA24: 2700 | AB24: 3000 | AC24: 3900 | AD24: 3300 | AE24: 4300 | AF24: 4100 | AG24: 4300 | AH24: 5700 | AI24: 4800 | AJ24: 6200 | AK24: 5400 | AL24: 3600 | AM24: 3700 | AN24: 3800 | AO24: 4600 | AP24: 5200 | AQ24: 4400 | AR24: 2500 | AS24: 1800 | AT24: 2200 | AU24: 1900 | AV24: 2400 | AW24: 2000 | AX24: ! | AY24: 1500 | AZ24: 2200 | BA24: 2300 | BB24: 2100 | BC24: 2500 | BD24: 2700 | BE24: 2700 | BF24: 2900 | BG24: 1800 | BH24: !
B25: ualad09:Preston | C25: 4000 | D25: 4300 | E25: 4700 | F25: 4600 | G25: 4900 | H25: 4300 | I25: 3000 | J25: 4400 | K25: 5100 | L25: 5100 | M25: 5500 | N25: 3300 | O25: 4500 | P25: 4600 | Q25: 4600 | R25: 5200 | S25: 3500 | T25: 4700 | U25: 5800 | V25: 5400 | W25: 4900 | X25: 6100 | Y25: 6800 | Z25: 7000 | AA25: 7200 | AB25: 4900 | AC25: 4800 | AD25: 6300 | AE25: 7000 | AF25: 7100 | AG25: 8800 | AH25: 7700 | AI25: 9200 | AJ25: 8000 | AK25: 4800 | AL25: 3600 | AM25: 3200 | AN25: 4300 | AO25: 6100 | AP25: 6300 | AQ25: 4400 | AR25: 4200 | AS25: 1700 | AT25: 2200 | AU25: 3400 | AV25: 3600 | AW25: 4200 | AX25: 4500 | AY25: 4200 | AZ25: 4300 | BA25: 3800 | BB25: 4000 | BC25: 2300 | BD25: 1600 | BE25: 1500 | BF25: 2500 | BG25: 3300 | BH25: 4800
B26: ualad09:Ribble Valley | C26: 700 | D26: 500 | E26: 600 | F26: 500 | G26: ~ | H26: ! | I26: ! | J26: ! | K26: ! | L26: ! | M26: ! | N26: ! | O26: ! | P26: 800 | Q26: 900 | R26: ! | S26: 900 | T26: 1400 | U26: 1300 | V26: 1500 | W26: 2000 | X26: 1500 | Y26: 1500 | Z26: 1400 | AA26: 1000 | AB26: 1000 | AC26: 1400 | AD26: 1400 | AE26: 1100 | AF26: ! | AG26: 1000 | AH26: 1100 | AI26: 1700 | AJ26: 1600 | AK26: ! | AL26: 1800 | AM26: 1800 | AN26: 1700 | AO26: 1300 | AP26: 1200 | AQ26: ! | AR26: 1300 | AS26: 1700 | AT26: 1300 | AU26: ! | AV26: 1500 | AW26: ! | AX26: ! | AY26: ! | AZ26: ! | BA26: ! | BB26: ! | BC26: ! | BD26: ! | BE26: ! | BF26: 1500 | BG26: ! | BH26: !
A27: NW28 | B27: ualad09:Rochdale | C27: 4300 | D27: 4900 | E27: 5000 | F27: 4800 | G27: 4900 | H27: 5500 | I27: 6000 | J27: 5800 | K27: 6100 | L27: 5600 | M27: 6300 | N27: 6400 | O27: 6400 | P27: 6100 | Q27: 7100 | R27: 7600 | S27: 7500 | T27: 9300 | U27: 9200 | V27: 11100 | W27: 11700 | X27: 11000 | Y27: 10000 | Z27: 8100 | AA27: 7600 | AB27: 7400 | AC27: 9000 | AD27: 10400 | AE27: 11900 | AF27: 12600 | AG27: 11200 | AH27: 10300 | AI27: 9900 | AJ27: 8900 | AK27: 8700 | AL27: 8900 | AM27: 8200 | AN27: 10200 | AO27: 9800 | AP27: 8900 | AQ27: 9000 | AR27: 6500 | AS27: 6900 | AT27: 7200 | AU27: 7200 | AV27: 7200 | AW27: 6900 | AX27: 7900 | AY27: 7300 | AZ27: 7100 | BA27: 6500 | BB27: 5900 | BC27: 6300 | BD27: 6300 | BE27: 5600 | BF27: 5600 | BG27: 5400 | BH27: 5900
B28: ualad09:Rossendale | C28: 1300 | D28: 1300 | E28: 1200 | F28: 1200 | G28: 1300 | H28: ! | I28: 1000 | J28: 1000 | K28: 1100 | L28: 1500 | M28: 2400 | N28: 2500 | O28: 2700 | P28: 2600 | Q28: 2900 | R28: 2400 | S28: 2400 | T28: 1800 | U28: ! | V28: 1200 | W28: 1500 | X28: 2200 | Y28: 2800 | Z28: 3100 | AA28: 3400 | AB28: 3900 | AC28: 3700 | AD28: 3500 | AE28: 3300 | AF28: 4200 | AG28: 3800 | AH28: 2600 | AI28: 2900 | AJ28: 1200 | AK28: 1700 | AL28: 2800 | AM28: 3000 | AN28: 3600 | AO28: 3800 | AP28: 3100 | AQ28: 2500 | AR28: 1700 | AS28: ! | AT28: ! | AU28: ! | AV28: ! | AW28: ! | AX28: ! | AY28: 1100 | AZ28: 1200 | BA28: ! | BB28: ! | BC28: ! | BD28: ! | BE28: 1400 | BF28: ! | BG28: 900 | BH28: 1200
A29: NW30 | B29: ualad09:Salford | C29: 4300 | D29: 4000 | E29: 4300 | F29: 4500 | G29: 5700 | H29: 7000 | I29: 7200 | J29: 7500 | K29: 7700 | L29: 6500 | M29: 6800 | N29: 6400 | O29: 5300 | P29: 5600 | Q29: 5800 | R29: 7000 | S29: 8600 | T29: 8200 | U29: 10300 | V29: 12000 | W29: 12200 | X29: 13700 | Y29: 13200 | Z29: 11500 | AA29: 11000 | AB29: 11400 | AC29: 12400 | AD29: 13600 | AE29: 14200 | AF29: 13400 | AG29: 12000 | AH29: 10700 | AI29: 11500 | AJ29: 12400 | AK29: 13800 | AL29: 15400 | AM29: 14900 | AN29: 13200 | AO29: 12400 | AP29: 11400 | AQ29: 10500 | AR29: 10400 | AS29: 10300 | AT29: 11000 | AU29: 10400 | AV29: 12300 | AW29: 11700 | AX29: 10000 | AY29: 10800 | AZ29: 9000 | BA29: 7700 | BB29: 7600 | BC29: 5600 | BD29: 5500 | BE29: 6400 | BF29: 7400 | BG29: 7700 | BH29: 6700
B30: ualad09:Sefton | C30: 7200 | D30: 8000 | E30: 7400 | F30: 7200 | G30: 6800 | H30: 6900 | I30: 6800 | J30: 6600 | K30: 7500 | L30: 7100 | M30: 7700 | N30: 8700 | O30: 8100 | P30: 7000 | Q30: 6800 | R30: 7800 | S30: 7800 | T30: 8500 | U30: 9500 | V30: 9100 | W30: 10600 | X30: 11200 | Y30: 11100 | Z30: 12400 | AA30: 11900 | AB30: 12500 | AC30: 13800 | AD30: 13000 | AE30: 12500 | AF30: 11500 | AG30: 10500 | AH30: 9800 | AI30: 10900 | AJ30: 12700 | AK30: 12500 | AL30: 14000 | AM30: 12400 | AN30: 11300 | AO30: 11400 | AP30: 7900 | AQ30: 8100 | AR30: 5800 | AS30: 4500 | AT30: 5500 | AU30: 4700 | AV30: 5200 | AW30: 5800 | AX30: 6000 | AY30: 6100 | AZ30: 6700 | BA30: 6600 | BB30: 6900 | BC30: 6100 | BD30: 5000 | BE30: 4600 | BF30: 4000 | BG30: 3700 | BH30: 3600
B31: ualad09:South Lakeland | C31: 1400 | D31: 1600 | E31: 1500 | F31: 1400 | G31: 1300 | H31: 1300 | I31: 1500 | J31: 2200 | K31: 2600 | L31: 2800 | M31: 2600 | N31: 2400 | O31: 2400 | P31: 1800 | Q31: 2700 | R31: 2000 | S31: 1400 | T31: 2300 | U31: 1900 | V31: 1900 | W31: 2100 | X31: 2200 | Y31: 2200 | Z31: 1900 | AA31: 2400 | AB31: 1700 | AC31: 1900 | AD31: 1900 | AE31: 1200 | AF31: 1100 | AG31: ! | AH31: 1700 | AI31: 1800 | AJ31: 1700 | AK31: 1800 | AL31: ! | AM31: 900 | AN31: 1300 | AO31: 1500 | AP31: 2400 | AQ31: 3000 | AR31: 2700 | AS31: 2600 | AT31: 2400 | AU31: 1400 | AV31: 1500 | AW31: 1500 | AX31: 800 | AY31: 800 | AZ31: ! | BA31: ! | BB31: ! | BC31: 900 | BD31: 1300 | BE31: 1200 | BF31: ! | BG31: 900 | BH31: 1000
B32: ualad09:South Ribble | C32: 1900 | D32: 1600 | E32: 1600 | F32: 1300 | G32: 1200 | H32: 2000 | I32: 1400 | J32: 1800 | K32: 1900 | L32: 2100 | M32: 2700 | N32: 3000 | O32: 2100 | P32: 3000 | Q32: 2900 | R32: 2500 | S32: 3900 | T32: 3500 | U32: 3600 | V32: 3200 | W32: 3800 | X32: 3300 | Y32: 3000 | Z32: 3500 | AA32: 1700 | AB32: 2000 | AC32: 2300 | AD32: 3100 | AE32: 4700 | AF32: 4800 | AG32: 4900 | AH32: 4600 | AI32: 3900 | AJ32: 2900 | AK32: 2800 | AL32: 1600 | AM32: 2800 | AN32: 4200 | AO32: 4600 | AP32: 4400 | AQ32: 3100 | AR32: 2200 | AS32: 2600 | AT32: 2800 | AU32: 2100 | AV32: 1700 | AW32: ! | AX32: ! | AY32: ! | AZ32: ! | BA32: ! | BB32: 1300 | BC32: 2200 | BD32: 3100 | BE32: 3000 | BF32: 3400 | BG32: 3100 | BH32: 2900
B33: ualad09:St. Helens | C33: 3700 | D33: 3800 | E33: 4000 | F33: 3900 | G33: 4600 | H33: 4300 | I33: 4300 | J33: 4800 | K33: 4200 | L33: 4300 | M33: 5000 | N33: 4600 | O33: 4900 | P33: 6000 | Q33: 5900 | R33: 6400 | S33: 6500 | T33: 6900 | U33: 6700 | V33: 7500 | W33: 8000 | X33: 7700 | Y33: 6900 | Z33: 6600 | AA33: 6800 | AB33: 6400 | AC33: 6900 | AD33: 7200 | AE33: 7400 | AF33: 7700 | AG33: 7400 | AH33: 7000 | AI33: 6300 | AJ33: 5400 | AK33: 6000 | AL33: 6200 | AM33: 6200 | AN33: 7400 | AO33: 8300 | AP33: 8900 | AQ33: 9400 | AR33: 8900 | AS33: 7100 | AT33: 6400 | AU33: 5900 | AV33: 5500 | AW33: 6100 | AX33: 4900 | AY33: 3900 | AZ33: 3500 | BA33: 2400 | BB33: 3200 | BC33: 3300 | BD33: 4000 | BE33: 4600 | BF33: 3500 | BG33: 3300 | BH33: 2800
A34: NW35 | B34: ualad09:Stockport | C34: 3700 | D34: 4000 | E34: 4400 | F34: 5900 | G34: 6300 | H34: 6000 | I34: 7300 | J34: 5100 | K34: 5300 | L34: 6300 | M34: 5300 | N34: 5500 | O34: 6000 | P34: 5200 | Q34: 5300 | R34: 6900 | S34: 7800 | T34: 8400 | U34: 10400 | V34: 11900 | W34: 11300 | X34: 12100 | Y34: 10400 | Z34: 9400 | AA34: 9200 | AB34: 9400 | AC34: 10100 | AD34: 11100 | AE34: 10400 | AF34: 10600 | AG34: 9500 | AH34: 7500 | AI34: 7800 | AJ34: 7000 | AK34: 8100 | AL34: 7100 | AM34: 6600 | AN34: 7800 | AO34: 8300 | AP34: 8500 | AQ34: 8400 | AR34: 7800 | AS34: 7200 | AT34: 7800 | AU34: 8300 | AV34: 8000 | AW34: 7100 | AX34: 6100 | AY34: 5800 | AZ34: 6800 | BA34: 6300 | BB34: 6800 | BC34: 6100 | BD34: 4200 | BE34: 4400 | BF34: 3700 | BG34: 3900 | BH34: 5300
A35: NW36 | B35: ualad09:Tameside | C35: 5200 | D35: 5000 | E35: 5200 | F35: 7300 | G35: 8000 | H35: 8900 | I35: 8700 | J35: 6500 | K35: 6300 | L35: 6200 | M35: 5700 | N35: 6800 | O35: 6100 | P35: 6400 | Q35: 7300 | R35: 6500 | S35: 8000 | T35: 7900 | U35: 9400 | V35: 10800 | W35: 9300 | X35: 8800 | Y35: 7500 | Z35: 7700 | AA35: 9000 | AB35: 11000 | AC35: 11300 | AD35: 10300 | AE35: 10100 | AF35: 9700 | AG35: 10200 | AH35: 9800 | AI35: 10400 | AJ35: 10100 | AK35: 10500 | AL35: 10900 | AM35: 10300 | AN35: 9400 | AO35: 9700 | AP35: 8800 | AQ35: 7300 | AR35: 6900 | AS35: 4900 | AT35: 4800 | AU35: 5400 | AV35: 6400 | AW35: 7500 | AX35: 7400 | AY35: 7100 | AZ35: 6300 | BA35: 5400 | BB35: 6300 | BC35: 5400 | BD35: 5300 | BE35: 5700 | BF35: 5500 | BG35: 5900 | BH35: 5600
A36: NW37 | B36: ualad09:Trafford | C36: 4300 | D36: 4300 | E36: 4200 | F36: 5100 | G36: 4700 | H36: 5100 | I36: 4600 | J36: 3400 | K36: 3700 | L36: 4000 | M36: 3700 | N36: 4300 | O36: 4800 | P36: 5000 | Q36: 5400 | R36: 6000 | S36: 6000 | T36: 6200 | U36: 8000 | V36: 8900 | W36: 8600 | X36: 9000 | Y36: 8600 | Z36: 8000 | AA36: 8800 | AB36: 7500 | AC36: 7000 | AD36: 8000 | AE36: 8000 | AF36: 9000 | AG36: 8200 | AH36: 8100 | AI36: 7400 | AJ36: 7400 | AK36: 7400 | AL36: 7300 | AM36: 7500 | AN36: 7100 | AO36: 7000 | AP36: 6800 | AQ36: 8200 | AR36: 8100 | AS36: 7900 | AT36: 7200 | AU36: 5800 | AV36: 5200 | AW36: 5000 | AX36: 4200 | AY36: 3200 | AZ36: 3600 | BA36: 4100 | BB36: 4400 | BC36: 5300 | BD36: 4900 | BE36: 4400 | BF36: 5700 | BG36: 4800 | BH36: 5400
B37: ualad09:Warrington | C37: 3000 | D37: 3600 | E37: 3300 | F37: 2700 | G37: 3100 | H37: 3800 | I37: 4100 | J37: 4300 | K37: 4700 | L37: 3600 | M37: 3400 | N37: 4000 | O37: 2600 | P37: 3500 | Q37: 3700 | R37: 3900 | S37: 5100 | T37: 5700 | U37: 6000 | V37: 5700 | W37: 5500 | X37: 5100 | Y37: 5400 | Z37: 5700 | AA37: 5100 | AB37: 5300 | AC37: 5000 | AD37: 6000 | AE37: 6500 | AF37: 6500 | AG37: 6300 | AH37: 5300 | AI37: 5400 | AJ37: 6200 | AK37: 6500 | AL37: 7000 | AM37: 6400 | AN37: 5500 | AO37: 5300 | AP37: 4400 | AQ37: 4000 | AR37: 4500 | AS37: 5100 | AT37: 4700 | AU37: 4600 | AV37: 3700 | AW37: 2800 | AX37: 3300 | AY37: 3300 | AZ37: 3200 | BA37: 3200 | BB37: 3200 | BC37: 3600 | BD37: 4400 | BE37: 4400 | BF37: 3800 | BG37: 3900 | BH37: 3100
B38: ualad09:West Lancashire | C38: 2900 | D38: 2900 | E38: 2400 | F38: 2600 | G38: 2300 | H38: 1300 | I38: 1300 | J38: 2600 | K38: 1900 | L38: 2400 | M38: 2800 | N38: ! | O38: 1300 | P38: 1300 | Q38: 1600 | R38: 2600 | S38: 2900 | T38: 4900 | U38: 6400 | V38: 6100 | W38: 6300 | X38: 5400 | Y38: 3900 | Z38: 3200 | AA38: 2500 | AB38: 1900 | AC38: 1600 | AD38: 2400 | AE38: 3400 | AF38: 4300 | AG38: 5200 | AH38: 5100 | AI38: 4900 | AJ38: 3600 | AK38: 3100 | AL38: 2000 | AM38: 1700 | AN38: 3400 | AO38: 2900 | AP38: 2900 | AQ38: 3600 | AR38: 2600 | AS38: 3400 | AT38: 3600 | AU38: 2100 | AV38: ! | AW38: ! | AX38: ! | AY38: ! | AZ38: 2100 | BA38: 2200 | BB38: 3700 | BC38: 2600 | BD38: 1700 | BE38: 3100 | BF38: 3600 | BG38: 4500 | BH38: 4000
A39: NW41 | B39: ualad09:Wigan | C39: 7400 | D39: 8200 | E39: 8800 | F39: 7600 | G39: 7200 | H39: 6200 | I39: 7000 | J39: 7200 | K39: 7800 | L39: 7800 | M39: 8000 | N39: 9500 | O39: 9700 | P39: 9900 | Q39: 9800 | R39: 8500 | S39: 8200 | T39: 8900 | U39: 10700 | V39: 13400 | W39: 13900 | X39: 14600 | Y39: 12700 | Z39: 11500 | AA39: 12000 | AB39: 10700 | AC39: 11400 | AD39: 11400 | AE39: 12400 | AF39: 14500 | AG39: 14800 | AH39: 13600 | AI39: 14500 | AJ39: 14200 | AK39: 13500 | AL39: 15000 | AM39: 14700 | AN39: 14400 | AO39: 15500 | AP39: 13900 | AQ39: 12400 | AR39: 10700 | AS39: 9300 | AT39: 8700 | AU39: 8600 | AV39: 7300 | AW39: 8000 | AX39: 8300 | AY39: 7800 | AZ39: 7300 | BA39: 6400 | BB39: 5600 | BC39: 4700 | BD39: 5500 | BE39: 5800 | BF39: 6000 | BG39: 6100 | BH39: 5500
B40: ualad09:Wirral | C40: 7600 | D40: 8500 | E40: 9100 | F40: 8800 | G40: 9300 | H40: 7500 | I40: 7700 | J40: 7500 | K40: 8000 | L40: 9600 | M40: 10600 | N40: 10200 | O40: 9600 | P40: 9900 | Q40: 9900 | R40: 11600 | S40: 11300 | T40: 12200 | U40: 11900 | V40: 11300 | W40: 12500 | X40: 12400 | Y40: 12200 | Z40: 12200 | AA40: 10800 | AB40: 11000 | AC40: 11600 | AD40: 11800 | AE40: 13000 | AF40: 13200 | AG40: 12300 | AH40: 12100 | AI40: 11500 | AJ40: 9700 | AK40: 10400 | AL40: 11900 | AM40: 12200 | AN40: 12400 | AO40: 13000 | AP40: 12000 | AQ40: 12600 | AR40: 12000 | AS40: 10200 | AT40: 7800 | AU40: 5600 | AV40: 6100 | AW40: 5600 | AX40: 5900 | AY40: 5000 | AZ40: 4100 | BA40: 4800 | BB40: 5900 | BC40: 7200 | BD40: 7600 | BE40: 5900 | BF40: 5200 | BG40: 3800 | BH40: 3800
B41: ualad09:Wyre | C41: 1500 | D41: 1600 | E41: 1400 | F41: 1100 | G41: 800 | H41: 700 | I41: 2100 | J41: 2400 | K41: 2700 | L41: 2800 | M41: 2000 | N41: 1300 | O41: 1400 | P41: 1600 | Q41: 1700 | R41: 2000 | S41: 2600 | T41: 2300 | U41: 2400 | V41: 2200 | W41: 1600 | X41: 1400 | Y41: 1800 | Z41: 2400 | AA41: 3200 | AB41: 2700 | AC41: 3300 | AD41: 4400 | AE41: 4400 | AF41: 4900 | AG41: 4100 | AH41: 3300 | AI41: 3400 | AJ41: 4100 | AK41: 4700 | AL41: 5000 | AM41: 3600 | AN41: 2400 | AO41: 2400 | AP41: 1600 | AQ41: ! | AR41: ! | AS41: ! | AT41: ! | AU41: ! | AV41: 2300 | AW41: 2000 | AX41: 2600 | AY41: 4300 | AZ41: 3500 | BA41: 3400 | BB41: 2700 | BC41: 1400 | BD41: 1300 | BE41: 1700 | BF41: 2100 | BG41: 1600 | BH41: 1300
A42: LEP03 | B42: lep:Cheshire and Warrington | C42: 11000 | D42: 14000 | E42: 14400 | F42: 14200 | G42: 14900 | H42: 13000 | I42: 14900 | J42: 16300 | K42: 16900 | L42: 16800 | M42: 13800 | N42: 14900 | O42: 13500 | P42: 15600 | Q42: 15700 | R42: 17400 | S42: 22900 | T42: 25700 | U42: 28000 | V42: 30000 | W42: 27000 | X42: 28000 | Y42: 27100 | Z42: 28000 | AA42: 27500 | AB42: 27900 | AC42: 29100 | AD42: 26500 | AE42: 29000 | AF42: 29300 | AG42: 29800 | AH42: 30000 | AI42: 27500 | AJ42: 31200 | AK42: 31100 | AL42: 30900 | AM42: 28700 | AN42: 22900 | AO42: 19500 | AP42: 16300 | AQ42: 16200 | AR42: 15800 | AS42: 15600 | AT42: 16600 | AU42: 17800 | AV42: 16100 | AW42: 15200 | AX42: 16700 | AY42: 16700 | AZ42: 17300 | BA42: 19000 | BB42: 16500 | BC42: 15500 | BD42: 17500 | BE42: 15500 | BF42: 15400 | BG42: 15100 | BH42: 13800
A43: LEP07 | B43: lep:Cumbria | C43: 8600 | D43: 8800 | E43: 9100 | F43: 8300 | G43: 9400 | H43: 6300 | I43: 7000 | J43: 8300 | K43: 10700 | L43: 10900 | M43: 10900 | N43: 11500 | O43: 9000 | P43: 8300 | Q43: 8500 | R43: 7100 | S43: 7000 | T43: 10000 | U43: 13100 | V43: 14900 | W43: 15200 | X43: 15300 | Y43: 13600 | Z43: 15900 | AA43: 17300 | AB43: 16400 | AC43: 16700 | AD43: 14500 | AE43: 15600 | AF43: 14600 | AG43: 14700 | AH43: 15700 | AI43: 13800 | AJ43: 14000 | AK43: 12500 | AL43: 12000 | AM43: 12800 | AN43: 13200 | AO43: 14100 | AP43: 14100 | AQ43: 13600 | AR43: 13100 | AS43: 11900 | AT43: 10200 | AU43: 9400 | AV43: 8900 | AW43: 9900 | AX43: 10100 | AY43: 9800 | AZ43: 8900 | BA43: 7400 | BB43: 6400 | BC43: 8000 | BD43: 7800 | BE43: 6900 | BF43: 5900 | BG43: 4800 | BH43: 5900
A44: LEP15 | B44: lep:Greater Manchester | C44: 60100 | D44: 59200 | E44: 58200 | F44: 62300 | G44: 69200 | H44: 73000 | I44: 76000 | J44: 70700 | K44: 69600 | L44: 68600 | M44: 71800 | N44: 77900 | O44: 79200 | P44: 84500 | Q44: 85800 | R44: 89100 | S44: 93800 | T44: 96800 | U44: 108500 | V44: 123800 | W44: 127900 | X44: 131400 | Y44: 123100 | Z44: 116400 | AA44: 114000 | AB44: 110100 | AC44: 115300 | AD44: 120300 | AE44: 125300 | AF44: 131500 | AG44: 131500 | AH44: 126600 | AI44: 125300 | AJ44: 123100 | AK44: 122500 | AL44: 118800 | AM44: 117300 | AN44: 114200 | AO44: 114400 | AP44: 106800 | AQ44: 103700 | AR44: 97600 | AS44: 90900 | AT44: 94500 | AU44: 88800 | AV44: 87800 | AW44: 88800 | AX44: 84000 | AY44: 83800 | AZ44: 82000 | BA44: 75500 | BB44: 75800 | BC44: 68000 | BD44: 66400 | BE44: 63100 | BF44: 61600 | BG44: 63400 | BH44: 60600
A45: LEP19 | B45: lep:Lancashire | C45: 31500 | D45: 31900 | E45: 30400 | F45: 30300 | G45: 32700 | H45: 29900 | I45: 30100 | J45: 33700 | K45: 34200 | L45: 35700 | M45: 38300 | N45: 36500 | O45: 37800 | P45: 37100 | Q45: 39900 | R45: 38800 | S45: 40700 | T45: 44900 | U45: 48500 | V45: 49800 | W45: 49300 | X45: 50800 | Y45: 46600 | Z45: 45600 | AA45: 44900 | AB45: 39900 | AC45: 43400 | AD45: 46900 | AE45: 49700 | AF45: 55500 | AG45: 57700 | AH45: 57900 | AI45: 58100 | AJ45: 51900 | AK45: 45800 | AL45: 43300 | AM45: 44300 | AN45: 49600 | AO45: 53400 | AP45: 50300 | AQ45: 43700 | AR45: 36700 | AS45: 32400 | AT45: 32400 | AU45: 29600 | AV45: 30400 | AW45: 30000 | AX45: 29400 | AY45: 32900 | AZ45: 33300 | BA45: 31000 | BB45: 34000 | BC45: 30500 | BD45: 30100 | BE45: 32300 | BF45: 35400 | BG45: 34400 | BH45: 34000
A46: LEP22 | B46: lep:Liverpool City Region | C46: 41800 | D46: 44100 | E46: 44100 | F46: 46700 | G46: 47000 | H46: 44800 | I46: 45600 | J46: 46700 | K46: 47100 | L46: 51400 | M46: 55000 | N46: 52200 | O46: 50400 | P46: 48400 | Q46: 46100 | R46: 46600 | S46: 48900 | T46: 54200 | U46: 58500 | V46: 63600 | W46: 70700 | X46: 71800 | Y46: 70600 | Z46: 74800 | AA46: 71000 | AB46: 70100 | AC46: 73700 | AD46: 69300 | AE46: 71000 | AF46: 73400 | AG46: 70500 | AH46: 71200 | AI46: 70700 | AJ46: 68400 | AK46: 69200 | AL46: 70500 | AM46: 70600 | AN46: 70700 | AO46: 70800 | AP46: 66600 | AQ46: 66900 | AR46: 58800 | AS46: 53800 | AT46: 49900 | AU46: 40400 | AV46: 42200 | AW46: 43400 | AX46: 38800 | AY46: 38600 | AZ46: 37000 | BA46: 34000 | BB46: 35200 | BC46: 36500 | BD46: 35600 | BE46: 31400 | BF46: 29100 | BG46: 26000 | BH46: 25500
A47: UK | B47: country:United Kingdom | C47: 1419200 | D47: 1415000 | E47: 1429700 | F47: 1435900 | G47: 1477800 | H47: 1525100 | I47: 1593900 | J47: 1638800 | K47: 1637300 | L47: 1631400 | M47: 1617500 | N47: 1596500 | O47: 1592200 | P47: 1592800 | Q47: 1597500 | R47: 1645600 | S47: 1770600 | T47: 1923500 | U47: 2132100 | V47: 2295100 | W47: 2397800 | X47: 2460700 | Y47: 2419000 | Z47: 2403300 | AA47: 2400000 | AB47: 2391700 | AC47: 2435700 | AD47: 2492000 | AE47: 2538900 | AF47: 2569500 | AG47: 2576500 | AH47: 2534500 | AI47: 2516800 | AJ47: 2511700 | AK47: 2515300 | AL47: 2505500 | AM47: 2425500 | AN47: 2323800 | AO47: 2216600 | AP47: 2112600 | AQ47: 2026700 | AR47: 1945800 | AS47: 1855800 | AT47: 1786700 | AU47: 1727400 | AV47: 1696100 | AW47: 1683300 | AX47: 1644100 | AY47: 1606300 | AZ47: 1569000 | BA47: 1522200 | BB47: 1491700 | BC47: 1461000 | BD47: 1433800 | BE47: 1409400 | BF47: 1397400 | BG47: 1393500 | BH47: 1377500
A48: NW | B48: gor:North West | C48: 152900 | D48: 158000 | E48: 156300 | F48: 161800 | G48: 173300 | H48: 167100 | I48: 173700 | J48: 175700 | K48: 178400 | L48: 183400 | M48: 189700 | N48: 193000 | O48: 189800 | P48: 194000 | Q48: 196000 | R48: 198900 | S48: 213400 | T48: 231600 | U48: 256700 | V48: 282100 | W48: 290100 | X48: 297400 | Y48: 281000 | Z48: 280700 | AA48: 274700 | AB48: 264400 | AC48: 278300 | AD48: 277400 | AE48: 290500 | AF48: 304400 | AG48: 304200 | AH48: 301500 | AI48: 295400 | AJ48: 288600 | AK48: 281100 | AL48: 275500 | AM48: 273600 | AN48: 270500 | AO48: 272300 | AP48: 254200 | AQ48: 244100 | AR48: 222000 | AS48: 204600 | AT48: 203500 | AU48: 186100 | AV48: 185400 | AW48: 187500 | AX48: 179000 | AY48: 181700 | AZ48: 178500 | BA48: 166900 | BB48: 167800 | BC48: 158400 | BD48: 157300 | BE48: 149300 | BF48: 147400 | BG48: 143600 | BH48: 139800
A53: Greater Manchester | C53: January 2013 | D53: February 2013 | E53: March 2013 | F53: April 2013 | G53: May 2013 | H53: June 2013 | I53: July 2013 | J53: August 2013 | K53: September 2013 | L53: October 2013 | M53: November 2013 | N53: December 2013 | O53: January 2014 | P53: February 2014 | Q53: March 2014 | R53: April 2014 | S53: May 2014 | T53: June 2014 | U53: July 2014 | V53: August 2014 | W53: September 2014 | X53: October 2014 | Y53: November 2014 | Z53: December 2014 | AA53: January 2015 | AB53: February 2015 | AC53: March 2015 | AD53: April 2015 | AE53: May 2015 | AF53: June 2015 | AG53: July 2015 | AH53: August 2015 | AI53: September 2015 | AJ53: October 2015 | AK53: November 2015 | AL53: December 2015 | AM53: January 2016 | AN53: February 2016 | AO53: March 2016 | AP53: April 2016 | AQ53: May 2016 | AR53: June 2016 | AS53: July 2016 | AT53: August 2016 | AU53: September 2016 | AV53: October 2016 | AW53: November 2016 | AX53: December 2016 | AY53: January 2017 | AZ53: February 2017 | BA53: March 2017 | BB53: April 2017 | BC53: May 2017 | BD53: June 2017 | BE53: July 2017 | BF53: August 2017 | BG53: September 2017 | BH53: October 2017 | BI53: November 2017 | BJ53: December 2017 | BK53: January 2018 | BL53: February 2018 | BM53: March 2018 | BN53: April 2018 | BO53: May 2018 | BP53: June 2018 | BQ53: July 2018 | BR53: August 2018 | BS53: September 2018 | BT53: October 2018 | BU53: November 2018 | BV53: December 2018 | BW53: January 2019 | BX53: February 2019 | BY53: March 2019 | BZ53: April 2019 | CA53: May 2019 | CB53: June 2019 | CC53: July 2019
B54: Bolton | C54: =VLOOKUP($B54,$B$3:$BO$41,B$1,FALSE) ->  | D54: =VLOOKUP($B54,$B$3:$BO$41,C$1,FALSE) ->  | BO54: =VLOOKUP($B54,$B$3:$CC$41,BN$1,FALSE) ->  | BP54: =VLOOKUP($B54,$B$3:$CC$41,BO$1,FALSE) -> 
B55: Bury | C55: =VLOOKUP($B55,$B$3:$BO$41,B$1,FALSE) ->  | BO55: =VLOOKUP($B55,$B$3:$CC$41,BN$1,FALSE) -> 
B56: Manchester | C56: =VLOOKUP($B56,$B$3:$BO$41,B$1,FALSE) ->  | BO56: =VLOOKUP($B56,$B$3:$CC$41,BN$1,FALSE) -> 
B57: Oldham | C57: =VLOOKUP($B57,$B$3:$BO$41,B$1,FALSE) ->  | BO57: =VLOOKUP($B57,$B$3:$CC$41,BN$1,FALSE) -> 
B58: Rochdale | C58: =VLOOKUP($B58,$B$3:$BO$41,B$1,FALSE) ->  | BO58: =VLOOKUP($B58,$B$3:$CC$41,BN$1,FALSE) -> 
B59: Salford | C59: =VLOOKUP($B59,$B$3:$BO$41,B$1,FALSE) ->  | BO59: =VLOOKUP($B59,$B$3:$CC$41,BN$1,FALSE) -> 
B60: Stockport | C60: =VLOOKUP($B60,$B$3:$BO$41,B$1,FALSE) ->  | BO60: =VLOOKUP($B60,$B$3:$CC$41,BN$1,FALSE) -> 
B61: Tameside | C61: =VLOOKUP($B61,$B$3:$BO$41,B$1,FALSE) ->  | BO61: =VLOOKUP($B61,$B$3:$CC$41,BN$1,FALSE) -> 
B62: Trafford | C62: =VLOOKUP($B62,$B$3:$BO$41,B$1,FALSE) ->  | BO62: =VLOOKUP($B62,$B$3:$CC$41,BN$1,FALSE) -> 
B63: Wigan | C63: =VLOOKUP($B63,$B$3:$BO$41,B$1,FALSE) ->  | BO63: =VLOOKUP($B63,$B$3:$CC$41,BN$1,FALSE) -> 
C64: =SUM(C54:C63) ->  | D64: =SUM(D54:D63) ->  | AW64: =SUM(AW54:AW63) ->  | BP64: =SUM(BP54:BP63) -> 
A67: Liverpool LEP | C67: January 2013 | D67: February 2013 | E67: March 2013 | F67: April 2013 | G67: May 2013 | H67: June 2013 | I67: July 2013 | J67: August 2013 | K67: September 2013 | L67: October 2013 | M67: November 2013 | N67: December 2013 | O67: January 2014 | P67: February 2014 | Q67: March 2014 | R67: April 2014 | S67: May 2014 | T67: June 2014 | U67: July 2014 | V67: August 2014 | W67: September 2014 | X67: October 2014 | Y67: November 2014 | Z67: December 2014 | AA67: January 2015 | AB67: February 2015 | AC67: March 2015 | AD67: April 2015 | AE67: May 2015 | AF67: June 2015 | AG67: July 2015 | AH67: August 2015 | AI67: September 2015 | AJ67: October 2015 | AK67: November 2015 | AL67: December 2015 | AM67: January 2016 | AN67: February 2016 | AO67: March 2016 | AP67: April 2016 | AQ67: May 2016 | AR67: June 2016 | AS67: July 2016 | AT67: August 2016 | AU67: September 2016 | AV67: October 2016 | AW67: November 2016 | AX67: December 2016 | AY67: January 2017 | AZ67: February 2017 | BA67: March 2017 | BB67: April 2017 | BC67: May 2017 | BD67: June 2017 | BE67: July 2017 | BF67: August 2017 | BG67: September 2017 | BH67: October 2017 | BI67: November 2017 | BJ67: December 2017 | BK67: January 2018 | BL67: February 2018 | BM67: March 2018 | BN67: April 2018 | BO67: May 2018 | BP67: June 2018 | BQ67: July 2018 | BR67: August 2018 | BS67: September 2018 | BT67: October 2018 | BU67: November 2018 | BV67: December 2018 | BW67: January 2019 | BX67: February 2019 | BY67: March 2019 | BZ67: April 2019 | CA67: May 2019 | CB67: June 2019 | CC67: July 2019
B68: Halton | C68: =VLOOKUP($B68,$B$3:$BO$41,B$1,FALSE) ->  | D68: =VLOOKUP($B68,$B$3:$BO$41,C$1,FALSE) ->  | AW68: =VLOOKUP($B68,$B$3:$BO$41,AV$1,FALSE) ->  | BO68: =VLOOKUP($B68,$B$3:$CC$41,BN$1,FALSE) -> 
B69: Knowsley | C69: =VLOOKUP($B69,$B$3:$BO$41,B$1,FALSE) ->  | AW69: =VLOOKUP($B69,$B$3:$BO$41,AV$1,FALSE) ->  | BO69: =VLOOKUP($B69,$B$3:$CC$41,BN$1,FALSE) -> 
B70: Liverpool | C70: =VLOOKUP($B70,$B$3:$BO$41,B$1,FALSE) ->  | AW70: =VLOOKUP($B70,$B$3:$BO$41,AV$1,FALSE) ->  | BO70: =VLOOKUP($B70,$B$3:$CC$41,BN$1,FALSE) -> 
B71: Sefton | C71: =VLOOKUP($B71,$B$3:$BO$41,B$1,FALSE) ->  | AW71: =VLOOKUP($B71,$B$3:$BO$41,AV$1,FALSE) ->  | BO71: =VLOOKUP($B71,$B$3:$CC$41,BN$1,FALSE) -> 
B72: St. Helens | C72: =VLOOKUP($B72,$B$3:$BO$41,B$1,FALSE) ->  | AW72: =VLOOKUP($B72,$B$3:$BO$41,AV$1,FALSE) ->  | BO72: =VLOOKUP($B72,$B$3:$CC$41,BN$1,FALSE) -> 
B73: Wirral | C73: =VLOOKUP($B73,$B$3:$BO$41,B$1,FALSE) ->  | AW73: =VLOOKUP($B73,$B$3:$BO$41,AV$1,FALSE) ->  | BO73: =VLOOKUP($B73,$B$3:$CC$41,BN$1,FALSE) -> 
C74: =SUM(C68:C73) ->  | D74: =SUM(D68:D73) ->  | AW74: =SUM(AW68:AW73) -> 
A77: Cheshire & Warrington LEP | C77: January 2013 | D77: February 2013 | E77: March 2013 | F77: April 2013 | G77: May 2013 | H77: June 2013 | I77: July 2013 | J77: August 2013 | K77: September 2013 | L77: October 2013 | M77: November 2013 | N77: December 2013 | O77: January 2014 | P77: February 2014 | Q77: March 2014 | R77: April 2014 | S77: May 2014 | T77: June 2014 | U77: July 2014 | V77: August 2014 | W77: September 2014 | X77: October 2014 | Y77: November 2014 | Z77: December 2014 | AA77: January 2015 | AB77: February 2015 | AC77: March 2015 | AD77: April 2015 | AE77: May 2015 | AF77: June 2015 | AG77: July 2015 | AH77: August 2015 | AI77: September 2015 | AJ77: October 2015 | AK77: November 2015 | AL77: December 2015 | AM77: January 2016 | AN77: February 2016 | AO77: March 2016 | AP77: April 2016 | AQ77: May 2016 | AR77: June 2016 | AS77: July 2016 | AT77: August 2016 | AU77: September 2016 | AV77: October 2016 | AW77: November 2016 | AX77: December 2016 | AY77: January 2017 | AZ77: February 2017 | BA77: March 2017 | BB77: April 2017 | BC77: May 2017 | BD77: June 2017 | BE77: July 2017 | BF77: August 2017 | BG77: September 2017 | BH77: October 2017 | BI77: November 2017 | BJ77: December 2017 | BK77: January 2018 | BL77: February 2018 | BM77: March 2018 | BN77: April 2018 | BO77: May 2018 | BP77: June 2018 | BQ77: July 2018 | BR77: August 2018 | BS77: September 2018 | BT77: October 2018 | BU77: November 2018 | BV77: December 2018 | BW77: January 2019 | BX77: February 2019 | BY77: March 2019 | BZ77: April 2019 | CA77: May 2019 | CB77: June 2019 | CC77: July 2019
B78: Cheshire East | C78: =VLOOKUP($B78,$B$3:$BO$41,B$1,FALSE) ->  | D78: =VLOOKUP($B78,$B$3:$BO$41,C$1,FALSE) ->  | BO78: =VLOOKUP($B78,$B$3:$CC$41,BN$1,FALSE) -> 
B79: Cheshire West and Chester | C79: =VLOOKUP($B79,$B$3:$BO$41,B$1,FALSE) ->  | BO79: =VLOOKUP($B79,$B$3:$CC$41,BN$1,FALSE) -> 
B80: Warrington | C80: =VLOOKUP($B80,$B$3:$BO$41,B$1,FALSE) ->  | BO80: =VLOOKUP($B80,$B$3:$CC$41,BN$1,FALSE) -> 
C81: =SUM(C78:C80) ->  | D81: =SUM(D78:D80) ->  | AW81: =SUM(AW78:AW80) -> 
A84: Lancashire LEP | C84: January 2013 | D84: February 2013 | E84: March 2013 | F84: April 2013 | G84: May 2013 | H84: June 2013 | I84: July 2013 | J84: August 2013 | K84: September 2013 | L84: October 2013 | M84: November 2013 | N84: December 2013 | O84: January 2014 | P84: February 2014 | Q84: March 2014 | R84: April 2014 | S84: May 2014 | T84: June 2014 | U84: July 2014 | V84: August 2014 | W84: September 2014 | X84: October 2014 | Y84: November 2014 | Z84: December 2014 | AA84: January 2015 | AB84: February 2015 | AC84: March 2015 | AD84: April 2015 | AE84: May 2015 | AF84: June 2015 | AG84: July 2015 | AH84: August 2015 | AI84: September 2015 | AJ84: October 2015 | AK84: November 2015 | AL84: December 2015 | AM84: January 2016 | AN84: February 2016 | AO84: March 2016 | AP84: April 2016 | AQ84: May 2016 | AR84: June 2016 | AS84: July 2016 | AT84: August 2016 | AU84: September 2016 | AV84: October 2016 | AW84: November 2016 | AX84: December 2016 | AY84: January 2017 | AZ84: February 2017 | BA84: March 2017 | BB84: April 2017 | BC84: May 2017 | BD84: June 2017 | BE84: July 2017 | BF84: August 2017 | BG84: September 2017 | BH84: October 2017 | BI84: November 2017 | BJ84: December 2017 | BK84: January 2018 | BL84: February 2018 | BM84: March 2018 | BN84: April 2018 | BO84: May 2018 | BP84: June 2018 | BQ84: July 2018 | BR84: August 2018 | BS84: September 2018 | BT84: October 2018 | BU84: November 2018 | BV84: December 2018 | BW84: January 2019 | BX84: February 2019 | BY84: March 2019 | BZ84: April 2019 | CA84: May 2019 | CB84: June 2019 | CC84: July 2019
B85: Blackpool | C85: =VLOOKUP($B85,$B$3:$BO$41,B$1,FALSE) ->  | D85: =VLOOKUP($B85,$B$3:$BO$41,C$1,FALSE) ->  | BO85: =VLOOKUP($B85,$B$3:$CC$41,BN$1,FALSE) -> 
B86: Blackburn with Darwen | C86: =VLOOKUP($B86,$B$3:$BO$41,B$1,FALSE) ->  | BO86: =VLOOKUP($B86,$B$3:$CC$41,BN$1,FALSE) -> 
B87: Burnley | C87: =VLOOKUP($B87,$B$3:$BO$41,B$1,FALSE) ->  | BO87: =VLOOKUP($B87,$B$3:$CC$41,BN$1,FALSE) -> 
B88: Chorley | C88: =VLOOKUP($B88,$B$3:$BO$41,B$1,FALSE) ->  | BO88: =VLOOKUP($B88,$B$3:$CC$41,BN$1,FALSE) -> 
B89: Fylde | C89: =VLOOKUP($B89,$B$3:$BO$41,B$1,FALSE) ->  | BO89: =VLOOKUP($B89,$B$3:$CC$41,BN$1,FALSE) -> 
B90: Hyndburn | C90: =VLOOKUP($B90,$B$3:$BO$41,B$1,FALSE) ->  | BO90: =VLOOKUP($B90,$B$3:$CC$41,BN$1,FALSE) -> 
B91: Lancaster | C91: =VLOOKUP($B91,$B$3:$BO$41,B$1,FALSE) ->  | BO91: =VLOOKUP($B91,$B$3:$CC$41,BN$1,FALSE) -> 
B92: Pendle | C92: =VLOOKUP($B92,$B$3:$BO$41,B$1,FALSE) ->  | BO92: =VLOOKUP($B92,$B$3:$CC$41,BN$1,FALSE) -> 
B93: Preston | C93: =VLOOKUP($B93,$B$3:$BO$41,B$1,FALSE) ->  | BO93: =VLOOKUP($B93,$B$3:$CC$41,BN$1,FALSE) -> 
B94: Ribble Valley | C94: =VLOOKUP($B94,$B$3:$BO$41,B$1,FALSE) ->  | BO94: =VLOOKUP($B94,$B$3:$CC$41,BN$1,FALSE) -> 
B95: Rossendale | C95: =VLOOKUP($B95,$B$3:$BO$41,B$1,FALSE) ->  | BO95: =VLOOKUP($B95,$B$3:$CC$41,BN$1,FALSE) -> 
B96: South Ribble | C96: =VLOOKUP($B96,$B$3:$BO$41,B$1,FALSE) ->  | BO96: =VLOOKUP($B96,$B$3:$CC$41,BN$1,FALSE) -> 
B97: West Lancashire | C97: =VLOOKUP($B97,$B$3:$BO$41,B$1,FALSE) ->  | BO97: =VLOOKUP($B97,$B$3:$CC$41,BN$1,FALSE) -> 
B98: Wyre | C98: =VLOOKUP($B98,$B$3:$BO$41,B$1,FALSE) ->  | BO98: =VLOOKUP($B98,$B$3:$CC$41,BN$1,FALSE) -> 
C99: =SUM(C85:C98) ->  | D99: =SUM(D85:D98) ->  | AW99: =SUM(AW85:AW98) -> 
A102: Cumbria LEP | C102: January 2013 | D102: February 2013 | E102: March 2013 | F102: April 2013 | G102: May 2013 | H102: June 2013 | I102: July 2013 | J102: August 2013 | K102: September 2013 | L102: October 2013 | M102: November 2013 | N102: December 2013 | O102: January 2014 | P102: February 2014 | Q102: March 2014 | R102: April 2014 | S102: May 2014 | T102: June 2014 | U102: July 2014 | V102: August 2014 | W102: September 2014 | X102: October 2014 | Y102: November 2014 | Z102: December 2014 | AA102: January 2015 | AB102: February 2015 | AC102: March 2015 | AD102: April 2015 | AE102: May 2015 | AF102: June 2015 | AG102: July 2015 | AH102: August 2015 | AI102: September 2015 | AJ102: October 2015 | AK102: November 2015 | AL102: December 2015 | AM102: January 2016 | AN102: February 2016 | AO102: March 2016 | AP102: April 2016 | AQ102: May 2016 | AR102: June 2016 | AS102: July 2016 | AT102: August 2016 | AU102: September 2016 | AV102: October 2016 | AW102: November 2016 | AX102: December 2016 | AY102: January 2017 | AZ102: February 2017 | BA102: March 2017 | BB102: April 2017 | BC102: May 2017 | BD102: June 2017 | BE102: July 2017 | BF102: August 2017 | BG102: September 2017 | BH102: October 2017 | BI102: November 2017 | BJ102: December 2017 | BK102: January 2018 | BL102: February 2018 | BM102: March 2018 | BN102: April 2018 | BO102: May 2018 | BP102: June 2018 | BQ102: July 2018 | BR102: August 2018 | BS102: September 2018 | BT102: October 2018 | BU102: November 2018 | BV102: December 2018 | BW102: January 2019 | BX102: February 2019 | BY102: March 2019 | BZ102: April 2019 | CA102: May 2019 | CB102: June 2019 | CC102: July 2019
B103: Allerdale | C103: =VLOOKUP($B103,$B$3:$BO$41,B$1,FALSE) ->  | D103: =VLOOKUP($B103,$B$3:$BO$41,C$1,FALSE) ->  | BO103: =VLOOKUP($B103,$B$3:$CC$41,BN$1,FALSE) -> 
B104: Barrow-in-Furness | C104: =VLOOKUP($B104,$B$3:$BO$41,B$1,FALSE) ->  | BO104: =VLOOKUP($B104,$B$3:$CC$41,BN$1,FALSE) -> 
B105: Carlisle | C105: =VLOOKUP($B105,$B$3:$BO$41,B$1,FALSE) ->  | BO105: =VLOOKUP($B105,$B$3:$CC$41,BN$1,FALSE) -> 
B106: Copeland | C106: =VLOOKUP($B106,$B$3:$BO$41,B$1,FALSE) ->  | BO106: =VLOOKUP($B106,$B$3:$CC$41,BN$1,FALSE) -> 
B107: Eden | C107: =VLOOKUP($B107,$B$3:$BO$41,B$1,FALSE) ->  | BO107: =VLOOKUP($B107,$B$3:$CC$41,BN$1,FALSE) -> 
B108: South Lakeland | C108: =VLOOKUP($B108,$B$3:$BO$41,B$1,FALSE) ->  | BO108: =VLOOKUP($B108,$B$3:$CC$41,BN$1,FALSE) -> 
C109: =SUM(C103:C108) ->  | D109: =SUM(D103:D108) ->  | AW109: =SUM(AW103:AW108) ->  | BP109: =SUM(BP103:BP108) -> 

Sheet RAWDATA (hidden)
C1: 2 | D1: 3 | E1: 4 | F1: 5 | G1: 6 | H1: 7 | I1: 8 | J1: 9 | K1: 10 | L1: 11 | M1: 12 | N1: 13 | O1: 14 | P1: 15 | Q1: 16 | R1: 17 | S1: 18 | T1: 19 | U1: 20 | V1: 21 | W1: 22 | X1: 23 | Y1: 24 | Z1: 25 | AA1: 26 | AB1: 27 | AC1: 28 | AD1: 29 | AE1: 30 | AF1: 31 | AG1: 32 | AH1: 33 | AI1: 34 | AJ1: 35 | AK1: 36 | AL1: 37 | AM1: 38 | AN1: 39 | AO1: 40 | AP1: 41 | AQ1: 42 | AR1: 43 | AS1: 44 | AT1: 45 | AU1: 46 | AV1: 47 | AW1: 48 | AX1: 49 | AY1: 50 | AZ1: 51 | BA1: 52
C2: 1991 | D2: 1992 | E2: 1993 | F2: 1994 | G2: 1995 | H2: 1996 | I2: 1997 | J2: 1998 | K2: 1999 | L2: 2000 | M2: 2001 | N2: 2002 | O2: 2003 | P2: 2004 | Q2: 2005 | R2: 2006 | S2: 2007 | T2: 2008 | U2: 2009 | V2: 2010 | W2: 2011 | X2: 2012 | Y2: 2013 | Z2: 2014 | AA2: 2015 | AB2: 2016 | AC2: 2017 | AD2: 2018 | AE2: 2019 | AF2: 2020 | AG2: 2021 | AH2: 2022 | AI2: 2023 | AJ2: 2024 | AK2: 2025 | AL2: 2026 | AM2: 2027 | AN2: 2028 | AO2: 2029 | AP2: 2030 | AQ2: 2031 | AR2: 2032 | AS2: 2033 | AT2: 2034 | AU2: 2035 | AV2: 2036 | AW2: 2037 | AX2: 2038 | AY2: 2039
A3: POPLnw5 | B3: =A3 -> POPLnw5 | C3: =INDEX(Extract!C$4:C$40003,MATCH($A3,Extract!$B$4:$B$40003,0)) -> 261.3053078 | D3: =INDEX(Extract!D$4:D$40003,MATCH($A3,Extract!$B$4:$B$40003,0)) -> 261.5422982 | E3: =INDEX(Extract!E$4:E$40003,MATCH($A3,Extract!$B$4:$B$40003,0)) -> 261.8413145 | F3: =INDEX(Extract!F$4:F$40003,MATCH($A3,Extract!$B$4:$B$40003,0)) -> 261.4492982 | G3: =INDEX(Extract!G$4:G$40003,MATCH($A3,Extract!$B$4:$B$40003,0)) -> 260.8283033 | H3: =INDEX(Extract!H$4:H$40003,MATCH($A3,Extract!$B$4:$B$40003,0)) -> 260.0123053 | I3: =INDEX(Extract!I$4:I$40003,MATCH($A3,Extract!$B$4:$B$40003,0)) -> 259.6653028 | J3: =INDEX(Extract!J$4:J$40003,MATCH($A3,Extract!$B$4:$B$40003,0)) -> 260.8382998 | K3: =INDEX(Extract!K$4:K$40003,MATCH($A3,Extract!$B$4:$B$40003,0)) -> 260.3523145 | L3: =INDEX(Extract!L$4:L$40003,MATCH($A3,Extract!$B$4:$B$40003,0)) -> 260.139311 | M3: =INDEX(Extract!M$4:M$40003,MATCH($A3,Extract!$B$4:$B$40003,0)) -> 261.2583002 | N3: =INDEX(Extract!N$4:N$40003,MATCH($A3,Extract!$B$4:$B$40003,0)) -> 262.3542507 | O3: =INDEX(Extract!O$4:O$40003,MATCH($A3,Extract!$B$4:$B$40003,0)) -> 263.8573508 | P3: =INDEX(Extract!P$4:P$40003,MATCH($A3,Extract!$B$4:$B$40003,0)) -> 264.5654425 | Q3: =INDEX(Extract!Q$4:Q$40003,MATCH($A3,Extract!$B$4:$B$40003,0)) -> 265.0597127 | R3: =INDEX(Extract!R$4:R$40003,MATCH($A3,Extract!$B$4:$B$40003,0)) -> 266.8583222 | S3: =INDEX(Extract!S$4:S$40003,MATCH($A3,Extract!$B$4:$B$40003,0)) -> 268.3580088 | T3: =INDEX(Extract!T$4:T$40003,MATCH($A3,Extract!$B$4:$B$40003,0)) -> 270.5607206 | U3: =INDEX(Extract!U$4:U$40003,MATCH($A3,Extract!$B$4:$B$40003,0)) -> 273.0610663 | V3: =INDEX(Extract!V$4:V$40003,MATCH($A3,Extract!$B$4:$B$40003,0)) -> 275.1675207 | W3: =INDEX(Extract!W$4:W$40003,MATCH($A3,Extract!$B$4:$B$40003,0)) -> 277.2690902 | X3: =INDEX(Extract!X$4:X$40003,MATCH($A3,Extract!$B$4:$B$40003,0)) -> 279.057101 | Y3: =INDEX(Extract!Y$4:Y$40003,MATCH($A3,Extract!$B$4:$B$40003,0)) -> 280.2440843 | Z3: =INDEX(Extract!Z$4:Z$40003,MATCH($A3,Extract!$B$4:$B$40003,0)) -> 280.7610875 | AA3: =INDEX(Extract!AA$4:AA$40003,MATCH($A3,Extract!$B$4:$B$40003,0)) -> 281.8011013 | AB3: =INDEX(Extract!AB$4:AB$40003,MATCH($A3,Extract!$B$4:$B$40003,0)) -> 283.5090899 | AC3: =INDEX(Extract!AC$4:AC$40003,MATCH($A3,Extract!$B$4:$B$40003,0)) -> 284.7860907 | AD3: =INDEX(Extract!AD$4:AD$40003,MATCH($A3,Extract!$B$4:$B$40003,0)) -> 285.3450837 | AE3: =INDEX(Extract!AE$4:AE$40003,MATCH($A3,Extract!$B$4:$B$40003,0)) -> 286.4446911 | AF3: =INDEX(Extract!AF$4:AF$40003,MATCH($A3,Extract!$B$4:$B$40003,0)) -> 287.2884097 | AG3: =INDEX(Extract!AG$4:AG$40003,MATCH($A3,Extract!$B$4:$B$40003,0)) -> 287.9378245 | AH3: =INDEX(Extract!AH$4:AH$40003,MATCH($A3,Extract!$B$4:$B$40003,0)) -> 288.3637879 | AI3: =INDEX(Extract!AI$4:AI$40003,MATCH($A3,Extract!$B$4:$B$40003,0)) -> 288.8140702 | AJ3: =INDEX(Extract!AJ$4:AJ$40003,MATCH($A3,Extract!$B$4:$B$40003,0)) -> 289.2351236 | AK3: =INDEX(Extract!AK$4:AK$40003,MATCH($A3,Extract!$B$4:$B$40003,0)) -> 289.5949744 | AL3: =INDEX(Extract!AL$4:AL$40003,MATCH($A3,Extract!$B$4:$B$40003,0)) -> 289.9470237 | AM3: =INDEX(Extract!AM$4:AM$40003,MATCH($A3,Extract!$B$4:$B$40003,0)) -> 290.1973874 | AN3: =INDEX(Extract!AN$4:AN$40003,MATCH($A3,Extract!$B$4:$B$40003,0)) -> 290.4203409 | AO3: =INDEX(Extract!AO$4:AO$40003,MATCH($A3,Extract!$B$4:$B$40003,0)) -> 290.5428268 | AP3: =INDEX(Extract!AP$4:AP$40003,MATCH($A3,Extract!$B$4:$B$40003,0)) -> 290.6475718 | AQ3: =INDEX(Extract!AQ$4:AQ$40003,MATCH($A3,Extract!$B$4:$B$40003,0)) -> 290.7441704 | AR3: =INDEX(Extract!AR$4:AR$40003,MATCH($A3,Extract!$B$4:$B$40003,0)) -> 290.8174366 | AS3: =INDEX(Extract!AS$4:AS$40003,MATCH($A3,Extract!$B$4:$B$40003,0)) -> 290.7734326 | AT3: =INDEX(Extract!AT$4:AT$40003,MATCH($A3,Extract!$B$4:$B$40003,0)) -> 290.7150634 | AU3: =INDEX(Extract!AU$4:AU$40003,MATCH($A3,Extract!$B$4:$B$40003,0)) -> 290.7362341 | AV3: =INDEX(Extract!AV$4:AV$40003,MATCH($A3,Extract!$B$4:$B$40003,0)) -> 290.7305322 | AW3: =INDEX(Extract!AW$4:AW$40003,MATCH($A3,Extract!$B$4:$B$40003,0)) -> 290.7217943 | AX3: =INDEX(Extract!AX$4:AX$40003,MATCH($A3,Extract!$B$4:$B$40003,0)) -> 290.5930343 | AY3: =INDEX(Extract!AY$4:AY$40003,MATCH($A3,Extract!$B$4:$B$40003,0)) -> 290.5496887
A4: POPWnw5 | B4: =A4 -> POPWnw5 | C4: =INDEX(Extract!C$4:C$40003,MATCH($A4,Extract!$B$4:$B$40003,0)) -> 164.6969691 | D4: =INDEX(Extract!D$4:D$40003,MATCH($A4,Extract!$B$4:$B$40003,0)) -> 164.599466 | E4: =INDEX(Extract!E$4:E$40003,MATCH($A4,Extract!$B$4:$B$40003,0)) -> 164.4905692 | F4: =INDEX(Extract!F$4:F$40003,MATCH($A4,Extract!$B$4:$B$40003,0)) -> 164.1918955 | G4: =INDEX(Extract!G$4:G$40003,MATCH($A4,Extract!$B$4:$B$40003,0)) -> 163.5839761 | H4: =INDEX(Extract!H$4:H$40003,MATCH($A4,Extract!$B$4:$B$40003,0)) -> 163.294927 | I4: =INDEX(Extract!I$4:I$40003,MATCH($A4,Extract!$B$4:$B$40003,0)) -> 163.0962985 | J4: =INDEX(Extract!J$4:J$40003,MATCH($A4,Extract!$B$4:$B$40003,0)) -> 164.5025361 | K4: =INDEX(Extract!K$4:K$40003,MATCH($A4,Extract!$B$4:$B$40003,0)) -> 164.1899754 | L4: =INDEX(Extract!L$4:L$40003,MATCH($A4,Extract!$B$4:$B$40003,0)) -> 164.4071343 | M4: =INDEX(Extract!M$4:M$40003,MATCH($A4,Extract!$B$4:$B$40003,0)) -> 165.659 | N4: =INDEX(Extract!N$4:N$40003,MATCH($A4,Extract!$B$4:$B$40003,0)) -> 167.138 | O4: =INDEX(Extract!O$4:O$40003,MATCH($A4,Extract!$B$4:$B$40003,0)) -> 168.357 | P4: =INDEX(Extract!P$4:P$40003,MATCH($A4,Extract!$B$4:$B$40003,0)) -> 169.085 | Q4: =INDEX(Extract!Q$4:Q$40003,MATCH($A4,Extract!$B$4:$B$40003,0)) -> 169.716 | R4: =INDEX(Extract!R$4:R$40003,MATCH($A4,Extract!$B$4:$B$40003,0)) -> 171.384 | S4: =INDEX(Extract!S$4:S$40003,MATCH($A4,Extract!$B$4:$B$40003,0)) -> 172.635 | T4: =INDEX(Extract!T$4:T$40003,MATCH($A4,Extract!$B$4:$B$40003,0)) -> 173.927 | U4: =INDEX(Extract!U$4:U$40003,MATCH($A4,Extract!$B$4:$B$40003,0)) -> 175.203 | V4: =INDEX(Extract!V$4:V$40003,MATCH($A4,Extract!$B$4:$B$40003,0)) -> 176.244 | W4: =INDEX(Extract!W$4:W$40003,MATCH($A4,Extract!$B$4:$B$40003,0)) -> 177.266 | X4: =INDEX(Extract!X$4:X$40003,MATCH($A4,Extract!$B$4:$B$40003,0)) -> 176.875 | Y4: =INDEX(Extract!Y$4:Y$40003,MATCH($A4,Extract!$B$4:$B$40003,0)) -> 176.465 | Z4: =INDEX(Extract!Z$4:Z$40003,MATCH($A4,Extract!$B$4:$B$40003,0)) -> 175.661 | AA4: =INDEX(Extract!AA$4:AA$40003,MATCH($A4,Extract!$B$4:$B$40003,0)) -> 175.543 | AB4: =INDEX(Extract!AB$4:AB$40003,MATCH($A4,Extract!$B$4:$B$40003,0)) -> 175.976 | AC4: =INDEX(Extract!AC$4:AC$40003,MATCH($A4,Extract!$B$4:$B$40003,0)) -> 175.795 | AD4: =INDEX(Extract!AD$4:AD$40003,MATCH($A4,Extract!$B$4:$B$40003,0)) -> 175.341 | AE4: =INDEX(Extract!AE$4:AE$40003,MATCH($A4,Extract!$B$4:$B$40003,0)) -> 175.7488986 | AF4: =INDEX(Extract!AF$4:AF$40003,MATCH($A4,Extract!$B$4:$B$40003,0)) -> 175.7150216 | AG4: =INDEX(Extract!AG$4:AG$40003,MATCH($A4,Extract!$B$4:$B$40003,0)) -> 175.5208432 | AH4: =INDEX(Extract!AH$4:AH$40003,MATCH($A4,Extract!$B$4:$B$40003,0)) -> 175.2478391 | AI4: =INDEX(Extract!AI$4:AI$40003,MATCH($A4,Extract!$B$4:$B$40003,0)) -> 175.0054131 | AJ4: =INDEX(Extract!AJ$4:AJ$40003,MATCH($A4,Extract!$B$4:$B$40003,0)) -> 174.7486353 | AK4: =INDEX(Extract!AK$4:AK$40003,MATCH($A4,Extract!$B$4:$B$40003,0)) -> 174.4496668 | AL4: =INDEX(Extract!AL$4:AL$40003,MATCH($A4,Extract!$B$4:$B$40003,0)) -> 174.2561342 | AM4: =INDEX(Extract!AM$4:AM$40003,MATCH($A4,Extract!$B$4:$B$40003,0)) -> 173.8602431 | AN4: =INDEX(Extract!AN$4:AN$40003,MATCH($A4,Extract!$B$4:$B$40003,0)) -> 173.6847926 | AO4: =INDEX(Extract!AO$4:AO$40003,MATCH($A4,Extract!$B$4:$B$40003,0)) -> 173.0740437 | AP4: =INDEX(Extract!AP$4:AP$40003,MATCH($A4,Extract!$B$4:$B$40003,0)) -> 172.4533355 | AQ4: =INDEX(Extract!AQ$4:AQ$40003,MATCH($A4,Extract!$B$4:$B$40003,0)) -> 171.8045192 | AR4: =INDEX(Extract!AR$4:AR$40003,MATCH($A4,Extract!$B$4:$B$40003,0)) -> 171.1998689 | AS4: =INDEX(Extract!AS$4:AS$40003,MATCH($A4,Extract!$B$4:$B$40003,0)) -> 170.3796956 | AT4: =INDEX(Extract!AT$4:AT$40003,MATCH($A4,Extract!$B$4:$B$40003,0)) -> 169.5974814 | AU4: =INDEX(Extract!AU$4:AU$40003,MATCH($A4,Extract!$B$4:$B$40003,0)) -> 168.9052873 | AV4: =INDEX(Extract!AV$4:AV$40003,MATCH($A4,Extract!$B$4:$B$40003,0)) -> 168.0837565 | AW4: =INDEX(Extract!AW$4:AW$40003,MATCH($A4,Extract!$B$4:$B$40003,0)) -> 167.4481978 | AX4: =INDEX(Extract!AX$4:AX$40003,MATCH($A4,Extract!$B$4:$B$40003,0)) -> 166.8799478 | AY4: =INDEX(Extract!AY$4:AY$40003,MATCH($A4,Extract!$B$4:$B$40003,0)) -> 166.5262165
A5: POPCnw5 | B5: POPCnw5 | C5: =INDEX(Extract!C$4:C$40003,MATCH($A5,Extract!$B$4:$B$40003,0)) -> 56.82830779 | D5: =INDEX(Extract!D$4:D$40003,MATCH($A5,Extract!$B$4:$B$40003,0)) -> 57.13729825 | E5: =INDEX(Extract!E$4:E$40003,MATCH($A5,Extract!$B$4:$B$40003,0)) -> 57.6293145 | F5: =INDEX(Extract!F$4:F$40003,MATCH($A5,Extract!$B$4:$B$40003,0)) -> 57.6852982 | G5: =INDEX(Extract!G$4:G$40003,MATCH($A5,Extract!$B$4:$B$40003,0)) -> 57.64030329 | H5: =INDEX(Extract!H$4:H$40003,MATCH($A5,Extract!$B$4:$B$40003,0)) -> 57.35030534 | I5: =INDEX(Extract!I$4:I$40003,MATCH($A5,Extract!$B$4:$B$40003,0)) -> 57.25530279 | J5: =INDEX(Extract!J$4:J$40003,MATCH($A5,Extract!$B$4:$B$40003,0)) -> 57.1092998 | K5: =INDEX(Extract!K$4:K$40003,MATCH($A5,Extract!$B$4:$B$40003,0)) -> 57.25331447 | L5: =INDEX(Extract!L$4:L$40003,MATCH($A5,Extract!$B$4:$B$40003,0)) -> 56.93431102 | M5: =INDEX(Extract!M$4:M$40003,MATCH($A5,Extract!$B$4:$B$40003,0)) -> 56.65130022 | N5: =INDEX(Extract!N$4:N$40003,MATCH($A5,Extract!$B$4:$B$40003,0)) -> 56.32925074 | O5: =INDEX(Extract!O$4:O$40003,MATCH($A5,Extract!$B$4:$B$40003,0)) -> 56.38535083 | P5: =INDEX(Extract!P$4:P$40003,MATCH($A5,Extract!$B$4:$B$40003,0)) -> 56.21644249 | Q5: =INDEX(Extract!Q$4:Q$40003,MATCH($A5,Extract!$B$4:$B$40003,0)) -> 56.00171272 | R5: =INDEX(Extract!R$4:R$40003,MATCH($A5,Extract!$B$4:$B$40003,0)) -> 55.95532222 | S5: =INDEX(Extract!S$4:S$40003,MATCH($A5,Extract!$B$4:$B$40003,0)) -> 55.99500879 | T5: =INDEX(Extract!T$4:T$40003,MATCH($A5,Extract!$B$4:$B$40003,0)) -> 56.18072061 | U5: =INDEX(Extract!U$4:U$40003,MATCH($A5,Extract!$B$4:$B$40003,0)) -> 56.59006627 | V5: =INDEX(Extract!V$4:V$40003,MATCH($A5,Extract!$B$4:$B$40003,0)) -> 56.8695207 | W5: =INDEX(Extract!W$4:W$40003,MATCH($A5,Extract!$B$4:$B$40003,0)) -> 57.1580902 | X5: =INDEX(Extract!X$4:X$40003,MATCH($A5,Extract!$B$4:$B$40003,0)) -> 57.79610096 | Y5: =INDEX(Extract!Y$4:Y$40003,MATCH($A5,Extract!$B$4:$B$40003,0)) -> 58.10308426 | Z5: =INDEX(Extract!Z$4:Z$40003,MATCH($A5,Extract!$B$4:$B$40003,0)) -> 58.28508754 | AA5: =INDEX(Extract!AA$4:AA$40003,MATCH($A5,Extract!$B$4:$B$40003,0)) -> 58.80410131 | AB5: =INDEX(Extract!AB$4:AB$40003,MATCH($A5,Extract!$B$4:$B$40003,0)) -> 59.53808992 | AC5: =INDEX(Extract!AC$4:AC$40003,MATCH($A5,Extract!$B$4:$B$40003,0)) -> 60.48909071 | AD5: =INDEX(Extract!AD$4:AD$40003,MATCH($A5,Extract!$B$4:$B$40003,0)) -> 60.88408368 | AE5: =INDEX(Extract!AE$4:AE$40003,MATCH($A5,Extract!$B$4:$B$40003,0)) -> 61.45505834 | AF5: =INDEX(Extract!AF$4:AF$40003,MATCH($A5,Extract!$B$4:$B$40003,0)) -> 61.82300991 | AG5: =INDEX(Extract!AG$4:AG$40003,MATCH($A5,Extract!$B$4:$B$40003,0)) -> 62.14966479 | AH5: =INDEX(Extract!AH$4:AH$40003,MATCH($A5,Extract!$B$4:$B$40003,0)) -> 62.15277313 | AI5: =INDEX(Extract!AI$4:AI$40003,MATCH($A5,Extract!$B$4:$B$40003,0)) -> 62.11105813 | AJ5: =INDEX(Extract!AJ$4:AJ$40003,MATCH($A5,Extract!$B$4:$B$40003,0)) -> 61.96542386 | AK5: =INDEX(Extract!AK$4:AK$40003,MATCH($A5,Extract!$B$4:$B$40003,0)) -> 61.78612142 | AL5: =INDEX(Extract!AL$4:AL$40003,MATCH($A5,Extract!$B$4:$B$40003,0)) -> 61.38445238 | AM5: =INDEX(Extract!AM$4:AM$40003,MATCH($A5,Extract!$B$4:$B$40003,0)) -> 61.0023964 | AN5: =INDEX(Extract!AN$4:AN$40003,MATCH($A5,Extract!$B$4:$B$40003,0)) -> 60.44206372 | AO5: =INDEX(Extract!AO$4:AO$40003,MATCH($A5,Extract!$B$4:$B$40003,0)) -> 60.04741229 | AP5: =INDEX(Extract!AP$4:AP$40003,MATCH($A5,Extract!$B$4:$B$40003,0)) -> 59.67265938 | AQ5: =INDEX(Extract!AQ$4:AQ$40003,MATCH($A5,Extract!$B$4:$B$40003,0)) -> 59.31026721 | AR5: =INDEX(Extract!AR$4:AR$40003,MATCH($A5,Extract!$B$4:$B$40003,0)) -> 58.90134071 | AS5: =INDEX(Extract!AS$4:AS$40003,MATCH($A5,Extract!$B$4:$B$40003,0)) -> 58.68445777 | AT5: =INDEX(Extract!AT$4:AT$40003,MATCH($A5,Extract!$B$4:$B$40003,0)) -> 58.43517211 | AU5: =INDEX(Extract!AU$4:AU$40003,MATCH($A5,Extract!$B$4:$B$40003,0)) -> 58.21521401 | AV5: =INDEX(Extract!AV$4:AV$40003,MATCH($A5,Extract!$B$4:$B$40003,0)) -> 58.03058834 | AW5: =INDEX(Extract!AW$4:AW$40003,MATCH($A5,Extract!$B$4:$B$40003,0)) -> 57.88238271 | AX5: =INDEX(Extract!AX$4:AX$40003,MATCH($A5,Extract!$B$4:$B$40003,0)) -> 57.76477543 | AY5: =INDEX(Extract!AY$4:AY$40003,MATCH($A5,Extract!$B$4:$B$40003,0)) -> 57.69906423
A6: POPOnw5 | B6: POPOnw5 | C6: =INDEX(Extract!C$4:C$40003,MATCH($A6,Extract!$B$4:$B$40003,0)) -> 39.78003089 | D6: =INDEX(Extract!D$4:D$40003,MATCH($A6,Extract!$B$4:$B$40003,0)) -> 39.80553401 | E6: =INDEX(Extract!E$4:E$40003,MATCH($A6,Extract!$B$4:$B$40003,0)) -> 39.72143076 | F6: =INDEX(Extract!F$4:F$40003,MATCH($A6,Extract!$B$4:$B$40003,0)) -> 39.57210449 | G6: =INDEX(Extract!G$4:G$40003,MATCH($A6,Extract!$B$4:$B$40003,0)) -> 39.60402388 | H6: =INDEX(Extract!H$4:H$40003,MATCH($A6,Extract!$B$4:$B$40003,0)) -> 39.36707297 | I6: =INDEX(Extract!I$4:I$40003,MATCH($A6,Extract!$B$4:$B$40003,0)) -> 39.31370153 | J6: =INDEX(Extract!J$4:J$40003,MATCH($A6,Extract!$B$4:$B$40003,0)) -> 39.22646385 | K6: =INDEX(Extract!K$4:K$40003,MATCH($A6,Extract!$B$4:$B$40003,0)) -> 38.90902461 | L6: =INDEX(Extract!L$4:L$40003,MATCH($A6,Extract!$B$4:$B$40003,0)) -> 38.79786568 | M6: =INDEX(Extract!M$4:M$40003,MATCH($A6,Extract!$B$4:$B$40003,0)) -> 38.948 | N6: =INDEX(Extract!N$4:N$40003,MATCH($A6,Extract!$B$4:$B$40003,0)) -> 38.887 | O6: =INDEX(Extract!O$4:O$40003,MATCH($A6,Extract!$B$4:$B$40003,0)) -> 39.115 | P6: =INDEX(Extract!P$4:P$40003,MATCH($A6,Extract!$B$4:$B$40003,0)) -> 39.264 | Q6: =INDEX(Extract!Q$4:Q$40003,MATCH($A6,Extract!$B$4:$B$40003,0)) -> 39.342 | R6: =INDEX(Extract!R$4:R$40003,MATCH($A6,Extract!$B$4:$B$40003,0)) -> 39.519 | S6: =INDEX(Extract!S$4:S$40003,MATCH($A6,Extract!$B$4:$B$40003,0)) -> 39.728 | T6: =INDEX(Extract!T$4:T$40003,MATCH($A6,Extract!$B$4:$B$40003,0)) -> 40.453 | U6: =INDEX(Extract!U$4:U$40003,MATCH($A6,Extract!$B$4:$B$40003,0)) -> 41.268 | V6: =INDEX(Extract!V$4:V$40003,MATCH($A6,Extract!$B$4:$B$40003,0)) -> 42.054 | W6: =INDEX(Extract!W$4:W$40003,MATCH($A6,Extract!$B$4:$B$40003,0)) -> 42.845 | X6: =INDEX(Extract!X$4:X$40003,MATCH($A6,Extract!$B$4:$B$40003,0)) -> 44.386 | Y6: =INDEX(Extract!Y$4:Y$40003,MATCH($A6,Extract!$B$4:$B$40003,0)) -> 45.676 | Z6: =INDEX(Extract!Z$4:Z$40003,MATCH($A6,Extract!$B$4:$B$40003,0)) -> 46.815 | AA6: =INDEX(Extract!AA$4:AA$40003,MATCH($A6,Extract!$B$4:$B$40003,0)) -> 47.454 | AB6: =INDEX(Extract!AB$4:AB$40003,MATCH($A6,Extract!$B$4:$B$40003,0)) -> 47.995 | AC6: =INDEX(Extract!AC$4:AC$40003,MATCH($A6,Extract!$B$4:$B$40003,0)) -> 48.502 | AD6: =INDEX(Extract!AD$4:AD$40003,MATCH($A6,Extract!$B$4:$B$40003,0)) -> 49.12 | AE6: =INDEX(Extract!AE$4:AE$40003,MATCH($A6,Extract!$B$4:$B$40003,0)) -> 49.24073421 | AF6: =INDEX(Extract!AF$4:AF$40003,MATCH($A6,Extract!$B$4:$B$40003,0)) -> 49.75037819 | AG6: =INDEX(Extract!AG$4:AG$40003,MATCH($A6,Extract!$B$4:$B$40003,0)) -> 50.26731646 | AH6: =INDEX(Extract!AH$4:AH$40003,MATCH($A6,Extract!$B$4:$B$40003,0)) -> 50.96317565 | AI6: =INDEX(Extract!AI$4:AI$40003,MATCH($A6,Extract!$B$4:$B$40003,0)) -> 51.69759897 | AJ6: =INDEX(Extract!AJ$4:AJ$40003,MATCH($A6,Extract!$B$4:$B$40003,0)) -> 52.5210645 | AK6: =INDEX(Extract!AK$4:AK$40003,MATCH($A6,Extract!$B$4:$B$40003,0)) -> 53.35918624 | AL6: =INDEX(Extract!AL$4:AL$40003,MATCH($A6,Extract!$B$4:$B$40003,0)) -> 54.30643705 | AM6: =INDEX(Extract!AM$4:AM$40003,MATCH($A6,Extract!$B$4:$B$40003,0)) -> 55.33474786 | AN6: =INDEX(Extract!AN$4:AN$40003,MATCH($A6,Extract!$B$4:$B$40003,0)) -> 56.2934846 | AO6: =INDEX(Extract!AO$4:AO$40003,MATCH($A6,Extract!$B$4:$B$40003,0)) -> 57.42137078 | AP6: =INDEX(Extract!AP$4:AP$40003,MATCH($A6,Extract!$B$4:$B$40003,0)) -> 58.52157689 | AQ6: =INDEX(Extract!AQ$4:AQ$40003,MATCH($A6,Extract!$B$4:$B$40003,0)) -> 59.62938401 | AR6: =INDEX(Extract!AR$4:AR$40003,MATCH($A6,Extract!$B$4:$B$40003,0)) -> 60.71622695 | AS6: =INDEX(Extract!AS$4:AS$40003,MATCH($A6,Extract!$B$4:$B$40003,0)) -> 61.70927919 | AT6: =INDEX(Extract!AT$4:AT$40003,MATCH($A6,Extract!$B$4:$B$40003,0)) -> 62.68240993 | AU6: =INDEX(Extract!AU$4:AU$40003,MATCH($A6,Extract!$B$4:$B$40003,0)) -> 63.61573277 | AV6: =INDEX(Extract!AV$4:AV$40003,MATCH($A6,Extract!$B$4:$B$40003,0)) -> 64.61618738 | AW6: =INDEX(Extract!AW$4:AW$40003,MATCH($A6,Extract!$B$4:$B$40003,0)) -> 65.3912138 | AX6: =INDEX(Extract!AX$4:AX$40003,MATCH($A6,Extract!$B$4:$B$40003,0)) -> 65.94831111 | AY6: =INDEX(Extract!AY$4:AY$40003,MATCH($A6,Extract!$B$4:$B$40003,0)) -> 66.32440799
A7: POPL15_74nw5 | B7: POPL15_74nw5 | C7: =INDEX(Extract!C$4:C$40003,MATCH($A7,Extract!$B$4:$B$40003,0)) -> 190.6499108 | D7: =INDEX(Extract!D$4:D$40003,MATCH($A7,Extract!$B$4:$B$40003,0)) -> 190.7842576 | E7: =INDEX(Extract!E$4:E$40003,MATCH($A7,Extract!$B$4:$B$40003,0)) -> 190.8772189 | F7: =INDEX(Extract!F$4:F$40003,MATCH($A7,Extract!$B$4:$B$40003,0)) -> 190.7802502 | G7: =INDEX(Extract!G$4:G$40003,MATCH($A7,Extract!$B$4:$B$40003,0)) -> 189.7996436 | H7: =INDEX(Extract!H$4:H$40003,MATCH($A7,Extract!$B$4:$B$40003,0)) -> 188.8906977 | I7: =INDEX(Extract!I$4:I$40003,MATCH($A7,Extract!$B$4:$B$40003,0)) -> 188.186684 | J7: =INDEX(Extract!J$4:J$40003,MATCH($A7,Extract!$B$4:$B$40003,0)) -> 189.1963028 | K7: =INDEX(Extract!K$4:K$40003,MATCH($A7,Extract!$B$4:$B$40003,0)) -> 188.5109168 | L7: =INDEX(Extract!L$4:L$40003,MATCH($A7,Extract!$B$4:$B$40003,0)) -> 188.5657255 | M7: =INDEX(Extract!M$4:M$40003,MATCH($A7,Extract!$B$4:$B$40003,0)) -> 189.7442504 | N7: =INDEX(Extract!N$4:N$40003,MATCH($A7,Extract!$B$4:$B$40003,0)) -> 191.1909089 | O7: =INDEX(Extract!O$4:O$40003,MATCH($A7,Extract!$B$4:$B$40003,0)) -> 192.5295653 | P7: =INDEX(Extract!P$4:P$40003,MATCH($A7,Extract!$B$4:$B$40003,0)) -> 193.5586765 | Q7: =INDEX(Extract!Q$4:Q$40003,MATCH($A7,Extract!$B$4:$B$40003,0)) -> 194.2377338 | R7: =INDEX(Extract!R$4:R$40003,MATCH($A7,Extract!$B$4:$B$40003,0)) -> 196.1254753 | S7: =INDEX(Extract!S$4:S$40003,MATCH($A7,Extract!$B$4:$B$40003,0)) -> 197.4594871 | T7: =INDEX(Extract!T$4:T$40003,MATCH($A7,Extract!$B$4:$B$40003,0)) -> 199.4564761 | U7: =INDEX(Extract!U$4:U$40003,MATCH($A7,Extract!$B$4:$B$40003,0)) -> 201.5104368 | V7: =INDEX(Extract!V$4:V$40003,MATCH($A7,Extract!$B$4:$B$40003,0)) -> 203.03162 | W7: =INDEX(Extract!W$4:W$40003,MATCH($A7,Extract!$B$4:$B$40003,0)) -> 204.598045 | X7: =INDEX(Extract!X$4:X$40003,MATCH($A7,Extract!$B$4:$B$40003,0)) -> 205.5918313 | Y7: =INDEX(Extract!Y$4:Y$40003,MATCH($A7,Extract!$B$4:$B$40003,0)) -> 206.0762689 | Z7: =INDEX(Extract!Z$4:Z$40003,MATCH($A7,Extract!$B$4:$B$40003,0)) -> 205.8523636 | AA7: =INDEX(Extract!AA$4:AA$40003,MATCH($A7,Extract!$B$4:$B$40003,0)) -> 206.1398039 | AB7: =INDEX(Extract!AB$4:AB$40003,MATCH($A7,Extract!$B$4:$B$40003,0)) -> 206.8833974 | AC7: =INDEX(Extract!AC$4:AC$40003,MATCH($A7,Extract!$B$4:$B$40003,0)) -> 206.9940308 | AD7: =INDEX(Extract!AD$4:AD$40003,MATCH($A7,Extract!$B$4:$B$40003,0)) -> 206.6565362 | AE7: =INDEX(Extract!AE$4:AE$40003,MATCH($A7,Extract!$B$4:$B$40003,0)) -> 207.0216426 | AF7: =INDEX(Extract!AF$4:AF$40003,MATCH($A7,Extract!$B$4:$B$40003,0)) -> 207.1222465 | AG7: =INDEX(Extract!AG$4:AG$40003,MATCH($A7,Extract!$B$4:$B$40003,0)) -> 207.0413524 | AH7: =INDEX(Extract!AH$4:AH$40003,MATCH($A7,Extract!$B$4:$B$40003,0)) -> 206.2532742 | AI7: =INDEX(Extract!AI$4:AI$40003,MATCH($A7,Extract!$B$4:$B$40003,0)) -> 205.7576185 | AJ7: =INDEX(Extract!AJ$4:AJ$40003,MATCH($A7,Extract!$B$4:$B$40003,0)) -> 205.5586381 | AK7: =INDEX(Extract!AK$4:AK$40003,MATCH($A7,Extract!$B$4:$B$40003,0)) -> 205.4958626 | AL7: =INDEX(Extract!AL$4:AL$40003,MATCH($A7,Extract!$B$4:$B$40003,0)) -> 205.770328 | AM7: =INDEX(Extract!AM$4:AM$40003,MATCH($A7,Extract!$B$4:$B$40003,0)) -> 205.9493945 | AN7: =INDEX(Extract!AN$4:AN$40003,MATCH($A7,Extract!$B$4:$B$40003,0)) -> 206.2005448 | AO7: =INDEX(Extract!AO$4:AO$40003,MATCH($A7,Extract!$B$4:$B$40003,0)) -> 206.2586219 | AP7: =INDEX(Extract!AP$4:AP$40003,MATCH($A7,Extract!$B$4:$B$40003,0)) -> 206.3278528 | AQ7: =INDEX(Extract!AQ$4:AQ$40003,MATCH($A7,Extract!$B$4:$B$40003,0)) -> 206.3971689 | AR7: =INDEX(Extract!AR$4:AR$40003,MATCH($A7,Extract!$B$4:$B$40003,0)) -> 206.3039882 | AS7: =INDEX(Extract!AS$4:AS$40003,MATCH($A7,Extract!$B$4:$B$40003,0)) -> 205.9518341 | AT7: =INDEX(Extract!AT$4:AT$40003,MATCH($A7,Extract!$B$4:$B$40003,0)) -> 205.5376287 | AU7: =INDEX(Extract!AU$4:AU$40003,MATCH($A7,Extract!$B$4:$B$40003,0)) -> 205.152589 | AV7: =INDEX(Extract!AV$4:AV$40003,MATCH($A7,Extract!$B$4:$B$40003,0)) -> 204.6311079 | AW7: =INDEX(Extract!AW$4:AW$40003,MATCH($A7,Extract!$B$4:$B$40003,0)) -> 203.9716868 | AX7: =INDEX(Extract!AX$4:AX$40003,MATCH($A7,Extract!$B$4:$B$40003,0)) -> 203.245287 | AY7: =INDEX(Extract!AY$4:AY$40003,MATCH($A7,Extract!$B$4:$B$40003,0)) -> 202.404843
A8: TMIGnw5 | B8: TMIGnw5 | C8: =INDEX(Extract!C$4:C$40003,MATCH($A8,Extract!$B$4:$B$40003,0)) -> 0 | D8: =INDEX(Extract!D$4:D$40003,MATCH($A8,Extract!$B$4:$B$40003,0)) -> -0.4426464902 | E8: =INDEX(Extract!E$4:E$40003,MATCH($A8,Extract!$B$4:$B$40003,0)) -> -0.3424937526 | F8: =INDEX(Extract!F$4:F$40003,MATCH($A8,Extract!$B$4:$B$40003,0)) -> -0.9164151874 | G8: =INDEX(Extract!G$4:G$40003,MATCH($A8,Extract!$B$4:$B$40003,0)) -> -1.084767514 | H8: =INDEX(Extract!H$4:H$40003,MATCH($A8,Extract!$B$4:$B$40003,0)) -> -1.098512856 | I8: =INDEX(Extract!I$4:I$40003,MATCH($A8,Extract!$B$4:$B$40003,0)) -> -0.8407703873 | J8: =INDEX(Extract!J$4:J$40003,MATCH($A8,Extract!$B$4:$B$40003,0)) -> 0.7770002392 | K8: =INDEX(Extract!K$4:K$40003,MATCH($A8,Extract!$B$4:$B$40003,0)) -> -0.823515685 | L8: =INDEX(Extract!L$4:L$40003,MATCH($A8,Extract!$B$4:$B$40003,0)) -> -0.6534215898 | M8: =INDEX(Extract!M$4:M$40003,MATCH($A8,Extract!$B$4:$B$40003,0)) -> 0.7308160982 | N8: =INDEX(Extract!N$4:N$40003,MATCH($A8,Extract!$B$4:$B$40003,0)) -> 0.6991871774 | O8: =INDEX(Extract!O$4:O$40003,MATCH($A8,Extract!$B$4:$B$40003,0)) -> 1.011242572 | P8: =INDEX(Extract!P$4:P$40003,MATCH($A8,Extract!$B$4:$B$40003,0)) -> 0.1081097107 | Q8: =INDEX(Extract!Q$4:Q$40003,MATCH($A8,Extract!$B$4:$B$40003,0)) -> -0.174594579 | R8: =INDEX(Extract!R$4:R$40003,MATCH($A8,Extract!$B$4:$B$40003,0)) -> 0.9138552116 | S8: =INDEX(Extract!S$4:S$40003,MATCH($A8,Extract!$B$4:$B$40003,0)) -> 0.524702854 | T8: =INDEX(Extract!T$4:T$40003,MATCH($A8,Extract!$B$4:$B$40003,0)) -> 1.014162959 | U8: =INDEX(Extract!U$4:U$40003,MATCH($A8,Extract!$B$4:$B$40003,0)) -> 1.154156043 | V8: =INDEX(Extract!V$4:V$40003,MATCH($A8,Extract!$B$4:$B$40003,0)) -> 0.6907492756 | W8: =INDEX(Extract!W$4:W$40003,MATCH($A8,Extract!$B$4:$B$40003,0)) -> 0.6974638833 | X8: =INDEX(Extract!X$4:X$40003,MATCH($A8,Extract!$B$4:$B$40003,0)) -> 0.3669404277 | Y8: =INDEX(Extract!Y$4:Y$40003,MATCH($A8,Extract!$B$4:$B$40003,0)) -> -0.05401748915 | Z8: =INDEX(Extract!Z$4:Z$40003,MATCH($A8,Extract!$B$4:$B$40003,0)) -> -0.87505827 | AA8: =INDEX(Extract!AA$4:AA$40003,MATCH($A8,Extract!$B$4:$B$40003,0)) -> -0.08902952055 | AB8: =INDEX(Extract!AB$4:AB$40003,MATCH($A8,Extract!$B$4:$B$40003,0)) -> 0.4410420237 | AC8: =INDEX(Extract!AC$4:AC$40003,MATCH($A8,Extract!$B$4:$B$40003,0)) -> 0.091 | AD8: =INDEX(Extract!AD$4:AD$40003,MATCH($A8,Extract!$B$4:$B$40003,0)) -> -0.425 | AE8: =INDEX(Extract!AE$4:AE$40003,MATCH($A8,Extract!$B$4:$B$40003,0)) -> -0.08564909954 | AF8: =INDEX(Extract!AF$4:AF$40003,MATCH($A8,Extract!$B$4:$B$40003,0)) -> -0.3278172538 | AG8: =INDEX(Extract!AG$4:AG$40003,MATCH($A8,Extract!$B$4:$B$40003,0)) -> -0.5299949322 | AH8: =INDEX(Extract!AH$4:AH$40003,MATCH($A8,Extract!$B$4:$B$40003,0)) -> -0.5628556981 | AI8: =INDEX(Extract!AI$4:AI$40003,MATCH($A8,Extract!$B$4:$B$40003,0)) -> -0.5539834008 | AJ8: =INDEX(Extract!AJ$4:AJ$40003,MATCH($A8,Extract!$B$4:$B$40003,0)) -> -0.5920967429 | AK8: =INDEX(Extract!AK$4:AK$40003,MATCH($A8,Extract!$B$4:$B$40003,0)) -> -0.6504381195 | AL8: =INDEX(Extract!AL$4:AL$40003,MATCH($A8,Extract!$B$4:$B$40003,0)) -> -0.6429064802 | AM8: =INDEX(Extract!AM$4:AM$40003,MATCH($A8,Extract!$B$4:$B$40003,0)) -> -0.6247065779 | AN8: =INDEX(Extract!AN$4:AN$40003,MATCH($A8,Extract!$B$4:$B$40003,0)) -> -0.6421760118 | AO8: =INDEX(Extract!AO$4:AO$40003,MATCH($A8,Extract!$B$4:$B$40003,0)) -> -0.6648889554 | AP8: =INDEX(Extract!AP$4:AP$40003,MATCH($A8,Extract!$B$4:$B$40003,0)) -> -0.6759753331 | AQ8: =INDEX(Extract!AQ$4:AQ$40003,MATCH($A8,Extract!$B$4:$B$40003,0)) -> -0.6836380815 | AR8: =INDEX(Extract!AR$4:AR$40003,MATCH($A8,Extract!$B$4:$B$40003,0)) -> -0.6998471778 | AS8: =INDEX(Extract!AS$4:AS$40003,MATCH($A8,Extract!$B$4:$B$40003,0)) -> -0.7184975039 | AT8: =INDEX(Extract!AT$4:AT$40003,MATCH($A8,Extract!$B$4:$B$40003,0)) -> -0.7353952508 | AU8: =INDEX(Extract!AU$4:AU$40003,MATCH($A8,Extract!$B$4:$B$40003,0)) -> -0.7524632402 | AV8: =INDEX(Extract!AV$4:AV$40003,MATCH($A8,Extract!$B$4:$B$40003,0)) -> -0.7712855607 | AW8: =INDEX(Extract!AW$4:AW$40003,MATCH($A8,Extract!$B$4:$B$40003,0)) -> -0.7897695414 | AX8: =INDEX(Extract!AX$4:AX$40003,MATCH($A8,Extract!$B$4:$B$40003,0)) -> -0.8066715421 | AY8: =INDEX(Extract!AY$4:AY$40003,MATCH($A8,Extract!$B$4:$B$40003,0)) -> -0.8223615343
A9: MIGDOMNnw5 | B9: MIGDOMNnw5 | C9: =INDEX(Extract!C$4:C$40003,MATCH($A9,Extract!$B$4:$B$40003,0)) -> 0 | D9: =INDEX(Extract!D$4:D$40003,MATCH($A9,Extract!$B$4:$B$40003,0)) -> 0 | E9: =INDEX(Extract!E$4:E$40003,MATCH($A9,Extract!$B$4:$B$40003,0)) -> 0 | F9: =INDEX(Extract!F$4:F$40003,MATCH($A9,Extract!$B$4:$B$40003,0)) -> 0 | G9: =INDEX(Extract!G$4:G$40003,MATCH($A9,Extract!$B$4:$B$40003,0)) -> 0 | H9: =INDEX(Extract!H$4:H$40003,MATCH($A9,Extract!$B$4:$B$40003,0)) -> 0 | I9: =INDEX(Extract!I$4:I$40003,MATCH($A9,Extract!$B$4:$B$40003,0)) -> 0 | J9: =INDEX(Extract!J$4:J$40003,MATCH($A9,Extract!$B$4:$B$40003,0)) -> 0 | K9: =INDEX(Extract!K$4:K$40003,MATCH($A9,Extract!$B$4:$B$40003,0)) -> 0 | L9: =INDEX(Extract!L$4:L$40003,MATCH($A9,Extract!$B$4:$B$40003,0)) -> -0.3 | M9: =INDEX(Extract!M$4:M$40003,MATCH($A9,Extract!$B$4:$B$40003,0)) -> 0.4 | N9: =INDEX(Extract!N$4:N$40003,MATCH($A9,Extract!$B$4:$B$40003,0)) -> -0.708 | O9: =INDEX(Extract!O$4:O$40003,MATCH($A9,Extract!$B$4:$B$40003,0)) -> -0.454 | P9: =INDEX(Extract!P$4:P$40003,MATCH($A9,Extract!$B$4:$B$40003,0)) -> -0.749 | Q9: =INDEX(Extract!Q$4:Q$40003,MATCH($A9,Extract!$B$4:$B$40003,0)) -> -0.904 | R9: =INDEX(Extract!R$4:R$40003,MATCH($A9,Extract!$B$4:$B$40003,0)) -> -0.734 | S9: =INDEX(Extract!S$4:S$40003,MATCH($A9,Extract!$B$4:$B$40003,0)) -> -0.708 | T9: =INDEX(Extract!T$4:T$40003,MATCH($A9,Extract!$B$4:$B$40003,0)) -> -0.426 | U9: =INDEX(Extract!U$4:U$40003,MATCH($A9,Extract!$B$4:$B$40003,0)) -> -0.068 | V9: =INDEX(Extract!V$4:V$40003,MATCH($A9,Extract!$B$4:$B$40003,0)) -> -0.519 | W9: =INDEX(Extract!W$4:W$40003,MATCH($A9,Extract!$B$4:$B$40003,0)) -> -0.631 | X9: =INDEX(Extract!X$4:X$40003,MATCH($A9,Extract!$B$4:$B$40003,0)) -> -0.205 | Y9: =INDEX(Extract!Y$4:Y$40003,MATCH($A9,Extract!$B$4:$B$40003,0)) -> -0.595 | Z9: =INDEX(Extract!Z$4:Z$40003,MATCH($A9,Extract!$B$4:$B$40003,0)) -> -1.472 | AA9: =INDEX(Extract!AA$4:AA$40003,MATCH($A9,Extract!$B$4:$B$40003,0)) -> -0.913 | AB9: =INDEX(Extract!AB$4:AB$40003,MATCH($A9,Extract!$B$4:$B$40003,0)) -> -0.764 | AC9: =INDEX(Extract!AC$4:AC$40003,MATCH($A9,Extract!$B$4:$B$40003,0)) -> -0.64 | AD9: =INDEX(Extract!AD$4:AD$40003,MATCH($A9,Extract!$B$4:$B$40003,0)) -> -1.379 | AE9: =INDEX(Extract!AE$4:AE$40003,MATCH($A9,Extract!$B$4:$B$40003,0)) -> -0.7437717603 | AF9: =INDEX(Extract!AF$4:AF$40003,MATCH($A9,Extract!$B$4:$B$40003,0)) -> -0.7813239402 | AG9: =INDEX(Extract!AG$4:AG$40003,MATCH($A9,Extract!$B$4:$B$40003,0)) -> -0.819489432 | AH9: =INDEX(Extract!AH$4:AH$40003,MATCH($A9,Extract!$B$4:$B$40003,0)) -> -0.820144925 | AI9: =INDEX(Extract!AI$4:AI$40003,MATCH($A9,Extract!$B$4:$B$40003,0)) -> -0.8062822381 | AJ9: =INDEX(Extract!AJ$4:AJ$40003,MATCH($A9,Extract!$B$4:$B$40003,0)) -> -0.8179719726 | AK9: =INDEX(Extract!AK$4:AK$40003,MATCH($A9,Extract!$B$4:$B$40003,0)) -> -0.8394470861 | AL9: =INDEX(Extract!AL$4:AL$40003,MATCH($A9,Extract!$B$4:$B$40003,0)) -> -0.8181165066 | AM9: =INDEX(Extract!AM$4:AM$40003,MATCH($A9,Extract!$B$4:$B$40003,0)) -> -0.7912061747 | AN9: =INDEX(Extract!AN$4:AN$40003,MATCH($A9,Extract!$B$4:$B$40003,0)) -> -0.7939358677 | AO9: =INDEX(Extract!AO$4:AO$40003,MATCH($A9,Extract!$B$4:$B$40003,0)) -> -0.7928658796 | AP9: =INDEX(Extract!AP$4:AP$40003,MATCH($A9,Extract!$B$4:$B$40003,0)) -> -0.7882971665 | AQ9: =INDEX(Extract!AQ$4:AQ$40003,MATCH($A9,Extract!$B$4:$B$40003,0)) -> -0.7884221615 | AR9: =INDEX(Extract!AR$4:AR$40003,MATCH($A9,Extract!$B$4:$B$40003,0)) -> -0.7945193278 | AS9: =INDEX(Extract!AS$4:AS$40003,MATCH($A9,Extract!$B$4:$B$40003,0)) -> -0.8012038996 | AT9: =INDEX(Extract!AT$4:AT$40003,MATCH($A9,Extract!$B$4:$B$40003,0)) -> -0.8065134307 | AU9: =INDEX(Extract!AU$4:AU$40003,MATCH($A9,Extract!$B$4:$B$40003,0)) -> -0.8123575256 | AV9: =INDEX(Extract!AV$4:AV$40003,MATCH($A9,Extract!$B$4:$B$40003,0)) -> -0.8181979333 | AW9: =INDEX(Extract!AW$4:AW$40003,MATCH($A9,Extract!$B$4:$B$40003,0)) -> -0.8250524789 | AX9: =INDEX(Extract!AX$4:AX$40003,MATCH($A9,Extract!$B$4:$B$40003,0)) -> -0.8301045322 | AY9: =INDEX(Extract!AY$4:AY$40003,MATCH($A9,Extract!$B$4:$B$40003,0)) -> -0.8360853248
A10: MIGINTNnw5 | B10: MIGINTNnw5 | C10: =INDEX(Extract!C$4:C$40003,MATCH($A10,Extract!$B$4:$B$40003,0)) -> 0 | D10: =INDEX(Extract!D$4:D$40003,MATCH($A10,Extract!$B$4:$B$40003,0)) -> 0 | E10: =INDEX(Extract!E$4:E$40003,MATCH($A10,Extract!$B$4:$B$40003,0)) -> 0 | F10: =INDEX(Extract!F$4:F$40003,MATCH($A10,Extract!$B$4:$B$40003,0)) -> 0 | G10: =INDEX(Extract!G$4:G$40003,MATCH($A10,Extract!$B$4:$B$40003,0)) -> 0 | H10: =INDEX(Extract!H$4:H$40003,MATCH($A10,Extract!$B$4:$B$40003,0)) -> 0 | I10: =INDEX(Extract!I$4:I$40003,MATCH($A10,Extract!$B$4:$B$40003,0)) -> 0 | J10: =INDEX(Extract!J$4:J$40003,MATCH($A10,Extract!$B$4:$B$40003,0)) -> 0 | K10: =INDEX(Extract!K$4:K$40003,MATCH($A10,Extract!$B$4:$B$40003,0)) -> 0 | L10: =INDEX(Extract!L$4:L$40003,MATCH($A10,Extract!$B$4:$B$40003,0)) -> 0 | M10: =INDEX(Extract!M$4:M$40003,MATCH($A10,Extract!$B$4:$B$40003,0)) -> 0 | N10: =INDEX(Extract!N$4:N$40003,MATCH($A10,Extract!$B$4:$B$40003,0)) -> 0.869 | O10: =INDEX(Extract!O$4:O$40003,MATCH($A10,Extract!$B$4:$B$40003,0)) -> 0.9 | P10: =INDEX(Extract!P$4:P$40003,MATCH($A10,Extract!$B$4:$B$40003,0)) -> 0.323 | Q10: =INDEX(Extract!Q$4:Q$40003,MATCH($A10,Extract!$B$4:$B$40003,0)) -> 0.223 | R10: =INDEX(Extract!R$4:R$40003,MATCH($A10,Extract!$B$4:$B$40003,0)) -> 1.051 | S10: =INDEX(Extract!S$4:S$40003,MATCH($A10,Extract!$B$4:$B$40003,0)) -> 0.683 | T10: =INDEX(Extract!T$4:T$40003,MATCH($A10,Extract!$B$4:$B$40003,0)) -> 0.883 | U10: =INDEX(Extract!U$4:U$40003,MATCH($A10,Extract!$B$4:$B$40003,0)) -> 0.85 | V10: =INDEX(Extract!V$4:V$40003,MATCH($A10,Extract!$B$4:$B$40003,0)) -> 0.769 | W10: =INDEX(Extract!W$4:W$40003,MATCH($A10,Extract!$B$4:$B$40003,0)) -> 0.973 | X10: =INDEX(Extract!X$4:X$40003,MATCH($A10,Extract!$B$4:$B$40003,0)) -> 0.551 | Y10: =INDEX(Extract!Y$4:Y$40003,MATCH($A10,Extract!$B$4:$B$40003,0)) -> 0.521 | Z10: =INDEX(Extract!Z$4:Z$40003,MATCH($A10,Extract!$B$4:$B$40003,0)) -> 0.576 | AA10: =INDEX(Extract!AA$4:AA$40003,MATCH($A10,Extract!$B$4:$B$40003,0)) -> 0.836 | AB10: =INDEX(Extract!AB$4:AB$40003,MATCH($A10,Extract!$B$4:$B$40003,0)) -> 1.185 | AC10: =INDEX(Extract!AC$4:AC$40003,MATCH($A10,Extract!$B$4:$B$40003,0)) -> 0.736 | AD10: =INDEX(Extract!AD$4:AD$40003,MATCH($A10,Extract!$B$4:$B$40003,0)) -> 0.933 | AE10: =INDEX(Extract!AE$4:AE$40003,MATCH($A10,Extract!$B$4:$B$40003,0)) -> 0.6581212608 | AF10: =INDEX(Extract!AF$4:AF$40003,MATCH($A10,Extract!$B$4:$B$40003,0)) -> 0.4535046864 | AG10: =INDEX(Extract!AG$4:AG$40003,MATCH($A10,Extract!$B$4:$B$40003,0)) -> 0.2894943998 | AH10: =INDEX(Extract!AH$4:AH$40003,MATCH($A10,Extract!$B$4:$B$40003,0)) -> 0.2572891268 | AI10: =INDEX(Extract!AI$4:AI$40003,MATCH($A10,Extract!$B$4:$B$40003,0)) -> 0.2522983372 | AJ10: =INDEX(Extract!AJ$4:AJ$40003,MATCH($A10,Extract!$B$4:$B$40003,0)) -> 0.2258754297 | AK10: =INDEX(Extract!AK$4:AK$40003,MATCH($A10,Extract!$B$4:$B$40003,0)) -> 0.1890090666 | AL10: =INDEX(Extract!AL$4:AL$40003,MATCH($A10,Extract!$B$4:$B$40003,0)) -> 0.1752101263 | AM10: =INDEX(Extract!AM$4:AM$40003,MATCH($A10,Extract!$B$4:$B$40003,0)) -> 0.1664993968 | AN10: =INDEX(Extract!AN$4:AN$40003,MATCH($A10,Extract!$B$4:$B$40003,0)) -> 0.1517596559 | AO10: =INDEX(Extract!AO$4:AO$40003,MATCH($A10,Extract!$B$4:$B$40003,0)) -> 0.1279770242 | AP10: =INDEX(Extract!AP$4:AP$40003,MATCH($A10,Extract!$B$4:$B$40003,0)) -> 0.1123213333 | AQ10: =INDEX(Extract!AQ$4:AQ$40003,MATCH($A10,Extract!$B$4:$B$40003,0)) -> 0.1047842799 | AR10: =INDEX(Extract!AR$4:AR$40003,MATCH($A10,Extract!$B$4:$B$40003,0)) -> 0.09467215003 | AS10: =INDEX(Extract!AS$4:AS$40003,MATCH($A10,Extract!$B$4:$B$40003,0)) -> 0.08270649571 | AT10: =INDEX(Extract!AT$4:AT$40003,MATCH($A10,Extract!$B$4:$B$40003,0)) -> 0.0711183799 | AU10: =INDEX(Extract!AU$4:AU$40003,MATCH($A10,Extract!$B$4:$B$40003,0)) -> 0.05989478539 | AV10: =INDEX(Extract!AV$4:AV$40003,MATCH($A10,Extract!$B$4:$B$40003,0)) -> 0.04691181251 | AW10: =INDEX(Extract!AW$4:AW$40003,MATCH($A10,Extract!$B$4:$B$40003,0)) -> 0.03528299749 | AX10: =INDEX(Extract!AX$4:AX$40003,MATCH($A10,Extract!$B$4:$B$40003,0)) -> 0.02343291005 | AY10: =INDEX(Extract!AY$4:AY$40003,MATCH($A10,Extract!$B$4:$B$40003,0)) -> 0.01372326049
A11: WMIGNnw5 | B11: WMIGNnw5 | C11: =INDEX(Extract!C$4:C$40003,MATCH($A11,Extract!$B$4:$B$40003,0)) ->  | D11: =INDEX(Extract!D$4:D$40003,MATCH($A11,Extract!$B$4:$B$40003,0)) ->  | E11: =INDEX(Extract!E$4:E$40003,MATCH($A11,Extract!$B$4:$B$40003,0)) ->  | F11: =INDEX(Extract!F$4:F$40003,MATCH($A11,Extract!$B$4:$B$40003,0)) ->  | G11: =INDEX(Extract!G$4:G$40003,MATCH($A11,Extract!$B$4:$B$40003,0)) ->  | H11: =INDEX(Extract!H$4:H$40003,MATCH($A11,Extract!$B$4:$B$40003,0)) ->  | I11: =INDEX(Extract!I$4:I$40003,MATCH($A11,Extract!$B$4:$B$40003,0)) ->  | J11: =INDEX(Extract!J$4:J$40003,MATCH($A11,Extract!$B$4:$B$40003,0)) ->  | K11: =INDEX(Extract!K$4:K$40003,MATCH($A11,Extract!$B$4:$B$40003,0)) ->  | L11: =INDEX(Extract!L$4:L$40003,MATCH($A11,Extract!$B$4:$B$40003,0)) ->  | M11: =INDEX(Extract!M$4:M$40003,MATCH($A11,Extract!$B$4:$B$40003,0)) ->  | N11: =INDEX(Extract!N$4:N$40003,MATCH($A11,Extract!$B$4:$B$40003,0)) ->  | O11: =INDEX(Extract!O$4:O$40003,MATCH($A11,Extract!$B$4:$B$40003,0)) ->  | P11: =INDEX(Extract!P$4:P$40003,MATCH($A11,Extract!$B$4:$B$40003,0)) ->  | Q11: =INDEX(Extract!Q$4:Q$40003,MATCH($A11,Extract!$B$4:$B$40003,0)) ->  | R11: =INDEX(Extract!R$4:R$40003,MATCH($A11,Extract!$B$4:$B$40003,0)) ->  | S11: =INDEX(Extract!S$4:S$40003,MATCH($A11,Extract!$B$4:$B$40003,0)) ->  | T11: =INDEX(Extract!T$4:T$40003,MATCH($A11,Extract!$B$4:$B$40003,0)) ->  | U11: =INDEX(Extract!U$4:U$40003,MATCH($A11,Extract!$B$4:$B$40003,0)) ->  | V11: =INDEX(Extract!V$4:V$40003,MATCH($A11,Extract!$B$4:$B$40003,0)) ->  | W11: =INDEX(Extract!W$4:W$40003,MATCH($A11,Extract!$B$4:$B$40003,0)) ->  | X11: =INDEX(Extract!X$4:X$40003,MATCH($A11,Extract!$B$4:$B$40003,0)) ->  | Y11: =INDEX(Extract!Y$4:Y$40003,MATCH($A11,Extract!$B$4:$B$40003,0)) ->  | Z11: =INDEX(Extract!Z$4:Z$40003,MATCH($A11,Extract!$B$4:$B$40003,0)) ->  | AA11: =INDEX(Extract!AA$4:AA$40003,MATCH($A11,Extract!$B$4:$B$40003,0)) ->  | AB11: =INDEX(Extract!AB$4:AB$40003,MATCH($A11,Extract!$B$4:$B$40003,0)) ->  | AC11: =INDEX(Extract!AC$4:AC$40003,MATCH($A11,Extract!$B$4:$B$40003,0)) ->  | AD11: =INDEX(Extract!AD$4:AD$40003,MATCH($A11,Extract!$B$4:$B$40003,0)) ->  | AE11: =INDEX(Extract!AE$4:AE$40003,MATCH($A11,Extract!$B$4:$B$40003,0)) ->  | AF11: =INDEX(Extract!AF$4:AF$40003,MATCH($A11,Extract!$B$4:$B$40003,0)) ->  | AG11: =INDEX(Extract!AG$4:AG$40003,MATCH($A11,Extract!$B$4:$B$40003,0)) ->  | AH11: =INDEX(Extract!AH$4:AH$40003,MATCH($A11,Extract!$B$4:$B$40003,0)) ->  | AI11: =INDEX(Extract!AI$4:AI$40003,MATCH($A11,Extract!$B$4:$B$40003,0)) ->  | AJ11: =INDEX(Extract!AJ$4:AJ$40003,MATCH($A11,Extract!$B$4:$B$40003,0)) ->  | AK11: =INDEX(Extract!AK$4:AK$40003,MATCH($A11,Extract!$B$4:$B$40003,0)) ->  | AL11: =INDEX(Extract!AL$4:AL$40003,MATCH($A11,Extract!$B$4:$B$40003,0)) ->  | AM11: =INDEX(Extract!AM$4:AM$40003,MATCH($A11,Extract!$B$4:$B$40003,0)) ->  | AN11: =INDEX(Extract!AN$4:AN$40003,MATCH($A11,Extract!$B$4:$B$40003,0)) ->  | AO11: =INDEX(Extract!AO$4:AO$40003,MATCH($A11,Extract!$B$4:$B$40003,0)) ->  | AP11: =INDEX(Extract!AP$4:AP$40003,MATCH($A11,Extract!$B$4:$B$40003,0)) ->  | AQ11: =INDEX(Extract!AQ$4:AQ$40003,MATCH($A11,Extract!$B$4:$B$40003,0)) ->  | AR11: =INDEX(Extract!AR$4:AR$40003,MATCH($A11,Extract!$B$4:$B$40003,0)) ->  | AS11: =INDEX(Extract!AS$4:AS$40003,MATCH($A11,Extract!$B$4:$B$40003,0)) ->  | AT11: =INDEX(Extract!AT$4:AT$40003,MATCH($A11,Extract!$B$4:$B$40003,0)) ->  | AU11: =INDEX(Extract!AU$4:AU$40003,MATCH($A11,Extract!$B$4:$B$40003,0)) ->  | AV11: =INDEX(Extract!AV$4:AV$40003,MATCH($A11,Extract!$B$4:$B$40003,0)) ->  | AW11: =INDEX(Extract!AW$4:AW$40003,MATCH($A11,Extract!$B$4:$B$40003,0)) ->  | AX11: =INDEX(Extract!AX$4:AX$40003,MATCH($A11,Extract!$B$4:$B$40003,0)) ->  | AY11: =INDEX(Extract!AY$4:AY$40003,MATCH($A11,Extract!$B$4:$B$40003,0)) -> 
A12: WMIGDOMNnw5 | B12: WMIGDOMNnw5 | C12: =INDEX(Extract!C$4:C$40003,MATCH($A12,Extract!$B$4:$B$40003,0)) ->  | D12: =INDEX(Extract!D$4:D$40003,MATCH($A12,Extract!$B$4:$B$40003,0)) ->  | E12: =INDEX(Extract!E$4:E$40003,MATCH($A12,Extract!$B$4:$B$40003,0)) ->  | F12: =INDEX(Extract!F$4:F$40003,MATCH($A12,Extract!$B$4:$B$40003,0)) ->  | G12: =INDEX(Extract!G$4:G$40003,MATCH($A12,Extract!$B$4:$B$40003,0)) ->  | H12: =INDEX(Extract!H$4:H$40003,MATCH($A12,Extract!$B$4:$B$40003,0)) ->  | I12: =INDEX(Extract!I$4:I$40003,MATCH($A12,Extract!$B$4:$B$40003,0)) ->  | J12: =INDEX(Extract!J$4:J$40003,MATCH($A12,Extract!$B$4:$B$40003,0)) ->  | K12: =INDEX(Extract!K$4:K$40003,MATCH($A12,Extract!$B$4:$B$40003,0)) ->  | L12: =INDEX(Extract!L$4:L$40003,MATCH($A12,Extract!$B$4:$B$40003,0)) ->  | M12: =INDEX(Extract!M$4:M$40003,MATCH($A12,Extract!$B$4:$B$40003,0)) ->  | N12: =INDEX(Extract!N$4:N$40003,MATCH($A12,Extract!$B$4:$B$40003,0)) ->  | O12: =INDEX(Extract!O$4:O$40003,MATCH($A12,Extract!$B$4:$B$40003,0)) ->  | P12: =INDEX(Extract!P$4:P$40003,MATCH($A12,Extract!$B$4:$B$40003,0)) ->  | Q12: =INDEX(Extract!Q$4:Q$40003,MATCH($A12,Extract!$B$4:$B$40003,0)) ->  | R12: =INDEX(Extract!R$4:R$40003,MATCH($A12,Extract!$B$4:$B$40003,0)) ->  | S12: =INDEX(Extract!S$4:S$40003,MATCH($A12,Extract!$B$4:$B$40003,0)) ->  | T12: =INDEX(Extract!T$4:T$40003,MATCH($A12,Extract!$B$4:$B$40003,0)) ->  | U12: =INDEX(Extract!U$4:U$40003,MATCH($A12,Extract!$B$4:$B$40003,0)) ->  | V12: =INDEX(Extract!V$4:V$40003,MATCH($A12,Extract!$B$4:$B$40003,0)) ->  | W12: =INDEX(Extract!W$4:W$40003,MATCH($A12,Extract!$B$4:$B$40003,0)) ->  | X12: =INDEX(Extract!X$4:X$40003,MATCH($A12,Extract!$B$4:$B$40003,0)) ->  | Y12: =INDEX(Extract!Y$4:Y$40003,MATCH($A12,Extract!$B$4:$B$40003,0)) ->  | Z12: =INDEX(Extract!Z$4:Z$40003,MATCH($A12,Extract!$B$4:$B$40003,0)) ->  | AA12: =INDEX(Extract!AA$4:AA$40003,MATCH($A12,Extract!$B$4:$B$40003,0)) ->  | AB12: =INDEX(Extract!AB$4:AB$40003,MATCH($A12,Extract!$B$4:$B$40003,0)) ->  | AC12: =INDEX(Extract!AC$4:AC$40003,MATCH($A12,Extract!$B$4:$B$40003,0)) ->  | AD12: =INDEX(Extract!AD$4:AD$40003,MATCH($A12,Extract!$B$4:$B$40003,0)) ->  | AE12: =INDEX(Extract!AE$4:AE$40003,MATCH($A12,Extract!$B$4:$B$40003,0)) ->  | AF12: =INDEX(Extract!AF$4:AF$40003,MATCH($A12,Extract!$B$4:$B$40003,0)) ->  | AG12: =INDEX(Extract!AG$4:AG$40003,MATCH($A12,Extract!$B$4:$B$40003,0)) ->  | AH12: =INDEX(Extract!AH$4:AH$40003,MATCH($A12,Extract!$B$4:$B$40003,0)) ->  | AI12: =INDEX(Extract!AI$4:AI$40003,MATCH($A12,Extract!$B$4:$B$40003,0)) ->  | AJ12: =INDEX(Extract!AJ$4:AJ$40003,MATCH($A12,Extract!$B$4:$B$40003,0)) ->  | AK12: =INDEX(Extract!AK$4:AK$40003,MATCH($A12,Extract!$B$4:$B$40003,0)) ->  | AL12: =INDEX(Extract!AL$4:AL$40003,MATCH($A12,Extract!$B$4:$B$40003,0)) ->  | AM12: =INDEX(Extract!AM$4:AM$40003,MATCH($A12,Extract!$B$4:$B$40003,0)) ->  | AN12: =INDEX(Extract!AN$4:AN$40003,MATCH($A12,Extract!$B$4:$B$40003,0)) ->  | AO12: =INDEX(Extract!AO$4:AO$40003,MATCH($A12,Extract!$B$4:$B$40003,0)) ->  | AP12: =INDEX(Extract!AP$4:AP$40003,MATCH($A12,Extract!$B$4:$B$40003,0)) ->  | AQ12: =INDEX(Extract!AQ$4:AQ$40003,MATCH($A12,Extract!$B$4:$B$40003,0)) ->  | AR12: =INDEX(Extract!AR$4:AR$40003,MATCH($A12,Extract!$B$4:$B$40003,0)) ->  | AS12: =INDEX(Extract!AS$4:AS$40003,MATCH($A12,Extract!$B$4:$B$40003,0)) ->  | AT12: =INDEX(Extract!AT$4:AT$40003,MATCH($A12,Extract!$B$4:$B$40003,0)) ->  | AU12: =INDEX(Extract!AU$4:AU$40003,MATCH($A12,Extract!$B$4:$B$40003,0)) ->  | AV12: =INDEX(Extract!AV$4:AV$40003,MATCH($A12,Extract!$B$4:$B$40003,0)) ->  | AW12: =INDEX(Extract!AW$4:AW$40003,MATCH($A12,Extract!$B$4:$B$40003,0)) ->  | AX12: =INDEX(Extract!AX$4:AX$40003,MATCH($A12,Extract!$B$4:$B$40003,0)) ->  | AY12: =INDEX(Extract!AY$4:AY$40003,MATCH($A12,Extract!$B$4:$B$40003,0)) -> 
A13: WMIGINTNnw5 | B13: WMIGINTNnw5 | C13: =INDEX(Extract!C$4:C$40003,MATCH($A13,Extract!$B$4:$B$40003,0)) ->  | D13: =INDEX(Extract!D$4:D$40003,MATCH($A13,Extract!$B$4:$B$40003,0)) ->  | E13: =INDEX(Extract!E$4:E$40003,MATCH($A13,Extract!$B$4:$B$40003,0)) ->  | F13: =INDEX(Extract!F$4:F$40003,MATCH($A13,Extract!$B$4:$B$40003,0)) ->  | G13: =INDEX(Extract!G$4:G$40003,MATCH($A13,Extract!$B$4:$B$40003,0)) ->  | H13: =INDEX(Extract!H$4:H$40003,MATCH($A13,Extract!$B$4:$B$40003,0)) ->  | I13: =INDEX(Extract!I$4:I$40003,MATCH($A13,Extract!$B$4:$B$40003,0)) ->  | J13: =INDEX(Extract!J$4:J$40003,MATCH($A13,Extract!$B$4:$B$40003,0)) ->  | K13: =INDEX(Extract!K$4:K$40003,MATCH($A13,Extract!$B$4:$B$40003,0)) ->  | L13: =INDEX(Extract!L$4:L$40003,MATCH($A13,Extract!$B$4:$B$40003,0)) ->  | M13: =INDEX(Extract!M$4:M$40003,MATCH($A13,Extract!$B$4:$B$40003,0)) ->  | N13: =INDEX(Extract!N$4:N$40003,MATCH($A13,Extract!$B$4:$B$40003,0)) ->  | O13: =INDEX(Extract!O$4:O$40003,MATCH($A13,Extract!$B$4:$B$40003,0)) ->  | P13: =INDEX(Extract!P$4:P$40003,MATCH($A13,Extract!$B$4:$B$40003,0)) ->  | Q13: =INDEX(Extract!Q$4:Q$40003,MATCH($A13,Extract!$B$4:$B$40003,0)) ->  | R13: =INDEX(Extract!R$4:R$40003,MATCH($A13,Extract!$B$4:$B$40003,0)) ->  | S13: =INDEX(Extract!S$4:S$40003,MATCH($A13,Extract!$B$4:$B$40003,0)) ->  | T13: =INDEX(Extract!T$4:T$40003,MATCH($A13,Extract!$B$4:$B$40003,0)) ->  | U13: =INDEX(Extract!U$4:U$40003,MATCH($A13,Extract!$B$4:$B$40003,0)) ->  | V13: =INDEX(Extract!V$4:V$40003,MATCH($A13,Extract!$B$4:$B$40003,0)) ->  | W13: =INDEX(Extract!W$4:W$40003,MATCH($A13,Extract!$B$4:$B$40003,0)) ->  | X13: =INDEX(Extract!X$4:X$40003,MATCH($A13,Extract!$B$4:$B$40003,0)) ->  | Y13: =INDEX(Extract!Y$4:Y$40003,MATCH($A13,Extract!$B$4:$B$40003,0)) ->  | Z13: =INDEX(Extract!Z$4:Z$40003,MATCH($A13,Extract!$B$4:$B$40003,0)) ->  | AA13: =INDEX(Extract!AA$4:AA$40003,MATCH($A13,Extract!$B$4:$B$40003,0)) ->  | AB13: =INDEX(Extract!AB$4:AB$40003,MATCH($A13,Extract!$B$4:$B$40003,0)) ->  | AC13: =INDEX(Extract!AC$4:AC$40003,MATCH($A13,Extract!$B$4:$B$40003,0)) ->  | AD13: =INDEX(Extract!AD$4:AD$40003,MATCH($A13,Extract!$B$4:$B$40003,0)) ->  | AE13: =INDEX(Extract!AE$4:AE$40003,MATCH($A13,Extract!$B$4:$B$40003,0)) ->  | AF13: =INDEX(Extract!AF$4:AF$40003,MATCH($A13,Extract!$B$4:$B$40003,0)) ->  | AG13: =INDEX(Extract!AG$4:AG$40003,MATCH($A13,Extract!$B$4:$B$40003,0)) ->  | AH13: =INDEX(Extract!AH$4:AH$40003,MATCH($A13,Extract!$B$4:$B$40003,0)) ->  | AI13: =INDEX(Extract!AI$4:AI$40003,MATCH($A13,Extract!$B$4:$B$40003,0)) ->  | AJ13: =INDEX(Extract!AJ$4:AJ$40003,MATCH($A13,Extract!$B$4:$B$40003,0)) ->  | AK13: =INDEX(Extract!AK$4:AK$40003,MATCH($A13,Extract!$B$4:$B$40003,0)) ->  | AL13: =INDEX(Extract!AL$4:AL$40003,MATCH($A13,Extract!$B$4:$B$40003,0)) ->  | AM13: =INDEX(Extract!AM$4:AM$40003,MATCH($A13,Extract!$B$4:$B$40003,0)) ->  | AN13: =INDEX(Extract!AN$4:AN$40003,MATCH($A13,Extract!$B$4:$B$40003,0)) ->  | AO13: =INDEX(Extract!AO$4:AO$40003,MATCH($A13,Extract!$B$4:$B$40003,0)) ->  | AP13: =INDEX(Extract!AP$4:AP$40003,MATCH($A13,Extract!$B$4:$B$40003,0)) ->  | AQ13: =INDEX(Extract!AQ$4:AQ$40003,MATCH($A13,Extract!$B$4:$B$40003,0)) ->  | AR13: =INDEX(Extract!AR$4:AR$40003,MATCH($A13,Extract!$B$4:$B$40003,0)) ->  | AS13: =INDEX(Extract!AS$4:AS$40003,MATCH($A13,Extract!$B$4:$B$40003,0)) ->  | AT13: =INDEX(Extract!AT$4:AT$40003,MATCH($A13,Extract!$B$4:$B$40003,0)) ->  | AU13: =INDEX(Extract!AU$4:AU$40003,MATCH($A13,Extract!$B$4:$B$40003,0)) ->  | AV13: =INDEX(Extract!AV$4:AV$40003,MATCH($A13,Extract!$B$4:$B$40003,0)) ->  | AW13: =INDEX(Extract!AW$4:AW$40003,MATCH($A13,Extract!$B$4:$B$40003,0)) ->  | AX13: =INDEX(Extract!AX$4:AX$40003,MATCH($A13,Extract!$B$4:$B$40003,0)) ->  | AY13: =INDEX(Extract!AY$4:AY$40003,MATCH($A13,Extract!$B$4:$B$40003,0)) -> 
A14: EETTnw5 | B14: EETTnw5 | C14: =INDEX(Extract!C$4:C$40003,MATCH($A14,Extract!$B$4:$B$40003,0)) -> 105.1068355 | D14: =INDEX(Extract!D$4:D$40003,MATCH($A14,Extract!$B$4:$B$40003,0)) -> 102.5516105 | E14: =INDEX(Extract!E$4:E$40003,MATCH($A14,Extract!$B$4:$B$40003,0)) -> 100.999701 | F14: =INDEX(Extract!F$4:F$40003,MATCH($A14,Extract!$B$4:$B$40003,0)) -> 102.1999027 | G14: =INDEX(Extract!G$4:G$40003,MATCH($A14,Extract!$B$4:$B$40003,0)) -> 103.6509305 | H14: =INDEX(Extract!H$4:H$40003,MATCH($A14,Extract!$B$4:$B$40003,0)) -> 106.1462648 | I14: =INDEX(Extract!I$4:I$40003,MATCH($A14,Extract!$B$4:$B$40003,0)) -> 106.0221406 | J14: =INDEX(Extract!J$4:J$40003,MATCH($A14,Extract!$B$4:$B$40003,0)) -> 108.2252162 | K14: =INDEX(Extract!K$4:K$40003,MATCH($A14,Extract!$B$4:$B$40003,0)) -> 111.9838969 | L14: =INDEX(Extract!L$4:L$40003,MATCH($A14,Extract!$B$4:$B$40003,0)) -> 110.4309785 | M14: =INDEX(Extract!M$4:M$40003,MATCH($A14,Extract!$B$4:$B$40003,0)) -> 109.3172279 | N14: =INDEX(Extract!N$4:N$40003,MATCH($A14,Extract!$B$4:$B$40003,0)) -> 105.5778767 | O14: =INDEX(Extract!O$4:O$40003,MATCH($A14,Extract!$B$4:$B$40003,0)) -> 112.3111449 | P14: =INDEX(Extract!P$4:P$40003,MATCH($A14,Extract!$B$4:$B$40003,0)) -> 108.8683957 | Q14: =INDEX(Extract!Q$4:Q$40003,MATCH($A14,Extract!$B$4:$B$40003,0)) -> 113.7676554 | R14: =INDEX(Extract!R$4:R$40003,MATCH($A14,Extract!$B$4:$B$40003,0)) -> 107.6771873 | S14: =INDEX(Extract!S$4:S$40003,MATCH($A14,Extract!$B$4:$B$40003,0)) -> 109.129275 | T14: =INDEX(Extract!T$4:T$40003,MATCH($A14,Extract!$B$4:$B$40003,0)) -> 110.5139341 | U14: =INDEX(Extract!U$4:U$40003,MATCH($A14,Extract!$B$4:$B$40003,0)) -> 105.2090743 | V14: =INDEX(Extract!V$4:V$40003,MATCH($A14,Extract!$B$4:$B$40003,0)) -> 102.0115214 | W14: =INDEX(Extract!W$4:W$40003,MATCH($A14,Extract!$B$4:$B$40003,0)) -> 102.4849156 | X14: =INDEX(Extract!X$4:X$40003,MATCH($A14,Extract!$B$4:$B$40003,0)) -> 100.2816314 | Y14: =INDEX(Extract!Y$4:Y$40003,MATCH($A14,Extract!$B$4:$B$40003,0)) -> 103.3176082 | Z14: =INDEX(Extract!Z$4:Z$40003,MATCH($A14,Extract!$B$4:$B$40003,0)) -> 103.3650022 | AA14: =INDEX(Extract!AA$4:AA$40003,MATCH($A14,Extract!$B$4:$B$40003,0)) -> 103.3926846 | AB14: =INDEX(Extract!AB$4:AB$40003,MATCH($A14,Extract!$B$4:$B$40003,0)) -> 106.7529799 | AC14: =INDEX(Extract!AC$4:AC$40003,MATCH($A14,Extract!$B$4:$B$40003,0)) -> 110.1680598 | AD14: =INDEX(Extract!AD$4:AD$40003,MATCH($A14,Extract!$B$4:$B$40003,0)) -> 112.6562621 | AE14: =INDEX(Extract!AE$4:AE$40003,MATCH($A14,Extract!$B$4:$B$40003,0)) -> 114.1898374 | AF14: =INDEX(Extract!AF$4:AF$40003,MATCH($A14,Extract!$B$4:$B$40003,0)) -> 114.9119862 | AG14: =INDEX(Extract!AG$4:AG$40003,MATCH($A14,Extract!$B$4:$B$40003,0)) -> 115.7997321 | AH14: =INDEX(Extract!AH$4:AH$40003,MATCH($A14,Extract!$B$4:$B$40003,0)) -> 116.4437156 | AI14: =INDEX(Extract!AI$4:AI$40003,MATCH($A14,Extract!$B$4:$B$40003,0)) -> 116.9522965 | AJ14: =INDEX(Extract!AJ$4:AJ$40003,MATCH($A14,Extract!$B$4:$B$40003,0)) -> 117.2743819 | AK14: =INDEX(Extract!AK$4:AK$40003,MATCH($A14,Extract!$B$4:$B$40003,0)) -> 117.349374 | AL14: =INDEX(Extract!AL$4:AL$40003,MATCH($A14,Extract!$B$4:$B$40003,0)) -> 117.362072 | AM14: =INDEX(Extract!AM$4:AM$40003,MATCH($A14,Extract!$B$4:$B$40003,0)) -> 117.3632654 | AN14: =INDEX(Extract!AN$4:AN$40003,MATCH($A14,Extract!$B$4:$B$40003,0)) -> 117.367444 | AO14: =INDEX(Extract!AO$4:AO$40003,MATCH($A14,Extract!$B$4:$B$40003,0)) -> 117.3709446 | AP14: =INDEX(Extract!AP$4:AP$40003,MATCH($A14,Extract!$B$4:$B$40003,0)) -> 117.3629864 | AQ14: =INDEX(Extract!AQ$4:AQ$40003,MATCH($A14,Extract!$B$4:$B$40003,0)) -> 117.2585499 | AR14: =INDEX(Extract!AR$4:AR$40003,MATCH($A14,Extract!$B$4:$B$40003,0)) -> 117.1080858 | AS14: =INDEX(Extract!AS$4:AS$40003,MATCH($A14,Extract!$B$4:$B$40003,0)) -> 116.9569377 | AT14: =INDEX(Extract!AT$4:AT$40003,MATCH($A14,Extract!$B$4:$B$40003,0)) -> 116.8064338 | AU14: =INDEX(Extract!AU$4:AU$40003,MATCH($A14,Extract!$B$4:$B$40003,0)) -> 116.6702059 | AV14: =INDEX(Extract!AV$4:AV$40003,MATCH($A14,Extract!$B$4:$B$40003,0)) -> 116.5446484 | AW14: =INDEX(Extract!AW$4:AW$40003,MATCH($A14,Extract!$B$4:$B$40003,0)) -> 116.4255454 | AX14: =INDEX(Extract!AX$4:AX$40003,MATCH($A14,Extract!$B$4:$B$40003,0)) -> 116.3035098 | AY14: =INDEX(Extract!AY$4:AY$40003,MATCH($A14,Extract!$B$4:$B$40003,0)) -> 116.1853078
A15: SETnw5 | B15: SETnw5 | C15: =INDEX(Extract!C$4:C$40003,MATCH($A15,Extract!$B$4:$B$40003,0)) -> 11.66624693 | D15: =INDEX(Extract!D$4:D$40003,MATCH($A15,Extract!$B$4:$B$40003,0)) -> 11.91343951 | E15: =INDEX(Extract!E$4:E$40003,MATCH($A15,Extract!$B$4:$B$40003,0)) -> 12.64489975 | F15: =INDEX(Extract!F$4:F$40003,MATCH($A15,Extract!$B$4:$B$40003,0)) -> 11.70012979 | G15: =INDEX(Extract!G$4:G$40003,MATCH($A15,Extract!$B$4:$B$40003,0)) -> 11.81568325 | H15: =INDEX(Extract!H$4:H$40003,MATCH($A15,Extract!$B$4:$B$40003,0)) -> 13.43623974 | I15: =INDEX(Extract!I$4:I$40003,MATCH($A15,Extract!$B$4:$B$40003,0)) -> 12.29274207 | J15: =INDEX(Extract!J$4:J$40003,MATCH($A15,Extract!$B$4:$B$40003,0)) -> 11.40114154 | K15: =INDEX(Extract!K$4:K$40003,MATCH($A15,Extract!$B$4:$B$40003,0)) -> 11.72832955 | L15: =INDEX(Extract!L$4:L$40003,MATCH($A15,Extract!$B$4:$B$40003,0)) -> 10.69658015 | M15: =INDEX(Extract!M$4:M$40003,MATCH($A15,Extract!$B$4:$B$40003,0)) -> 11.27508454 | N15: =INDEX(Extract!N$4:N$40003,MATCH($A15,Extract!$B$4:$B$40003,0)) -> 10.85132366 | O15: =INDEX(Extract!O$4:O$40003,MATCH($A15,Extract!$B$4:$B$40003,0)) -> 12.01599375 | P15: =INDEX(Extract!P$4:P$40003,MATCH($A15,Extract!$B$4:$B$40003,0)) -> 12.85589246 | Q15: =INDEX(Extract!Q$4:Q$40003,MATCH($A15,Extract!$B$4:$B$40003,0)) -> 12.93425175 | R15: =INDEX(Extract!R$4:R$40003,MATCH($A15,Extract!$B$4:$B$40003,0)) -> 12.83359057 | S15: =INDEX(Extract!S$4:S$40003,MATCH($A15,Extract!$B$4:$B$40003,0)) -> 13.14955104 | T15: =INDEX(Extract!T$4:T$40003,MATCH($A15,Extract!$B$4:$B$40003,0)) -> 13.74493524 | U15: =INDEX(Extract!U$4:U$40003,MATCH($A15,Extract!$B$4:$B$40003,0)) -> 13.48393982 | V15: =INDEX(Extract!V$4:V$40003,MATCH($A15,Extract!$B$4:$B$40003,0)) -> 14.31819788 | W15: =INDEX(Extract!W$4:W$40003,MATCH($A15,Extract!$B$4:$B$40003,0)) -> 13.713731 | X15: =INDEX(Extract!X$4:X$40003,MATCH($A15,Extract!$B$4:$B$40003,0)) -> 14.15213263 | Y15: =INDEX(Extract!Y$4:Y$40003,MATCH($A15,Extract!$B$4:$B$40003,0)) -> 15.66825919 | Z15: =INDEX(Extract!Z$4:Z$40003,MATCH($A15,Extract!$B$4:$B$40003,0)) -> 16.83064218 | AA15: =INDEX(Extract!AA$4:AA$40003,MATCH($A15,Extract!$B$4:$B$40003,0)) -> 15.17862667 | AB15: =INDEX(Extract!AB$4:AB$40003,MATCH($A15,Extract!$B$4:$B$40003,0)) -> 15.49115017 | AC15: =INDEX(Extract!AC$4:AC$40003,MATCH($A15,Extract!$B$4:$B$40003,0)) -> 14.80762415 | AD15: =INDEX(Extract!AD$4:AD$40003,MATCH($A15,Extract!$B$4:$B$40003,0)) -> 16.09544936 | AE15: =INDEX(Extract!AE$4:AE$40003,MATCH($A15,Extract!$B$4:$B$40003,0)) -> 16.79791504 | AF15: =INDEX(Extract!AF$4:AF$40003,MATCH($A15,Extract!$B$4:$B$40003,0)) -> 16.93205915 | AG15: =INDEX(Extract!AG$4:AG$40003,MATCH($A15,Extract!$B$4:$B$40003,0)) -> 17.08852752 | AH15: =INDEX(Extract!AH$4:AH$40003,MATCH($A15,Extract!$B$4:$B$40003,0)) -> 17.22085224 | AI15: =INDEX(Extract!AI$4:AI$40003,MATCH($A15,Extract!$B$4:$B$40003,0)) -> 17.32482043 | AJ15: =INDEX(Extract!AJ$4:AJ$40003,MATCH($A15,Extract!$B$4:$B$40003,0)) -> 17.39337044 | AK15: =INDEX(Extract!AK$4:AK$40003,MATCH($A15,Extract!$B$4:$B$40003,0)) -> 17.41939383 | AL15: =INDEX(Extract!AL$4:AL$40003,MATCH($A15,Extract!$B$4:$B$40003,0)) -> 17.43758094 | AM15: =INDEX(Extract!AM$4:AM$40003,MATCH($A15,Extract!$B$4:$B$40003,0)) -> 17.45464651 | AN15: =INDEX(Extract!AN$4:AN$40003,MATCH($A15,Extract!$B$4:$B$40003,0)) -> 17.4710066 | AO15: =INDEX(Extract!AO$4:AO$40003,MATCH($A15,Extract!$B$4:$B$40003,0)) -> 17.48676299 | AP15: =INDEX(Extract!AP$4:AP$40003,MATCH($A15,Extract!$B$4:$B$40003,0)) -> 17.50103714 | AQ15: =INDEX(Extract!AQ$4:AQ$40003,MATCH($A15,Extract!$B$4:$B$40003,0)) -> 17.50310742 | AR15: =INDEX(Extract!AR$4:AR$40003,MATCH($A15,Extract!$B$4:$B$40003,0)) -> 17.4991156 | AS15: =INDEX(Extract!AS$4:AS$40003,MATCH($A15,Extract!$B$4:$B$40003,0)) -> 17.4955624 | AT15: =INDEX(Extract!AT$4:AT$40003,MATCH($A15,Extract!$B$4:$B$40003,0)) -> 17.49192713 | AU15: =INDEX(Extract!AU$4:AU$40003,MATCH($A15,Extract!$B$4:$B$40003,0)) -> 17.48946278 | AV15: =INDEX(Extract!AV$4:AV$40003,MATCH($A15,Extract!$B$4:$B$40003,0)) -> 17.48878157 | AW15: =INDEX(Extract!AW$4:AW$40003,MATCH($A15,Extract!$B$4:$B$40003,0)) -> 17.48917277 | AX15: =INDEX(Extract!AX$4:AX$40003,MATCH($A15,Extract!$B$4:$B$40003,0)) -> 17.48988652 | AY15: =INDEX(Extract!AY$4:AY$40003,MATCH($A15,Extract!$B$4:$B$40003,0)) -> 17.49018403
A16: ETTTnw5 | B16: ETTTnw5 | C16: =INDEX(Extract!C$4:C$40003,MATCH($A16,Extract!$B$4:$B$40003,0)) -> 116.7730824 | D16: =INDEX(Extract!D$4:D$40003,MATCH($A16,Extract!$B$4:$B$40003,0)) -> 114.46505 | E16: =INDEX(Extract!E$4:E$40003,MATCH($A16,Extract!$B$4:$B$40003,0)) -> 113.6446007 | F16: =INDEX(Extract!F$4:F$40003,MATCH($A16,Extract!$B$4:$B$40003,0)) -> 113.9000325 | G16: =INDEX(Extract!G$4:G$40003,MATCH($A16,Extract!$B$4:$B$40003,0)) -> 115.4666137 | H16: =INDEX(Extract!H$4:H$40003,MATCH($A16,Extract!$B$4:$B$40003,0)) -> 119.5825045 | I16: =INDEX(Extract!I$4:I$40003,MATCH($A16,Extract!$B$4:$B$40003,0)) -> 118.3148827 | J16: =INDEX(Extract!J$4:J$40003,MATCH($A16,Extract!$B$4:$B$40003,0)) -> 119.6263578 | K16: =INDEX(Extract!K$4:K$40003,MATCH($A16,Extract!$B$4:$B$40003,0)) -> 123.7122264 | L16: =INDEX(Extract!L$4:L$40003,MATCH($A16,Extract!$B$4:$B$40003,0)) -> 121.1275587 | M16: =INDEX(Extract!M$4:M$40003,MATCH($A16,Extract!$B$4:$B$40003,0)) -> 120.5923125 | N16: =INDEX(Extract!N$4:N$40003,MATCH($A16,Extract!$B$4:$B$40003,0)) -> 116.4292003 | O16: =INDEX(Extract!O$4:O$40003,MATCH($A16,Extract!$B$4:$B$40003,0)) -> 124.3271386 | P16: =INDEX(Extract!P$4:P$40003,MATCH($A16,Extract!$B$4:$B$40003,0)) -> 121.7242882 | Q16: =INDEX(Extract!Q$4:Q$40003,MATCH($A16,Extract!$B$4:$B$40003,0)) -> 126.7019072 | R16: =INDEX(Extract!R$4:R$40003,MATCH($A16,Extract!$B$4:$B$40003,0)) -> 120.5107779 | S16: =INDEX(Extract!S$4:S$40003,MATCH($A16,Extract!$B$4:$B$40003,0)) -> 122.2788261 | T16: =INDEX(Extract!T$4:T$40003,MATCH($A16,Extract!$B$4:$B$40003,0)) -> 124.2588693 | U16: =INDEX(Extract!U$4:U$40003,MATCH($A16,Extract!$B$4:$B$40003,0)) -> 118.6930141 | V16: =INDEX(Extract!V$4:V$40003,MATCH($A16,Extract!$B$4:$B$40003,0)) -> 116.3297193 | W16: =INDEX(Extract!W$4:W$40003,MATCH($A16,Extract!$B$4:$B$40003,0)) -> 116.1986466 | X16: =INDEX(Extract!X$4:X$40003,MATCH($A16,Extract!$B$4:$B$40003,0)) -> 114.433764 | Y16: =INDEX(Extract!Y$4:Y$40003,MATCH($A16,Extract!$B$4:$B$40003,0)) -> 118.9858673 | Z16: =INDEX(Extract!Z$4:Z$40003,MATCH($A16,Extract!$B$4:$B$40003,0)) -> 120.1956443 | AA16: =INDEX(Extract!AA$4:AA$40003,MATCH($A16,Extract!$B$4:$B$40003,0)) -> 118.5713112 | AB16: =INDEX(Extract!AB$4:AB$40003,MATCH($A16,Extract!$B$4:$B$40003,0)) -> 122.2498606 | AC16: =INDEX(Extract!AC$4:AC$40003,MATCH($A16,Extract!$B$4:$B$40003,0)) -> 124.9784626 | AD16: =INDEX(Extract!AD$4:AD$40003,MATCH($A16,Extract!$B$4:$B$40003,0)) -> 128.7544677 | AE16: =INDEX(Extract!AE$4:AE$40003,MATCH($A16,Extract!$B$4:$B$40003,0)) -> 130.9905088 | AF16: =INDEX(Extract!AF$4:AF$40003,MATCH($A16,Extract!$B$4:$B$40003,0)) -> 131.8468017 | AG16: =INDEX(Extract!AG$4:AG$40003,MATCH($A16,Extract!$B$4:$B$40003,0)) -> 132.891016 | AH16: =INDEX(Extract!AH$4:AH$40003,MATCH($A16,Extract!$B$4:$B$40003,0)) -> 133.6673242 | AI16: =INDEX(Extract!AI$4:AI$40003,MATCH($A16,Extract!$B$4:$B$40003,0)) -> 134.2798733 | AJ16: =INDEX(Extract!AJ$4:AJ$40003,MATCH($A16,Extract!$B$4:$B$40003,0)) -> 134.6705087 | AK16: =INDEX(Extract!AK$4:AK$40003,MATCH($A16,Extract!$B$4:$B$40003,0)) -> 134.7715241 | AL16: =INDEX(Extract!AL$4:AL$40003,MATCH($A16,Extract!$B$4:$B$40003,0)) -> 134.8024093 | AM16: =INDEX(Extract!AM$4:AM$40003,MATCH($A16,Extract!$B$4:$B$40003,0)) -> 134.8206682 | AN16: =INDEX(Extract!AN$4:AN$40003,MATCH($A16,Extract!$B$4:$B$40003,0)) -> 134.841207 | AO16: =INDEX(Extract!AO$4:AO$40003,MATCH($A16,Extract!$B$4:$B$40003,0)) -> 134.860464 | AP16: =INDEX(Extract!AP$4:AP$40003,MATCH($A16,Extract!$B$4:$B$40003,0)) -> 134.8667799 | AQ16: =INDEX(Extract!AQ$4:AQ$40003,MATCH($A16,Extract!$B$4:$B$40003,0)) -> 134.7644137 | AR16: =INDEX(Extract!AR$4:AR$40003,MATCH($A16,Extract!$B$4:$B$40003,0)) -> 134.6099577 | AS16: =INDEX(Extract!AS$4:AS$40003,MATCH($A16,Extract!$B$4:$B$40003,0)) -> 134.4552564 | AT16: =INDEX(Extract!AT$4:AT$40003,MATCH($A16,Extract!$B$4:$B$40003,0)) -> 134.3011172 | AU16: =INDEX(Extract!AU$4:AU$40003,MATCH($A16,Extract!$B$4:$B$40003,0)) -> 134.162425 | AV16: =INDEX(Extract!AV$4:AV$40003,MATCH($A16,Extract!$B$4:$B$40003,0)) -> 134.0361863 | AW16: =INDEX(Extract!AW$4:AW$40003,MATCH($A16,Extract!$B$4:$B$40003,0)) -> 133.9174745 | AX16: =INDEX(Extract!AX$4:AX$40003,MATCH($A16,Extract!$B$4:$B$40003,0)) -> 133.7961526 | AY16: =INDEX(Extract!AY$4:AY$40003,MATCH($A16,Extract!$B$4:$B$40003,0)) -> 133.6782482
A17: QQTTnw5 | B17: QQTTnw5 | C17: =INDEX(Extract!C$4:C$40003,MATCH($A17,Extract!$B$4:$B$40003,0)) -> 3658.123661 | D17: =INDEX(Extract!D$4:D$40003,MATCH($A17,Extract!$B$4:$B$40003,0)) -> 3658.584475 | E17: =INDEX(Extract!E$4:E$40003,MATCH($A17,Extract!$B$4:$B$40003,0)) -> 3706.782986 | F17: =INDEX(Extract!F$4:F$40003,MATCH($A17,Extract!$B$4:$B$40003,0)) -> 3822.136671 | G17: =INDEX(Extract!G$4:G$40003,MATCH($A17,Extract!$B$4:$B$40003,0)) -> 3857.920029 | H17: =INDEX(Extract!H$4:H$40003,MATCH($A17,Extract!$B$4:$B$40003,0)) -> 3852.256227 | I17: =INDEX(Extract!I$4:I$40003,MATCH($A17,Extract!$B$4:$B$40003,0)) -> 3954.952344 | J17: =INDEX(Extract!J$4:J$40003,MATCH($A17,Extract!$B$4:$B$40003,0)) -> 4194.998716 | K17: =INDEX(Extract!K$4:K$40003,MATCH($A17,Extract!$B$4:$B$40003,0)) -> 4306.666319 | L17: =INDEX(Extract!L$4:L$40003,MATCH($A17,Extract!$B$4:$B$40003,0)) -> 4250.485219 | M17: =INDEX(Extract!M$4:M$40003,MATCH($A17,Extract!$B$4:$B$40003,0)) -> 4316.137332 | N17: =INDEX(Extract!N$4:N$40003,MATCH($A17,Extract!$B$4:$B$40003,0)) -> 4461.565687 | O17: =INDEX(Extract!O$4:O$40003,MATCH($A17,Extract!$B$4:$B$40003,0)) -> 4641.15848 | P17: =INDEX(Extract!P$4:P$40003,MATCH($A17,Extract!$B$4:$B$40003,0)) -> 4634.635893 | Q17: =INDEX(Extract!Q$4:Q$40003,MATCH($A17,Extract!$B$4:$B$40003,0)) -> 4898.478804 | R17: =INDEX(Extract!R$4:R$40003,MATCH($A17,Extract!$B$4:$B$40003,0)) -> 5107.281894 | S17: =INDEX(Extract!S$4:S$40003,MATCH($A17,Extract!$B$4:$B$40003,0)) -> 5171.305667 | T17: =INDEX(Extract!T$4:T$40003,MATCH($A17,Extract!$B$4:$B$40003,0)) -> 5192.479317 | U17: =INDEX(Extract!U$4:U$40003,MATCH($A17,Extract!$B$4:$B$40003,0)) -> 5018.158517 | V17: =INDEX(Extract!V$4:V$40003,MATCH($A17,Extract!$B$4:$B$40003,0)) -> 5068.575371 | W17: =INDEX(Extract!W$4:W$40003,MATCH($A17,Extract!$B$4:$B$40003,0)) -> 4986.773393 | X17: =INDEX(Extract!X$4:X$40003,MATCH($A17,Extract!$B$4:$B$40003,0)) -> 4974.739242 | Y17: =INDEX(Extract!Y$4:Y$40003,MATCH($A17,Extract!$B$4:$B$40003,0)) -> 5025.617211 | Z17: =INDEX(Extract!Z$4:Z$40003,MATCH($A17,Extract!$B$4:$B$40003,0)) -> 5048.74081 | AA17: =INDEX(Extract!AA$4:AA$40003,MATCH($A17,Extract!$B$4:$B$40003,0)) -> 5149.986472 | AB17: =INDEX(Extract!AB$4:AB$40003,MATCH($A17,Extract!$B$4:$B$40003,0)) -> 5319.772873 | AC17: =INDEX(Extract!AC$4:AC$40003,MATCH($A17,Extract!$B$4:$B$40003,0)) -> 5636.379579 | AD17: =INDEX(Extract!AD$4:AD$40003,MATCH($A17,Extract!$B$4:$B$40003,0)) -> 5751.317706 | AE17: =INDEX(Extract!AE$4:AE$40003,MATCH($A17,Extract!$B$4:$B$40003,0)) -> 5868.412973 | AF17: =INDEX(Extract!AF$4:AF$40003,MATCH($A17,Extract!$B$4:$B$40003,0)) -> 5963.089002 | AG17: =INDEX(Extract!AG$4:AG$40003,MATCH($A17,Extract!$B$4:$B$40003,0)) -> 6071.288699 | AH17: =INDEX(Extract!AH$4:AH$40003,MATCH($A17,Extract!$B$4:$B$40003,0)) -> 6178.608274 | AI17: =INDEX(Extract!AI$4:AI$40003,MATCH($A17,Extract!$B$4:$B$40003,0)) -> 6284.018155 | AJ17: =INDEX(Extract!AJ$4:AJ$40003,MATCH($A17,Extract!$B$4:$B$40003,0)) -> 6382.827175 | AK17: =INDEX(Extract!AK$4:AK$40003,MATCH($A17,Extract!$B$4:$B$40003,0)) -> 6469.384925 | AL17: =INDEX(Extract!AL$4:AL$40003,MATCH($A17,Extract!$B$4:$B$40003,0)) -> 6551.748002 | AM17: =INDEX(Extract!AM$4:AM$40003,MATCH($A17,Extract!$B$4:$B$40003,0)) -> 6633.824525 | AN17: =INDEX(Extract!AN$4:AN$40003,MATCH($A17,Extract!$B$4:$B$40003,0)) -> 6715.808564 | AO17: =INDEX(Extract!AO$4:AO$40003,MATCH($A17,Extract!$B$4:$B$40003,0)) -> 6798.643711 | AP17: =INDEX(Extract!AP$4:AP$40003,MATCH($A17,Extract!$B$4:$B$40003,0)) -> 6881.624882 | AQ17: =INDEX(Extract!AQ$4:AQ$40003,MATCH($A17,Extract!$B$4:$B$40003,0)) -> 6960.926197 | AR17: =INDEX(Extract!AR$4:AR$40003,MATCH($A17,Extract!$B$4:$B$40003,0)) -> 7037.920858 | AS17: =INDEX(Extract!AS$4:AS$40003,MATCH($A17,Extract!$B$4:$B$40003,0)) -> 7114.355765 | AT17: =INDEX(Extract!AT$4:AT$40003,MATCH($A17,Extract!$B$4:$B$40003,0)) -> 7190.444558 | AU17: =INDEX(Extract!AU$4:AU$40003,MATCH($A17,Extract!$B$4:$B$40003,0)) -> 7266.719935 | AV17: =INDEX(Extract!AV$4:AV$40003,MATCH($A17,Extract!$B$4:$B$40003,0)) -> 7343.179246 | AW17: =INDEX(Extract!AW$4:AW$40003,MATCH($A17,Extract!$B$4:$B$40003,0)) -> 7419.863413 | AX17: =INDEX(Extract!AX$4:AX$40003,MATCH($A17,Extract!$B$4:$B$40003,0)) -> 7496.361783 | AY17: =INDEX(Extract!AY$4:AY$40003,MATCH($A17,Extract!$B$4:$B$40003,0)) -> 7573.20884
A18: UNMPILOnw5 | B18: UNMPILOnw5 | C18: =INDEX(Extract!C$4:C$40003,MATCH($A18,Extract!$B$4:$B$40003,0)) -> 0 | D18: =INDEX(Extract!D$4:D$40003,MATCH($A18,Extract!$B$4:$B$40003,0)) -> 11.4647619 | E18: =INDEX(Extract!E$4:E$40003,MATCH($A18,Extract!$B$4:$B$40003,0)) -> 11.60568573 | F18: =INDEX(Extract!F$4:F$40003,MATCH($A18,Extract!$B$4:$B$40003,0)) -> 10.26367283 | G18: =INDEX(Extract!G$4:G$40003,MATCH($A18,Extract!$B$4:$B$40003,0)) -> 8.552091227 | H18: =INDEX(Extract!H$4:H$40003,MATCH($A18,Extract!$B$4:$B$40003,0)) -> 7.752166777 | I18: =INDEX(Extract!I$4:I$40003,MATCH($A18,Extract!$B$4:$B$40003,0)) -> 6.412467318 | J18: =INDEX(Extract!J$4:J$40003,MATCH($A18,Extract!$B$4:$B$40003,0)) -> 6.305160357 | K18: =INDEX(Extract!K$4:K$40003,MATCH($A18,Extract!$B$4:$B$40003,0)) -> 6.553709869 | L18: =INDEX(Extract!L$4:L$40003,MATCH($A18,Extract!$B$4:$B$40003,0)) -> 6.090364014 | M18: =INDEX(Extract!M$4:M$40003,MATCH($A18,Extract!$B$4:$B$40003,0)) -> 5.821982631 | N18: =INDEX(Extract!N$4:N$40003,MATCH($A18,Extract!$B$4:$B$40003,0)) -> 6.103694672 | O18: =INDEX(Extract!O$4:O$40003,MATCH($A18,Extract!$B$4:$B$40003,0)) -> 5.602089086 | P18: =INDEX(Extract!P$4:P$40003,MATCH($A18,Extract!$B$4:$B$40003,0)) -> 5.028863678 | Q18: =INDEX(Extract!Q$4:Q$40003,MATCH($A18,Extract!$B$4:$B$40003,0)) -> 6.401058844 | R18: =INDEX(Extract!R$4:R$40003,MATCH($A18,Extract!$B$4:$B$40003,0)) -> 5.842360799 | S18: =INDEX(Extract!S$4:S$40003,MATCH($A18,Extract!$B$4:$B$40003,0)) -> 7.43616106 | T18: =INDEX(Extract!T$4:T$40003,MATCH($A18,Extract!$B$4:$B$40003,0)) -> 10.94067536 | U18: =INDEX(Extract!U$4:U$40003,MATCH($A18,Extract!$B$4:$B$40003,0)) -> 10.9293765 | V18: =INDEX(Extract!V$4:V$40003,MATCH($A18,Extract!$B$4:$B$40003,0)) -> 11.99980717 | W18: =INDEX(Extract!W$4:W$40003,MATCH($A18,Extract!$B$4:$B$40003,0)) -> 12.34779273 | X18: =INDEX(Extract!X$4:X$40003,MATCH($A18,Extract!$B$4:$B$40003,0)) -> 11.90119554 | Y18: =INDEX(Extract!Y$4:Y$40003,MATCH($A18,Extract!$B$4:$B$40003,0)) -> 14.15398992 | Z18: =INDEX(Extract!Z$4:Z$40003,MATCH($A18,Extract!$B$4:$B$40003,0)) -> 7.738676681 | AA18: =INDEX(Extract!AA$4:AA$40003,MATCH($A18,Extract!$B$4:$B$40003,0)) -> 9.138467818 | AB18: =INDEX(Extract!AB$4:AB$40003,MATCH($A18,Extract!$B$4:$B$40003,0)) -> 7.750302321 | AC18: =INDEX(Extract!AC$4:AC$40003,MATCH($A18,Extract!$B$4:$B$40003,0)) -> 6.800399801 | AD18: =INDEX(Extract!AD$4:AD$40003,MATCH($A18,Extract!$B$4:$B$40003,0)) -> 6.727773887 | AE18: =INDEX(Extract!AE$4:AE$40003,MATCH($A18,Extract!$B$4:$B$40003,0)) -> 6.127395821 | AF18: =INDEX(Extract!AF$4:AF$40003,MATCH($A18,Extract!$B$4:$B$40003,0)) -> 6.048215544 | AG18: =INDEX(Extract!AG$4:AG$40003,MATCH($A18,Extract!$B$4:$B$40003,0)) -> 5.908358578 | AH18: =INDEX(Extract!AH$4:AH$40003,MATCH($A18,Extract!$B$4:$B$40003,0)) -> 5.729208845 | AI18: =INDEX(Extract!AI$4:AI$40003,MATCH($A18,Extract!$B$4:$B$40003,0)) -> 5.632953949 | AJ18: =INDEX(Extract!AJ$4:AJ$40003,MATCH($A18,Extract!$B$4:$B$40003,0)) -> 5.652218329 | AK18: =INDEX(Extract!AK$4:AK$40003,MATCH($A18,Extract!$B$4:$B$40003,0)) -> 5.6845602 | AL18: =INDEX(Extract!AL$4:AL$40003,MATCH($A18,Extract!$B$4:$B$40003,0)) -> 5.733114735 | AM18: =INDEX(Extract!AM$4:AM$40003,MATCH($A18,Extract!$B$4:$B$40003,0)) -> 5.771117158 | AN18: =INDEX(Extract!AN$4:AN$40003,MATCH($A18,Extract!$B$4:$B$40003,0)) -> 5.825188995 | AO18: =INDEX(Extract!AO$4:AO$40003,MATCH($A18,Extract!$B$4:$B$40003,0)) -> 5.856020254 | AP18: =INDEX(Extract!AP$4:AP$40003,MATCH($A18,Extract!$B$4:$B$40003,0)) -> 5.897400559 | AQ18: =INDEX(Extract!AQ$4:AQ$40003,MATCH($A18,Extract!$B$4:$B$40003,0)) -> 5.926494683 | AR18: =INDEX(Extract!AR$4:AR$40003,MATCH($A18,Extract!$B$4:$B$40003,0)) -> 5.957157428 | AS18: =INDEX(Extract!AS$4:AS$40003,MATCH($A18,Extract!$B$4:$B$40003,0)) -> 5.9695875 | AT18: =INDEX(Extract!AT$4:AT$40003,MATCH($A18,Extract!$B$4:$B$40003,0)) -> 5.984697216 | AU18: =INDEX(Extract!AU$4:AU$40003,MATCH($A18,Extract!$B$4:$B$40003,0)) -> 5.993762713 | AV18: =INDEX(Extract!AV$4:AV$40003,MATCH($A18,Extract!$B$4:$B$40003,0)) -> 5.996586207 | AW18: =INDEX(Extract!AW$4:AW$40003,MATCH($A18,Extract!$B$4:$B$40003,0)) -> 5.999543935 | AX18: =INDEX(Extract!AX$4:AX$40003,MATCH($A18,Extract!$B$4:$B$40003,0)) -> 5.985958059 | AY18: =INDEX(Extract!AY$4:AY$40003,MATCH($A18,Extract!$B$4:$B$40003,0)) -> 5.976949709
